Workbook

Sheet Contents
A1: 80 | M1: ESC USE ONLY
D2: ESSENTIAL SERVICES COMMISSION
D3: Water Price Review - 2024
D4: Financial Model Template
B7: Table of Contents | F7: Water Business: | H7: =+N24 -> Goulburn Murray Water | I7: =+O24 -> GMW
B8: Section & Sheet Titles | F8: Regulatory Period: | H8: 2024-25 to 2027-28 (Fifth) | N8: [Decision] | O8: [Month] | P8: [Year] | Q8: [Version]
F9: Model Name: | H9: =I7&"_Price Review Template_"&O9&P9&Q9 -> GMW_Price Review Template_Sep2022 - v1 | N9: Draft | O9: Sep | P9: 2022 | Q9: - v1 | R9: << Select
B10: 1 | C10: =Model_Quality_Check!B1 -> Model Quality Check | F10: Decision type: | H10: =+N9&" Decision" -> Draft Decision | N10: Draft | O10: Jan | P10: 2016 | Q10: - v1
B11: =B10+1 -> 2 | C11: =+KeyAssumptionsPriceControl_FO!B1 -> Key Assumptions Price Control | N11: Final | O11: Feb | P11: 2017 | Q11: - v1.2
B12: =B11+1 -> 3 | C12: =+Expenditure_Detail!B1 -> Expenditure - Detail | F12: Model Key: | O12: Mar | P12: 2018 | Q12: - v3
B13: 4 | C13: =Opex_FO!B1 -> Operating Expenditure - Forecast | O13: Apr | P13: 2019 | Q13: - v3.1
B14: 5 | C14: =Opex_Breakdown!B1 -> Operating Expenditure - Breakdown | G14: BLUE | H14: =+I7&" - DATA INPUT CELL" -> GMW - DATA INPUT CELL | O14: May | P14: 2020 | Q14: - v4
B15: 6 | C15: =+'Capex_FO input'!B1 -> Capital Expenditure - Forecast Input | O15: Jun | P15: 2021 | Q15: - v4.1
B16: 7 | C16: =Capex_FO_AC!B1 -> Capital Expenditure - Asset Category Breakdown | G16: PURPLE | H16: NOTES / INSTRUCTIONS | O16: Jul | P16: 2022 | Q16: - v5
B17: 8 | C17: =Rev_Summary_FO!B1 -> Expenditure and Revenue Summary | O17: Aug | Q17: - v5.1
B18: 9 | C18: =RollForward_FO!B1 -> Rolled forward regulatory asset base (RAB) | G18: GREY | H18: MODEL PARAMETERS / ASSUMPTIONS | O18: Sep | Q18: - v6
B19: 10 | C19: =PrevPerAdj_FO!B1 -> Previous period adjustments | O19: Oct | Q19: - v6.1
B20: 11 | C20: =RevenuePriceCap_FO!C1 -> Revenue forecast (price caps) | G20: WHITE | H20: FORMULA / HARDCODED VALUES | O20: Nov | Q20: - v7
B21: 12 | C21: Revenue forecast (tariff basket) | O21: Dec | Q21: - v7.1
B22: 13 | C22: =NotPres_FO!B1 -> Non Prescribed Services | G22: ORANGE | H22: FORMULA DIFFERENT TO ADJACENT CELL
B23: 14 | C23: ='Finance&Tax_FO'!B1 -> Cash, debt and tax assumptions | N23: [Business]
B24: 15 | C24: ='Rev&RAV_FO'!B1 -> Revenue requirement detail | G24: GREEN | H24: DATA FROM 2020 DECISION OR PERFORMANCE REPORT | N24: Goulburn Murray Water | O24: =+VLOOKUP(N24,N25:O43,2,FALSE) -> GMW
B25: 16 | C25: =Indicators_FO!B1 -> Financial indicators | N25: Barwon Water | O25: BW | P25: Urban model
B26: 17 | C26: Dashboard - Pricing | G26: RED | H26: ERROR CHECK | N26: Central Highlands Water | O26: CHW | P26: Urban model
B27: 18 | C27: Dashboard - Opex | N27: City West Water | O27: CWW | P27: Urban model
B28: 19 | C28: Dashboard - Capex | N28: Coliban Water | O28: CW | P28: Urban model
B29: 20 | C29: Dashboard - Data | N29: East Gippsland Water | O29: EGW | P29: Urban model
N30: Gippsland Water | O30: CGW | P30: Urban model
M31: >>>> | N31: Goulburn Murray Water | O31: GMW | P31: GMW model
N32: Goulburn Valley Water | O32: GVW | P32: Urban model
N33: GWM Water | O33: GWMW | P33: GWMW model
N34: Lower Murray Water - Urban | O34: LMW-U | P34: Urban model
N35: Lower Murray Water - Rural | O35: LMW-R | P35: LMW-R model
N36: North East Water | O36: NEW | P36: Urban model
N37: South East Water | O37: SEW | P37: Urban model
N38: South Gippsland Water | O38: SGW | P38: Urban model
N39: Southern Rural Water | O39: SRW | P39: SRW model
N40: Wannon Water | O40: WNW | P40: Urban model
N41: Western Water | O41: WW | P41: Urban model
N42: Westernport Water | O42: WPW | P42: Urban model
N43: Yarra Valley Water | O43: YVW | P43: Urban model

Sheet Model adjustment
A2: Date | B2: Tab | C2: Cells | D2: Detail | E2: JR/KC done (19/7) | F2: Notes
A3: 2023-07-01 | B3: Opex_Break down | C3: Row 137 | D3: Inclusion of a locked formula to calculate EC consistent with ESC methodology (falling in real terms) | E3: Y
A4: 2023-07-01 | B4: Opex_Break down | C4: Rows 23-24 | D4: Adding line items which show the previous price review final approved benchmarks and outlook for controllable opex, and % diff between actual and benchmark | E4: Y
A5: 2023-07-01 | B5: Opex_Break down | C5: AC130-AK132 | D5: Including locked formulas for ESC (falling in real terms), DH (flat real terms), EPA (flat real terms) license fees consistent with ESC methodology | E5: Y
A6: 2023-07-01 | B6: Opex_Break down | C6: D131 | D6: Renamed Department of Human Services license fee to Department of Health | E6: Y
A7: 2023-07-01 | B7: Opex_FO | C7: Rows 60-69 | D7: Inclusion of a 'baseline discrepancy' section - where businesses must quantify the difference between there approved controllable opex baseline year benchmark and its actual. | E7: Y
A8: 2023-07-01 | B8: Opex_FO | C8: Charts | D8: Charts and supporting data have been moved to Dashboard Opex and Dashboard - Data | E8: Y
A9: 2023-07-01 | B9: Capex_FO_AC | C9: Rows 20:24 | D9: Adding line items which show the previous price review final approved outlook and forecast for total capex, and % diff between actual and benchmark; regulatory year totals | E9: Y
A10: 2023-07-01 | B10: Capex_FO_AC | C10: AM11:AQ18 AM20:AQ25 | D10: Businesses must select the 2023-24 capex figure that is applied to RAB calculation;Comparison with approved 19-23 total capex | E10: Y
A11: 2023-07-01 | B11: Expenditure_Detail | C11: Rows 13-31 | D11: Summary rows include FD2019-20 Outlook and forecast figures | E11: Y
A12: 2023-07-01 | B12: Exp_Summary_FO | C12: AM:AP, Rows 32:34 | D12: Aggregated 4th,5th and 6th Reg Periods; average annual value and added in Revenue Requirement | E12: Y
A13: 2023-07-01 | B13: Dashboard - Capex | C13: Chart | D13: Added a new chart for prescribed capex. This is the FD 2018 benchmark and forecast vs actuals and proposed in the current Regulatory Period | E13: Y
A14: 2023-07-01 | B14: Dashboard - Opex | C14: Chart | D14: Streamlined Opex_FO charts here and added a new chart for controllable opex. This is the FD 2018 benchmark and forecast vs actuals and proposed in the current Regulatory Period | E14: Y

Sheet Model_Quality_Check
A1: 80 | B1: Model Quality Check
B2: =+Contents!H7 -> Goulburn Murray Water
B3: Go to Table of Contents
K4: FIRST REG PERIOD | O4: SECOND REG PERIOD | S4: THIRD REG PERIOD | V4: FOURTH REG PERIOD | Z4: FIFTH REG PERIOD | AD4: SIXTH REG PERIOD | AH4: SEVENTH REG PERIOD
F6: Straight Line | J6: 2006 | K6: 2007 | L6: 2008 | M6: 2009 | N6: 2010 | O6: 2011 | P6: 2012 | Q6: 2013 | R6: 2014 | S6: 2015 | T6: 2016 | U6: 2017 | V6: 2018 | W6: 2019 | X6: 2020 | Y6: 2021 | Z6: 2022 | AA6: 2023 | AB6: 2024 | AC6: 2025 | AD6: 2026 | AE6: 2027 | AF6: 2028 | AG6: 2029 | AH6: 2030 | AI6: 2031 | AJ6: 2032
F7: Declining Balance | J7: =+CONCATENATE(J6-1,"-",RIGHT(J6,2)) -> 2005-06 | K7: 2006-07 | L7: 2007-08 | M7: 2008-09 | N7: 2009-10 | O7: 2010-11 | P7: 2011-12 | Q7: 2012-13 | R7: 2013-14 | S7: 2014-15 | T7: 2015-16 | U7: 2016-17 | V7: 2017-18 | W7: =+CONCATENATE(W6-1,"-",RIGHT(W6,2)) -> 2018-19 | X7: =+CONCATENATE(X6-1,"-",RIGHT(X6,2)) -> 2019-20 | Y7: =+CONCATENATE(Y6-1,"-",RIGHT(Y6,2)) -> 2020-21 | Z7: =+CONCATENATE(Z6-1,"-",RIGHT(Z6,2)) -> 2021-22 | AA7: =+CONCATENATE(AA6-1,"-",RIGHT(AA6,2)) -> 2022-23 | AB7: =+CONCATENATE(AB6-1,"-",RIGHT(AB6,2)) -> 2023-24 | AC7: 2024-25 | AD7: 2025-26 | AE7: 2026-27 | AF7: 2027-28 | AG7: 2028-29 | AH7: 2029-30 | AI7: 2030-31 | AJ7: 2031-32
D9: Model ready for submission: | I9: =IF(SUM(AA15:AK51)>0,"No","OK") -> OK | T9: (If No, please ensure that the error check is corrected at the source)
D11: All Financial indicators satisfied | I11: =IF(SUM(AB54:AK62)=0,"Yes","No") -> Yes
E15: 1. | F15: Opex_FO
G16: Reconciliation to 'Opex_Breakdown' tab row 37 | AC16: =Opex_FO!AD120 -> 0 | AD16: =Opex_FO!AE120 -> 0 | AE16: =Opex_FO!AF120 -> 0 | AF16: =Opex_FO!AG120 -> 0 | AG16: =Opex_FO!AH120 -> 0 | AH16: =Opex_FO!AI120 -> 0 | AI16: =Opex_FO!AJ120 -> 0 | AJ16: =Opex_FO!AK120 -> 0
E18: 2. | F18: Opex_Breakdown
G19: Reconciliation to 'Opex_FO' tab row 92 | AC19: =Opex_Breakdown!AD55 -> 0 | AD19: =Opex_Breakdown!AE55 -> 0 | AE19: =Opex_Breakdown!AF55 -> 0 | AF19: =Opex_Breakdown!AG55 -> 0 | AG19: =Opex_Breakdown!AH55 -> 0 | AH19: =Opex_Breakdown!AI55 -> 0 | AI19: =Opex_Breakdown!AJ55 -> 0 | AJ19: =Opex_Breakdown!AK55 -> 0
G21: Reconciliation of Opex by service and function | X21: =Opex_Breakdown!Y33 -> 0 | Y21: =Opex_Breakdown!Z33 -> 0 | Z21: =Opex_Breakdown!AA33 -> 0 | AA21: =Opex_Breakdown!AB33 -> 0 | AB21: =Opex_Breakdown!AC33 -> 0 | AC21: =Opex_Breakdown!AD33 -> 0 | AD21: =Opex_Breakdown!AE33 -> 0 | AE21: =Opex_Breakdown!AF33 -> 0 | AF21: =Opex_Breakdown!AG33 -> 0 | AG21: =Opex_Breakdown!AH33 -> 0 | AH21: =Opex_Breakdown!AI33 -> 0 | AI21: =Opex_Breakdown!AJ33 -> 0 | AJ21: =Opex_Breakdown!AK33 -> 0
E23: 3. | F23: Capex_FO input
G24: Reconciliation of total prescribed capex between cost driver and capital type | AC24: ='Capex_FO input'!D26 -> 0 | AD24: ='Capex_FO input'!E26 -> 0 | AE24: ='Capex_FO input'!F26 -> 0 | AF24: ='Capex_FO input'!G26 -> 0 | AG24: ='Capex_FO input'!H26 -> 0 | AH24: ='Capex_FO input'!I26 -> 0 | AI24: ='Capex_FO input'!J26 -> 0 | AJ24: ='Capex_FO input'!K26 -> 0
E26: 4. | F26: Capex_FO_AC
G27: Reconciliation to 'Capex_FO input' tab row 29 | AC27: =Capex_FO_AC!AC36 -> 0 | AD27: =Capex_FO_AC!AD36 -> 0 | AE27: =Capex_FO_AC!AE36 -> 0 | AF27: =Capex_FO_AC!AF36 -> 0 | AG27: =Capex_FO_AC!AG36 -> 0 | AH27: =Capex_FO_AC!AH36 -> 0 | AI27: =Capex_FO_AC!AI36 -> 0 | AJ27: =Capex_FO_AC!AJ36 -> 0
E29: 5. | F29: RollForward_FO
G30: Reconciliation of existing assets book value to RAB | AC30: ='Rev&RAV_FO'!Y80 -> 0
E32: 6. | F32: RevenuePriceCap_FO
G33: Price control - Fourth period | AC33: =IF(KeyAssumptionsPriceControl_FO!I47=1,IF(RevenuePriceCap_FO!AC34="PRICE CONTROL OK",0,1),0) -> 0 | AD33: =IF(KeyAssumptionsPriceControl_FO!I47=1,RevenuePriceCap_FO!$AC$34,"") -> 
G35: Price control - Fifth period | AC35: =IF(KeyAssumptionsPriceControl_FO!I47=1,IF(RevenuePriceCap_FO!AH34="PRICE CONTROL OK",0,1),0) -> 0 | AD35: =IF(KeyAssumptionsPriceControl_FO!I47=1,RevenuePriceCap_FO!$AH$34,"") -> 
G37: Tariff revenue reconciliation | AC37: =RevenuePriceCap_FO!AD459 -> 0 | AD37: =RevenuePriceCap_FO!AE459 -> 0 | AE37: =RevenuePriceCap_FO!AF459 -> 0 | AF37: =RevenuePriceCap_FO!AG459 -> 0 | AG37: =RevenuePriceCap_FO!AH459 -> 0 | AH37: =RevenuePriceCap_FO!AI459 -> 0 | AI37: =RevenuePriceCap_FO!AJ459 -> 0 | AJ37: =RevenuePriceCap_FO!AK459 -> 0
E39: 7. | F39: RevenueTariffBasket_FO
G40: Price control - Fourth period
G42: Price control - Fifth period
G44: Tariff revenue reconciliation | AC44: =IF(RevenueTariffBasket_FO!AD1085=RevenueTariffBasket_FO!AD1086,0,1) -> 0 | AD44: =IF(RevenueTariffBasket_FO!AE1085=RevenueTariffBasket_FO!AE1086,0,1) -> 0 | AE44: =IF(RevenueTariffBasket_FO!AF1085=RevenueTariffBasket_FO!AF1086,0,1) -> 0 | AF44: =IF(RevenueTariffBasket_FO!AG1085=RevenueTariffBasket_FO!AG1086,0,1) -> 0 | AG44: =IF(RevenueTariffBasket_FO!AH1085=RevenueTariffBasket_FO!AH1086,0,1) -> 0 | AH44: =IF(RevenueTariffBasket_FO!AI1085=RevenueTariffBasket_FO!AI1086,0,1) -> 0 | AI44: =IF(RevenueTariffBasket_FO!AJ1085=RevenueTariffBasket_FO!AJ1086,0,1) -> 0 | AJ44: =IF(RevenueTariffBasket_FO!AK1085=RevenueTariffBasket_FO!AK1086,0,1) -> 0
E46: 8. | F46: Rev&RAV_FO
G47: Rolled forward RAV reconciliation | AC47: ='Rev&RAV_FO'!AD80 -> 0 | AD47: ='Rev&RAV_FO'!AE80 -> 0 | AE47: ='Rev&RAV_FO'!AF80 -> 0 | AF47: ='Rev&RAV_FO'!AG80 -> 0 | AG47: ='Rev&RAV_FO'!AH80 -> 0 | AH47: ='Rev&RAV_FO'!AI80 -> 0 | AI47: ='Rev&RAV_FO'!AJ80 -> 0 | AJ47: ='Rev&RAV_FO'!AK80 -> 0
E49: 9. | F49: GSL
G50: Reconciliation to 'Opex_Breakdown' tab row 24 | AC50: =IF(GSL!AD41=0,0,1) -> 0 | AD50: =IF(GSL!AE41=0,0,1) -> 0 | AE50: =IF(GSL!AF41=0,0,1) -> 0 | AF50: =IF(GSL!AG41=0,0,1) -> 0 | AG50: =IF(GSL!AH41=0,0,1) -> 0 | AH50: =IF(GSL!AI41=0,0,1) -> 0 | AI50: =IF(GSL!AJ41=0,0,1) -> 0 | AJ50: =IF(GSL!AK41=0,0,1) -> 0
E55: 1. | F55: Primary Indicator
G56: FFO interest cover | AC56: =Indicators_FO!AD$226 -> 0 | AD56: =Indicators_FO!AE$226 -> 0 | AE56: =Indicators_FO!AF$226 -> 0 | AF56: =Indicators_FO!AG$226 -> 0 | AG56: =Indicators_FO!AH$226 -> 0 | AH56: =Indicators_FO!AI$226 -> 0 | AI56: =Indicators_FO!AJ$226 -> 0 | AJ56: =Indicators_FO!AK$226 -> 0 | AK56: =Indicators_FO!AL$226 -> 0
E58: 2. | F58: Secondary indicators
G59: Net debt / RAV | AC59: =Indicators_FO!AD$235 -> 0 | AD59: =Indicators_FO!AE$235 -> 0 | AE59: =Indicators_FO!AF$235 -> 0 | AF59: =Indicators_FO!AG$235 -> 0 | AG59: =Indicators_FO!AH$235 -> 0 | AH59: =Indicators_FO!AI$235 -> 0 | AI59: =Indicators_FO!AJ$235 -> 0 | AJ59: =Indicators_FO!AK$235 -> 0 | AK59: =Indicators_FO!AL$235 -> 0
G60: FFO / Net debt | AC60: =Indicators_FO!AD$243 -> 0 | AD60: =Indicators_FO!AE$243 -> 0 | AE60: =Indicators_FO!AF$243 -> 0 | AF60: =Indicators_FO!AG$243 -> 0 | AG60: =Indicators_FO!AH$243 -> 0 | AH60: =Indicators_FO!AI$243 -> 0 | AI60: =Indicators_FO!AJ$243 -> 0 | AJ60: =Indicators_FO!AK$243 -> 0 | AK60: =Indicators_FO!AL$243 -> 0
G61: Internal financing ratio | AC61: =Indicators_FO!AD$252 -> 0 | AD61: =Indicators_FO!AE$252 -> 0 | AE61: =Indicators_FO!AF$252 -> 0 | AF61: =Indicators_FO!AG$252 -> 0 | AG61: =Indicators_FO!AH$252 -> 0 | AH61: =Indicators_FO!AI$252 -> 0 | AI61: =Indicators_FO!AJ$252 -> 0 | AJ61: =Indicators_FO!AK$252 -> 0 | AK61: =Indicators_FO!AL$252 -> 0

Sheet KeyAssumptionsPriceControl_FO
A1: 80 | B1: Key Assumptions Price Control
B2: =+Contents!H7 -> Goulburn Murray Water
B3: Go to Table of Contents
L4: FIRST REG PERIOD | P4: SECOND REG PERIOD | T4: THIRD REG PERIOD | W4: FOURTH REG PERIOD | AA4: FIFTH REG PERIOD | AE4: SIXTH REG PERIOD | AI4: SEVENTH REG PERIOD
F6: Straight Line | K6: 2006 | L6: 2007 | M6: 2008 | N6: 2009 | O6: 2010 | P6: 2011 | Q6: 2012 | R6: 2013 | S6: 2014 | T6: 2015 | U6: 2016 | V6: 2017 | W6: 2018 | X6: 2019 | Y6: 2020 | Z6: 2021 | AA6: 2022 | AB6: 2023 | AC6: 2024 | AD6: 2025 | AE6: 2026 | AF6: 2027 | AG6: 2028 | AH6: 2029 | AI6: 2030 | AJ6: 2031 | AK6: 2032
F7: Declining Balance | I7: 2003-04 | J7: 2004-05 | K7: =+CONCATENATE(K6-1,"-",RIGHT(K6,2)) -> 2005-06 | L7: =+CONCATENATE(L6-1,"-",RIGHT(L6,2)) -> 2006-07 | M7: 2007-08 | N7: 2008-09 | O7: 2009-10 | P7: 2010-11 | Q7: 2011-12 | R7: 2012-13 | S7: 2013-14 | T7: 2014-15 | U7: 2015-16 | V7: 2016-17 | W7: 2017-18 | X7: 2018-19 | Y7: 2019-20 | Z7: 2020-21 | AA7: 2021-22 | AB7: 2022-23 | AC7: 2023-24 | AD7: 2024-25 | AE7: 2025-26 | AF7: 2026-27 | AG7: 2027-28 | AH7: =+CONCATENATE(AH6-1,"-",RIGHT(AH6,2)) -> 2028-29 | AI7: 2029-30 | AJ7: 2030-31 | AK7: 2031-32
E11: Inflation assumptions
F13: March quarter annual CPI | I13: 141.3 | J13: 144.1 | K13: 147.5 | L13: 151.9 | M13: 155.6 | N13: 162.2 | O13: 166.2 | P13: 171 | Q13: 176.7 | R13: 99.9 | S13: 102.4 | T13: 105.4 | U13: 106.8 | V13: 108.2 | W13: 110.5 | X13: 112.6 | Y13: 114.1 | Z13: 116.6 | AA13: 117.9 | AB13: 123.9 | AC13: 132.6
F14: Inflation | J14: =+J13/I13-1 -> 0.01981599434 | K14: 0.02359472588 | L14: 0.02983050847 | M14: 0.02435813035 | N14: 0.04241645244 | O14: 0.02466091245 | P14: 0.02888086643 | Q14: 0.03333333333 | R14: 0.01584606678 | S14: =+IF(S13=0,$S$38,S13/R13-1) -> 0.02502502503 | T14: 0.029296875 | U14: 0.01328273245 | V14: 0.01310861423 | W14: 0.02125693161 | X14: 0.01900452489 | Y14: 0.01332149201 | Z14: =+IF(Z13=0,$S$38,Z13/Y13-1) -> 0.02191060473 | AA14: =+IF(AA13=0,$S$38,AA13/Z13-1) -> 0.01114922813 | AB14: =+IF(AB13=0,$S$38,AB13/AA13-1) -> 0.05089058524 | AC14: =+IF(AC13=0,$S$38,AC13/AB13-1) -> 0.07021791768 | AD14: =+IF(AD13=0,$AD$44,AC13/AB13-1) -> 0.035 | AE14: =+IF(AE13=0,$AD$44,AD13/AC13-1) -> 0.035 | AF14: 0.035 | AG14: 0.035 | AH14: 0.035 | AI14: 0.035 | AJ14: 0.035 | AK14: 0.035
F15: Inflation factor | I15: 0.7871866295 | J15: 0.8027855153 | K15: 0.8217270195 | L15: 0.8462395543 | M15: 0.8668523677 | N15: 0.9036211699 | O15: 0.9259052925 | P15: 0.9526462396 | Q15: 0.9844011142 | R15: =+R13/$AC$13 -> 0.7533936652 | S15: 0.7722473605 | T15: 0.7948717949 | U15: 0.8054298643 | V15: 0.8159879336 | W15: 0.8333333333 | X15: 0.8491704374 | Y15: 0.8604826546 | Z15: 0.8793363499 | AA15: 0.8891402715 | AB15: =+AB13/$AC$13 -> 0.9343891403 | AC15: =+AC13/$AC$13 -> 1 | AD15: =+AC15*(1+AD14) -> 1.035 | AE15: 1.071225 | AF15: 1.108717875 | AG15: 1.147523001 | AH15: =+AG15*(1+AH14) -> 1.187686306 | AI15: =+AH15*(1+AI14) -> 1.229255326 | AJ15: =+AI15*(1+AJ14) -> 1.272279263 | AK15: =+AJ15*(1+AK14) -> 1.316809037
I16: CPI index re-referenced in 2012-13, shaded values have been hardcoded to lock in RAB value.
E20: Cost of debt - 10 year trailing average (Nominal)
AC21: Estimate | AD21: Estimate | AE21: Estimate | AF21: Estimate | AG21: Estimate | AH21: Estimate | AI21: Estimate | AJ21: Estimate | AK21: Estimate
E22: Cost of debt | L22: 0.06981666667 | M22: 0.07414 | N22: 0.0691525788 | O22: 0.07361870984 | P22: 0.07046784142 | Q22: 0.06308887941 | R22: 0.0526945046 | S22: 0.070525 | T22: 0.05360833333 | U22: 0.05270138413 | V22: 0.04908333333 | W22: 0.045283 | X22: 0.046133 | Y22: 0.03305833333 | Z22: 0.03045 | AA22: =3.7533% -> 0.037533 | AB22: 0.067608 | AC22: =AB22 -> 0.067608 | AD22: 0.067608 | AE22: 0.067608 | AF22: 0.067608 | AG22: 0.067608 | AH22: 0.067608 | AI22: 0.067608 | AJ22: 0.067608 | AK22: 0.067608
E23: Re-financing weightings - average 10 yrs | L23: =1/10 -> 0.1 | M23: =1/10 -> 0.1 | N23: =1/10 -> 0.1 | O23: =1/10 -> 0.1 | P23: =1/10 -> 0.1 | Q23: 0.1 | R23: 0.1 | S23: 0.1 | T23: 0.1 | U23: 0.1 | V23: 0.1 | W23: 0.1 | X23: 0.1 | Y23: 0.1 | Z23: 0.1 | AA23: 0.1 | AB23: 0.1 | AC23: 0.1 | AD23: 0.1 | AE23: 0.1 | AF23: 0.1 | AG23: 0.1 | AH23: 0.1 | AI23: 0.1 | AJ23: 0.1 | AK23: 0.1
E25: Cost of debt - 10 year trailing average | V25: =IF(U22<>"",SUMPRODUCT(L22:U22,L23:U23),"") -> 0.06498138982 | W25: 0.06290805649 | X25: 0.06002235649 | Y25: 0.05772039861 | Z25: 0.05366436096 | AA25: 0.04966257681 | AB25: =IF(AA22<>"",SUMPRODUCT(R22:AA22,R23:AA23),"") -> 0.04710698887 | AC25: =IF(AB22<>"",SUMPRODUCT(S22:AB22,S23:AB23),"") -> 0.04859833841 | AD25: =IF(AC22<>"",SUMPRODUCT(T22:AC22,T23:AC23),"") -> 0.04830663841 | AE25: 0.04970660508 | AF25: 0.05119726667 | AG25: 0.05304973333 | AH25: 0.05528223333 | AI25: 0.05742973333 | AJ25: 0.0608847 | AK25: 0.0646005
E30: WACC assumptions (Reference Only) | AA30: Regulatory Rate of Return (RRR) - Nominal
K31: 1st period | M31: 2nd period | O31: 3rd period | Q31: 4th period | S31: 5th period
E32: Parameters | AA32: Cost of Debt | AD32: =AD25 -> 0.04830663841 | AE32: =AE25 -> 0.04970660508 | AF32: 0.05119726667 | AG32: 0.05304973333 | AH32: 0.05528223333 | AI32: 0.05742973333 | AJ32: 0.0608847 | AK32: 0.0646005
F33: Risk Free Rate (Real) | K33: 0.0267 | M33: 0.0323 | O33: 0.00916 | Q33: 0.006 | S33: 0.0082
F34: Debt Premium | K34: 0.0116 | M34: 0.0175 | O34: 0.03158 | Q34: 0.0315 | S34: 0.025
F35: Equity Premium | K35: 0.06 | M35: 0.06 | O35: 0.06 | Q35: 0.06 | S35: 0.06
F36: Equity Beta | K36: 0.75 | M36: 0.65 | O36: 0.7 | Q36: 0.7 | S36: 0.7 | AA36: Regulatory Rate of Return (RRR) - Real
F37: Gearing (Debt/Assets) | K37: 0.6 | M37: 0.6 | O37: 0.6 | Q37: 0.6 | S37: 0.6
F38: Forecast Inflation | K38: 0.0255 | M38: 0.029 | O38: 0.027 | Q38: 0.022 | S38: 0.03 | AA38: Cost of Debt | AD38: =(1+AD32)/(1+AD44)-1 -> 0.01285665547 | AE38: 0.01420928027 | AF38: 0.01564953301 | AG38: 0.01743935588 | AH38: 0.01959636071 | AI38: 0.02167123994 | AJ38: 0.02500937198 | AK38: 0.02859951691
F39: Franking credit value | K39: 0.5 | M39: 0.5 | O39: 0.5 | Q39: 0.5 | S39: 0.5
AA40: Return on Equity | AD40: =IF(AF64<>0,(AF64/100),IF(AF62<>0,(AF62/100),(AF60/100))) -> 0.041 | AE40: =+$AD$40 -> 0.041 | AF40: 0.041 | AG40: 0.041 | AH40: 0.041 | AI40: 0.041 | AJ40: 0.041 | AK40: 0.041
E41: 'Vanilla' After Tax WACC (Real) | K41: =ROUND(((K33+K35*K36)*(1-K37))+((K33+K34)*K37),3) -> 0.052 | M41: =ROUND(((M33+M35*M36)*(1-M37))+((M33+M34)*M37),3) -> 0.058 | O41: =ROUND(((O33+O35*O36)*(1-O37))+((O33+O34)*O37),3) -> 0.045 | Q41: =ROUND(((Q33+Q35*Q36)*(1-Q37))+((Q33+Q34)*Q37),3) -> 0.042 | S41: =ROUND(((S33+S35*S36)*(1-S37))+((S33+S34)*S37),4) -> 0.04
AA42: RRR (real) | AD42: =ROUND((AD40*(1-AD43)+AD38*AD43),4) -> 0.0241 | AE42: =ROUND((AE40*(1-AE43)+AE38*AE43),4) -> 0.0249 | AF42: 0.0258 | AG42: 0.0269 | AH42: 0.0282 | AI42: 0.0294 | AJ42: 0.0314 | AK42: 0.0336
AA43: Gearing | AD43: 0.6 | AE43: =+AD43 -> 0.6 | AF43: 0.6 | AG43: 0.6 | AH43: 0.6 | AI43: 0.6 | AJ43: 0.6 | AK43: 0.6
AA44: Forecast Inflation | AD44: 0.035 | AE44: 0.035 | AF44: 0.035 | AG44: 0.035 | AH44: 0.035 | AI44: 0.035 | AJ44: 0.035 | AK44: 0.035
E45: Form of price control selected
E47: Price caps | I47: 2 | AA47: PREMO Assessment Matrix (linked to Regulatory Rate of Return calculation above)
E49: Revenue cap / Hybrid Tariff Basket
AC51: Water business self-assessment
AC53: Leading | AD53: Advanced | AE53: Standard | AF53: Basic
AA54: ESC assessment of submission | AB54: Leading | AC54: 4.9
AB55: Advanced | AC55: 4.3 | AD55: 4.5
AB56: Standard | AC56: 3.7 | AD56: 3.9 | AE56: 4.1
AB57: Basic | AE57: 3.5 | AF57: 3.7
AA60: Water business self-assessment (Maximum allowable ROE) | AE60: Standard | AF60: =+VLOOKUP(AE60,AE72:AF75,2,FALSE) -> 4.1
AA62: ROE Override (Must be less than Maximum allowable ROE) | AF62: =+IF(AE62<=AF60,AE62,"CHECK") -> 0
AA64: ESC assessment of submission | AE64: [Select] | AF64: =IFERROR(IF(AE64=AE60,AF60,VLOOKUP(AE60&AE64,AE78:AF82,2,FALSE)),0) -> 0
AE66: Difference | AF66: =IFERROR(IF(AF64=0,"",AF64-AF60),"") -> 
AE70: Business self assessment
AE71: [Select]
AE72: Leading | AF72: =+AC54 -> 4.9
AE73: Advanced | AF73: =+AD55 -> 4.5
AE74: Standard | AF74: =+AE56 -> 4.1
AE75: Basic | AF75: =+AF57 -> 3.7
AE77: downgrading
AE78: =AE53&AB57 -> StandardBasic | AF78: =+AE57 -> 3.5
AE79: =+AD53&AB56 -> AdvancedStandard | AF79: =+AD56 -> 3.9
AE80: =+AC53&AB55 -> LeadingAdvanced | AF80: =+AC55 -> 4.3
AE81: =+AC53&AB56 -> LeadingStandard | AF81: =+AC56 -> 3.7
AE82: =+AE60&"Basic" -> StandardBasic | AF82: CHECK

Sheet Expenditure_Detail
B1: Expenditure - Detail
B2: =+Model_Name -> Goulburn Murray Water
B3: Go to Table of Contents
L4: FIRST REG PERIOD | P4: SECOND REG PERIOD | T4: THIRD REG PERIOD | W4: FOURTH REG PERIOD | AA4: FIFTH REG PERIOD | AE4: SIXTH REG PERIOD | AI4: SEVENTH REG PERIOD
K5: 2006 | L5: 2007 | M5: 2008 | N5: 2009 | O5: 2010 | P5: 2011 | Q5: 2012 | R5: 2013 | S5: 2014 | T5: 2015 | U5: 2016 | V5: 2017 | W5: 2018 | X5: 2019 | Y5: 2020 | Z5: 2021 | AA5: 2022 | AB5: 2023 | AC5: 2024 | AD5: 2025 | AE5: 2026 | AF5: 2027 | AG5: 2028 | AH5: 2029 | AI5: 2030 | AJ5: 2031 | AK5: 2032
B6: $m, 01/01/24 | K6: =+CONCATENATE(K5-1,"-",RIGHT(K5,2)) -> 2005-06 | L6: =+CONCATENATE(L5-1,"-",RIGHT(L5,2)) -> 2006-07 | M6: 2007-08 | N6: 2008-09 | O6: 2009-10 | P6: 2010-11 | Q6: 2011-12 | R6: 2012-13 | S6: 2013-14 | T6: 2014-15 | U6: 2015-16 | V6: 2016-17 | W6: 2017-18 | X6: 2018-19 | Y6: 2019-20 | Z6: 2020-21 | AA6: 2021-22 | AB6: 2022-23 | AC6: 2023-24 | AD6: 2024-25 | AE6: 2025-26 | AF6: 2026-27 | AG6: 2027-28 | AH6: =+CONCATENATE(AH5-1,"-",RIGHT(AH5,2)) -> 2028-29 | AI6: 2029-30 | AJ6: 2030-31 | AK6: 2031-32
B8: This worksheet outlines the key cost drivers of operating expenditure - capitalised costs are excluded. This tab does not link to the Rev&RAV_FO worksheet
C11: Expenditure Summary
D13: Total FTEs (current and forecast at 30 June) | Q13: =+Expenditure_Detail!R49 -> 0 | R13: =+Expenditure_Detail!S49 -> 0 | S13: =+Expenditure_Detail!T49 -> 0 | T13: =+Expenditure_Detail!U49 -> 0 | U13: =U49 -> 0 | V13: =V49 -> 0 | W13: 0 | X13: 59.3 | Y13: =Y48 -> 433.4763402 | Z13: =Z48 -> 403.8536467 | AA13: 401.676049 | AB13: 405.8 | AC13: =AC48 -> 412.7410494 | AD13: =AD48 -> 412.7410494 | AE13: 409.7410494 | AF13: 409.7410494 | AG13: 409.7410494 | AH13: 409.7410494 | AI13: 409.7410494 | AJ13: 409.7410494 | AK13: 409.7410494
D14: Forecast FTEs (FD 2020 forecasts) | Q14: =+Expenditure_Detail!R107 -> 0 | R14: =+Expenditure_Detail!S107 -> 0 | S14: =+Expenditure_Detail!T107 -> 0 | T14: =+Expenditure_Detail!U107 -> 0 | U14: =U107 -> 0 | V14: =V107 -> 0 | W14: 0 | X14: 0 | Y14: =_xlfn.XLOOKUP("Total FTEs",Determination_Lookup!$D:$D,Determination_Lookup!M:M,0) -> 438.1486525 | Z14: =_xlfn.XLOOKUP("Total FTEs",Determination_Lookup!$D:$D,Determination_Lookup!N:N,0) -> 420.7 | AA14: =_xlfn.XLOOKUP("Total FTEs",Determination_Lookup!$D:$D,Determination_Lookup!O:O,0) -> 420.7 | AB14: =_xlfn.XLOOKUP("Total FTEs",Determination_Lookup!$D:$D,Determination_Lookup!P:P,0) -> 420.7 | AC14: =_xlfn.XLOOKUP("Total FTEs",Determination_Lookup!$D:$D,Determination_Lookup!Q:Q,0) -> 420.7 | AD14: =_xlfn.XLOOKUP("Total FTEs",Determination_Lookup!$D:$D,Determination_Lookup!R:R,0) -> 420.7 | AE14: =_xlfn.XLOOKUP("Total FTEs",Determination_Lookup!$D:$D,Determination_Lookup!S:S,0) -> 420.7 | AF14: =_xlfn.XLOOKUP("Total FTEs",Determination_Lookup!$D:$D,Determination_Lookup!T:T,0) -> 420.7 | AG14: =_xlfn.XLOOKUP("Total FTEs",Determination_Lookup!$D:$D,Determination_Lookup!U:U,0) -> 420.7 | AH14: 0 | AI14: 0 | AJ14: 0 | AK14: 0
D15: Difference | Q15: =+Expenditure_Detail!R118 -> 0 | R15: =+Expenditure_Detail!S118 -> 0 | S15: =+Expenditure_Detail!T118 -> 0 | T15: =+Expenditure_Detail!U118 -> 0 | U15: =U118 -> 0 | V15: =V118 -> 0 | W15: 0 | X15: 0 | Y15: =IF(Y14=0,"- ",Y13- Y14) -> -4.672312352 | Z15: -16.84635332 | AA15: -19.023951 | AB15: -14.9 | AC15: -7.958950555 | AD15: =IF(AD14=0,"- ",AD13- AD14) -> -7.958950555 | AE15: -10.95895056 | AF15: -10.95895056 | AG15: -10.95895056 | AH15: - | AI15: - | AJ15: - | AK15: -
D17: Total Labour costs (actual and forecast $m) | Y17: =Y49 -> 59.3 | Z17: =Z49 -> 51.50656761 | AA17: 53.31518479 | AB17: 53.26063695 | AC17: 47.40322527 | AD17: =AD49 -> 51.57957413 | AE17: 50.28585456 | AF17: 50.97843109 | AG17: 50.58215668 | AH17: 50.69088701 | AI17: 50.69088701 | AJ17: 50.69088701 | AK17: 50.69088701
D18: Total Labour costs (FD 2020 forecasts) | Y18: =Determination_Lookup!M20 -> 60.3000919 | Z18: =Determination_Lookup!N20 -> 51.81549736 | AA18: =Determination_Lookup!O20 -> 51.27338821 | AB18: =Determination_Lookup!P20 -> 50.68024373 | AC18: =Determination_Lookup!Q20 -> 50.68024373 | AD18: =Determination_Lookup!R20 -> 50.68024373 | AE18: =Determination_Lookup!S20 -> 50.68024373 | AF18: =Determination_Lookup!T20 -> 50.68024373 | AG18: =Determination_Lookup!U20 -> 50.68024373 | AH18: 0 | AI18: 0 | AJ18: 0 | AK18: 0
D19: Difference ($m) | Y19: =Y17-Y18 -> -1.000091899 | Z19: =Z17-Z18 -> -0.3089297518 | AA19: 2.041796578 | AB19: 2.580393221 | AC19: -3.277018459 | AD19: =AD17-AD18 -> 0.8993304007 | AE19: -0.3943891693 | AF19: 0.2981873607 | AG19: -0.09808704933 | AH19: 0 | AI19: 0 | AJ19: 0 | AK19: 0
AC20: =SUM(Z19:AC19) -> 1.036241588 | AG20: =SUM(AD19:AG19) -> 0.7050415427 | AK20: =SUM(AH19:AK19) -> 0
D21: Total Energy costs (actual and forecast $m) | Y21: =Y107 -> 1.866758985 | Z21: 1.865309139 | AA21: 1.705376412 | AB21: 1.484814363 | AC21: 1.879643033 | AD21: =AD107 -> 1.926634109 | AE21: 1.926634109 | AF21: 1.926634109 | AG21: 1.926634109 | AH21: =AH107 -> 1.926634109 | AI21: 1.926634109 | AJ21: 1.926634109 | AK21: 1.926634109
D22: Total Energy costs (FD 2020 forecasts) | Y22: =Determination_Lookup!M21 -> 2.21555266 | Z22: =Determination_Lookup!N21 -> 2.173043301 | AA22: =Determination_Lookup!O21 -> 2.07911657 | AB22: =Determination_Lookup!P21 -> 2.080995105 | AC22: =Determination_Lookup!Q21 -> 2.082836069 | AD22: =Determination_Lookup!R21 -> 2.191754624 | AE22: =Determination_Lookup!S21 -> 2.191754624 | AF22: =Determination_Lookup!T21 -> 2.191754624 | AG22: =Determination_Lookup!U21 -> 2.191754624 | AH22: 0 | AI22: 0 | AJ22: 0 | AK22: 0
D23: Difference ($m) | Y23: =Y21-Y22 -> -0.3487936754 | Z23: =Z21-Z22 -> -0.307734162 | AA23: -0.373740158 | AB23: -0.5961807423 | AC23: -0.2031930355 | AD23: =AD21-AD22 -> -0.2651205143 | AE23: -0.2651205143 | AF23: -0.2651205143 | AG23: -0.2651205143 | AH23: 1.926634109 | AI23: 1.926634109 | AJ23: 1.926634109 | AK23: 1.926634109
AC24: =SUM(Z23:AC23) -> -1.480848098 | AG24: =SUM(AD23:AG23) -> -1.060482057 | AK24: =SUM(AH23:AK23) -> 7.706536437
D25: Total IT costs (actual and forecast $m) | Y25: =Y118 -> 5.981445906 | Z25: 5.69 | AA25: 6.25 | AB25: 6.27 | AC25: 7.45 | AD25: =AD118 -> 6.67 | AE25: 7.03 | AF25: 7.84 | AG25: 7.8 | AH25: 7.8 | AI25: 7.8 | AJ25: 7.8 | AK25: 7.8
D26: Total IT costs (FD 2020 forecasts) | Y26: =Determination_Lookup!M22 -> 6.577100805 | Z26: =Determination_Lookup!N22 -> 5.970929415 | AA26: =Determination_Lookup!O22 -> 5.928395271 | AB26: =Determination_Lookup!P22 -> 5.904191476 | AC26: =Determination_Lookup!Q22 -> 5.878427471 | AD26: =Determination_Lookup!R22 -> 5.850119808 | AE26: =Determination_Lookup!S22 -> 5.850119808 | AF26: =Determination_Lookup!T22 -> 5.850119808 | AG26: =Determination_Lookup!U22 -> 5.850119808 | AH26: 0 | AI26: 0 | AJ26: 0 | AK26: 0
D27: Difference ($m) | Y27: =Y25-Y26 -> -0.5956548987 | Z27: =Z25-Z26 -> -0.2809294154 | AA27: 0.3216047287 | AB27: 0.3658085238 | AC27: 1.571572529 | AD27: =AD25-AD26 -> 0.8198801916 | AE27: 1.179880192 | AF27: 1.989880192 | AG27: 1.949880192 | AH27: 7.8 | AI27: 7.8 | AJ27: 7.8 | AK27: 7.8
AC28: =SUM(Z27:AC27) -> 1.978056366 | AG28: =SUM(AD27:AG27) -> 5.939520767 | AK28: =SUM(AH27:AK27) -> 31.2
D29: Total Chemical costs (actual and forecast $m) | Y29: =Y129 -> 0 | Z29: 0 | AA29: 0 | AB29: 0 | AC29: 0 | AD29: =AD129 -> 0 | AE29: 0 | AF29: 0 | AG29: 0 | AH29: 0 | AI29: 0 | AJ29: 0 | AK29: 0
D30: Total Chemical costs (FD 2020 forecasts) | Y30: =Determination_Lookup!M23 -> 0 | Z30: =Determination_Lookup!N23 -> 0 | AA30: =Determination_Lookup!O23 -> 0 | AB30: =Determination_Lookup!P23 -> 0 | AC30: =Determination_Lookup!Q23 -> 0 | AD30: =Determination_Lookup!R23 -> 0 | AE30: =Determination_Lookup!S23 -> 0 | AF30: =Determination_Lookup!T23 -> 0 | AG30: =Determination_Lookup!U23 -> 0 | AH30: 0 | AI30: 0 | AJ30: 0 | AK30: 0
D31: Difference ($m) | Q31: =+Expenditure_Detail!R129 -> 0 | R31: =+Expenditure_Detail!S129 -> 0 | S31: =+Expenditure_Detail!T129 -> 0 | T31: =+Expenditure_Detail!U129 -> 0 | U31: =U129 -> 0 | V31: =V129 -> 0 | W31: 0 | X31: 0 | Y31: =Y29-Y30 -> 0 | Z31: 0 | AA31: 0 | AB31: 0 | AC31: 0 | AD31: =AD29-AD30 -> 0 | AE31: 0 | AF31: 0 | AG31: 0 | AH31: 0 | AI31: 0 | AJ31: 0 | AK31: 0
AC32: =SUM(Z31:AC31) -> 0 | AG32: =SUM(AD31:AG31) -> 0 | AK32: =SUM(AH31:AK31) -> 0
C36: Labour assumptions
D38: Current FTEs (at 30 June) | Y38: 433.4763402 | Z38: 403.8536467 | AA38: 401.676049 | AB38: 405.8
D39: Actual and forecast labour costs for current FTEs ($m) | Y39: 59.3 | Z39: 51.50656761 | AA39: 53.31518479 | AB39: 53.26063695 | AC39: 50.33193111 | AD39: 50.95575262 | AE39: 50.62080359 | AF39: 50.79961734 | AG39: 50.69088701 | AH39: 50.69088701 | AI39: 50.69088701 | AJ39: 50.69088701 | AK39: 50.69088701 | AM39: <<<Business should use the latest information to forecast real wage and cost growth - this will be different to the 2.25% forecast inflation (based on CPI)
D40: Cost per FTE ($000) | Y40: =+Y39/Y38*10^3 -> 136.8010074 | Z40: =+Z39/Z38*10^3 -> 127.5377059 | AA40: 132.7317995 | AB40: 131.2484893 | AC40: =+AC39/$AB38*10^3 -> 124.0313729 | AD40: =+AD39/$AB38*10^3 -> 125.5686363 | AE40: 124.7432321 | AF40: 125.1838771 | AG40: 124.9159364 | AH40: 124.9159364 | AI40: 124.9159364 | AJ40: 124.9159364 | AK40: 124.9159364 | AM40: (Include Board members and associated labour costs if they are cosidered FTEs)
D41: Annual growth in labour costs for current FTEs | Z41: =+Z39/Y39-1 -> -0.1314238177 | AA41: =+AA39/Z39-1 -> 0.0351143022 | AB41: -0.001023120176 | AC41: -0.05498818654 | AD41: 0.01239415012 | AE41: -0.006573331033 | AF41: 0.003532416266 | AG41: -0.00214037695 | AH41: 0 | AI41: 0 | AJ41: 0 | AK41: 0
D43: Change in FTEs in future periods (net no. annual change) | AC43: 6.941049445 | AD43: 0 | AE43: -3 | AF43: 0 | AG43: 0 | AH43: 0 | AI43: 0 | AJ43: 0 | AK43: 0
D44: Increase or decrease in labour costs ($m) | AC44: -2.92870584 | AD44: 0.62382151 | AE44: -0.33494903 | AF44: 0.17881375 | AG44: -0.10873033 | AH44: 0 | AI44: 0 | AJ44: 0 | AK44: 0
D48: Total FTEs | X48: =+AB38 -> 405.8 | Y48: =+Y38 -> 433.4763402 | Z48: 403.8536467 | AA48: 401.676049 | AB48: 405.8 | AC48: =+$AB$38+SUM($AC43:AC43) -> 412.7410494 | AD48: =+$AB$38+SUM($AC43:AD43) -> 412.7410494 | AE48: =+$AB$38+SUM($AC43:AE43) -> 409.7410494 | AF48: =+$AB$38+SUM($AC43:AF43) -> 409.7410494 | AG48: =+$AB$38+SUM($AC43:AG43) -> 409.7410494 | AH48: =+$AB$38+SUM($AC43:AH43) -> 409.7410494 | AI48: =+$AB$38+SUM($AC43:AI43) -> 409.7410494 | AJ48: =+$AB$38+SUM($AC43:AJ43) -> 409.7410494 | AK48: =+$AB$38+SUM($AC43:AK43) -> 409.7410494
D49: Total labour costs ($m) | X49: =+Y39 -> 59.3 | Y49: 59.3 | Z49: 51.50656761 | AA49: 53.31518479 | AB49: 53.26063695 | AC49: =+AC44+AC39 -> 47.40322527 | AD49: =+AD44+AD39 -> 51.57957413 | AE49: 50.28585456 | AF49: 50.97843109 | AG49: 50.58215668 | AH49: 50.69088701 | AI49: 50.69088701 | AJ49: 50.69088701 | AK49: 50.69088701
D50: Cost per FTE | X50: =+X49/X48 -> 0.1461310991 | Y50: 0.1368010074 | Z50: 0.1275377059 | AA50: 0.1327317995 | AB50: 0.1312484893 | AC50: 0.1148497959 | AD50: 0.124968365 | AE50: 0.1227259378 | AF50: 0.1244162164 | AG50: 0.1234490827 | AH50: =+AH49/AH48 -> 0.1237144462 | AI50: 0.1237144462 | AJ50: 0.1237144462 | AK50: 0.1237144462
D51: Annual growth in total labour costs | Z51: =+Z49/Y49-1 -> -0.1314238177 | AA51: =+AA49/Z49-1 -> 0.0351143022 | AB51: =+AB49/AA49-1 -> -0.001023120176 | AC51: =+AC49/AB49-1 -> -0.1099763731 | AD51: =+AD49/AC49-1 -> 0.08810263091 | AE51: =+AE49/AD49-1 -> -0.02508201341 | AF51: =+AF49/AE49-1 -> 0.0137727903 | AG51: =+AG49/AF49-1 -> -0.007773373984 | AH51: =+AH49/AG49-1 -> 0.002149578767 | AI51: =+AI49/AH49-1 -> 0 | AJ51: =+AJ49/AI49-1 -> 0 | AK51: =+AK49/AJ49-1 -> 0
D52: Annual growth in total labour costs per FTE | Z52: =+Z50/Y50-1 -> -0.06771369345 | AA52: 0.04072594499 | AB52: -0.01117524363 | AC52: =+AC50/AB50-1 -> -0.1249438642 | AD52: 0.08810263091 | AE52: -0.01794395887 | AF52: 0.0137727903 | AG52: -0.007773373984 | AH52: 0.002149578767 | AI52: 0 | AJ52: 0 | AK52: 0
C57: Energy assumptions
D59: Electricity - traditional sources
D61: BASE LOAD
D63: Large sites
D64: Total kWh | Y64: 5232216.129 | Z64: 6089815.78 | AA64: 6447509.215 | AB64: 5767130.015 | AC64: 6447509.215 | AD64: 6447509.215 | AE64: 6447509.215 | AF64: 6447509.215 | AG64: 6447509.215 | AH64: 6447509.215 | AI64: 6447509.215 | AJ64: 6447509.215 | AK64: 6447509.215
D65: Total electricity costs ($m) | Y65: 1.448856487 | Z65: 1.556628339 | AA65: 1.375463912 | AB65: 1.14889543 | AC65: 1.513010303 | AD65: 1.55083556 | AE65: 1.55083556 | AF65: 1.55083556 | AG65: 1.55083556 | AH65: 1.55083556 | AI65: 1.55083556 | AJ65: 1.55083556 | AK65: 1.55083556
D66: Average c/kWh | Y66: =+Y65/Y64*100*10^6 -> 27.69106725 | Z66: 25.56117287 | AA66: 21.33326011 | AB66: 19.92144147 | AC66: =+AC65/AC64*100*10^6 -> 23.46658612 | AD66: 24.05325078 | AE66: 24.05325078 | AF66: 24.05325078 | AG66: 24.05325078 | AH66: =+AH65/AH64*100*10^6 -> 24.05325078 | AI66: 24.05325078 | AJ66: 24.05325078 | AK66: 24.05325078
D67: % increase p.a. | Z67: =+Z66/Y66-1 -> -0.07691629802 | AA67: -0.1654037075 | AB67: -0.06617922619 | AC67: =+AC66/AB66-1 -> 0.1779562319 | AD67: =+AD66/AC66-1 -> 0.025 | AE67: =+AE66/AD66-1 -> 0 | AF67: =+AF66/AE66-1 -> 0 | AG67: =+AG66/AF66-1 -> 0 | AH67: =+AH66/AG66-1 -> 0 | AI67: =+AI66/AH66-1 -> 0 | AJ67: =+AJ66/AI66-1 -> 0 | AK67: =+AK66/AJ66-1 -> 0
D69: Medium sites
D70: Total kWh
D71: Total electricity costs ($m)
D72: Average c/kWh | Y72: =+Y71/Y70*100*10^6 ->  | AC72: =+AC71/AC70*100*10^6 ->  | AH72: =+AH71/AH70*100*10^6 -> 
D73: % increase p.a. | Z73: =+Z72/Y72-1 ->  | AC73: =+AC72/AB72-1 ->  | AD73: =+AD72/AC72-1 ->  | AE73: =+AE72/AD72-1 ->  | AF73: =+AF72/AE72-1 ->  | AG73: =+AG72/AF72-1 ->  | AH73: =+AH72/AG72-1 ->  | AI73: =+AI72/AH72-1 ->  | AJ73: =+AJ72/AI72-1 ->  | AK73: =+AK72/AJ72-1 -> 
D75: Small sites
D76: Total kWh | Y76: 1088625.253 | Z76: 1003551.21 | AA76: 1192100.572 | AB76: 1317948.183 | AC76: 1192100.572 | AD76: 1192100.572 | AE76: 1192100.572 | AF76: 1192100.572 | AG76: 1192100.572 | AH76: 1192100.572 | AI76: 1192100.572 | AJ76: 1192100.572 | AK76: 1192100.572
D77: Total electricity costs ($m) | Y77: 0.4179024974 | Z77: 0.3086807993 | AA77: 0.3299125007 | AB77: 0.3359189325 | AC77: 0.3629037508 | AD77: 0.3719763445 | AE77: 0.3719763445 | AF77: 0.3719763445 | AG77: 0.3719763445 | AH77: 0.3719763445 | AI77: 0.3719763445 | AJ77: 0.3719763445 | AK77: 0.3719763445
D78: Average c/kWh | Y78: =+Y77/Y76*100*10^6 -> 38.3880951 | Z78: 30.7588488 | AA78: 27.67488822 | AB78: 25.48802274 | AC78: =+AC77/AC76*100*10^6 -> 30.44237704 | AD78: 31.20343646 | AE78: 31.20343646 | AF78: 31.20343646 | AG78: 31.20343646 | AH78: =+AH77/AH76*100*10^6 -> 31.20343646 | AI78: 31.20343646 | AJ78: 31.20343646 | AK78: 31.20343646
D79: % increase p.a. | Z79: =+Z78/Y78-1 -> -0.1987399031 | AA79: -0.100262549 | AB79: -0.07901984846 | AC79: =+AC78/AB78-1 -> 0.1943797031 | AD79: =+AD78/AC78-1 -> 0.025 | AE79: =+AE78/AD78-1 -> 0 | AF79: =+AF78/AE78-1 -> 0 | AG79: =+AG78/AF78-1 -> 0 | AH79: =+AH78/AG78-1 -> 0 | AI79: =+AI78/AH78-1 -> 0 | AJ79: =+AJ78/AI78-1 -> 0 | AK79: =+AK78/AJ78-1 -> 0
D82: NEW PROJECTS
D84: Large sites
D85: Total kWh | Y85: 0 | Z85: 0 | AA85: 0 | AB85: 0 | AC85: -36000 | AD85: -36000 | AE85: -36000 | AF85: -36000 | AG85: -36000 | AH85: -36000 | AI85: -36000 | AJ85: -36000 | AK85: -36000
D86: Total electricity costs ($m) | Y86: 0 | Z86: 0 | AA86: 0 | AB86: 0 | AC86: -0.008447971004 | AD86: -0.00865917028 | AE86: -0.00865917028 | AF86: -0.00865917028 | AG86: -0.00865917028 | AH86: -0.00865917028 | AI86: -0.00865917028 | AJ86: -0.00865917028 | AK86: -0.00865917028
D87: Average c/kWh | Y87: =+Y86/Y85*100*10^6 ->  | AC87: =+AC86/AC85*100*10^6 -> 23.46658612 | AD87: 24.05325078 | AE87: 24.05325078 | AF87: 24.05325078 | AG87: 24.05325078 | AH87: =+AH86/AH85*100*10^6 -> 24.05325078 | AI87: 24.05325078 | AJ87: 24.05325078 | AK87: 24.05325078
D88: % increase p.a. | Z88: =+Z87/Y87-1 ->  | AC88: =+AC87/AB87-1 ->  | AD88: =+AD87/AC87-1 -> 0.025 | AE88: =+AE87/AD87-1 -> 0 | AF88: =+AF87/AE87-1 -> 0 | AG88: =+AG87/AF87-1 -> 0 | AH88: =+AH87/AG87-1 -> 0 | AI88: =+AI87/AH87-1 -> 0 | AJ88: =+AJ87/AI87-1 -> 0 | AK88: =+AK87/AJ87-1 -> 0
D90: Medium sites
D91: Total kWh
D92: Total electricity costs ($m)
D93: Average c/kWh | Y93: =+Y92/Y91*100*10^6 ->  | AC93: =+AC92/AC91*100*10^6 ->  | AH93: =+AH92/AH91*100*10^6 -> 
D94: % increase p.a. | Z94: =+Z93/Y93-1 ->  | AC94: =+AC93/AB93-1 ->  | AD94: =+AD93/AC93-1 ->  | AE94: =+AE93/AD93-1 ->  | AF94: =+AF93/AE93-1 ->  | AG94: =+AG93/AF93-1 ->  | AH94: =+AH93/AG93-1 ->  | AI94: =+AI93/AH93-1 ->  | AJ94: =+AJ93/AI93-1 ->  | AK94: =+AK93/AJ93-1 -> 
D96: Small sites
D97: Total kWh | Y97: 0 | Z97: 0 | AA97: 0 | AB97: 0 | AC97: 40000 | AD97: 40000 | AE97: 40000 | AF97: 40000 | AG97: 40000 | AH97: 40000 | AI97: 40000 | AJ97: 40000 | AK97: 40000
D98: Total electricity costs ($m) | Y98: 0 | Z98: 0 | AA98: 0 | AB98: 0 | AC98: 0.01217695081 | AD98: 0.01248137459 | AE98: 0.01248137459 | AF98: 0.01248137459 | AG98: 0.01248137459 | AH98: 0.01248137459 | AI98: 0.01248137459 | AJ98: 0.01248137459 | AK98: 0.01248137459
D99: Average c/kWh | Y99: =+Y98/Y97*100*10^6 ->  | AC99: 30.44237704 | AD99: 31.20343646 | AE99: 31.20343646 | AF99: 31.20343646 | AG99: 31.20343646 | AH99: =+AH98/AH97*100*10^6 -> 31.20343646 | AI99: 31.20343646 | AJ99: 31.20343646 | AK99: 31.20343646
D100: % increase p.a. | Z100: =+Z99/Y99-1 ->  | AC100: =+AC99/AB99-1 ->  | AD100: =+AD99/AC99-1 -> 0.025 | AE100: =+AE99/AD99-1 -> 0 | AF100: =+AF99/AE99-1 -> 0 | AG100: =+AG99/AF99-1 -> 0 | AH100: =+AH99/AG99-1 -> 0 | AI100: =+AI99/AH99-1 -> 0 | AJ100: =+AJ99/AI99-1 -> 0 | AK100: =+AK99/AJ99-1 -> 0
D103: Greenhouse Gas Offsets
D104: % increase p.a. | Z104: =Z103/Y103-1 ->  | AH104: =AH103/AG103-1 ->  | AI104: =AI103/AH103-1 ->  | AJ104: =AJ103/AI103-1 ->  | AK104: =AK103/AJ103-1 -> 
D107: TOTAL ENERGY COSTS | Y107: =+SUM(Y65,Y71,Y77,Y86,Y92,Y98,Y103) -> 1.866758985 | Z107: 1.865309139 | AA107: 1.705376412 | AB107: 1.484814363 | AC107: 1.879643033 | AD107: 1.926634109 | AE107: 1.926634109 | AF107: 1.926634109 | AG107: 1.926634109 | AH107: =+SUM(AH65,AH71,AH77,AH86,AH92,AH98,AH103) -> 1.926634109 | AI107: 1.926634109 | AJ107: 1.926634109 | AK107: 1.926634109
D108: % increase p.a. | Z108: =Z107/Y107-1 -> -0.0007766648634 | AA108: -0.08574060077 | AB108: -0.1293333531 | AC108: 0.2659111339 | AD108: 0.025 | AE108: 0 | AF108: 0 | AG108: 0 | AH108: =AH107/AG107-1 -> 0 | AI108: =AI107/AH107-1 -> 0 | AJ108: =AJ107/AI107-1 -> 0 | AK108: =AK107/AJ107-1 -> 0
C113: IT cost assumptions
D115: Water related IT costs
D116: Sewerage and trade waste related IT costs
D117: Other IT costs | Y117: 5.981445906 | Z117: 5.69 | AA117: 6.25 | AB117: 6.27 | AC117: 7.45 | AD117: 6.67 | AE117: 7.03 | AF117: 7.84 | AG117: 7.8 | AH117: 7.8 | AI117: 7.8 | AJ117: 7.8 | AK117: 7.8
D118: Total IT costs | Y118: =SUM(Y115:Y117) -> 5.981445906 | Z118: 5.69 | AA118: 6.25 | AB118: 6.27 | AC118: =SUM(AC115:AC117) -> 7.45 | AD118: 6.67 | AE118: 7.03 | AF118: 7.84 | AG118: 7.8 | AH118: =SUM(AH115:AH117) -> 7.8 | AI118: 7.8 | AJ118: 7.8 | AK118: 7.8
D119: % increase p.a. | Z119: =Z118/Y118-1 -> -0.04872499235 | AA119: 0.09841827768 | AB119: 0.0032 | AC119: 0.1881977671 | AD119: -0.1046979866 | AE119: 0.05397301349 | AF119: 0.1152204836 | AG119: -0.005102040816 | AH119: =AH118/AG118-1 -> 0 | AI119: =AI118/AH118-1 -> 0 | AJ119: =AJ118/AI118-1 -> 0 | AK119: =AK118/AJ118-1 -> 0
C124: Chemical cost assumptions
D126: Water related chemical costs
D127: Sewerage and trade waste related chemical costs
D128: Other chemical costs
D129: Total chemical costs | Y129: =SUM(Y126:Y128) -> 0 | Z129: 0 | AA129: 0 | AB129: 0 | AC129: =SUM(AC126:AC128) -> 0 | AD129: 0 | AE129: 0 | AF129: 0 | AG129: 0 | AH129: =SUM(AH126:AH128) -> 0 | AI129: 0 | AJ129: 0 | AK129: 0
D130: % increase p.a. | Z130: =Z129/Y129-1 ->  | AH130: =AH129/AG129-1 ->  | AI130: =AI129/AH129-1 ->  | AJ130: =AJ129/AI129-1 ->  | AK130: =AK129/AJ129-1 -> 

Sheet Opex_FO
B1: Operating Expenditure - Forecast
B2: =+Model_Name -> Goulburn Murray Water
B3: Go to Table of Contents
L4: FIRST REG PERIOD | P4: SECOND REG PERIOD | T4: THIRD REG PERIOD | V4: FOURTH REG PERIOD | AA4: FIFTH REG PERIOD | AE4: SIXTH REG PERIOD | AI4: SEVENTH REG PERIOD
K5: 2006 | L5: 2007 | M5: 2008 | N5: 2009 | O5: 2010 | P5: 2011 | Q5: 2012 | R5: 2013 | S5: 2014 | T5: 2015 | U5: 2016 | V5: 2017 | W5: 2018 | X5: 2019 | Y5: 2020 | Z5: 2021 | AA5: 2022 | AB5: 2023 | AC5: 2024 | AD5: 2025 | AE5: 2026 | AF5: 2027 | AG5: 2028 | AH5: 2029 | AI5: 2030 | AJ5: 2031 | AK5: 2032
B6: =Expenditure_Detail!B6 -> $m, 01/01/24 | K6: =+CONCATENATE(K5-1,"-",RIGHT(K5,2)) -> 2005-06 | L6: 2006-07 | M6: 2007-08 | N6: 2008-09 | O6: 2009-10 | P6: 2010-11 | Q6: 2011-12 | R6: 2012-13 | S6: 2013-14 | T6: 2014-15 | U6: 2015-16 | V6: 2016-17 | W6: 2017-18 | X6: 2018-19 | Y6: 2019-20 | Z6: 2020-21 | AA6: 2021-22 | AB6: 2022-23 | AC6: 2023-24 | AD6: 2024-25 | AE6: 2025-26 | AF6: 2026-27 | AG6: 2027-28 | AH6: 2028-29 | AI6: 2029-30 | AJ6: 2030-31 | AK6: =+CONCATENATE(AK5-1,"-",RIGHT(AK5,2)) -> 2031-32
C9: Parameters | H9: 5th period | J9: 6th period
D11: Cost efficiency improvement rate (% per annum) | H11: =IFERROR(AVERAGE(Z11:AC11),0) -> 0 | J11: =IFERROR(AVERAGE(AD11:AG11),0) -> 0
D13: Opex growth forecast (% per annum) | H13: =IFERROR(AVERAGE(Z13:AC13),0) -> 0 | J13: =IFERROR(AVERAGE(AD13:AG13),0) -> 0
H14: =IFERROR(G13-G11,"-") -> 0 | J14: =IFERROR(I13-I11,"-") -> 0
D15: Water customers (No.) - Residential & Non-Residential - [BED 1]
D16: Customer change forecast (% per annum) | Z16: =Z15/Y15-1 ->  | AJ16: =AJ15/AI15-1 ->  | AK16: =AK15/AJ15-1 -> 
D17: Sewer customers (No.) - Residential & Non-Residential - [BED 2]
D18: Sewerage Customer Change forecast (% per annum) | Z18: =Z17/Y17-1 -> 
D19: Total metered volume of water delivered to customers (ML) - [BED 10]
D20: Residential, Non-Residential (Residential & Non-Residential)
D21: Total metered volume change (% per annum | Z21: =Z19/Y19-1 -> 
C25: Baseline Forecast
D27: Baseline year - total prescribed operating expenditure in 2022-23: | AB27: =Opex_Breakdown!AB45 -> 97.03883615
D29: Less non-controllable expenditure items incurred in 2022-23:
E30: External bulk water charges (excl. temporary purchases) | AB30: =Opex_Breakdown!AB35 -> 0
E31: External temporary water purchases | AB31: =Opex_Breakdown!AB36 -> 0 | AD31: Comparison with approved 2022-23 total controllable opex
E32: Licence fees | AB32: =Opex_Breakdown!AB37 -> 0.08080469554 | AD32: per FD2020 model
E33: Environment Contribution | AB33: =Opex_Breakdown!AB38 -> 2.630653091
E34: Murray Darling Basin Contribution | AB34: =Opex_Breakdown!AB39 -> 14.3409201
E35: Other non-controllable | AB35: =Opex_Breakdown!AB40 -> 0
AB36: =SUM(AB30:AB35) -> 17.05237788 | AE36: 2022-23 | AF36: Difference | AG36: %
D38: Baseline year - total controllable operating expenditure in 2022-23: | AB38: =+AB27-AB36 -> 79.98645826 | AE38: =Determination_Lookup!P19 -> 77.17937151 | AF38: =+AB54-AE38 -> -0.2901442356 | AG38: =+AF38/AE38 -> -0.003759349551
D40: Adjustments for non-recurring expenditure items incurred in 2022-23 and any efficiency savings to be realised from 2022-23: | AD40: ( $, 2023-24)
D42: 1 | E42: Full flood costs | AB42: 6.5484
D43: 2 | E43: Add back due to flood (delays, underspends etc) | AB43: -5.69882
D44: 3 | E44: Cloud based solutions, exclude as not in next price submission | AB44: 0.34
D45: 4 | E45: Externally Funded works | AB45: 0.7704
D46: 5 | E46: Cyclical Dam safety Reviews | AB46: 0.3638
D47: 6 | E47: Consultants (Pricing Review) | AB47: 0.1434509838
D48: 7 | E48: WIP Write Off 22/23 | AB48: 0.63
D49: 8
D50: 9
D51: 10
AB52: =SUM(AB42:AB51) -> 3.097230984
D54: Adjusted baseline controllable operating expenditure (2022-23) | AB54: =+AB38-AB52 -> 76.88922728
D55: Approved 2022-23 total controllable operating expenditure (FD 2020) | AB55: =AE38 -> 77.17937151
D56: Difference | AB56: =AB54-AB55 -> -0.2901442356
D58: Variations to the baseline year benchmark | AD58: Discrepancy between approved 22-23 benchmark and actual 22-23 controllable opex
AD59: per FD2020 model
D60: 1
D61: 2
D62: 3 | AE62: Proposed baseline difference | AF62: Unexplained Difference | AG62: Remaining unexplained (%)
D63: 4
D64: 5 | AE64: =+AB54-AE38 -> -0.2901442356 | AF64: =AE64-AB70 -> -0.2901442356 | AG64: =+AF64/AE64 -> 1
D65: 6
D66: 7 | AD66: ($, 2023-24)
D67: 8
D68: 9
D69: 10
AB70: =SUM(AB60:AB69) -> 0
D73: Adjusted baseline controllable operating expenditure (Forecast) | AB73: =+AB54 -> 76.88922728 | AC73: =+$AB$73*(1+$AC$13-H11) -> 76.88922728 | AD73: =AC73*(1+AD13-AD11) -> 76.88922728 | AE73: =AD73*(1+AE13-AE11) -> 76.88922728 | AF73: =AE73*(1+AF13-AF11) -> 76.88922728 | AG73: 76.88922728 | AH73: 76.88922728 | AI73: 76.88922728 | AJ73: 76.88922728 | AK73: 76.88922728
C77: Operating expenditure - reconciliation
D80: Adjusted baseline controllable operating expenditure (Forecast) | AD80: =+AD73 -> 76.88922728 | AE80: 76.88922728 | AF80: 76.88922728 | AG80: 76.88922728 | AH80: 76.88922728 | AI80: 76.88922728 | AJ80: 76.88922728 | AK80: 76.88922728
H81: Controllable | AG81: =SUM(AD80:AG80) -> 307.5569091 | AK81: =SUM(AH80:AK80) -> 307.5569091
D82: Forecast variations to adjusted baseline operating expenditure (above or below baseline) | H82: only
D84: 1 | E84: New Costs: General Insurance Increases | H84: [Service] | AD84: 0.15 | AE84: 0.23 | AF84: 0.32 | AG84: 0.41 | AH84: 0.41 | AI84: 0.41 | AJ84: 0.41 | AK84: 0.41
D85: 2 | E85: New Costs: Increases in material costs | H85: [Service] | AD85: 0.87 | AE85: 0.93 | AF85: 1.21 | AG85: 1.2 | AH85: 1.2 | AI85: 1.2 | AJ85: 1.2 | AK85: 1.2
D86: 3 | E86: New Costs: Increases in IT Cloud and Security Systems | H86: [Service] | AD86: 0.35 | AE86: 0.74 | AF86: 1.46 | AG86: 1.5 | AH86: 1.5 | AI86: 1.5 | AJ86: 1.5 | AK86: 1.5
D87: 4 | E87: Cyclical Costs; Dam Safety Reviews / Spillway Works / Consultants | H87: [Service] | AD87: 1.051584728 | AE87: 1.172694728 | AF87: 0.7454547275 | AG87: 0.6824547275 | AH87: =0.755454727506053-0.005 -> 0.7504547275 | AI87: 0.7804547275 | AJ87: 1.015454728 | AK87: 0.8404547275
D88: 5 | E88: Productivity Regionalisation | H88: [Service] | AD88: 0 | AE88: -0.09 | AF88: -0.09 | AG88: -0.09 | AH88: -0.09 | AI88: -0.09 | AJ88: -0.09 | AK88: -0.09
D89: 6 | E89: Productivity: Communications | H89: [Service] | AD89: -0.07 | AE89: -0.07 | AF89: -0.07 | AG89: -0.07 | AH89: -0.07 | AI89: -0.07 | AJ89: -0.07 | AK89: -0.07
D90: 7 | E90: Productivity: Electricity (from solar) | H90: [Service] | AD90: -0.026 | AE90: -0.026 | AF90: -0.026 | AG90: -0.026 | AH90: -0.026 | AI90: -0.026 | AJ90: -0.026 | AK90: -0.026
D91: 8 | E91: Productivity: Training Efficiencies | H91: [Service] | AD91: -0.05 | AE91: -0.05 | AF91: -0.05 | AG91: -0.05 | AH91: -0.05 | AI91: -0.05 | AJ91: -0.05 | AK91: -0.05
D92: 9 | E92: Efficiency Discount Expense - removed as not offered in next regulatory period | H92: [Service] | AD92: -0.94 | AE92: -0.94 | AF92: -0.94 | AG92: -0.94 | AH92: -0.94 | AI92: -0.94 | AJ92: -0.94 | AK92: -0.94
D93: 10 | E93: Efficiency: Overtime/Contract Labour Reduction | H93: [Service] | AD93: -0.6176 | AE93: -0.6176 | AF93: -0.6176 | AG93: -0.6176 | AH93: -0.6176 | AI93: -0.6176 | AJ93: -0.6176 | AK93: -0.6176
D94: 11 | E94: Efficiency: Labour Efficiencies within Forecast 2% Saving + weekend work removed | H94: [Service] | AD94: -1.819354724 | AE94: -1.824303754 | AF94: -1.775490004 | AG94: -1.884220334 | AH94: -1.884220334 | AI94: -1.884220334 | AJ94: -1.884220334 | AK94: -1.884220334
D95: 12 | H95: [Service]
D96: 13 | H96: [Service]
D97: 14 | H97: [Service]
D98: 15 | H98: [Service]
D100: Total changes required to baseline operating expenditure | AD100: =SUM(AD84:AD99) -> -1.101369996 | AE100: -0.5452090265 | AF100: 0.1663647235 | AG100: 0.1146343935 | AH100: 0.1826343935 | AI100: 0.2126343935 | AJ100: 0.4476343935 | AK100: 0.2726343935
AG101: =SUM(AD100:AG100) -> -1.365579906 | AK101: =SUM(AH100:AK100) -> 1.115537574
D103: Total controllable operating expenditure | AD103: =+AD100+AD80 -> 75.78785728 | AE103: 76.34401825 | AF103: 77.055592 | AG103: 77.00386167 | AH103: 77.07186167 | AI103: 77.10186167 | AJ103: 77.33686167 | AK103: 77.16186167
AG104: =SUM(AD103:AG103) -> 306.1913292 | AK104: =SUM(AH103:AK103) -> 308.6724467
D105: Non-controllable operating expenditure
D106: External bulk water charges (excl. temporary purchases) | AD106: =+Opex_Breakdown!AD35 -> 0 | AE106: =+Opex_Breakdown!AE35 -> 0 | AF106: =+Opex_Breakdown!AF35 -> 0 | AG106: =+Opex_Breakdown!AG35 -> 0 | AH106: =+Opex_Breakdown!AH35 -> 0 | AI106: =+Opex_Breakdown!AI35 -> 0 | AJ106: =+Opex_Breakdown!AJ35 -> 0 | AK106: =+Opex_Breakdown!AK35 -> 0
D107: External temporary water purchases | AD107: =+Opex_Breakdown!AD36 -> 0 | AE107: =+Opex_Breakdown!AE36 -> 0 | AF107: =+Opex_Breakdown!AF36 -> 0 | AG107: =+Opex_Breakdown!AG36 -> 0 | AH107: =+Opex_Breakdown!AH36 -> 0 | AI107: =+Opex_Breakdown!AI36 -> 0 | AJ107: =+Opex_Breakdown!AJ36 -> 0 | AK107: =+Opex_Breakdown!AK36 -> 0
D108: Licence fees | AD108: =+Opex_Breakdown!AD37 -> 0.08080469554 | AE108: =+Opex_Breakdown!AE37 -> 0.08080469554 | AF108: =+Opex_Breakdown!AF37 -> 0.08080469554 | AG108: =+Opex_Breakdown!AG37 -> 0.08080469554 | AH108: =+Opex_Breakdown!AH37 -> 0.08080469554 | AI108: =+Opex_Breakdown!AI37 -> 0.08080469554 | AJ108: =+Opex_Breakdown!AJ37 -> 0.08080469554 | AK108: =+Opex_Breakdown!AK37 -> 0.08080469554
D109: Environment Contribution | AD109: =+Opex_Breakdown!AD38 -> 2.374931092 | AE109: =+Opex_Breakdown!AE38 -> 2.294619412 | AF109: =+Opex_Breakdown!AF38 -> 2.217023587 | AG109: =+Opex_Breakdown!AG38 -> 2.142051775 | AH109: =+Opex_Breakdown!AH38 -> 2.069615241 | AI109: =+Opex_Breakdown!AI38 -> 1.999628252 | AJ109: =+Opex_Breakdown!AJ38 -> 1.932007973 | AK109: =+Opex_Breakdown!AK38 -> 1.86667437
D110: Murray Darling Basin Contribution | AD110: =+Opex_Breakdown!AD39 -> 14.0000004 | AE110: =+Opex_Breakdown!AE39 -> 14.0000004 | AF110: =+Opex_Breakdown!AF39 -> 14.0000004 | AG110: =+Opex_Breakdown!AG39 -> 14.0000004 | AH110: =+Opex_Breakdown!AH39 -> 14.0000004 | AI110: =+Opex_Breakdown!AI39 -> 14.0000004 | AJ110: =+Opex_Breakdown!AJ39 -> 14.0000004 | AK110: =+Opex_Breakdown!AK39 -> 14.0000004
D111: Other non-controllable | AD111: =+Opex_Breakdown!AD40 -> 0 | AE111: =+Opex_Breakdown!AE40 -> 0 | AF111: =+Opex_Breakdown!AF40 -> 0 | AG111: =+Opex_Breakdown!AG40 -> 0 | AH111: =+Opex_Breakdown!AH40 -> 0 | AI111: =+Opex_Breakdown!AI40 -> 0 | AJ111: =+Opex_Breakdown!AJ40 -> 0 | AK111: =+Opex_Breakdown!AK40 -> 0
D112: Total non-controllable operating expenditure | AD112: =SUM(AD106:AD111) -> 16.45573619 | AE112: 16.37542451 | AF112: 16.29782868 | AG112: 16.22285687 | AH112: 16.15042034 | AI112: 16.08043335 | AJ112: 16.01281307 | AK112: 15.94747947
AG113: =SUM(AD112:AG112) -> 65.35184625 | AK113: =SUM(AH112:AK112) -> 64.19114622
D115: Total prescribed operating expenditure | AD115: =+AD112+AD103 -> 92.24359347 | AE115: 92.71944276 | AF115: 93.35342069 | AG115: 93.22671854 | AH115: 93.22228201 | AI115: 93.18229502 | AJ115: 93.34967474 | AK115: 93.10934114
AG116: =SUM(AD115:AG115) -> 371.5431755 | AK116: =SUM(AH115:AK115) -> 372.8635929
AC118: To reconcile to 'Opex_Breakdown' tab row 39 >> | AD118: =+Opex_Breakdown!AD45 -> 92.24081252 | AE118: =+Opex_Breakdown!AE45 -> 92.71581534 | AF118: =+Opex_Breakdown!AF45 -> 93.35054231 | AG118: =+Opex_Breakdown!AG45 -> 93.22544759 | AH118: =+Opex_Breakdown!AH45 -> 93.22464206 | AI118: =+Opex_Breakdown!AI45 -> 93.17682007 | AJ118: =+Opex_Breakdown!AJ45 -> 93.34578579 | AK118: =+Opex_Breakdown!AK45 -> 93.10576818
AC119: Difference | AD119: =+AD118-AD115 -> -0.002780953843 | AE119: -0.003627423843 | AF119: -0.002878373843 | AG119: -0.001270953843 | AH119: 0.002360046157 | AI119: -0.005474953843 | AJ119: -0.003888953843 | AK119: -0.003572953843
AC120: Test | AD120: =IF(ROUND(AD118,2)=ROUND(AD115,2),0,1) -> 0 | AE120: 0 | AF120: 0 | AG120: 0 | AH120: 0 | AI120: 0 | AJ120: 0 | AK120: 0

Sheet Opex_Breakdown
A1: 80 | B1: Operating Expenditure - Breakdown
B2: =+Contents!H7 -> Goulburn Murray Water
B3: Go to Table of Contents
L4: FIRST REG PERIOD | P4: SECOND REG PERIOD | T4: THIRD REG PERIOD | W4: FOURTH REG PERIOD | AA4: FIFTH REG PERIOD | AE4: SIXTH REG PERIOD | AI4: SEVENTH REG PERIOD
K6: 2006 | L6: 2007 | M6: 2008 | N6: 2009 | O6: 2010 | P6: 2011 | Q6: 2012 | R6: 2013 | S6: 2014 | T6: 2015 | U6: 2016 | V6: 2017 | W6: 2018 | X6: 2019 | Y6: 2020 | Z6: 2021 | AA6: 2022 | AB6: 2023 | AC6: 2024 | AD6: 2025 | AE6: 2026 | AF6: 2027 | AG6: 2028
B7: =Expenditure_Detail!B6 -> $m, 01/01/24 | K7: =+CONCATENATE(K6-1,"-",RIGHT(K6,2)) -> 2005-06 | L7: =+CONCATENATE(L6-1,"-",RIGHT(L6,2)) -> 2006-07 | M7: 2007-08 | N7: 2008-09 | O7: 2009-10 | P7: 2010-11 | Q7: 2011-12 | R7: 2012-13 | S7: 2013-14 | T7: 2014-15 | U7: 2015-16 | V7: 2016-17 | W7: 2017-18 | X7: =+CONCATENATE(X6-1,"-",RIGHT(X6,2)) -> 2018-19 | Y7: =+CONCATENATE(Y6-1,"-",RIGHT(Y6,2)) -> 2019-20 | Z7: =+CONCATENATE(Z6-1,"-",RIGHT(Z6,2)) -> 2020-21 | AA7: =+CONCATENATE(AA6-1,"-",RIGHT(AA6,2)) -> 2021-22 | AB7: =+CONCATENATE(AB6-1,"-",RIGHT(AB6,2)) -> 2022-23 | AC7: =+CONCATENATE(AC6-1,"-",RIGHT(AC6,2)) -> 2023-24 | AD7: 2024-25 | AE7: 2025-26 | AF7: 2026-27 | AG7: 2027-28 | AH7: 2028-29 | AI7: 2029-30 | AJ7: 2030-31 | AK7: 2031-32
D10: Operating Expenditure Summary
E12: =General_BL!C39 -> Irrigation | K12: =+K71-K65-K68 -> 0 | L12: 0 | M12: 0 | N12: 0 | O12: 0 | P12: 0 | Q12: 0 | R12: 0 | S12: 0 | T12: 0 | Y12: 58.59242331 | Z12: =+Z71-Z65-Z68 -> 47.95661194 | AA12: 48.93436101 | AB12: 50.16599827 | AC12: 47.71253531 | AD12: 46.55793521 | AE12: 46.88286834 | AF12: 48.27601689 | AG12: 47.92088827 | AH12: =+AH71-AH65-AH68 -> 48.18668727 | AI12: 47.91141627 | AJ12: 47.96173427 | AK12: 48.28245927
E13: =General_BL!C40 -> Drainage | K13: =K81-K75-K78 -> 0 | L13: 0 | M13: 0 | N13: 0 | O13: 0 | P13: 0 | Q13: 0 | R13: 0 | S13: 0 | T13: 0 | Y13: 4.348521456 | Z13: 3.110906614 | AA13: 2.640501472 | AB13: 4.434242667 | AC13: 3.12209407 | AD13: 3.28597317 | AE13: 3.35358217 | AF13: 3.40953217 | AG13: 3.42509317 | AH13: =AH81-AH75-AH78 -> 3.40127317 | AI13: 3.38207017 | AJ13: 3.35008017 | AK13: 3.40737417
E14: =General_BL!C41 -> Water supply districts | K14: =K91-K85-K88 -> 0 | L14: 0 | M14: 0 | N14: 0 | O14: 0 | P14: 0 | Q14: 0 | R14: 0 | S14: 0 | T14: 0 | Y14: 0.867063105 | Z14: 0.7892936931 | AA14: 0.817717185 | AB14: 0.6856750076 | AC14: 0.90347015 | AD14: 0.86262442 | AE14: 0.88217542 | AF14: 0.89506742 | AG14: 0.87819242 | AH14: =AH91-AH85-AH88 -> 0.93508542 | AI14: 0.90571042 | AJ14: 0.88820242 | AK14: 0.87885642
E15: =General_BL!C42 -> Surface water diversions | K15: =K101-K95-K98 -> 0 | L15: 0 | M15: 0 | N15: 0 | O15: 0 | P15: 0 | Q15: 0 | R15: 0 | S15: 0 | T15: 0 | Y15: 3.122977094 | Z15: 2.769853686 | AA15: 3.027967688 | AB15: 3.064251231 | AC15: 2.68098748 | AD15: 2.69788567 | AE15: 2.70583784 | AF15: 2.772499 | AG15: 2.78283196 | AH15: =AH101-AH95-AH98 -> 2.60044696 | AI15: 2.57055896 | AJ15: 2.57687196 | AK15: 2.59771896
E16: =General_BL!C43 -> Groundwater diversions | K16: =K111-K105-K108 -> 0 | L16: =L111-L105-L108 -> 0 | M16: 0 | N16: 0 | O16: 0 | P16: 0 | Q16: 0 | R16: 0 | S16: 0 | T16: 0 | Y16: 1.991856723 | Z16: 1.992825341 | AA16: 1.97175861 | AB16: 2.170043943 | AC16: 1.93813633 | AD16: 2.22059202 | AE16: 2.22750803 | AF16: 2.3944853 | AG16: 2.4035443 | AH16: =AH111-AH105-AH108 -> 2.2441993 | AI16: 2.2180763 | AJ16: 2.2237143 | AK16: 2.2421123
E17: =General_BL!C45 -> Bulk water services | K17: =K120-K117 -> 0 | L17: =L120-L117 -> 0 | M17: 0 | N17: 0 | O17: 0 | P17: 0 | Q17: 0 | R17: 0 | S17: 0 | T17: 0 | Y17: 16.01696561 | Z17: 16.29498199 | AA17: 17.49925347 | AB17: 15.43758364 | AC17: 15.49165565 | AD17: 16.2044595 | AE17: 16.32239085 | AF17: 15.28963975 | AG17: 15.56498923 | AH17: =AH120-AH117 -> 15.69319723 | AI17: 16.13972023 | AJ17: 16.35380423 | AK17: 15.73968223
E18: =General_BL!C46 -> Customer service and billing | Y18: =Y123 -> 4.675826863 | Z18: 3.936230172 | AA18: 3.808793693 | AB18: 4.0286635 | AC18: 4.00046267 | AD18: 3.95560634 | AE18: 3.96602818 | AF18: 4.0154731 | AG18: 4.02705137 | AH18: =AH123 -> 4.01333237 | AI18: 3.96883437 | AJ18: 3.97856537 | AK18: 4.01008537
E19: Total controllable operating expenditure | K19: =SUM(K12:K17) -> 0 | L19: 0 | M19: 0 | N19: 0 | O19: 0 | P19: 0 | Q19: 0 | R19: 0 | S19: 0 | T19: 0 | Y19: =SUM(Y12:Y18) -> 89.61563416 | Z19: 76.85070343 | AA19: 78.70035312 | AB19: 79.98645826 | AC19: 75.84934166 | AD19: 75.78507633 | AE19: 76.34039083 | AF19: 77.05271363 | AG19: 77.00259072 | AH19: =SUM(AH12:AH18) -> 77.07422172 | AI19: 77.09638672 | AJ19: 77.33297272 | AK19: 77.15828872
AC21: =SUM(Z19:AC19) -> 311.3868565 | AG21: =SUM(AD19:AG19) -> 306.1807715 | AK21: =SUM(AH19:AK19) -> 308.6618699
E23: FD 2020 - Approved Benchmarks and Forecasts | Y23: =Determination_Lookup!M19 -> 90.56624875 | Z23: =Determination_Lookup!N19 -> 84.77034661 | AA23: =Determination_Lookup!O19 -> 77.77998775 | AB23: =Determination_Lookup!P19 -> 77.17937151 | AC23: =Determination_Lookup!Q19 -> 77.14336583 | AD23: =Determination_Lookup!R19 -> 76.92328337 | AE23: =Determination_Lookup!S19 -> 76.55762198 | AF23: =Determination_Lookup!T19 -> 76.33914189 | AG23: =Determination_Lookup!U19 -> 76.32133027 | AH23: =Determination_Lookup!Z19 -> 0 | AI23: =Determination_Lookup!AA19 -> 0 | AJ23: =Determination_Lookup!AB19 -> 0 | AK23: =Determination_Lookup!AC19 -> 0
E24: % difference | Y24: =IF(Y23=0,"-",Y19/Y23-1) -> -0.01049634502 | Z24: =IF(Z23=0,"-",Z19/Z23-1) -> -0.093424688 | AA24: 0.01183293285 | AB24: 0.03637094593 | AC24: -0.01677427681 | AD24: -0.01479665183 | AE24: -0.002837485651 | AF24: =IF(AF23=0,"-",AF19/AF23-1) -> 0.00934739004 | AG24: 0.00892621295 | AH24: - | AI24: - | AJ24: - | AK24: -
E27: Operations & Maintenance | K27: =K64+K74+K84+K94+K104+K114 -> 0 | L27: =L64+L74+L84+L94+L104+L114 -> 0 | M27: 0 | N27: 0 | O27: 0 | P27: 0 | Q27: 0 | R27: 0 | S27: 0 | T27: 0 | Y27: 56.1365703 | Z27: 53.05771826 | AA27: 54.13649243 | AB27: 54.51641576 | AC27: 50.22062199 | AD27: 51.45578399 | AE27: 51.41093865 | AF27: 51.17651753 | AG27: 51.51673735 | AH27: =AH64+AH74+AH84+AH94+AH104+AH114 -> 51.76579535 | AI27: 51.72061035 | AJ27: 51.93684535 | AK27: 51.84670635
E28: Customer Service and billing | K28: =K66+K76+K86+K96+K106+K115 -> 0 | L28: 0 | M28: 0 | N28: 0 | O28: 0 | P28: 0 | Q28: 0 | R28: 0 | S28: 0 | T28: 0 | Y28: =Y66+Y76+Y86+Y96+Y106+Y115+Y123 -> 4.675826863 | Z28: 3.936230172 | AA28: 3.808793693 | AB28: 4.0286635 | AC28: 4.00046267 | AD28: 3.95560634 | AE28: 3.96602818 | AF28: 4.0154731 | AG28: 4.02705137 | AH28: =AH66+AH76+AH86+AH96+AH106+AH115+AH123 -> 4.01333237 | AI28: 3.96883437 | AJ28: 3.97856537 | AK28: 4.01008537
E29: GSL Payments | K29: =K67+K77+K87+K97+K107+K116 -> 0 | L29: 0 | M29: 0 | N29: 0 | O29: 0 | P29: 0 | Q29: 0 | R29: 0 | S29: 0 | T29: 0 | Y29: 0 | Z29: 0 | AA29: 0 | AB29: 0 | AC29: 0 | AD29: 0 | AE29: 0 | AF29: 0 | AG29: 0 | AH29: =AH67+AH77+AH87+AH97+AH107+AH116 -> 0 | AI29: 0 | AJ29: 0 | AK29: 0
E30: Corporate | K30: =K69+K79+K89+K99+K109+K118 -> 0 | L30: 0 | M30: 0 | N30: 0 | O30: 0 | P30: 0 | Q30: 0 | R30: 0 | S30: 0 | T30: 0 | Y30: 28.803237 | Z30: 19.856755 | AA30: 20.755067 | AB30: 21.441379 | AC30: 21.628257 | AD30: 20.373686 | AE30: 20.963424 | AF30: 21.860723 | AG30: 21.458802 | AH30: =AH69+AH79+AH89+AH99+AH109+AH118 -> 21.295094 | AI30: 21.406942 | AJ30: 21.417562 | AK30: 21.301497
E31: Other operating expenditure | K31: =K70+K80+K90+K100+K110+K119 -> 0 | L31: 0 | M31: 0 | N31: 0 | O31: 0 | P31: 0 | Q31: 0 | R31: 0 | S31: 0 | T31: 0 | Y31: 0 | Z31: 0 | AA31: 0 | AB31: 0 | AC31: 0 | AD31: 0 | AE31: 0 | AF31: 0 | AG31: 0 | AH31: =AH70+AH80+AH90+AH100+AH110+AH119 -> 0 | AI31: 0 | AJ31: 0 | AK31: 0
E32: Total controllable operating expenditure | K32: =SUM(K27:K31) -> 0 | L32: 0 | M32: 0 | N32: 0 | O32: 0 | P32: 0 | Q32: 0 | R32: 0 | S32: 0 | T32: 0 | Y32: 89.61563416 | Z32: 76.85070343 | AA32: 78.70035312 | AB32: 79.98645826 | AC32: 75.84934166 | AD32: 75.78507633 | AE32: 76.34039083 | AF32: 77.05271363 | AG32: 77.00259072 | AH32: =SUM(AH27:AH31) -> 77.07422172 | AI32: 77.09638672 | AJ32: 77.33297272 | AK32: 77.15828872
Y33: =IF(ROUND(Y32,2)=ROUND(Y19,2),0,1) -> 0 | Z33: 0 | AA33: 0 | AB33: 0 | AC33: 0 | AD33: 0 | AE33: 0 | AF33: 0 | AG33: 0 | AH33: 0 | AI33: 0 | AJ33: 0 | AK33: 0
E35: External bulk water charges (excl. temporary purchases) | K35: =K65+K75+K85+K95+K105 -> 0 | L35: =L65+L75+L85+L95+L105 -> 0 | M35: 0 | N35: 0 | O35: 0 | P35: 0 | Q35: 0 | R35: 0 | S35: 0 | T35: 0 | Y35: 0 | Z35: 0 | AA35: 0 | AB35: 0 | AC35: 0 | AD35: 0 | AE35: 0 | AF35: 0 | AG35: 0 | AH35: =AH65+AH75+AH85+AH95+AH105 -> 0 | AI35: 0 | AJ35: 0 | AK35: 0
E36: External temporary water purchases | K36: =+K127 -> 0 | L36: 0 | M36: 0 | N36: 0 | O36: 0 | P36: 0 | Q36: 0 | R36: 0 | S36: 0 | T36: 0 | Y36: 0 | Z36: 0 | AA36: 0 | AB36: 0 | AC36: 0 | AD36: 0 | AE36: 0 | AF36: 0 | AG36: 0 | AH36: =+AH127 -> 0 | AI36: 0 | AJ36: 0 | AK36: 0
E37: Licence fees | K37: =+K133 -> 0 | L37: 0 | M37: 0 | N37: 0 | O37: 0 | P37: 0 | Q37: 0 | R37: 0 | S37: 0 | T37: 0 | Y37: 0.06770386328 | Z37: 0.0898848319 | AA37: 0.09427758779 | AB37: 0.08080469554 | AC37: 0.08080469554 | AD37: 0.08080469554 | AE37: 0.08080469554 | AF37: 0.08080469554 | AG37: 0.08080469554 | AH37: =+AH133 -> 0.08080469554 | AI37: 0.08080469554 | AJ37: 0.08080469554 | AK37: 0.08080469554
E38: Environment Contribution | K38: =K137 -> 0 | L38: 0 | M38: 0 | N38: 0 | O38: 0 | P38: 0 | Q38: 0 | R38: 0 | S38: 0 | T38: 0 | Y38: 3.12384721 | Z38: 2.795590311 | AA38: 2.764489292 | AB38: 2.630653091 | AC38: 2.45805368 | AD38: =AD137 -> 2.374931092 | AE38: =AE137 -> 2.294619412 | AF38: =AF137 -> 2.217023587 | AG38: =AG137 -> 2.142051775 | AH38: =AH137 -> 2.069615241 | AI38: 1.999628252 | AJ38: 1.932007973 | AK38: 1.86667437
E39: Murray Darling Basin Contribution | Y39: =Y141 -> 13.18798016 | Z39: 15.23876501 | AA39: 15.07073791 | AB39: 14.3409201 | AC39: 13.4000004 | AD39: 14.0000004 | AE39: 14.0000004 | AF39: 14.0000004 | AG39: 14.0000004 | AH39: =AH141 -> 14.0000004 | AI39: 14.0000004 | AJ39: 14.0000004 | AK39: 14.0000004
E40: Other non-controllable | K40: =+K154 -> 0 | L40: 0 | M40: 0 | N40: 0 | O40: 0 | P40: 0 | Q40: 0 | R40: 0 | S40: 0 | T40: 0 | Y40: 0 | Z40: 0 | AA40: 0 | AB40: 0 | AC40: 0 | AD40: 0 | AE40: 0 | AF40: 0 | AG40: =+AG154 -> 0 | AH40: 0 | AI40: 0 | AJ40: 0 | AK40: 0
E41: Total non-controllable operating expenditure | K41: =SUM(K35:K40) -> 0 | L41: 0 | M41: 0 | N41: 0 | O41: 0 | P41: 0 | Q41: 0 | R41: 0 | S41: 0 | T41: 0 | Y41: 16.37953124 | Z41: 18.12424015 | AA41: 17.92950479 | AB41: 17.05237788 | AC41: 15.93885878 | AD41: 16.45573619 | AE41: 16.37542451 | AF41: 16.29782868 | AG41: 16.22285687 | AH41: =SUM(AH35:AH40) -> 16.15042034 | AI41: 16.08043335 | AJ41: 16.01281307 | AK41: 15.94747947
AC43: =SUM(Z41:AC41) -> 69.0449816 | AG43: =SUM(AD41:AG41) -> 65.35184625 | AK43: =SUM(AH41:AK41) -> 64.19114622
E45: Total prescribed operating expenditure | K45: =+K41+K19 -> 0 | L45: 0 | M45: 0 | N45: 0 | O45: 0 | P45: 0 | Q45: 0 | R45: 0 | S45: 0 | T45: 0 | Y45: 105.9951654 | Z45: 94.97494358 | AA45: 96.62985792 | AB45: 97.03883615 | AC45: 91.78820043 | AD45: 92.24081252 | AE45: 92.71581534 | AF45: 93.35054231 | AG45: 93.22544759 | AH45: =+AH41+AH19 -> 93.22464206 | AI45: 93.17682007 | AJ45: 93.34578579 | AK45: 93.10576818
E48: Fully government funded programs/projects (opex) | Y48: =Y172 -> 0 | Z48: 0 | AA48: 0 | AB48: 0 | AC48: 0 | AD48: 0 | AE48: 0 | AF48: 0 | AG48: 0 | AH48: =AH172 -> 0 | AI48: 0 | AJ48: 0 | AK48: 0
E49: Fully customer funded programs/projects (opex) | Y49: =Y173 -> 0 | Z49: 0 | AA49: 0 | AB49: 0 | AC49: 0 | AD49: 0 | AE49: 0 | AF49: 0 | AG49: 0 | AH49: =AH173 -> 0 | AI49: 0 | AJ49: 0 | AK49: 0
AC51: =SUM(Z49:AC49) -> 0 | AG51: =SUM(AD49:AG49) -> 0 | AK51: =SUM(AH49:AK49) -> 0
AC53: To reconcile to 'Opex_FO' tab row 98>> | AD53: =+Opex_FO!AD115 -> 92.24359347 | AE53: =+Opex_FO!AE115 -> 92.71944276 | AF53: =+Opex_FO!AF115 -> 93.35342069 | AG53: =+Opex_FO!AG115 -> 93.22671854 | AH53: =+Opex_FO!AH115 -> 93.22228201 | AI53: =+Opex_FO!AI115 -> 93.18229502 | AJ53: =+Opex_FO!AJ115 -> 93.34967474 | AK53: =+Opex_FO!AK115 -> 93.10934114
AC54: Difference | AD54: =+AD53-AD45 -> 0.002780953843 | AE54: =+AE53-AE45 -> 0.003627423843 | AF54: =+AF53-AF45 -> 0.002878373843 | AG54: =+AG53-AG45 -> 0.001270953843 | AH54: =+AH53-AH45 -> -0.002360046157 | AI54: 0.005474953843 | AJ54: 0.003888953843 | AK54: 0.003572953843
AC55: Test | AD55: =IF(ROUND(AD53,2)=ROUND(AD45,2),0,1) -> 0 | AE55: 0 | AF55: 0 | AG55: 0 | AH55: 0 | AI55: 0 | AJ55: 0 | AK55: 0
U58: Note: bad debts must be excluded from operating expenditure => instead it must be entered in RevenuePriceCap/RevenueTariffBasket tab (row 59 - revenue not collected)
B59: Total operating expenditure
B61: Controllable costs:
C63: =E12 -> Irrigation
D64: Operations & Maintenance | Y64: 39.07358431 | Z64: 34.47806594 | AA64: 34.76907001 | AB64: 35.96154227 | AC64: 33.27050831 | AD64: 33.50010421 | AE64: 33.50502634 | AF64: 33.75915289 | AG64: 33.72296727 | AH64: 33.97202527 | AI64: 33.92684027 | AJ64: 34.14307527 | AK64: 34.05293627
D65: External bulk charges (excl. temporary purchases)
D66: Customer Service and billing
D67: GSL Payments
D68: Licence Fees
D69: Corporate | Y69: 19.518839 | Z69: 13.478546 | AA69: 14.165291 | AB69: 14.204456 | AC69: 14.442027 | AD69: 13.057831 | AE69: 13.377842 | AF69: 14.516864 | AG69: 14.197921 | AH69: 14.214662 | AI69: 13.984576 | AJ69: 13.818659 | AK69: 14.229523
D70: Other operating expenditure
C71: =+CONCATENATE("Total ",C63) -> Total Irrigation | K71: =+SUM(K64:K70) -> 0 | L71: 0 | M71: 0 | N71: 0 | O71: 0 | P71: 0 | Q71: 0 | R71: 0 | S71: 0 | T71: 0 | Y71: =+SUM(Y64:Y70) -> 58.59242331 | Z71: 47.95661194 | AA71: 48.93436101 | AB71: 50.16599827 | AC71: 47.71253531 | AD71: 46.55793521 | AE71: 46.88286834 | AF71: 48.27601689 | AG71: 47.92088827 | AH71: =+SUM(AH64:AH70) -> 48.18668727 | AI71: 47.91141627 | AJ71: 47.96173427 | AK71: 48.28245927
C73: =E13 -> Drainage
D74: =+D64 -> Operations & Maintenance | Y74: 2.122983456 | Z74: 1.915557614 | AA74: 1.625327472 | AB74: 3.047211667 | AC74: 2.03044207 | AD74: 2.24145817 | AE74: 2.24145817 | AF74: 2.24145817 | AG74: 2.24145817 | AH74: 2.24145817 | AI74: 2.24145817 | AJ74: 2.24145817 | AK74: 2.24145817
D75: External bulk charges (excl. temporary purchases)
D76: Customer Service and billing
D77: GSL Payments
D78: Licence Fees
D79: Corporate | Y79: 2.225538 | Z79: 1.195349 | AA79: 1.015174 | AB79: 1.387031 | AC79: 1.091652 | AD79: 1.044515 | AE79: 1.112124 | AF79: 1.168074 | AG79: 1.183635 | AH79: 1.159815 | AI79: 1.140612 | AJ79: 1.108622 | AK79: 1.165916
D80: Other operating expenditure
C81: =+CONCATENATE("Total ",C73) -> Total Drainage | K81: =+SUM(K74:K80) -> 0 | L81: 0 | M81: 0 | N81: 0 | O81: 0 | P81: 0 | Q81: 0 | R81: 0 | S81: 0 | T81: 0 | Y81: =+SUM(Y74:Y80) -> 4.348521456 | Z81: 3.110906614 | AA81: 2.640501472 | AB81: 4.434242667 | AC81: 3.12209407 | AD81: 3.28597317 | AE81: 3.35358217 | AF81: 3.40953217 | AG81: 3.42509317 | AH81: =+SUM(AH74:AH80) -> 3.40127317 | AI81: 3.38207017 | AJ81: 3.35008017 | AK81: 3.40737417
C83: =E14 -> Water supply districts
D84: =+D74 -> Operations & Maintenance | Y84: 0.567403105 | Z84: 0.6114516931 | AA84: 0.611140185 | AB84: 0.5204420076 | AC84: 0.68790515 | AD84: 0.66232042 | AE84: 0.66232042 | AF84: 0.66232042 | AG84: 0.66232042 | AH84: 0.66232042 | AI84: 0.66232042 | AJ84: 0.66232042 | AK84: 0.66232042
D85: External bulk charges (excl. temporary purchases)
D86: Customer Service and billing
D87: GSL Payments
D88: Licence Fees
D89: Corporate | Y89: 0.29966 | Z89: 0.177842 | AA89: 0.206577 | AB89: 0.165233 | AC89: 0.215565 | AD89: 0.200304 | AE89: 0.219855 | AF89: 0.232747 | AG89: 0.215872 | AH89: 0.272765 | AI89: 0.24339 | AJ89: 0.225882 | AK89: 0.216536
D90: Other operating expenditure
C91: =+CONCATENATE("Total ",C83) -> Total Water supply districts | K91: =+SUM(K84:K90) -> 0 | L91: 0 | M91: 0 | N91: 0 | O91: 0 | P91: 0 | Q91: 0 | R91: 0 | S91: 0 | T91: 0 | Y91: =+SUM(Y84:Y90) -> 0.867063105 | Z91: 0.7892936931 | AA91: 0.817717185 | AB91: 0.6856750076 | AC91: 0.90347015 | AD91: 0.86262442 | AE91: 0.88217542 | AF91: 0.89506742 | AG91: 0.87819242 | AH91: =+SUM(AH84:AH90) -> 0.93508542 | AI91: 0.90571042 | AJ91: 0.88820242 | AK91: 0.87885642
C93: =E15 -> Surface water diversions
D94: =+D74 -> Operations & Maintenance | Y94: 1.932995094 | Z94: 1.936372686 | AA94: 2.142899688 | AB94: 1.902066231 | AC94: 1.67332748 | AD94: 1.74976167 | AE94: 1.74982784 | AF94: 1.768529 | AG94: 1.76860196 | AH94: 1.76860196 | AI94: 1.76860196 | AJ94: 1.76860196 | AK94: 1.76860196
D95: External bulk charges (excl. temporary purchases)
D96: Customer Service and billing
D97: GSL Payments
D98: Licence Fees
D99: Corporate | Y99: 1.189982 | Z99: 0.833481 | AA99: 0.885068 | AB99: 1.162185 | AC99: 1.00766 | AD99: 0.948124 | AE99: 0.95601 | AF99: 1.00397 | AG99: 1.01423 | AH99: 0.831845 | AI99: 0.801957 | AJ99: 0.80827 | AK99: 0.829117
D100: Other operating expenditure
C101: =+CONCATENATE("Total ",C93) -> Total Surface water diversions | K101: =+SUM(K94:K100) -> 0 | L101: 0 | M101: 0 | N101: 0 | O101: 0 | P101: 0 | Q101: 0 | R101: 0 | S101: 0 | T101: 0 | Y101: 3.122977094 | Z101: 2.769853686 | AA101: 3.027967688 | AB101: 3.064251231 | AC101: 2.68098748 | AD101: 2.69788567 | AE101: 2.70583784 | AF101: 2.772499 | AG101: 2.78283196 | AH101: =+SUM(AH94:AH100) -> 2.60044696 | AI101: 2.57055896 | AJ101: 2.57687196 | AK101: 2.59771896
C103: =E16 -> Groundwater diversions
D104: =+D84 -> Operations & Maintenance | Y104: 1.412745723 | Z104: 1.527025341 | AA104: 1.50840961 | AB104: 1.643424943 | AC104: 1.47438433 | AD104: 1.57496602 | AE104: 1.57496703 | AF104: 1.6805463 | AG104: 1.6805463 | AH104: 1.6805463 | AI104: 1.6805463 | AJ104: 1.6805463 | AK104: 1.6805463
D105: External bulk charges (excl. temporary purchases)
D106: Customer Service and billing
D107: GSL Payments
D108: Licence fees
D109: Corporate | Y109: 0.579111 | Z109: 0.4658 | AA109: 0.463349 | AB109: 0.526619 | AC109: 0.463752 | AD109: 0.645626 | AE109: 0.652541 | AF109: 0.713939 | AG109: 0.722998 | AH109: 0.563653 | AI109: 0.53753 | AJ109: 0.543168 | AK109: 0.561566
D110: Other operating expenditure
C111: =+CONCATENATE("Total ",C103) -> Total Groundwater diversions | K111: =+SUM(K104:K110) -> 0 | L111: 0 | M111: 0 | N111: 0 | O111: 0 | P111: 0 | Q111: 0 | R111: 0 | S111: 0 | T111: 0 | Y111: 1.991856723 | Z111: 1.992825341 | AA111: 1.97175861 | AB111: 2.170043943 | AC111: 1.93813633 | AD111: 2.22059202 | AE111: 2.22750803 | AF111: 2.3944853 | AG111: 2.4035443 | AH111: =+SUM(AH104:AH110) -> 2.2441993 | AI111: 2.2180763 | AJ111: 2.2237143 | AK111: 2.2421123
C113: =E17 -> Bulk water services
D114: =+D64 -> Operations & Maintenance | Y114: 11.02685861 | Z114: 12.58924499 | AA114: 13.47964547 | AB114: 11.44172864 | AC114: 11.08405465 | AD114: 11.7271735 | AE114: 11.67733885 | AF114: 11.06451075 | AG114: 11.44084323 | AH114: 11.44084323 | AI114: 11.44084323 | AJ114: 11.44084323 | AK114: 11.44084323
D115: Customer Service and billing
D116: GSL Payments
D117: Licence fees
D118: Corporate | Y118: 4.990107 | Z118: 3.705737 | AA118: 4.019608 | AB118: 3.995855 | AC118: 4.407601 | AD118: 4.477286 | AE118: 4.645052 | AF118: 4.225129 | AG118: 4.124146 | AH118: 4.252354 | AI118: 4.698877 | AJ118: 4.912961 | AK118: 4.298839
D119: Other operating expenditure
C120: =+CONCATENATE("Total ",C113) -> Total Bulk water services | K120: =+SUM(K114:K119) -> 0 | L120: 0 | M120: 0 | N120: 0 | O120: 0 | P120: 0 | Q120: 0 | R120: 0 | S120: 0 | T120: 0 | Y120: 16.01696561 | Z120: 16.29498199 | AA120: 17.49925347 | AB120: 15.43758364 | AC120: 15.49165565 | AD120: 16.2044595 | AE120: 16.32239085 | AF120: 15.28963975 | AG120: 15.56498923 | AH120: =+SUM(AH114:AH119) -> 15.69319723 | AI120: 16.13972023 | AJ120: 16.35380423 | AK120: 15.73968223
C123: =E18 -> Customer service and billing | Y123: 4.675826863 | Z123: 3.936230172 | AA123: 3.808793693 | AB123: 4.0286635 | AC123: 4.00046267 | AD123: 3.95560634 | AE123: 3.96602818 | AF123: 4.0154731 | AG123: 4.02705137 | AH123: 4.01333237 | AI123: 3.96883437 | AJ123: 3.97856537 | AK123: 4.01008537 | AL123: <<< enter total data here ONLY IF the breakdown data is not entered above
Y124: =IF(OR(Y66>0,Y76>0,Y86>0,Y96>0,Y106>0,Y115>0)*AND(Y123>0),"FLAG","") ->  | AH124: =IF(OR(AH66>0,AH76>0,AH86>0,AH96>0,AH106>0,AH115>0)*AND(AH123>0),"FLAG","") -> 
B125: Non-controllable costs:
C127: External temporary water purchases
C129: Licence fees
D130: Essential Services Commission | Y130: 0.06770386328 | Z130: 0.0898848319 | AA130: 0.09427758779 | AB130: 0.08080469554 | AC130: =AB130 -> 0.08080469554 | AD130: =AC130 -> 0.08080469554 | AE130: 0.08080469554 | AF130: 0.08080469554 | AG130: 0.08080469554 | AH130: 0.08080469554 | AI130: 0.08080469554 | AJ130: 0.08080469554 | AK130: 0.08080469554
D131: Department of Health | AC131: =AB131 -> 0 | AD131: =AC131 -> 0 | AE131: 0 | AF131: 0 | AG131: 0 | AH131: 0 | AI131: 0 | AJ131: 0 | AK131: 0
D132: Environment Protection Authority | AC132: 0 | AD132: =AC132 -> 0 | AE132: 0 | AF132: 0 | AG132: 0 | AH132: 0 | AI132: 0 | AJ132: 0 | AK132: 0
C133: =+CONCATENATE("Total ",C129) -> Total Licence fees | K133: =+SUM(K130:K132) -> 0 | L133: =+SUM(L130:L132) -> 0 | M133: 0 | N133: 0 | O133: 0 | P133: 0 | Q133: 0 | R133: 0 | S133: 0 | T133: 0 | Y133: =+SUM(Y130:Y132) -> 0.06770386328 | Z133: =+SUM(Z130:Z132) -> 0.0898848319 | AA133: =+SUM(AA130:AA132) -> 0.09427758779 | AB133: =+SUM(AB130:AB132) -> 0.08080469554 | AC133: =+SUM(AC130:AC132) -> 0.08080469554 | AD133: 0.08080469554 | AE133: 0.08080469554 | AF133: 0.08080469554 | AG133: 0.08080469554 | AH133: =+SUM(AH130:AH132) -> 0.08080469554 | AI133: 0.08080469554 | AJ133: 0.08080469554 | AK133: 0.08080469554
AC135: =SUM(Z133:AC133) -> 0.3457718108 | AG135: =SUM(AD133:AG133) -> 0.3232187822 | AK135: =SUM(AH133:AK133) -> 0.3232187822
C137: Environment Contribution | Y137: 3.12384721 | Z137: 2.795590311 | AA137: 2.764489292 | AB137: 2.630653091 | AC137: =AB137/(1+KeyAssumptionsPriceControl_FO!AC14) -> 2.45805368 | AD137: =AC137/(1+KeyAssumptionsPriceControl_FO!AD14) -> 2.374931092 | AE137: =AD137/(1+KeyAssumptionsPriceControl_FO!AE14) -> 2.294619412 | AF137: =AE137/(1+KeyAssumptionsPriceControl_FO!AF14) -> 2.217023587 | AG137: =AF137/(1+KeyAssumptionsPriceControl_FO!AG14) -> 2.142051775 | AH137: =AG137/(1+KeyAssumptionsPriceControl_FO!AH14) -> 2.069615241 | AI137: =AH137/(1+KeyAssumptionsPriceControl_FO!AI14) -> 1.999628252 | AJ137: =AI137/(1+KeyAssumptionsPriceControl_FO!AJ14) -> 1.932007973 | AK137: =AJ137/(1+KeyAssumptionsPriceControl_FO!AK14) -> 1.86667437
AC139: =SUM(Z137:AC137) -> 10.64878637 | AG139: =SUM(AD137:AG137) -> 9.028625866 | AK139: =SUM(AH137:AK137) -> 7.867925837
C141: Murray Darling Basin Contribution | Y141: 13.18798016 | Z141: 15.23876501 | AA141: 15.07073791 | AB141: 14.3409201 | AC141: 13.4000004 | AD141: 14.0000004 | AE141: 14.0000004 | AF141: 14.0000004 | AG141: 14.0000004 | AH141: 14.0000004 | AI141: 14.0000004 | AJ141: 14.0000004 | AK141: 14.0000004
C143: Other non-controllable
D144: [Non-controllable 1] | E144: 0 | F144: 0 | G144: 0 | H144: 0 | I144: 0 | J144: 0
D145: [Non-controllable 2] | E145: 0 | F145: 0 | G145: 0 | H145: 0 | I145: 0 | J145: 0
D146: [Non-controllable 3] | E146: 0 | F146: 0 | G146: 0 | H146: 0 | I146: 0 | J146: 0
D147: [Non-controllable 4] | E147: 0 | F147: 0 | G147: 0 | H147: 0 | I147: 0 | J147: 0
D148: [Non-controllable 5] | E148: 0 | F148: 0 | G148: 0 | H148: 0 | I148: 0 | J148: 0
D149: [Non-controllable 6] | E149: 0 | F149: 0 | G149: 0 | H149: 0 | I149: 0 | J149: 0
D150: [Non-controllable 7] | E150: 0 | F150: 0 | G150: 0 | H150: 0 | I150: 0 | J150: 0
D151: [Non-controllable 8] | E151: 0 | F151: 0 | G151: 0 | H151: 0 | I151: 0 | J151: 0
D152: [Non-controllable 9] | E152: 0 | F152: 0 | G152: 0 | H152: 0 | I152: 0 | J152: 0
D153: [Non-controllable 10] | E153: 0 | F153: 0 | G153: 0 | H153: 0 | I153: 0 | J153: 0
K154: =SUM(K144:K153) -> 0 | L154: 0 | M154: 0 | N154: 0 | O154: 0 | P154: 0 | Q154: 0 | R154: 0 | S154: 0 | T154: 0 | Y154: 0 | Z154: 0 | AA154: 0 | AB154: 0 | AC154: 0 | AD154: 0 | AE154: 0 | AF154: 0 | AG154: =SUM(AG144:AG153) -> 0 | AH154: =SUM(AH144:AH153) -> 0 | AI154: 0 | AJ154: 0 | AK154: =SUM(AK144:AK153) -> 0
B157: Fully funded government or customer programs/projects (opex)
H159: Contribution | I159: Service
D160: Project 1
D161: Project 2
D162: Project 3
D163: Project 4
D164: Project 5
D165: Project 6
D166: Project 7
D167: Project 8
D168: Project 9
D169: Project 10
K170: =SUM(K160:K169) -> 0 | L170: 0 | M170: 0 | N170: 0 | O170: 0 | P170: 0 | Q170: 0 | R170: 0 | S170: 0 | T170: 0
C171: Total fully funded programs/projects (opex) by:
D172: Government | Y172: =SUMIF($H160:$H169,$D172,Y160:Y169) -> 0 | Z172: 0 | AA172: 0 | AB172: 0 | AC172: 0 | AD172: 0 | AE172: 0 | AF172: 0 | AG172: 0 | AH172: =SUMIF($H160:$H169,$D172,AH160:AH169) -> 0 | AI172: 0 | AJ172: 0 | AK172: 0
D173: Customer | Y173: =SUMIF($H160:$H169,$D173,Y160:Y169) -> 0 | Z173: 0 | AA173: 0 | AB173: 0 | AC173: 0 | AD173: 0 | AE173: 0 | AF173: 0 | AG173: 0 | AH173: =SUMIF($H160:$H169,$D173,AH160:AH169) -> 0 | AI173: 0 | AJ173: 0 | AK173: 0

Sheet Capex_FO input
B1: Capital Expenditure - Forecast Input
B2: =+Contents!H7 -> Goulburn Murray Water
B3: Go to Table of Contents
B5: =Expenditure_Detail!B6 -> $m, 01/01/24
C7: Input Summary | E7: SIXTH REG PERIOD | I7: SEVENTH REG PERIOD
D9: 2024-25 | E9: 2025-26 | F9: 2026-27 | G9: 2027-28 | H9: 2028-29 | I9: 2029-30 | J9: 2030-31 | K9: 2031-32
C10: By Cost Driver
C11: Net capital expenditure - Renewals | D11: =+SUMIF($F$42:$F$2053,"Renewals",AP$42:AP$2053) -> 20.11324011 | E11: 21.1460337 | F11: 21.07329928 | G11: 17.4713109 | H11: 21.93703871 | I11: 28.0816971 | J11: 27.65375274 | K11: 23.23919566
C12: Net capital expenditure - Growth | D12: =+SUMIF($F$42:$F$2053,"Growth",AP$42:AP$2053) -> 0 | E12: 0 | F12: 0 | G12: 0 | H12: 0 | I12: 0 | J12: 0 | K12: 0
C13: Net capital expenditure - Improvements / Compliance | D13: =+SUMIF($F$42:$F$2053,"Improvements / Compliance",AP$42:AP$2053) -> 7.655201904 | E13: 7.390685353 | F13: 4.579380695 | G13: 6.134622923 | H13: 10.87598671 | I13: 8.920729794 | J13: 12.70368109 | K13: 4.4776739
C14: Government Contributions | D14: =+X41 -> 4.61825 | E14: 1.48705 | F14: 1.48705 | G14: 1.48705 | H14: 0 | I14: 0 | J14: 0 | K14: 0
C15: Customer Contributions | D15: =+AG41 -> 0 | E15: 0 | F15: 0 | G15: 0 | H15: 0 | I15: 0 | J15: 0 | K15: 0
C16: Total prescribed capex | D16: =SUM(D11:D15) -> 32.38669201 | E16: 30.02376905 | F16: 27.13972998 | G16: 25.09298382 | H16: =SUM(H11:H15) -> 32.81302541 | I16: 37.00242689 | J16: 40.35743383 | K16: 27.71686956
C18: By Capital Type
C19: Top 10 Major Projects | D19: =+SUMIF($H$42:$H$2053,$C$19,O$42:O$2053) -> 4.71225 | E19: 0.9785 | F19: 0.8446731794 | G19: 2.6265 | H19: 3.02980989 | I19: 1.700048846 | J19: 2.040058615 | K19: 0
C20: Significant projects | D20: =+SUMIF($H$42:$H$2053,$C$20,O$42:O$2053) -> 0 | E20: 0 | F20: 0 | G20: 0 | H20: 0 | I20: 0 | J20: 0 | K20: 0
C21: Capital Programs / Allocation | D21: =+SUMIF($H$42:$H$2053,$C$21,O$42:O$2053) -> 14.70633788 | E21: 16.9585397 | F21: 17.25279689 | G21: 15.48443737 | H21: 14.18967521 | I21: 15.69549358 | J21: 14.03657422 | K21: 14.20296983
C22: Other Capital expenditure | D22: =+SUMIF($H$42:$H$2053,$C$22,O$42:O$2053) -> 12.96810413 | E22: 12.08672935 | F22: 9.042259905 | G22: 6.982046454 | H22: 15.59354032 | I22: 19.60688446 | J22: 24.28080099 | K22: 13.51389973
C23: Total prescribed capex | D23: =SUM(D19:D22) -> 32.38669201 | E23: 30.02376905 | F23: 27.13972998 | G23: 25.09298382 | H23: =SUM(H19:H22) -> 32.81302541 | I23: 37.00242689 | J23: 40.35743383 | K23: 27.71686956
C25: Difference | D25: =+D23-D16 -> 0 | E25: -5.329070518e-14 | F25: -4.97379915e-14 | G25: 0 | H25: =+H23-H16 -> 0 | I25: =+I23-I16 -> 0 | J25: 0 | K25: 0
C26: Test | D26: =IF(ROUND(D23,2)=ROUND(D16,2),0,1) -> 0 | E26: =IF(ROUND(E23,2)=ROUND(E16,2),0,1) -> 0 | F26: 0 | G26: 0 | H26: 0 | I26: 0 | J26: 0 | K26: 0
C29: Total prescribed capex | D29: =+D23 -> 32.38669201 | E29: 30.02376905 | F29: 27.13972998 | G29: 25.09298382 | H29: =+H23 -> 32.81302541 | I29: =+I23 -> 37.00242689 | J29: 40.35743383 | K29: 27.71686956
C32: Regulatory Depreciation | D32: =+AY41 -> 0.6884501261 | E32: 2.12894111 | F32: 3.491573086 | G32: 4.737662308 | H32: 6.02150523 | I32: 6.998938752 | J32: 7.702996931 | K32: 8.506427988
O36: Gross capital expenditure | X36: Government contributions | AP36: Net capital expenditure | AY36: Regulatory Depreciation | BH36: Accumulated capex | BQ36: Gross capital expenditure | BZ36: Tax Depreciation
O37: =B5 -> $m, 01/01/24 | X37: =O37 -> $m, 01/01/24 | AG37: Customer contributions | AP37: =AG38 -> $m, 01/01/24 | AY37: =AP37 -> $m, 01/01/24 | BH37: =AY37 -> $m, 01/01/24 | BQ37: Nominal,$ | BZ37: Nominal,$
AG38: =X37 -> $m, 01/01/24
O39: 2024-25 | P39: 2025-26 | Q39: 2026-27 | R39: 2027-28 | S39: 2028-29 | T39: 2029-30 | U39: 2030-31 | V39: 2031-32 | X39: 2024-25 | Y39: 2025-26 | Z39: 2026-27 | AA39: 2027-28 | AB39: 2028-29 | AC39: 2029-30 | AD39: 2030-31 | AE39: 2031-32 | AG39: 2024-25 | AH39: 2025-26 | AI39: 2026-27 | AJ39: 2027-28 | AK39: 2028-29 | AL39: 2029-30 | AM39: 2030-31 | AN39: 2031-32 | AP39: 2024-25 | AQ39: 2025-26 | AR39: 2026-27 | AS39: 2027-28 | AT39: 2028-29 | AU39: 2029-30 | AV39: 2030-31 | AW39: 2031-32 | AY39: 2024-25 | AZ39: 2025-26 | BA39: 2026-27 | BB39: 2027-28 | BC39: 2028-29 | BD39: 2029-30 | BE39: 2030-31 | BF39: 2031-32 | BH39: 2024-25 | BI39: 2025-26 | BJ39: 2026-27 | BK39: 2027-28 | BL39: 2028-29 | BM39: 2029-30 | BN39: 2030-31 | BO39: 2031-32 | BQ39: 2024-25 | BR39: 2025-26 | BS39: 2026-27 | BT39: 2027-28 | BU39: 2028-29 | BV39: 2029-30 | BW39: 2030-31 | BX39: 2031-32 | BZ39: 2024-25 | CA39: 2025-26 | CB39: 2026-27 | CC39: 2027-28 | CD39: 2028-29 | CE39: 2029-30 | CF39: 2030-31 | CG39: 2031-32
AY40: 1 | AZ40: 2 | BA40: 3 | BB40: 4 | BC40: 5 | BD40: 6 | BE40: 7 | BF40: 8 | BZ40: 5 | CA40: 6 | CB40: 7 | CC40: 8 | CD40: 9 | CE40: 10 | CF40: 11 | CG40: 12
C41: Project/program Name | E41: Service | F41: Major cost driver | G41: Asset category | H41: Capital type | J41: Depreciation Method | K41: Year asset operational | L41: Asset life (Regulatory) | M41: Asset life (Tax) | O41: =SUM(O42:O2053) -> 32.38669201 | P41: 30.02376905 | Q41: 27.13972998 | R41: 25.09298382 | S41: =SUM(S42:S2053) -> 32.81302541 | T41: 37.00242689 | U41: 40.35743383 | V41: 27.71686956 | X41: =SUM(X42:X2053) -> 4.61825 | Y41: 1.48705 | Z41: 1.48705 | AA41: 1.48705 | AB41: =SUM(AB42:AB2053) -> 0 | AC41: 0 | AD41: 0 | AE41: 0 | AG41: =SUM(AG42:AG2053) -> 0 | AH41: 0 | AI41: 0 | AJ41: 0 | AK41: 0 | AL41: 0 | AM41: 0 | AN41: 0 | AP41: =SUM(AP42:AP2053) -> 27.76844201 | AQ41: 28.53671905 | AR41: 25.65267998 | AS41: 23.60593382 | AT41: =SUM(AT42:AT2053) -> 32.81302541 | AU41: 37.00242689 | AV41: 40.35743383 | AW41: 27.71686956 | AY41: =SUM(AY42:AY2053) -> 0.6884501261 | AZ41: 2.12894111 | BA41: 3.491573086 | BB41: 4.737662308 | BC41: =SUM(BC42:BC2053) -> 6.02150523 | BD41: 6.998938752 | BE41: 7.702996931 | BF41: 8.506427988 | BH41: =SUM(BH42:BH2053) -> 22.6826551 | BI41: 30.51419739 | BJ41: 24.78204641 | BK41: 25.01959053 | BL41: =SUM(BL42:BL2053) -> 29.79521689 | BM41: 33.48791321 | BN41: 41.27444484 | BO41: 33.77508075 | BQ41: =SUM(BQ42:BQ2053) -> 33.52022623 | BR41: 32.162212 | BS41: 30.09030375 | BT41: 28.79477609 | BU41: =SUM(BU42:BU2053) -> 38.97158093 | BV41: 45.48543034 | BW41: 51.34592616 | BX41: 36.49782431 | BZ41: =SUM(BZ42:BZ2053) -> 0.8404375264 | CA41: 6.140288841 | CB41: 7.203688983 | CC41: 8.172955859 | CD41: =SUM(CD42:CD2053) -> 9.687563201 | CE41: 10.9791087 | CF41: 11.75709581 | CG41: 12.59896814
C42: BUF - Refurbish irrigation outlet valve and Replace Trash Screens (DSI#15) | E42: Bulk water services | F42: Renewals | G42: Headworks | H42: Top 10 Major Projects | J42: Straight line | K42: 2025-26 | L42: 60 | M42: 60 | O42: 1.32355 | P42: 0.0412 | Q42: 0 | R42: 0 | S42: 0 | T42: 0 | U42: 0 | V42: 0 | AP42: =+O42-X42-AG42 -> 1.32355 | AQ42: =+P42-Y42-AH42 -> 0.0412 | AR42: =+Q42-Z42-AI42 -> 0 | AS42: =+R42-AA42-AJ42 -> 0 | AT42: =+S42-AB42-AK42 -> 0 | AU42: =+T42-AC42-AL42 -> 0 | AV42: =+U42-AD42-AM42 -> 0 | AW42: =+V42-AE42-AN42 -> 0 | AY42: =IF($L42=0,0, IF($L42<=0.5,BH42, IF($J42="straight line", IF((LEFT(AY$39,4)*1)-INT($L42)<LEFT($AY$39,4)*1,0,((OFFSET(BH42,0,-INT($L42+0.5),1,1))/$L42)*(IF($L42-INT($L42)>0.5,$L42-0.5-INT($L42),IF($L42-INT($L42)<=0.5,$L42-0.5-INT($L42)+1,0)))) +BH42/$L42*0.5, IF($J42="Declining Balance",-$AY$38,0)))) -> 0 | AZ42: =IF($L42=0,0, IF($L42<=0.5,BI42, IF(AND($J42="straight line",$L42<1.51),(BH42-((BH42/$L42)*0.5))+BI42/$L42*0.5, IF($J42="straight line", IF((LEFT(AZ$39,4)*1)-INT($L42)<LEFT($AY$39,4)*1,0,((OFFSET(BI42,0,-INT($L42+0.5),1,1))/$L42)*(IF($L42-INT($L42)>0.5,$L42-0.5-INT($L42),IF($L42-INT($L42)<=0.5,$L42-0.5-INT($L42)+1,0)))) +BI42/$L42*0.5 +SUM(OFFSET(BI42,0,MAX(-INT($L42+(0.5-(10^-12))),-AZ$40)+1,1,MIN(INT($L42+(0.5-(10^-12))),AZ$40)-1))*1/$L42, IF($J42="Declining Balance",-$AY$38,0))))) -> 0.01137291667 | BA42: =IF($L42=0,0, IF($L42<=0.5,BJ42, IF(AND($J42="straight line",$L42<1.51),(BI42-((BI42/$L42)*0.5))+BJ42/$L42*0.5, IF($J42="straight line", IF((LEFT(BA$39,4)*1)-INT($L42)<LEFT($AY$39,4)*1,0,((OFFSET(BJ42,0,-INT($L42+0.5),1,1))/$L42)*(IF($L42-INT($L42)>0.5,$L42-0.5-INT($L42),IF($L42-INT($L42)<=0.5,$L42-0.5-INT($L42)+1,0)))) +BJ42/$L42*0.5 +SUM(OFFSET(BJ42,0,MAX(-INT($L42+(0.5-(10^-12))),-BA$40)+1,1,MIN(INT($L42+(0.5-(10^-12))),BA$40)-1))*1/$L42, IF($J42="Declining Balance",-$AY$38,0))))) -> 0.02274583333 | BB42: 0.02274583333 | BC42: 0.02274583333 | BD42: 0.02274583333 | BE42: 0.02274583333 | BF42: 0.02274583333 | BH42: =+IF($K42="Ongoing",AP42,IF(RIGHT($K42,2)=RIGHT(BH$39,2),SUM($AP42:AP42),0)+IF(RIGHT(BH$39,2)>RIGHT($K42,2),AP42,0)) -> 0 | BI42: =+IF($K42="Ongoing",AQ42,IF(RIGHT($K42,2)=RIGHT(BI$39,2),SUM($AP42:AQ42),0)+IF(RIGHT(BI$39,2)>RIGHT($K42,2),AQ42,0)) -> 1.36475 | BJ42: =+IF($K42="Ongoing",AR42,IF(RIGHT($K42,2)=RIGHT(BJ$39,2),SUM($AP42:AR42),0)+IF(RIGHT(BJ$39,2)>RIGHT($K42,2),AR42,0)) -> 0 | BK42: =+IF($K42="Ongoing",AS42,IF(RIGHT($K42,2)=RIGHT(BK$39,2),SUM($AP42:AS42),0)+IF(RIGHT(BK$39,2)>RIGHT($K42,2),AS42,0)) -> 0 | BL42: =+IF($K42="Ongoing",AT42,IF(RIGHT($K42,2)=RIGHT(BL$39,2),SUM($AP42:AT42),0)+IF(RIGHT(BL$39,2)>RIGHT($K42,2),AT42,0)) -> 0 | BM42: =+IF($K42="Ongoing",AU42,IF(RIGHT($K42,2)=RIGHT(BM$39,2),SUM($AP42:AU42),0)+IF(RIGHT(BM$39,2)>RIGHT($K42,2),AU42,0)) -> 0 | BN42: =+IF($K42="Ongoing",AV42,IF(RIGHT($K42,2)=RIGHT(BN$39,2),SUM($AP42:AV42),0)+IF(RIGHT(BN$39,2)>RIGHT($K42,2),AV42,0)) -> 0 | BO42: =+IF($K42="Ongoing",AW42,IF(RIGHT($K42,2)=RIGHT(BO$39,2),SUM($AP42:AW42),0)+IF(RIGHT(BO$39,2)>RIGHT($K42,2),AW42,0)) -> 0 | BQ42: =+O42*KeyAssumptionsPriceControl_FO!AD$15 -> 1.36987425 | BR42: =+P42*KeyAssumptionsPriceControl_FO!AE$15 -> 0.04413447 | BS42: =+Q42*KeyAssumptionsPriceControl_FO!AF$15 -> 0 | BT42: =+R42*KeyAssumptionsPriceControl_FO!AG$15 -> 0 | BU42: =+S42*KeyAssumptionsPriceControl_FO!AH$15 -> 0 | BV42: =+T42*KeyAssumptionsPriceControl_FO!AI$15 -> 0 | BW42: =+U42*KeyAssumptionsPriceControl_FO!AJ$15 -> 0 | BX42: =+V42*KeyAssumptionsPriceControl_FO!AK$15 -> 0 | BZ42: =IF($M42=0,0, IF($M42<=0.5,BQ42, IF($J42="straight line", IF((LEFT(BZ$39,4)*1)-INT($M42)<LEFT($BZ$39,4)*1,0,((OFFSET(BQ42,0,-INT($M42+0.5),1,1))/$M42)*(IF($M42-INT($M42)>0.5,$M42-0.5-INT($M42),IF($M42-INT($M42)<=0.5,$M42-0.5-INT($M42)+1,0)))) +BQ42/$M42*0.5, IF($J42="Declining Balance",-$BZ$38,0)))) -> 0.01141561875 | CA42: =IF($M42=0,0, IF($M42<=0.5,BR42, IF(AND($J42="straight line",$M42<1.51),(BQ42-((BQ42/$M42)*0.5))+BR42/$M42*0.5, IF($J42="straight line", IF((LEFT(CA$39,4)*1)-INT($M42)<LEFT($BZ$39,4)*1,0,((OFFSET(BR42,0,-INT($M42+0.5),1,1))/$M42)*(IF($M42-INT($M42)>0.5,$M42-0.5-INT($M42),IF($M42-INT($M42)<=0.5,$M42-0.5-INT($M42)+1,0)))) +BR42/$M42*0.5 +SUM(OFFSET(BR42,0,MAX(-INT($M42+(0.5-(10^-12))),-CA$40)+1,1,MIN(INT($M42+(0.5-(10^-12))),CA$40)-1))*1/$M42, IF($J42="Declining Balance",-$BZ$38,0))))) -> 0.02319902475 | CB42: 0.023566812 | CC42: 0.023566812 | CD42: 0.023566812 | CE42: 0.023566812 | CF42: 0.023566812 | CG42: 0.023566812
C43: NIL - SPILLWAY STABILISE WALLS R & T & CONSTRUCT ADJACENT FILTERS (S1- DSU) (DSI#744,745,762,763,765 | E43: Bulk water services | F43: Improvements / Compliance | G43: Headworks | H43: Top 10 Major Projects | J43: Straight line | K43: 2027-28 | L43: 60 | M43: 60 | O43: 0.103 | P43: 0.103 | Q43: 0.103 | R43: 0.103 | S43: 0.103 | T43: 1.700048846 | U43: 2.040058615 | V43: 0 | AP43: 0.103 | AQ43: 0.103 | AR43: 0.103 | AS43: 0.103 | AT43: 0.103 | AU43: 1.700048846 | AV43: 2.040058615 | AW43: 0 | AY43: 0 | AZ43: 0 | BA43: 0 | BB43: 0.003433333333 | BC43: 0.007725 | BD43: 0.02275040705 | BE43: 0.05391796922 | BF43: 0.07091845768 | BH43: =+IF($K43="Ongoing",AP43,IF(RIGHT($K43,2)=RIGHT(BH$39,2),SUM($AP43:AP43),0)+IF(RIGHT(BH$39,2)>RIGHT($K43,2),AP43,0)) -> 0 | BI43: =+IF($K43="Ongoing",AQ43,IF(RIGHT($K43,2)=RIGHT(BI$39,2),SUM($AP43:AQ43),0)+IF(RIGHT(BI$39,2)>RIGHT($K43,2),AQ43,0)) -> 0 | BJ43: =+IF($K43="Ongoing",AR43,IF(RIGHT($K43,2)=RIGHT(BJ$39,2),SUM($AP43:AR43),0)+IF(RIGHT(BJ$39,2)>RIGHT($K43,2),AR43,0)) -> 0 | BK43: =+IF($K43="Ongoing",AS43,IF(RIGHT($K43,2)=RIGHT(BK$39,2),SUM($AP43:AS43),0)+IF(RIGHT(BK$39,2)>RIGHT($K43,2),AS43,0)) -> 0.412 | BL43: =+IF($K43="Ongoing",AT43,IF(RIGHT($K43,2)=RIGHT(BL$39,2),SUM($AP43:AT43),0)+IF(RIGHT(BL$39,2)>RIGHT($K43,2),AT43,0)) -> 0.103 | BM43: =+IF($K43="Ongoing",AU43,IF(RIGHT($K43,2)=RIGHT(BM$39,2),SUM($AP43:AU43),0)+IF(RIGHT(BM$39,2)>RIGHT($K43,2),AU43,0)) -> 1.700048846 | BN43: =+IF($K43="Ongoing",AV43,IF(RIGHT($K43,2)=RIGHT(BN$39,2),SUM($AP43:AV43),0)+IF(RIGHT(BN$39,2)>RIGHT($K43,2),AV43,0)) -> 2.040058615 | BO43: =+IF($K43="Ongoing",AW43,IF(RIGHT($K43,2)=RIGHT(BO$39,2),SUM($AP43:AW43),0)+IF(RIGHT(BO$39,2)>RIGHT($K43,2),AW43,0)) -> 0 | BQ43: =+O43*KeyAssumptionsPriceControl_FO!AD$15 -> 0.106605 | BR43: =+P43*KeyAssumptionsPriceControl_FO!AE$15 -> 0.110336175 | BS43: =+Q43*KeyAssumptionsPriceControl_FO!AF$15 -> 0.1141979411 | BT43: =+R43*KeyAssumptionsPriceControl_FO!AG$15 -> 0.1181948691 | BU43: =+S43*KeyAssumptionsPriceControl_FO!AH$15 -> 0.1223316895 | BV43: =+T43*KeyAssumptionsPriceControl_FO!AI$15 -> 2.089794099 | BW43: =+U43*KeyAssumptionsPriceControl_FO!AJ$15 -> 2.595524271 | BX43: =+V43*KeyAssumptionsPriceControl_FO!AK$15 -> 0 | BZ43: 0.000888375 | CA43: 0.06503134247 | CB43: 0.06690246011 | CC43: 0.06883906686 | CD43: 0.07084345485 | CE43: 0.08927783641 | CF43: 0.1283221562 | CG43: 0.1499515251
C44: GW - Spillway Gates - Upgrade and replacement of protective coating | E44: Bulk water services | F44: Renewals | G44: Headworks | H44: Top 10 Major Projects | J44: Straight line | K44: 2026-27 | L44: 60 | M44: 60 | O44: 0.0515 | P44: 0.4635 | Q44: 0.515 | R44: 0.4635 | S44: 0 | T44: 0 | U44: 0 | V44: 0 | AP44: 0.0515 | AQ44: 0.4635 | AR44: 0.515 | AS44: 0.4635 | AT44: 0 | AU44: 0 | AV44: 0 | AW44: 0 | AY44: 0 | AZ44: 0 | BA44: 0.008583333333 | BB44: 0.02102916667 | BC44: 0.02489166667 | BD44: 0.02489166667 | BE44: 0.02489166667 | BF44: 0.02489166667 | BH44: =+IF($K44="Ongoing",AP44,IF(RIGHT($K44,2)=RIGHT(BH$39,2),SUM($AP44:AP44),0)+IF(RIGHT(BH$39,2)>RIGHT($K44,2),AP44,0)) -> 0 | BI44: =+IF($K44="Ongoing",AQ44,IF(RIGHT($K44,2)=RIGHT(BI$39,2),SUM($AP44:AQ44),0)+IF(RIGHT(BI$39,2)>RIGHT($K44,2),AQ44,0)) -> 0 | BJ44: =+IF($K44="Ongoing",AR44,IF(RIGHT($K44,2)=RIGHT(BJ$39,2),SUM($AP44:AR44),0)+IF(RIGHT(BJ$39,2)>RIGHT($K44,2),AR44,0)) -> 1.03 | BK44: =+IF($K44="Ongoing",AS44,IF(RIGHT($K44,2)=RIGHT(BK$39,2),SUM($AP44:AS44),0)+IF(RIGHT(BK$39,2)>RIGHT($K44,2),AS44,0)) -> 0.4635 | BL44: =+IF($K44="Ongoing",AT44,IF(RIGHT($K44,2)=RIGHT(BL$39,2),SUM($AP44:AT44),0)+IF(RIGHT(BL$39,2)>RIGHT($K44,2),AT44,0)) -> 0 | BM44: =+IF($K44="Ongoing",AU44,IF(RIGHT($K44,2)=RIGHT(BM$39,2),SUM($AP44:AU44),0)+IF(RIGHT(BM$39,2)>RIGHT($K44,2),AU44,0)) -> 0 | BN44: =+IF($K44="Ongoing",AV44,IF(RIGHT($K44,2)=RIGHT(BN$39,2),SUM($AP44:AV44),0)+IF(RIGHT(BN$39,2)>RIGHT($K44,2),AV44,0)) -> 0 | BO44: =+IF($K44="Ongoing",AW44,IF(RIGHT($K44,2)=RIGHT(BO$39,2),SUM($AP44:AW44),0)+IF(RIGHT(BO$39,2)>RIGHT($K44,2),AW44,0)) -> 0 | BQ44: =+O44*KeyAssumptionsPriceControl_FO!AD$15 -> 0.0533025 | BR44: =+P44*KeyAssumptionsPriceControl_FO!AE$15 -> 0.4965127875 | BS44: =+Q44*KeyAssumptionsPriceControl_FO!AF$15 -> 0.5709897056 | BT44: =+R44*KeyAssumptionsPriceControl_FO!AG$15 -> 0.5318769108 | BU44: =+S44*KeyAssumptionsPriceControl_FO!AH$15 -> 0 | BV44: =+T44*KeyAssumptionsPriceControl_FO!AI$15 -> 0 | BW44: =+U44*KeyAssumptionsPriceControl_FO!AJ$15 -> 0 | BX44: =+V44*KeyAssumptionsPriceControl_FO!AK$15 -> 0 | BZ44: 0.0004441875 | CA44: 0.005025981562 | CB44: 0.01392183567 | CC44: 0.02311239081 | CD44: 0.0275446984 | CE44: 0.0275446984 | CF44: 0.0275446984 | CG44: 0.0275446984
C45: TUL - Action S1 - Upgrade Works - Filters secondary embankment (DSU & DSI#1941) | E45: Bulk water services | F45: Improvements / Compliance | G45: Headworks | H45: Top 10 Major Projects | J45: Straight line | K45: 2025-26 | L45: 60 | M45: 60 | O45: 0.103 | P45: 0.3708 | Q45: 0.2266731794 | R45: 2.06 | S45: 2.92680989 | T45: 0 | U45: 0 | V45: 0 | AP45: 0.103 | AQ45: 0.3708 | AR45: 0.2266731794 | AS45: 2.06 | AT45: 2.92680989 | AU45: 0 | AV45: 0 | AW45: 0 | AY45: 0 | AZ45: 0.003948333333 | BA45: 0.009785609828 | BB45: 0.02884121966 | BC45: 0.07039796874 | BD45: 0.09478805116 | BE45: 0.09478805116 | BF45: 0.09478805116 | BH45: =+IF($K45="Ongoing",AP45,IF(RIGHT($K45,2)=RIGHT(BH$39,2),SUM($AP45:AP45),0)+IF(RIGHT(BH$39,2)>RIGHT($K45,2),AP45,0)) -> 0 | BI45: =+IF($K45="Ongoing",AQ45,IF(RIGHT($K45,2)=RIGHT(BI$39,2),SUM($AP45:AQ45),0)+IF(RIGHT(BI$39,2)>RIGHT($K45,2),AQ45,0)) -> 0.4738 | BJ45: =+IF($K45="Ongoing",AR45,IF(RIGHT($K45,2)=RIGHT(BJ$39,2),SUM($AP45:AR45),0)+IF(RIGHT(BJ$39,2)>RIGHT($K45,2),AR45,0)) -> 0.2266731794 | BK45: =+IF($K45="Ongoing",AS45,IF(RIGHT($K45,2)=RIGHT(BK$39,2),SUM($AP45:AS45),0)+IF(RIGHT(BK$39,2)>RIGHT($K45,2),AS45,0)) -> 2.06 | BL45: =+IF($K45="Ongoing",AT45,IF(RIGHT($K45,2)=RIGHT(BL$39,2),SUM($AP45:AT45),0)+IF(RIGHT(BL$39,2)>RIGHT($K45,2),AT45,0)) -> 2.92680989 | BM45: =+IF($K45="Ongoing",AU45,IF(RIGHT($K45,2)=RIGHT(BM$39,2),SUM($AP45:AU45),0)+IF(RIGHT(BM$39,2)>RIGHT($K45,2),AU45,0)) -> 0 | BN45: =+IF($K45="Ongoing",AV45,IF(RIGHT($K45,2)=RIGHT(BN$39,2),SUM($AP45:AV45),0)+IF(RIGHT(BN$39,2)>RIGHT($K45,2),AV45,0)) -> 0 | BO45: =+IF($K45="Ongoing",AW45,IF(RIGHT($K45,2)=RIGHT(BO$39,2),SUM($AP45:AW45),0)+IF(RIGHT(BO$39,2)>RIGHT($K45,2),AW45,0)) -> 0 | BQ45: =+O45*KeyAssumptionsPriceControl_FO!AD$15 -> 0.106605 | BR45: =+P45*KeyAssumptionsPriceControl_FO!AE$15 -> 0.39721023 | BS45: =+Q45*KeyAssumptionsPriceControl_FO!AF$15 -> 0.2513166058 | BT45: =+R45*KeyAssumptionsPriceControl_FO!AG$15 -> 2.363897381 | BU45: =+S45*KeyAssumptionsPriceControl_FO!AH$15 -> 3.476132026 | BV45: =+T45*KeyAssumptionsPriceControl_FO!AI$15 -> 0 | BW45: =+U45*KeyAssumptionsPriceControl_FO!AJ$15 -> 0 | BX45: =+V45*KeyAssumptionsPriceControl_FO!AK$15 -> 0 | BZ45: 0.000888375 | CA45: 0.00508683525 | CB45: 0.01049122555 | CC45: 0.03228467544 | CD45: 0.08095158716 | CE45: 0.109919354 | CF45: 0.109919354 | CG45: 0.109919354
C46: Major Project 5 | E46: [Service] | F46: [Major Cost Driver] | G46: [Asset category] | H46: Top 10 Major Projects | J46: Straight line | K46: [Year finalised?] | AP46: 0 | AQ46: 0 | AR46: 0 | AS46: 0 | AT46: 0 | AU46: 0 | AV46: 0 | AW46: 0 | AY46: 0 | AZ46: 0 | BA46: 0 | BB46: 0 | BC46: 0 | BD46: 0 | BE46: 0 | BF46: 0 | BH46: =+IF($K46="Ongoing",AP46,IF(RIGHT($K46,2)=RIGHT(BH$39,2),SUM($AP46:AP46),0)+IF(RIGHT(BH$39,2)>RIGHT($K46,2),AP46,0)) -> 0 | BI46: =+IF($K46="Ongoing",AQ46,IF(RIGHT($K46,2)=RIGHT(BI$39,2),SUM($AP46:AQ46),0)+IF(RIGHT(BI$39,2)>RIGHT($K46,2),AQ46,0)) -> 0 | BJ46: =+IF($K46="Ongoing",AR46,IF(RIGHT($K46,2)=RIGHT(BJ$39,2),SUM($AP46:AR46),0)+IF(RIGHT(BJ$39,2)>RIGHT($K46,2),AR46,0)) -> 0 | BK46: =+IF($K46="Ongoing",AS46,IF(RIGHT($K46,2)=RIGHT(BK$39,2),SUM($AP46:AS46),0)+IF(RIGHT(BK$39,2)>RIGHT($K46,2),AS46,0)) -> 0 | BL46: =+IF($K46="Ongoing",AT46,IF(RIGHT($K46,2)=RIGHT(BL$39,2),SUM($AP46:AT46),0)+IF(RIGHT(BL$39,2)>RIGHT($K46,2),AT46,0)) -> 0 | BM46: =+IF($K46="Ongoing",AU46,IF(RIGHT($K46,2)=RIGHT(BM$39,2),SUM($AP46:AU46),0)+IF(RIGHT(BM$39,2)>RIGHT($K46,2),AU46,0)) -> 0 | BN46: =+IF($K46="Ongoing",AV46,IF(RIGHT($K46,2)=RIGHT(BN$39,2),SUM($AP46:AV46),0)+IF(RIGHT(BN$39,2)>RIGHT($K46,2),AV46,0)) -> 0 | BO46: =+IF($K46="Ongoing",AW46,IF(RIGHT($K46,2)=RIGHT(BO$39,2),SUM($AP46:AW46),0)+IF(RIGHT(BO$39,2)>RIGHT($K46,2),AW46,0)) -> 0 | BQ46: =+O46*KeyAssumptionsPriceControl_FO!AD$15 -> 0 | BR46: =+P46*KeyAssumptionsPriceControl_FO!AE$15 -> 0 | BS46: =+Q46*KeyAssumptionsPriceControl_FO!AF$15 -> 0 | BT46: =+R46*KeyAssumptionsPriceControl_FO!AG$15 -> 0 | BU46: =+S46*KeyAssumptionsPriceControl_FO!AH$15 -> 0 | BV46: =+T46*KeyAssumptionsPriceControl_FO!AI$15 -> 0 | BW46: =+U46*KeyAssumptionsPriceControl_FO!AJ$15 -> 0 | BX46: =+V46*KeyAssumptionsPriceControl_FO!AK$15 -> 0 | BZ46: 0 | CA46: 0 | CB46: 0 | CC46: 0 | CD46: 0 | CE46: 0 | CF46: 0 | CG46: 0
C47: Major Project 6 | E47: [Service] | F47: [Major Cost Driver] | G47: [Asset category] | H47: Top 10 Major Projects | J47: Straight line | K47: [Year finalised?] | AP47: 0 | AQ47: 0 | AR47: 0 | AS47: 0 | AT47: 0 | AU47: 0 | AV47: 0 | AW47: 0 | AY47: 0 | AZ47: 0 | BA47: 0 | BB47: 0 | BC47: 0 | BD47: 0 | BE47: 0 | BF47: 0 | BH47: =+IF($K47="Ongoing",AP47,IF(RIGHT($K47,2)=RIGHT(BH$39,2),SUM($AP47:AP47),0)+IF(RIGHT(BH$39,2)>RIGHT($K47,2),AP47,0)) -> 0 | BI47: =+IF($K47="Ongoing",AQ47,IF(RIGHT($K47,2)=RIGHT(BI$39,2),SUM($AP47:AQ47),0)+IF(RIGHT(BI$39,2)>RIGHT($K47,2),AQ47,0)) -> 0 | BJ47: =+IF($K47="Ongoing",AR47,IF(RIGHT($K47,2)=RIGHT(BJ$39,2),SUM($AP47:AR47),0)+IF(RIGHT(BJ$39,2)>RIGHT($K47,2),AR47,0)) -> 0 | BK47: =+IF($K47="Ongoing",AS47,IF(RIGHT($K47,2)=RIGHT(BK$39,2),SUM($AP47:AS47),0)+IF(RIGHT(BK$39,2)>RIGHT($K47,2),AS47,0)) -> 0 | BL47: =+IF($K47="Ongoing",AT47,IF(RIGHT($K47,2)=RIGHT(BL$39,2),SUM($AP47:AT47),0)+IF(RIGHT(BL$39,2)>RIGHT($K47,2),AT47,0)) -> 0 | BM47: =+IF($K47="Ongoing",AU47,IF(RIGHT($K47,2)=RIGHT(BM$39,2),SUM($AP47:AU47),0)+IF(RIGHT(BM$39,2)>RIGHT($K47,2),AU47,0)) -> 0 | BN47: =+IF($K47="Ongoing",AV47,IF(RIGHT($K47,2)=RIGHT(BN$39,2),SUM($AP47:AV47),0)+IF(RIGHT(BN$39,2)>RIGHT($K47,2),AV47,0)) -> 0 | BO47: =+IF($K47="Ongoing",AW47,IF(RIGHT($K47,2)=RIGHT(BO$39,2),SUM($AP47:AW47),0)+IF(RIGHT(BO$39,2)>RIGHT($K47,2),AW47,0)) -> 0 | BQ47: =+O47*KeyAssumptionsPriceControl_FO!AD$15 -> 0 | BR47: =+P47*KeyAssumptionsPriceControl_FO!AE$15 -> 0 | BS47: =+Q47*KeyAssumptionsPriceControl_FO!AF$15 -> 0 | BT47: =+R47*KeyAssumptionsPriceControl_FO!AG$15 -> 0 | BU47: =+S47*KeyAssumptionsPriceControl_FO!AH$15 -> 0 | BV47: =+T47*KeyAssumptionsPriceControl_FO!AI$15 -> 0 | BW47: =+U47*KeyAssumptionsPriceControl_FO!AJ$15 -> 0 | BX47: =+V47*KeyAssumptionsPriceControl_FO!AK$15 -> 0 | BZ47: 0 | CA47: 0 | CB47: 0 | CC47: 0 | CD47: 0 | CE47: 0 | CF47: 0 | CG47: 0
C48: Major Project 7 | E48: [Service] | F48: [Major Cost Driver] | G48: [Asset category] | H48: Top 10 Major Projects | J48: Straight line | K48: [Year finalised?] | AP48: 0 | AQ48: 0 | AR48: 0 | AS48: 0 | AT48: 0 | AU48: 0 | AV48: 0 | AW48: 0 | AY48: 0 | AZ48: 0 | BA48: 0 | BB48: 0 | BC48: 0 | BD48: 0 | BE48: 0 | BF48: 0 | BH48: =+IF($K48="Ongoing",AP48,IF(RIGHT($K48,2)=RIGHT(BH$39,2),SUM($AP48:AP48),0)+IF(RIGHT(BH$39,2)>RIGHT($K48,2),AP48,0)) -> 0 | BI48: =+IF($K48="Ongoing",AQ48,IF(RIGHT($K48,2)=RIGHT(BI$39,2),SUM($AP48:AQ48),0)+IF(RIGHT(BI$39,2)>RIGHT($K48,2),AQ48,0)) -> 0 | BJ48: =+IF($K48="Ongoing",AR48,IF(RIGHT($K48,2)=RIGHT(BJ$39,2),SUM($AP48:AR48),0)+IF(RIGHT(BJ$39,2)>RIGHT($K48,2),AR48,0)) -> 0 | BK48: =+IF($K48="Ongoing",AS48,IF(RIGHT($K48,2)=RIGHT(BK$39,2),SUM($AP48:AS48),0)+IF(RIGHT(BK$39,2)>RIGHT($K48,2),AS48,0)) -> 0 | BL48: =+IF($K48="Ongoing",AT48,IF(RIGHT($K48,2)=RIGHT(BL$39,2),SUM($AP48:AT48),0)+IF(RIGHT(BL$39,2)>RIGHT($K48,2),AT48,0)) -> 0 | BM48: =+IF($K48="Ongoing",AU48,IF(RIGHT($K48,2)=RIGHT(BM$39,2),SUM($AP48:AU48),0)+IF(RIGHT(BM$39,2)>RIGHT($K48,2),AU48,0)) -> 0 | BN48: =+IF($K48="Ongoing",AV48,IF(RIGHT($K48,2)=RIGHT(BN$39,2),SUM($AP48:AV48),0)+IF(RIGHT(BN$39,2)>RIGHT($K48,2),AV48,0)) -> 0 | BO48: =+IF($K48="Ongoing",AW48,IF(RIGHT($K48,2)=RIGHT(BO$39,2),SUM($AP48:AW48),0)+IF(RIGHT(BO$39,2)>RIGHT($K48,2),AW48,0)) -> 0 | BQ48: =+O48*KeyAssumptionsPriceControl_FO!AD$15 -> 0 | BR48: =+P48*KeyAssumptionsPriceControl_FO!AE$15 -> 0 | BS48: =+Q48*KeyAssumptionsPriceControl_FO!AF$15 -> 0 | BT48: =+R48*KeyAssumptionsPriceControl_FO!AG$15 -> 0 | BU48: =+S48*KeyAssumptionsPriceControl_FO!AH$15 -> 0 | BV48: =+T48*KeyAssumptionsPriceControl_FO!AI$15 -> 0 | BW48: =+U48*KeyAssumptionsPriceControl_FO!AJ$15 -> 0 | BX48: =+V48*KeyAssumptionsPriceControl_FO!AK$15 -> 0 | BZ48: 0 | CA48: 0 | CB48: 0 | CC48: 0 | CD48: 0 | CE48: 0 | CF48: 0 | CG48: 0
C49: Major Project 8 | E49: [Service] | F49: [Major Cost Driver] | G49: [Asset category] | H49: Top 10 Major Projects | J49: Straight line | K49: [Year finalised?] | AP49: 0 | AQ49: 0 | AR49: 0 | AS49: 0 | AT49: 0 | AU49: 0 | AV49: 0 | AW49: 0 | AY49: 0 | AZ49: 0 | BA49: 0 | BB49: 0 | BC49: 0 | BD49: 0 | BE49: 0 | BF49: 0 | BH49: =+IF($K49="Ongoing",AP49,IF(RIGHT($K49,2)=RIGHT(BH$39,2),SUM($AP49:AP49),0)+IF(RIGHT(BH$39,2)>RIGHT($K49,2),AP49,0)) -> 0 | BI49: =+IF($K49="Ongoing",AQ49,IF(RIGHT($K49,2)=RIGHT(BI$39,2),SUM($AP49:AQ49),0)+IF(RIGHT(BI$39,2)>RIGHT($K49,2),AQ49,0)) -> 0 | BJ49: =+IF($K49="Ongoing",AR49,IF(RIGHT($K49,2)=RIGHT(BJ$39,2),SUM($AP49:AR49),0)+IF(RIGHT(BJ$39,2)>RIGHT($K49,2),AR49,0)) -> 0 | BK49: =+IF($K49="Ongoing",AS49,IF(RIGHT($K49,2)=RIGHT(BK$39,2),SUM($AP49:AS49),0)+IF(RIGHT(BK$39,2)>RIGHT($K49,2),AS49,0)) -> 0 | BL49: =+IF($K49="Ongoing",AT49,IF(RIGHT($K49,2)=RIGHT(BL$39,2),SUM($AP49:AT49),0)+IF(RIGHT(BL$39,2)>RIGHT($K49,2),AT49,0)) -> 0 | BM49: =+IF($K49="Ongoing",AU49,IF(RIGHT($K49,2)=RIGHT(BM$39,2),SUM($AP49:AU49),0)+IF(RIGHT(BM$39,2)>RIGHT($K49,2),AU49,0)) -> 0 | BN49: =+IF($K49="Ongoing",AV49,IF(RIGHT($K49,2)=RIGHT(BN$39,2),SUM($AP49:AV49),0)+IF(RIGHT(BN$39,2)>RIGHT($K49,2),AV49,0)) -> 0 | BO49: =+IF($K49="Ongoing",AW49,IF(RIGHT($K49,2)=RIGHT(BO$39,2),SUM($AP49:AW49),0)+IF(RIGHT(BO$39,2)>RIGHT($K49,2),AW49,0)) -> 0 | BQ49: =+O49*KeyAssumptionsPriceControl_FO!AD$15 -> 0 | BR49: =+P49*KeyAssumptionsPriceControl_FO!AE$15 -> 0 | BS49: =+Q49*KeyAssumptionsPriceControl_FO!AF$15 -> 0 | BT49: =+R49*KeyAssumptionsPriceControl_FO!AG$15 -> 0 | BU49: =+S49*KeyAssumptionsPriceControl_FO!AH$15 -> 0 | BV49: =+T49*KeyAssumptionsPriceControl_FO!AI$15 -> 0 | BW49: =+U49*KeyAssumptionsPriceControl_FO!AJ$15 -> 0 | BX49: =+V49*KeyAssumptionsPriceControl_FO!AK$15 -> 0 | BZ49: 0 | CA49: 0 | CB49: 0 | CC49: 0 | CD49: 0 | CE49: 0 | CF49: 0 | CG49: 0
C50: Major Project 9 | E50: [Service] | F50: [Major Cost Driver] | G50: [Asset category] | H50: Top 10 Major Projects | J50: Straight line | K50: [Year finalised?] | AP50: 0 | AQ50: 0 | AR50: 0 | AS50: 0 | AT50: 0 | AU50: 0 | AV50: 0 | AW50: 0 | AY50: 0 | AZ50: 0 | BA50: 0 | BB50: 0 | BC50: 0 | BD50: 0 | BE50: 0 | BF50: 0 | BH50: =+IF($K50="Ongoing",AP50,IF(RIGHT($K50,2)=RIGHT(BH$39,2),SUM($AP50:AP50),0)+IF(RIGHT(BH$39,2)>RIGHT($K50,2),AP50,0)) -> 0 | BI50: =+IF($K50="Ongoing",AQ50,IF(RIGHT($K50,2)=RIGHT(BI$39,2),SUM($AP50:AQ50),0)+IF(RIGHT(BI$39,2)>RIGHT($K50,2),AQ50,0)) -> 0 | BJ50: =+IF($K50="Ongoing",AR50,IF(RIGHT($K50,2)=RIGHT(BJ$39,2),SUM($AP50:AR50),0)+IF(RIGHT(BJ$39,2)>RIGHT($K50,2),AR50,0)) -> 0 | BK50: =+IF($K50="Ongoing",AS50,IF(RIGHT($K50,2)=RIGHT(BK$39,2),SUM($AP50:AS50),0)+IF(RIGHT(BK$39,2)>RIGHT($K50,2),AS50,0)) -> 0 | BL50: =+IF($K50="Ongoing",AT50,IF(RIGHT($K50,2)=RIGHT(BL$39,2),SUM($AP50:AT50),0)+IF(RIGHT(BL$39,2)>RIGHT($K50,2),AT50,0)) -> 0 | BM50: =+IF($K50="Ongoing",AU50,IF(RIGHT($K50,2)=RIGHT(BM$39,2),SUM($AP50:AU50),0)+IF(RIGHT(BM$39,2)>RIGHT($K50,2),AU50,0)) -> 0 | BN50: =+IF($K50="Ongoing",AV50,IF(RIGHT($K50,2)=RIGHT(BN$39,2),SUM($AP50:AV50),0)+IF(RIGHT(BN$39,2)>RIGHT($K50,2),AV50,0)) -> 0 | BO50: =+IF($K50="Ongoing",AW50,IF(RIGHT($K50,2)=RIGHT(BO$39,2),SUM($AP50:AW50),0)+IF(RIGHT(BO$39,2)>RIGHT($K50,2),AW50,0)) -> 0 | BQ50: =+O50*KeyAssumptionsPriceControl_FO!AD$15 -> 0 | BR50: =+P50*KeyAssumptionsPriceControl_FO!AE$15 -> 0 | BS50: =+Q50*KeyAssumptionsPriceControl_FO!AF$15 -> 0 | BT50: =+R50*KeyAssumptionsPriceControl_FO!AG$15 -> 0 | BU50: =+S50*KeyAssumptionsPriceControl_FO!AH$15 -> 0 | BV50: =+T50*KeyAssumptionsPriceControl_FO!AI$15 -> 0 | BW50: =+U50*KeyAssumptionsPriceControl_FO!AJ$15 -> 0 | BX50: =+V50*KeyAssumptionsPriceControl_FO!AK$15 -> 0 | BZ50: 0 | CA50: 0 | CB50: 0 | CC50: 0 | CD50: 0 | CE50: 0 | CF50: 0 | CG50: 0
C51: Major Project 10 | E51: [Service] | F51: [Major Cost Driver] | G51: [Asset category] | H51: Top 10 Major Projects | J51: Straight line | K51: [Year finalised?] | AP51: 0 | AQ51: 0 | AR51: 0 | AS51: 0 | AT51: 0 | AU51: 0 | AV51: 0 | AW51: 0 | AY51: 0 | AZ51: 0 | BA51: 0 | BB51: 0 | BC51: 0 | BD51: 0 | BE51: 0 | BF51: 0 | BH51: =+IF($K51="Ongoing",AP51,IF(RIGHT($K51,2)=RIGHT(BH$39,2),SUM($AP51:AP51),0)+IF(RIGHT(BH$39,2)>RIGHT($K51,2),AP51,0)) -> 0 | BI51: =+IF($K51="Ongoing",AQ51,IF(RIGHT($K51,2)=RIGHT(BI$39,2),SUM($AP51:AQ51),0)+IF(RIGHT(BI$39,2)>RIGHT($K51,2),AQ51,0)) -> 0 | BJ51: =+IF($K51="Ongoing",AR51,IF(RIGHT($K51,2)=RIGHT(BJ$39,2),SUM($AP51:AR51),0)+IF(RIGHT(BJ$39,2)>RIGHT($K51,2),AR51,0)) -> 0 | BK51: =+IF($K51="Ongoing",AS51,IF(RIGHT($K51,2)=RIGHT(BK$39,2),SUM($AP51:AS51),0)+IF(RIGHT(BK$39,2)>RIGHT($K51,2),AS51,0)) -> 0 | BL51: =+IF($K51="Ongoing",AT51,IF(RIGHT($K51,2)=RIGHT(BL$39,2),SUM($AP51:AT51),0)+IF(RIGHT(BL$39,2)>RIGHT($K51,2),AT51,0)) -> 0 | BM51: =+IF($K51="Ongoing",AU51,IF(RIGHT($K51,2)=RIGHT(BM$39,2),SUM($AP51:AU51),0)+IF(RIGHT(BM$39,2)>RIGHT($K51,2),AU51,0)) -> 0 | BN51: =+IF($K51="Ongoing",AV51,IF(RIGHT($K51,2)=RIGHT(BN$39,2),SUM($AP51:AV51),0)+IF(RIGHT(BN$39,2)>RIGHT($K51,2),AV51,0)) -> 0 | BO51: =+IF($K51="Ongoing",AW51,IF(RIGHT($K51,2)=RIGHT(BO$39,2),SUM($AP51:AW51),0)+IF(RIGHT(BO$39,2)>RIGHT($K51,2),AW51,0)) -> 0 | BQ51: =+O51*KeyAssumptionsPriceControl_FO!AD$15 -> 0 | BR51: =+P51*KeyAssumptionsPriceControl_FO!AE$15 -> 0 | BS51: =+Q51*KeyAssumptionsPriceControl_FO!AF$15 -> 0 | BT51: =+R51*KeyAssumptionsPriceControl_FO!AG$15 -> 0 | BU51: =+S51*KeyAssumptionsPriceControl_FO!AH$15 -> 0 | BV51: =+T51*KeyAssumptionsPriceControl_FO!AI$15 -> 0 | BW51: =+U51*KeyAssumptionsPriceControl_FO!AJ$15 -> 0 | BX51: =+V51*KeyAssumptionsPriceControl_FO!AK$15 -> 0 | BZ51: 0 | CA51: 0 | CB51: 0 | CC51: 0 | CD51: 0 | CE51: 0 | CF51: 0 | CG51: 0
A53: 1 | C53: GMID Communication Network Project | E53: Irrigation | F53: Renewals | G53: Channels | H53: Other Capital expenditure | J53: Straight line | K53: 2024-25 | L53: 15 | M53: 15 | O53: 0.54615441 | P53: 0.4014528 | Q53: 0.4014528 | R53: 0.4014528 | S53: 0 | T53: 0 | U53: 0 | V53: 0 | AP53: =+O53-X53-AG53 -> 0.54615441 | AQ53: =+P53-Y53-AH53 -> 0.4014528 | AR53: =+Q53-Z53-AI53 -> 0.4014528 | AS53: =+R53-AA53-AJ53 -> 0.4014528 | AT53: =+S53-AB53-AK53 -> 0 | AU53: =+T53-AC53-AL53 -> 0 | AV53: =+U53-AD53-AM53 -> 0 | AW53: =+V53-AE53-AN53 -> 0 | AY53: =IF($L53=0,0, IF($L53<=0.5,BH53, IF($J53="straight line", IF((LEFT(AY$39,4)*1)-INT($L53)<LEFT($AY$39,4)*1,0,((OFFSET(BH53,0,-INT($L53+0.5),1,1))/$L53)*(IF($L53-INT($L53)>0.5,$L53-0.5-INT($L53),IF($L53-INT($L53)<=0.5,$L53-0.5-INT($L53)+1,0)))) +BH53/$L53*0.5, IF($J53="Declining Balance",-$AY$38,0)))) -> 0.018205147 | AZ53: =IF($L53=0,0, IF($L53<=0.5,BI53, IF(AND($J53="straight line",$L53<1.51),(BH53-((BH53/$L53)*0.5))+BI53/$L53*0.5, IF($J53="straight line", IF((LEFT(AZ$39,4)*1)-INT($L53)<LEFT($AY$39,4)*1,0,((OFFSET(BI53,0,-INT($L53+0.5),1,1))/$L53)*(IF($L53-INT($L53)>0.5,$L53-0.5-INT($L53),IF($L53-INT($L53)<=0.5,$L53-0.5-INT($L53)+1,0)))) +BI53/$L53*0.5 +SUM(OFFSET(BI53,0,MAX(-INT($L53+(0.5-(10^-12))),-AZ$40)+1,1,MIN(INT($L53+(0.5-(10^-12))),AZ$40)-1))*1/$L53, IF($J53="Declining Balance",-$AY$38,0))))) -> 0.049792054 | BA53: =IF($L53=0,0, IF($L53<=0.5,BJ53, IF(AND($J53="straight line",$L53<1.51),(BI53-((BI53/$L53)*0.5))+BJ53/$L53*0.5, IF($J53="straight line", IF((LEFT(BA$39,4)*1)-INT($L53)<LEFT($AY$39,4)*1,0,((OFFSET(BJ53,0,-INT($L53+0.5),1,1))/$L53)*(IF($L53-INT($L53)>0.5,$L53-0.5-INT($L53),IF($L53-INT($L53)<=0.5,$L53-0.5-INT($L53)+1,0)))) +BJ53/$L53*0.5 +SUM(OFFSET(BJ53,0,MAX(-INT($L53+(0.5-(10^-12))),-BA$40)+1,1,MIN(INT($L53+(0.5-(10^-12))),BA$40)-1))*1/$L53, IF($J53="Declining Balance",-$AY$38,0))))) -> 0.076555574 | BB53: =IF($L53=0,0, IF($L53<=0.5,BK53, IF(AND($J53="straight line",$L53<1.51),(BJ53-((BJ53/$L53)*0.5))+BK53/$L53*0.5, IF($J53="straight line", IF((LEFT(BB$39,4)*1)-INT($L53)<LEFT($AY$39,4)*1,0,((OFFSET(BK53,0,-INT($L53+0.5),1,1))/$L53)*(IF($L53-INT($L53)>0.5,$L53-0.5-INT($L53),IF($L53-INT($L53)<=0.5,$L53-0.5-INT($L53)+1,0)))) +BK53/$L53*0.5 +SUM(OFFSET(BK53,0,MAX(-INT($L53+(0.5-(10^-12))),-BB$40)+1,1,MIN(INT($L53+(0.5-(10^-12))),BB$40)-1))*1/$L53, IF($J53="Declining Balance",-$AY$38,0))))) -> 0.103319094 | BC53: =IF($L53=0,0, IF($L53<=0.5,BL53, IF(AND($J53="straight line",$L53<1.51),(BK53-((BK53/$L53)*0.5))+BL53/$L53*0.5, IF($J53="straight line", IF((LEFT(BC$39,4)*1)-INT($L53)<LEFT($AY$39,4)*1,0,((OFFSET(BL53,0,-INT($L53+0.5),1,1))/$L53)*(IF($L53-INT($L53)>0.5,$L53-0.5-INT($L53),IF($L53-INT($L53)<=0.5,$L53-0.5-INT($L53)+1,0)))) +BL53/$L53*0.5 +SUM(OFFSET(BL53,0,MAX(-INT($L53+(0.5-(10^-12))),-BC$40)+1,1,MIN(INT($L53+(0.5-(10^-12))),BC$40)-1))*1/$L53, IF($J53="Declining Balance",-$AY$38,0))))) -> 0.116700854 | BD53: =IF($L53=0,0, IF($L53<=0.5,BM53, IF(AND($J53="straight line",$L53<1.51),(BL53-((BL53/$L53)*0.5))+BM53/$L53*0.5, IF($J53="straight line", IF((LEFT(BD$39,4)*1)-INT($L53)<LEFT($AY$39,4)*1,0,((OFFSET(BM53,0,-INT($L53+0.5),1,1))/$L53)*(IF($L53-INT($L53)>0.5,$L53-0.5-INT($L53),IF($L53-INT($L53)<=0.5,$L53-0.5-INT($L53)+1,0)))) +BM53/$L53*0.5 +SUM(OFFSET(BM53,0,MAX(-INT($L53+(0.5-(10^-12))),-BD$40)+1,1,MIN(INT($L53+(0.5-(10^-12))),BD$40)-1))*1/$L53, IF($J53="Declining Balance",-$AY$38,0))))) -> 0.116700854 | BE53: =IF($L53=0,0, IF($L53<=0.5,BN53, IF(AND($J53="straight line",$L53<1.51),(BM53-((BM53/$L53)*0.5))+BN53/$L53*0.5, IF($J53="straight line", IF((LEFT(BE$39,4)*1)-INT($L53)<LEFT($AY$39,4)*1,0,((OFFSET(BN53,0,-INT($L53+0.5),1,1))/$L53)*(IF($L53-INT($L53)>0.5,$L53-0.5-INT($L53),IF($L53-INT($L53)<=0.5,$L53-0.5-INT($L53)+1,0)))) +BN53/$L53*0.5 +SUM(OFFSET(BN53,0,MAX(-INT($L53+(0.5-(10^-12))),-BE$40)+1,1,MIN(INT($L53+(0.5-(10^-12))),BE$40)-1))*1/$L53, IF($J53="Declining Balance",-$AY$38,0))))) -> 0.116700854 | BF53: =IF($L53=0,0, IF($L53<=0.5,BO53, IF(AND($J53="straight line",$L53<1.51),(BN53-((BN53/$L53)*0.5))+BO53/$L53*0.5, IF($J53="straight line", IF((LEFT(BF$39,4)*1)-INT($L53)<LEFT($AY$39,4)*1,0,((OFFSET(BO53,0,-INT($L53+0.5),1,1))/$L53)*(IF($L53-INT($L53)>0.5,$L53-0.5-INT($L53),IF($L53-INT($L53)<=0.5,$L53-0.5-INT($L53)+1,0)))) +BO53/$L53*0.5 +SUM(OFFSET(BO53,0,MAX(-INT($L53+(0.5-(10^-12))),-BF$40)+1,1,MIN(INT($L53+(0.5-(10^-12))),BF$40)-1))*1/$L53, IF($J53="Declining Balance",-$AY$38,0))))) -> 0.116700854 | BH53: =+IF($K53="Ongoing",AP53,IF(RIGHT($K53,2)=RIGHT(BH$39,2),SUM($AP53:AP53),0)+IF(RIGHT(BH$39,2)>RIGHT($K53,2),AP53,0)) -> 0.54615441 | BI53: =+IF($K53="Ongoing",AQ53,IF(RIGHT($K53,2)=RIGHT(BI$39,2),SUM($AP53:AQ53),0)+IF(RIGHT(BI$39,2)>RIGHT($K53,2),AQ53,0)) -> 0.4014528 | BJ53: =+IF($K53="Ongoing",AR53,IF(RIGHT($K53,2)=RIGHT(BJ$39,2),SUM($AP53:AR53),0)+IF(RIGHT(BJ$39,2)>RIGHT($K53,2),AR53,0)) -> 0.4014528 | BK53: =+IF($K53="Ongoing",AS53,IF(RIGHT($K53,2)=RIGHT(BK$39,2),SUM($AP53:AS53),0)+IF(RIGHT(BK$39,2)>RIGHT($K53,2),AS53,0)) -> 0.4014528 | BL53: =+IF($K53="Ongoing",AT53,IF(RIGHT($K53,2)=RIGHT(BL$39,2),SUM($AP53:AT53),0)+IF(RIGHT(BL$39,2)>RIGHT($K53,2),AT53,0)) -> 0 | BM53: =+IF($K53="Ongoing",AU53,IF(RIGHT($K53,2)=RIGHT(BM$39,2),SUM($AP53:AU53),0)+IF(RIGHT(BM$39,2)>RIGHT($K53,2),AU53,0)) -> 0 | BN53: =+IF($K53="Ongoing",AV53,IF(RIGHT($K53,2)=RIGHT(BN$39,2),SUM($AP53:AV53),0)+IF(RIGHT(BN$39,2)>RIGHT($K53,2),AV53,0)) -> 0 | BO53: =+IF($K53="Ongoing",AW53,IF(RIGHT($K53,2)=RIGHT(BO$39,2),SUM($AP53:AW53),0)+IF(RIGHT(BO$39,2)>RIGHT($K53,2),AW53,0)) -> 0 | BQ53: =+O53*KeyAssumptionsPriceControl_FO!AD$15 -> 0.5652698143 | BR53: =+P53*KeyAssumptionsPriceControl_FO!AE$15 -> 0.4300462757 | BS53: =+Q53*KeyAssumptionsPriceControl_FO!AF$15 -> 0.4450978953 | BT53: =+R53*KeyAssumptionsPriceControl_FO!AG$15 -> 0.4606763217 | BU53: =+S53*KeyAssumptionsPriceControl_FO!AH$15 -> 0 | BV53: =+T53*KeyAssumptionsPriceControl_FO!AI$15 -> 0 | BW53: =+U53*KeyAssumptionsPriceControl_FO!AJ$15 -> 0 | BX53: =+V53*KeyAssumptionsPriceControl_FO!AK$15 -> 0 | BZ53: =IF($M53=0,0, IF($M53<=0.5,BQ53, IF($J53="straight line", IF((LEFT(BZ$39,4)*1)-INT($M53)<LEFT($BZ$39,4)*1,0,((OFFSET(BQ53,0,-INT($M53+0.5),1,1))/$M53)*(IF($M53-INT($M53)>0.5,$M53-0.5-INT($M53),IF($M53-INT($M53)<=0.5,$M53-0.5-INT($M53)+1,0)))) +BQ53/$M53*0.5, IF($J53="Declining Balance",-$BZ$38,0)))) -> 0.01884232714 | CA53: =IF($M53=0,0, IF($M53<=0.5,BR53, IF(AND($J53="straight line",$M53<1.51),(BQ53-((BQ53/$M53)*0.5))+BR53/$M53*0.5, IF($J53="straight line", IF((LEFT(CA$39,4)*1)-INT($M53)<LEFT($BZ$39,4)*1,0,((OFFSET(BR53,0,-INT($M53+0.5),1,1))/$M53)*(IF($M53-INT($M53)>0.5,$M53-0.5-INT($M53),IF($M53-INT($M53)<=0.5,$M53-0.5-INT($M53)+1,0)))) +BR53/$M53*0.5 +SUM(OFFSET(BR53,0,MAX(-INT($M53+(0.5-(10^-12))),-CA$40)+1,1,MIN(INT($M53+(0.5-(10^-12))),CA$40)-1))*1/$M53, IF($J53="Declining Balance",-$BZ$38,0))))) -> 0.05201953015 | CB53: =IF($M53=0,0, IF($M53<=0.5,BS53, IF(AND($J53="straight line",$M53<1.51),(BR53-((BR53/$M53)*0.5))+BS53/$M53*0.5, IF($J53="straight line", IF((LEFT(CB$39,4)*1)-INT($M53)<LEFT($BZ$39,4)*1,0,((OFFSET(BS53,0,-INT($M53+0.5),1,1))/$M53)*(IF($M53-INT($M53)>0.5,$M53-0.5-INT($M53),IF($M53-INT($M53)<=0.5,$M53-0.5-INT($M53)+1,0)))) +BS53/$M53*0.5 +SUM(OFFSET(BS53,0,MAX(-INT($M53+(0.5-(10^-12))),-CB$40)+1,1,MIN(INT($M53+(0.5-(10^-12))),CB$40)-1))*1/$M53, IF($J53="Declining Balance",-$BZ$38,0))))) -> 0.08119100251 | CC53: =IF($M53=0,0, IF($M53<=0.5,BT53, IF(AND($J53="straight line",$M53<1.51),(BS53-((BS53/$M53)*0.5))+BT53/$M53*0.5, IF($J53="straight line", IF((LEFT(CC$39,4)*1)-INT($M53)<LEFT($BZ$39,4)*1,0,((OFFSET(BT53,0,-INT($M53+0.5),1,1))/$M53)*(IF($M53-INT($M53)>0.5,$M53-0.5-INT($M53),IF($M53-INT($M53)<=0.5,$M53-0.5-INT($M53)+1,0)))) +BT53/$M53*0.5 +SUM(OFFSET(BT53,0,MAX(-INT($M53+(0.5-(10^-12))),-CC$40)+1,1,MIN(INT($M53+(0.5-(10^-12))),CC$40)-1))*1/$M53, IF($J53="Declining Balance",-$BZ$38,0))))) -> 0.1113834764 | CD53: =IF($M53=0,0, IF($M53<=0.5,BU53, IF(AND($J53="straight line",$M53<1.51),(BT53-((BT53/$M53)*0.5))+BU53/$M53*0.5, IF($J53="straight line", IF((LEFT(CD$39,4)*1)-INT($M53)<LEFT($BZ$39,4)*1,0,((OFFSET(BU53,0,-INT($M53+0.5),1,1))/$M53)*(IF($M53-INT($M53)>0.5,$M53-0.5-INT($M53),IF($M53-INT($M53)<=0.5,$M53-0.5-INT($M53)+1,0)))) +BU53/$M53*0.5 +SUM(OFFSET(BU53,0,MAX(-INT($M53+(0.5-(10^-12))),-CD$40)+1,1,MIN(INT($M53+(0.5-(10^-12))),CD$40)-1))*1/$M53, IF($J53="Declining Balance",-$BZ$38,0))))) -> 0.1267393538 | CE53: =IF($M53=0,0, IF($M53<=0.5,BV53, IF(AND($J53="straight line",$M53<1.51),(BU53-((BU53/$M53)*0.5))+BV53/$M53*0.5, IF($J53="straight line", IF((LEFT(CE$39,4)*1)-INT($M53)<LEFT($BZ$39,4)*1,0,((OFFSET(BV53,0,-INT($M53+0.5),1,1))/$M53)*(IF($M53-INT($M53)>0.5,$M53-0.5-INT($M53),IF($M53-INT($M53)<=0.5,$M53-0.5-INT($M53)+1,0)))) +BV53/$M53*0.5 +SUM(OFFSET(BV53,0,MAX(-INT($M53+(0.5-(10^-12))),-CE$40)+1,1,MIN(INT($M53+(0.5-(10^-12))),CE$40)-1))*1/$M53, IF($J53="Declining Balance",-$BZ$38,0))))) -> 0.1267393538 | CF53: =IF($M53=0,0, IF($M53<=0.5,BW53, IF(AND($J53="straight line",$M53<1.51),(BV53-((BV53/$M53)*0.5))+BW53/$M53*0.5, IF($J53="straight line", IF((LEFT(CF$39,4)*1)-INT($M53)<LEFT($BZ$39,4)*1,0,((OFFSET(BW53,0,-INT($M53+0.5),1,1))/$M53)*(IF($M53-INT($M53)>0.5,$M53-0.5-INT($M53),IF($M53-INT($M53)<=0.5,$M53-0.5-INT($M53)+1,0)))) +BW53/$M53*0.5 +SUM(OFFSET(BW53,0,MAX(-INT($M53+(0.5-(10^-12))),-CF$40)+1,1,MIN(INT($M53+(0.5-(10^-12))),CF$40)-1))*1/$M53, IF($J53="Declining Balance",-$BZ$38,0))))) -> 0.1267393538 | CG53: =IF($M53=0,0, IF($M53<=0.5,BX53, IF(AND($J53="straight line",$M53<1.51),(BW53-((BW53/$M53)*0.5))+BX53/$M53*0.5, IF($J53="straight line", IF((LEFT(CG$39,4)*1)-INT($M53)<LEFT($BZ$39,4)*1,0,((OFFSET(BX53,0,-INT($M53+0.5),1,1))/$M53)*(IF($M53-INT($M53)>0.5,$M53-0.5-INT($M53),IF($M53-INT($M53)<=0.5,$M53-0.5-INT($M53)+1,0)))) +BX53/$M53*0.5 +SUM(OFFSET(BX53,0,MAX(-INT($M53+(0.5-(10^-12))),-CG$40)+1,1,MIN(INT($M53+(0.5-(10^-12))),CG$40)-1))*1/$M53, IF($J53="Declining Balance",-$BZ$38,0))))) -> 0.1267393538
A54: =A53+1 -> 2 | C54: 20-21 Actual / 21-22 Actual / 22-23 EPM | E54: Irrigation | F54: Renewals | G54: Channels | H54: Other Capital expenditure | J54: Straight line | K54: 2024-25 | L54: 30 | M54: 30 | O54: 0.325 | P54: 0.325 | Q54: 0.325 | R54: 0.325 | S54: 0.325 | T54: 0.325 | U54: 0.325 | V54: 0.325 | AP54: 0.325 | AQ54: 0.325 | AR54: 0.325 | AS54: 0.325 | AT54: 0.325 | AU54: 0.325 | AV54: 0.325 | AW54: 0.325 | AY54: 0.005416666667 | AZ54: 0.01625 | BA54: 0.02708333333 | BB54: 0.03791666667 | BC54: 0.04875 | BD54: 0.05958333333 | BE54: 0.07041666667 | BF54: 0.08125 | BH54: =+IF($K54="Ongoing",AP54,IF(RIGHT($K54,2)=RIGHT(BH$39,2),SUM($AP54:AP54),0)+IF(RIGHT(BH$39,2)>RIGHT($K54,2),AP54,0)) -> 0.325 | BI54: =+IF($K54="Ongoing",AQ54,IF(RIGHT($K54,2)=RIGHT(BI$39,2),SUM($AP54:AQ54),0)+IF(RIGHT(BI$39,2)>RIGHT($K54,2),AQ54,0)) -> 0.325 | BJ54: =+IF($K54="Ongoing",AR54,IF(RIGHT($K54,2)=RIGHT(BJ$39,2),SUM($AP54:AR54),0)+IF(RIGHT(BJ$39,2)>RIGHT($K54,2),AR54,0)) -> 0.325 | BK54: =+IF($K54="Ongoing",AS54,IF(RIGHT($K54,2)=RIGHT(BK$39,2),SUM($AP54:AS54),0)+IF(RIGHT(BK$39,2)>RIGHT($K54,2),AS54,0)) -> 0.325 | BL54: =+IF($K54="Ongoing",AT54,IF(RIGHT($K54,2)=RIGHT(BL$39,2),SUM($AP54:AT54),0)+IF(RIGHT(BL$39,2)>RIGHT($K54,2),AT54,0)) -> 0.325 | BM54: =+IF($K54="Ongoing",AU54,IF(RIGHT($K54,2)=RIGHT(BM$39,2),SUM($AP54:AU54),0)+IF(RIGHT(BM$39,2)>RIGHT($K54,2),AU54,0)) -> 0.325 | BN54: =+IF($K54="Ongoing",AV54,IF(RIGHT($K54,2)=RIGHT(BN$39,2),SUM($AP54:AV54),0)+IF(RIGHT(BN$39,2)>RIGHT($K54,2),AV54,0)) -> 0.325 | BO54: =+IF($K54="Ongoing",AW54,IF(RIGHT($K54,2)=RIGHT(BO$39,2),SUM($AP54:AW54),0)+IF(RIGHT(BO$39,2)>RIGHT($K54,2),AW54,0)) -> 0.325 | BQ54: =+O54*KeyAssumptionsPriceControl_FO!AD$15 -> 0.336375 | BR54: =+P54*KeyAssumptionsPriceControl_FO!AE$15 -> 0.348148125 | BS54: =+Q54*KeyAssumptionsPriceControl_FO!AF$15 -> 0.3603333094 | BT54: =+R54*KeyAssumptionsPriceControl_FO!AG$15 -> 0.3729449752 | BU54: =+S54*KeyAssumptionsPriceControl_FO!AH$15 -> 0.3859980493 | BV54: =+T54*KeyAssumptionsPriceControl_FO!AI$15 -> 0.3995079811 | BW54: =+U54*KeyAssumptionsPriceControl_FO!AJ$15 -> 0.4134907604 | BX54: =+V54*KeyAssumptionsPriceControl_FO!AK$15 -> 0.427962937 | BZ54: 0.00560625 | CA54: 0.04951496875 | CB54: 0.06132299266 | CC54: 0.0735442974 | CD54: 0.08619334781 | CE54: 0.09928511498 | CF54: 0.112835094 | CG54: 0.1268593223
A55: =A54+1 -> 3 | C55: Relocate Cabinet for 100yr flood | E55: Irrigation | F55: Improvements / Compliance | G55: Channels | H55: Other Capital expenditure | J55: Straight line | K55: 2024-25 | L55: 15 | M55: 15 | O55: 0.07004 | P55: 0 | Q55: 0 | R55: 0 | S55: 0 | T55: 0 | U55: 0 | V55: 0 | AP55: 0.07004 | AQ55: 0 | AR55: 0 | AS55: 0 | AT55: 0 | AU55: 0 | AV55: 0 | AW55: 0 | AY55: =IF($L55=0,0, IF($L55<=0.5,BH55, IF($J55="straight line", IF((LEFT(AY$39,4)*1)-INT($L55)<LEFT($AY$39,4)*1,0,((OFFSET(BH55,0,-INT($L55+0.5),1,1))/$L55)*(IF($L55-INT($L55)>0.5,$L55-0.5-INT($L55),IF($L55-INT($L55)<=0.5,$L55-0.5-INT($L55)+1,0)))) +BH55/$L55*0.5, IF($J55="Declining Balance",-$AY$38,0)))) -> 0.002334666667 | AZ55: =IF($L55=0,0, IF($L55<=0.5,BI55, IF(AND($J55="straight line",$L55<1.51),(BH55-((BH55/$L55)*0.5))+BI55/$L55*0.5, IF($J55="straight line", IF((LEFT(AZ$39,4)*1)-INT($L55)<LEFT($AY$39,4)*1,0,((OFFSET(BI55,0,-INT($L55+0.5),1,1))/$L55)*(IF($L55-INT($L55)>0.5,$L55-0.5-INT($L55),IF($L55-INT($L55)<=0.5,$L55-0.5-INT($L55)+1,0)))) +BI55/$L55*0.5 +SUM(OFFSET(BI55,0,MAX(-INT($L55+(0.5-(10^-12))),-AZ$40)+1,1,MIN(INT($L55+(0.5-(10^-12))),AZ$40)-1))*1/$L55, IF($J55="Declining Balance",-$AY$38,0))))) -> 0.004669333333 | BA55: =IF($L55=0,0, IF($L55<=0.5,BJ55, IF(AND($J55="straight line",$L55<1.51),(BI55-((BI55/$L55)*0.5))+BJ55/$L55*0.5, IF($J55="straight line", IF((LEFT(BA$39,4)*1)-INT($L55)<LEFT($AY$39,4)*1,0,((OFFSET(BJ55,0,-INT($L55+0.5),1,1))/$L55)*(IF($L55-INT($L55)>0.5,$L55-0.5-INT($L55),IF($L55-INT($L55)<=0.5,$L55-0.5-INT($L55)+1,0)))) +BJ55/$L55*0.5 +SUM(OFFSET(BJ55,0,MAX(-INT($L55+(0.5-(10^-12))),-BA$40)+1,1,MIN(INT($L55+(0.5-(10^-12))),BA$40)-1))*1/$L55, IF($J55="Declining Balance",-$AY$38,0))))) -> 0.004669333333 | BB55: =IF($L55=0,0, IF($L55<=0.5,BK55, IF(AND($J55="straight line",$L55<1.51),(BJ55-((BJ55/$L55)*0.5))+BK55/$L55*0.5, IF($J55="straight line", IF((LEFT(BB$39,4)*1)-INT($L55)<LEFT($AY$39,4)*1,0,((OFFSET(BK55,0,-INT($L55+0.5),1,1))/$L55)*(IF($L55-INT($L55)>0.5,$L55-0.5-INT($L55),IF($L55-INT($L55)<=0.5,$L55-0.5-INT($L55)+1,0)))) +BK55/$L55*0.5 +SUM(OFFSET(BK55,0,MAX(-INT($L55+(0.5-(10^-12))),-BB$40)+1,1,MIN(INT($L55+(0.5-(10^-12))),BB$40)-1))*1/$L55, IF($J55="Declining Balance",-$AY$38,0))))) -> 0.004669333333 | BC55: =IF($L55=0,0, IF($L55<=0.5,BL55, IF(AND($J55="straight line",$L55<1.51),(BK55-((BK55/$L55)*0.5))+BL55/$L55*0.5, IF($J55="straight line", IF((LEFT(BC$39,4)*1)-INT($L55)<LEFT($AY$39,4)*1,0,((OFFSET(BL55,0,-INT($L55+0.5),1,1))/$L55)*(IF($L55-INT($L55)>0.5,$L55-0.5-INT($L55),IF($L55-INT($L55)<=0.5,$L55-0.5-INT($L55)+1,0)))) +BL55/$L55*0.5 +SUM(OFFSET(BL55,0,MAX(-INT($L55+(0.5-(10^-12))),-BC$40)+1,1,MIN(INT($L55+(0.5-(10^-12))),BC$40)-1))*1/$L55, IF($J55="Declining Balance",-$AY$38,0))))) -> 0.004669333333 | BD55: =IF($L55=0,0, IF($L55<=0.5,BM55, IF(AND($J55="straight line",$L55<1.51),(BL55-((BL55/$L55)*0.5))+BM55/$L55*0.5, IF($J55="straight line", IF((LEFT(BD$39,4)*1)-INT($L55)<LEFT($AY$39,4)*1,0,((OFFSET(BM55,0,-INT($L55+0.5),1,1))/$L55)*(IF($L55-INT($L55)>0.5,$L55-0.5-INT($L55),IF($L55-INT($L55)<=0.5,$L55-0.5-INT($L55)+1,0)))) +BM55/$L55*0.5 +SUM(OFFSET(BM55,0,MAX(-INT($L55+(0.5-(10^-12))),-BD$40)+1,1,MIN(INT($L55+(0.5-(10^-12))),BD$40)-1))*1/$L55, IF($J55="Declining Balance",-$AY$38,0))))) -> 0.004669333333 | BE55: =IF($L55=0,0, IF($L55<=0.5,BN55, IF(AND($J55="straight line",$L55<1.51),(BM55-((BM55/$L55)*0.5))+BN55/$L55*0.5, IF($J55="straight line", IF((LEFT(BE$39,4)*1)-INT($L55)<LEFT($AY$39,4)*1,0,((OFFSET(BN55,0,-INT($L55+0.5),1,1))/$L55)*(IF($L55-INT($L55)>0.5,$L55-0.5-INT($L55),IF($L55-INT($L55)<=0.5,$L55-0.5-INT($L55)+1,0)))) +BN55/$L55*0.5 +SUM(OFFSET(BN55,0,MAX(-INT($L55+(0.5-(10^-12))),-BE$40)+1,1,MIN(INT($L55+(0.5-(10^-12))),BE$40)-1))*1/$L55, IF($J55="Declining Balance",-$AY$38,0))))) -> 0.004669333333 | BF55: =IF($L55=0,0, IF($L55<=0.5,BO55, IF(AND($J55="straight line",$L55<1.51),(BN55-((BN55/$L55)*0.5))+BO55/$L55*0.5, IF($J55="straight line", IF((LEFT(BF$39,4)*1)-INT($L55)<LEFT($AY$39,4)*1,0,((OFFSET(BO55,0,-INT($L55+0.5),1,1))/$L55)*(IF($L55-INT($L55)>0.5,$L55-0.5-INT($L55),IF($L55-INT($L55)<=0.5,$L55-0.5-INT($L55)+1,0)))) +BO55/$L55*0.5 +SUM(OFFSET(BO55,0,MAX(-INT($L55+(0.5-(10^-12))),-BF$40)+1,1,MIN(INT($L55+(0.5-(10^-12))),BF$40)-1))*1/$L55, IF($J55="Declining Balance",-$AY$38,0))))) -> 0.004669333333 | BH55: =+IF($K55="Ongoing",AP55,IF(RIGHT($K55,2)=RIGHT(BH$39,2),SUM($AP55:AP55),0)+IF(RIGHT(BH$39,2)>RIGHT($K55,2),AP55,0)) -> 0.07004 | BI55: =+IF($K55="Ongoing",AQ55,IF(RIGHT($K55,2)=RIGHT(BI$39,2),SUM($AP55:AQ55),0)+IF(RIGHT(BI$39,2)>RIGHT($K55,2),AQ55,0)) -> 0 | BJ55: =+IF($K55="Ongoing",AR55,IF(RIGHT($K55,2)=RIGHT(BJ$39,2),SUM($AP55:AR55),0)+IF(RIGHT(BJ$39,2)>RIGHT($K55,2),AR55,0)) -> 0 | BK55: =+IF($K55="Ongoing",AS55,IF(RIGHT($K55,2)=RIGHT(BK$39,2),SUM($AP55:AS55),0)+IF(RIGHT(BK$39,2)>RIGHT($K55,2),AS55,0)) -> 0 | BL55: =+IF($K55="Ongoing",AT55,IF(RIGHT($K55,2)=RIGHT(BL$39,2),SUM($AP55:AT55),0)+IF(RIGHT(BL$39,2)>RIGHT($K55,2),AT55,0)) -> 0 | BM55: =+IF($K55="Ongoing",AU55,IF(RIGHT($K55,2)=RIGHT(BM$39,2),SUM($AP55:AU55),0)+IF(RIGHT(BM$39,2)>RIGHT($K55,2),AU55,0)) -> 0 | BN55: =+IF($K55="Ongoing",AV55,IF(RIGHT($K55,2)=RIGHT(BN$39,2),SUM($AP55:AV55),0)+IF(RIGHT(BN$39,2)>RIGHT($K55,2),AV55,0)) -> 0 | BO55: =+IF($K55="Ongoing",AW55,IF(RIGHT($K55,2)=RIGHT(BO$39,2),SUM($AP55:AW55),0)+IF(RIGHT(BO$39,2)>RIGHT($K55,2),AW55,0)) -> 0 | BQ55: =+O55*KeyAssumptionsPriceControl_FO!AD$15 -> 0.0724914 | BR55: =+P55*KeyAssumptionsPriceControl_FO!AE$15 -> 0 | BS55: =+Q55*KeyAssumptionsPriceControl_FO!AF$15 -> 0 | BT55: =+R55*KeyAssumptionsPriceControl_FO!AG$15 -> 0 | BU55: =+S55*KeyAssumptionsPriceControl_FO!AH$15 -> 0 | BV55: =+T55*KeyAssumptionsPriceControl_FO!AI$15 -> 0 | BW55: =+U55*KeyAssumptionsPriceControl_FO!AJ$15 -> 0 | BX55: =+V55*KeyAssumptionsPriceControl_FO!AK$15 -> 0 | BZ55: =IF($M55=0,0, IF($M55<=0.5,BQ55, IF($J55="straight line", IF((LEFT(BZ$39,4)*1)-INT($M55)<LEFT($BZ$39,4)*1,0,((OFFSET(BQ55,0,-INT($M55+0.5),1,1))/$M55)*(IF($M55-INT($M55)>0.5,$M55-0.5-INT($M55),IF($M55-INT($M55)<=0.5,$M55-0.5-INT($M55)+1,0)))) +BQ55/$M55*0.5, IF($J55="Declining Balance",-$BZ$38,0)))) -> 0.00241638 | CA55: =IF($M55=0,0, IF($M55<=0.5,BR55, IF(AND($J55="straight line",$M55<1.51),(BQ55-((BQ55/$M55)*0.5))+BR55/$M55*0.5, IF($J55="straight line", IF((LEFT(CA$39,4)*1)-INT($M55)<LEFT($BZ$39,4)*1,0,((OFFSET(BR55,0,-INT($M55+0.5),1,1))/$M55)*(IF($M55-INT($M55)>0.5,$M55-0.5-INT($M55),IF($M55-INT($M55)<=0.5,$M55-0.5-INT($M55)+1,0)))) +BR55/$M55*0.5 +SUM(OFFSET(BR55,0,MAX(-INT($M55+(0.5-(10^-12))),-CA$40)+1,1,MIN(INT($M55+(0.5-(10^-12))),CA$40)-1))*1/$M55, IF($J55="Declining Balance",-$BZ$38,0))))) -> 0.00483276 | CB55: =IF($M55=0,0, IF($M55<=0.5,BS55, IF(AND($J55="straight line",$M55<1.51),(BR55-((BR55/$M55)*0.5))+BS55/$M55*0.5, IF($J55="straight line", IF((LEFT(CB$39,4)*1)-INT($M55)<LEFT($BZ$39,4)*1,0,((OFFSET(BS55,0,-INT($M55+0.5),1,1))/$M55)*(IF($M55-INT($M55)>0.5,$M55-0.5-INT($M55),IF($M55-INT($M55)<=0.5,$M55-0.5-INT($M55)+1,0)))) +BS55/$M55*0.5 +SUM(OFFSET(BS55,0,MAX(-INT($M55+(0.5-(10^-12))),-CB$40)+1,1,MIN(INT($M55+(0.5-(10^-12))),CB$40)-1))*1/$M55, IF($J55="Declining Balance",-$BZ$38,0))))) -> 0.00483276 | CC55: =IF($M55=0,0, IF($M55<=0.5,BT55, IF(AND($J55="straight line",$M55<1.51),(BS55-((BS55/$M55)*0.5))+BT55/$M55*0.5, IF($J55="straight line", IF((LEFT(CC$39,4)*1)-INT($M55)<LEFT($BZ$39,4)*1,0,((OFFSET(BT55,0,-INT($M55+0.5),1,1))/$M55)*(IF($M55-INT($M55)>0.5,$M55-0.5-INT($M55),IF($M55-INT($M55)<=0.5,$M55-0.5-INT($M55)+1,0)))) +BT55/$M55*0.5 +SUM(OFFSET(BT55,0,MAX(-INT($M55+(0.5-(10^-12))),-CC$40)+1,1,MIN(INT($M55+(0.5-(10^-12))),CC$40)-1))*1/$M55, IF($J55="Declining Balance",-$BZ$38,0))))) -> 0.00483276 | CD55: =IF($M55=0,0, IF($M55<=0.5,BU55, IF(AND($J55="straight line",$M55<1.51),(BT55-((BT55/$M55)*0.5))+BU55/$M55*0.5, IF($J55="straight line", IF((LEFT(CD$39,4)*1)-INT($M55)<LEFT($BZ$39,4)*1,0,((OFFSET(BU55,0,-INT($M55+0.5),1,1))/$M55)*(IF($M55-INT($M55)>0.5,$M55-0.5-INT($M55),IF($M55-INT($M55)<=0.5,$M55-0.5-INT($M55)+1,0)))) +BU55/$M55*0.5 +SUM(OFFSET(BU55,0,MAX(-INT($M55+(0.5-(10^-12))),-CD$40)+1,1,MIN(INT($M55+(0.5-(10^-12))),CD$40)-1))*1/$M55, IF($J55="Declining Balance",-$BZ$38,0))))) -> 0.00483276 | CE55: =IF($M55=0,0, IF($M55<=0.5,BV55, IF(AND($J55="straight line",$M55<1.51),(BU55-((BU55/$M55)*0.5))+BV55/$M55*0.5, IF($J55="straight line", IF((LEFT(CE$39,4)*1)-INT($M55)<LEFT($BZ$39,4)*1,0,((OFFSET(BV55,0,-INT($M55+0.5),1,1))/$M55)*(IF($M55-INT($M55)>0.5,$M55-0.5-INT($M55),IF($M55-INT($M55)<=0.5,$M55-0.5-INT($M55)+1,0)))) +BV55/$M55*0.5 +SUM(OFFSET(BV55,0,MAX(-INT($M55+(0.5-(10^-12))),-CE$40)+1,1,MIN(INT($M55+(0.5-(10^-12))),CE$40)-1))*1/$M55, IF($J55="Declining Balance",-$BZ$38,0))))) -> 0.00483276 | CF55: =IF($M55=0,0, IF($M55<=0.5,BW55, IF(AND($J55="straight line",$M55<1.51),(BV55-((BV55/$M55)*0.5))+BW55/$M55*0.5, IF($J55="straight line", IF((LEFT(CF$39,4)*1)-INT($M55)<LEFT($BZ$39,4)*1,0,((OFFSET(BW55,0,-INT($M55+0.5),1,1))/$M55)*(IF($M55-INT($M55)>0.5,$M55-0.5-INT($M55),IF($M55-INT($M55)<=0.5,$M55-0.5-INT($M55)+1,0)))) +BW55/$M55*0.5 +SUM(OFFSET(BW55,0,MAX(-INT($M55+(0.5-(10^-12))),-CF$40)+1,1,MIN(INT($M55+(0.5-(10^-12))),CF$40)-1))*1/$M55, IF($J55="Declining Balance",-$BZ$38,0))))) -> 0.00483276 | CG55: =IF($M55=0,0, IF($M55<=0.5,BX55, IF(AND($J55="straight line",$M55<1.51),(BW55-((BW55/$M55)*0.5))+BX55/$M55*0.5, IF($J55="straight line", IF((LEFT(CG$39,4)*1)-INT($M55)<LEFT($BZ$39,4)*1,0,((OFFSET(BX55,0,-INT($M55+0.5),1,1))/$M55)*(IF($M55-INT($M55)>0.5,$M55-0.5-INT($M55),IF($M55-INT($M55)<=0.5,$M55-0.5-INT($M55)+1,0)))) +BX55/$M55*0.5 +SUM(OFFSET(BX55,0,MAX(-INT($M55+(0.5-(10^-12))),-CG$40)+1,1,MIN(INT($M55+(0.5-(10^-12))),CG$40)-1))*1/$M55, IF($J55="Declining Balance",-$BZ$38,0))))) -> 0.00483276
A56: 4 | C56: Operational Telemetry | E56: Irrigation | F56: Improvements / Compliance | G56: Channels | H56: Other Capital expenditure | J56: Straight line | K56: 2024-25 | L56: 15 | M56: 15 | O56: 0.02575 | P56: 0 | Q56: 0 | R56: 0 | S56: 0 | T56: 0 | U56: 0 | V56: 0 | AP56: 0.02575 | AQ56: 0 | AR56: 0 | AS56: 0 | AT56: 0 | AU56: 0 | AV56: 0 | AW56: 0 | AY56: 0.0008583333333 | AZ56: 0.001716666667 | BA56: 0.001716666667 | BB56: 0.001716666667 | BC56: 0.001716666667 | BD56: 0.001716666667 | BE56: 0.001716666667 | BF56: 0.001716666667 | BH56: =+IF($K56="Ongoing",AP56,IF(RIGHT($K56,2)=RIGHT(BH$39,2),SUM($AP56:AP56),0)+IF(RIGHT(BH$39,2)>RIGHT($K56,2),AP56,0)) -> 0.02575 | BI56: =+IF($K56="Ongoing",AQ56,IF(RIGHT($K56,2)=RIGHT(BI$39,2),SUM($AP56:AQ56),0)+IF(RIGHT(BI$39,2)>RIGHT($K56,2),AQ56,0)) -> 0 | BJ56: =+IF($K56="Ongoing",AR56,IF(RIGHT($K56,2)=RIGHT(BJ$39,2),SUM($AP56:AR56),0)+IF(RIGHT(BJ$39,2)>RIGHT($K56,2),AR56,0)) -> 0 | BK56: =+IF($K56="Ongoing",AS56,IF(RIGHT($K56,2)=RIGHT(BK$39,2),SUM($AP56:AS56),0)+IF(RIGHT(BK$39,2)>RIGHT($K56,2),AS56,0)) -> 0 | BL56: =+IF($K56="Ongoing",AT56,IF(RIGHT($K56,2)=RIGHT(BL$39,2),SUM($AP56:AT56),0)+IF(RIGHT(BL$39,2)>RIGHT($K56,2),AT56,0)) -> 0 | BM56: =+IF($K56="Ongoing",AU56,IF(RIGHT($K56,2)=RIGHT(BM$39,2),SUM($AP56:AU56),0)+IF(RIGHT(BM$39,2)>RIGHT($K56,2),AU56,0)) -> 0 | BN56: =+IF($K56="Ongoing",AV56,IF(RIGHT($K56,2)=RIGHT(BN$39,2),SUM($AP56:AV56),0)+IF(RIGHT(BN$39,2)>RIGHT($K56,2),AV56,0)) -> 0 | BO56: =+IF($K56="Ongoing",AW56,IF(RIGHT($K56,2)=RIGHT(BO$39,2),SUM($AP56:AW56),0)+IF(RIGHT(BO$39,2)>RIGHT($K56,2),AW56,0)) -> 0 | BQ56: =+O56*KeyAssumptionsPriceControl_FO!AD$15 -> 0.02665125 | BR56: =+P56*KeyAssumptionsPriceControl_FO!AE$15 -> 0 | BS56: =+Q56*KeyAssumptionsPriceControl_FO!AF$15 -> 0 | BT56: =+R56*KeyAssumptionsPriceControl_FO!AG$15 -> 0 | BU56: =+S56*KeyAssumptionsPriceControl_FO!AH$15 -> 0 | BV56: =+T56*KeyAssumptionsPriceControl_FO!AI$15 -> 0 | BW56: =+U56*KeyAssumptionsPriceControl_FO!AJ$15 -> 0 | BX56: =+V56*KeyAssumptionsPriceControl_FO!AK$15 -> 0 | BZ56: 0.000888375 | CA56: 0.00177675 | CB56: 0.00177675 | CC56: 0.00177675 | CD56: 0.00177675 | CE56: 0.00177675 | CF56: 0.00177675 | CG56: 0.00177675
A57: 5 | C57: Compliance Telemetry (based on usage) | E57: Irrigation | F57: Improvements / Compliance | G57: Channels | H57: Other Capital expenditure | J57: Straight line | K57: 2024-25 | L57: 15 | M57: 15 | O57: 0.02575 | P57: 0.02575 | Q57: 0.02575 | R57: 0.02575 | S57: 0 | T57: 0 | U57: 0 | V57: 0 | AP57: 0.02575 | AQ57: 0.02575 | AR57: 0.02575 | AS57: 0.02575 | AT57: 0 | AU57: 0 | AV57: 0 | AW57: 0 | AY57: 0.0008583333333 | AZ57: 0.002575 | BA57: 0.004291666667 | BB57: 0.006008333333 | BC57: 0.006866666667 | BD57: 0.006866666667 | BE57: 0.006866666667 | BF57: 0.006866666667 | BH57: =+IF($K57="Ongoing",AP57,IF(RIGHT($K57,2)=RIGHT(BH$39,2),SUM($AP57:AP57),0)+IF(RIGHT(BH$39,2)>RIGHT($K57,2),AP57,0)) -> 0.02575 | BI57: =+IF($K57="Ongoing",AQ57,IF(RIGHT($K57,2)=RIGHT(BI$39,2),SUM($AP57:AQ57),0)+IF(RIGHT(BI$39,2)>RIGHT($K57,2),AQ57,0)) -> 0.02575 | BJ57: =+IF($K57="Ongoing",AR57,IF(RIGHT($K57,2)=RIGHT(BJ$39,2),SUM($AP57:AR57),0)+IF(RIGHT(BJ$39,2)>RIGHT($K57,2),AR57,0)) -> 0.02575 | BK57: =+IF($K57="Ongoing",AS57,IF(RIGHT($K57,2)=RIGHT(BK$39,2),SUM($AP57:AS57),0)+IF(RIGHT(BK$39,2)>RIGHT($K57,2),AS57,0)) -> 0.02575 | BL57: =+IF($K57="Ongoing",AT57,IF(RIGHT($K57,2)=RIGHT(BL$39,2),SUM($AP57:AT57),0)+IF(RIGHT(BL$39,2)>RIGHT($K57,2),AT57,0)) -> 0 | BM57: =+IF($K57="Ongoing",AU57,IF(RIGHT($K57,2)=RIGHT(BM$39,2),SUM($AP57:AU57),0)+IF(RIGHT(BM$39,2)>RIGHT($K57,2),AU57,0)) -> 0 | BN57: =+IF($K57="Ongoing",AV57,IF(RIGHT($K57,2)=RIGHT(BN$39,2),SUM($AP57:AV57),0)+IF(RIGHT(BN$39,2)>RIGHT($K57,2),AV57,0)) -> 0 | BO57: =+IF($K57="Ongoing",AW57,IF(RIGHT($K57,2)=RIGHT(BO$39,2),SUM($AP57:AW57),0)+IF(RIGHT(BO$39,2)>RIGHT($K57,2),AW57,0)) -> 0 | BQ57: =+O57*KeyAssumptionsPriceControl_FO!AD$15 -> 0.02665125 | BR57: =+P57*KeyAssumptionsPriceControl_FO!AE$15 -> 0.02758404375 | BS57: =+Q57*KeyAssumptionsPriceControl_FO!AF$15 -> 0.02854948528 | BT57: =+R57*KeyAssumptionsPriceControl_FO!AG$15 -> 0.02954871727 | BU57: =+S57*KeyAssumptionsPriceControl_FO!AH$15 -> 0 | BV57: =+T57*KeyAssumptionsPriceControl_FO!AI$15 -> 0 | BW57: =+U57*KeyAssumptionsPriceControl_FO!AJ$15 -> 0 | BX57: =+V57*KeyAssumptionsPriceControl_FO!AK$15 -> 0 | BZ57: 0.000888375 | CA57: 0.002696218125 | CB57: 0.004567335759 | CC57: 0.006503942511 | CD57: 0.007488899753 | CE57: 0.007488899753 | CF57: 0.007488899753 | CG57: 0.007488899753
A58: 6 | C58: Meter Replace (potting mix pre-2007) (+ telemetry and i500) | E58: Irrigation | F58: Renewals | G58: Channels | H58: Capital Programs / Allocation | J58: Straight line | K58: 2024-25 | L58: 30 | M58: 30 | O58: 0.103 | P58: 0.103 | Q58: 0.103 | R58: 0.103 | S58: 0.103 | T58: 0.103 | U58: 0.103 | V58: 0.103 | AP58: 0.103 | AQ58: 0.103 | AR58: 0.103 | AS58: 0.103 | AT58: 0.103 | AU58: 0.103 | AV58: 0.103 | AW58: 0.103 | AY58: 0.001716666667 | AZ58: 0.00515 | BA58: 0.008583333333 | BB58: 0.01201666667 | BC58: 0.01545 | BD58: 0.01888333333 | BE58: 0.02231666667 | BF58: 0.02575 | BH58: =+IF($K58="Ongoing",AP58,IF(RIGHT($K58,2)=RIGHT(BH$39,2),SUM($AP58:AP58),0)+IF(RIGHT(BH$39,2)>RIGHT($K58,2),AP58,0)) -> 0.103 | BI58: =+IF($K58="Ongoing",AQ58,IF(RIGHT($K58,2)=RIGHT(BI$39,2),SUM($AP58:AQ58),0)+IF(RIGHT(BI$39,2)>RIGHT($K58,2),AQ58,0)) -> 0.103 | BJ58: =+IF($K58="Ongoing",AR58,IF(RIGHT($K58,2)=RIGHT(BJ$39,2),SUM($AP58:AR58),0)+IF(RIGHT(BJ$39,2)>RIGHT($K58,2),AR58,0)) -> 0.103 | BK58: =+IF($K58="Ongoing",AS58,IF(RIGHT($K58,2)=RIGHT(BK$39,2),SUM($AP58:AS58),0)+IF(RIGHT(BK$39,2)>RIGHT($K58,2),AS58,0)) -> 0.103 | BL58: =+IF($K58="Ongoing",AT58,IF(RIGHT($K58,2)=RIGHT(BL$39,2),SUM($AP58:AT58),0)+IF(RIGHT(BL$39,2)>RIGHT($K58,2),AT58,0)) -> 0.103 | BM58: =+IF($K58="Ongoing",AU58,IF(RIGHT($K58,2)=RIGHT(BM$39,2),SUM($AP58:AU58),0)+IF(RIGHT(BM$39,2)>RIGHT($K58,2),AU58,0)) -> 0.103 | BN58: =+IF($K58="Ongoing",AV58,IF(RIGHT($K58,2)=RIGHT(BN$39,2),SUM($AP58:AV58),0)+IF(RIGHT(BN$39,2)>RIGHT($K58,2),AV58,0)) -> 0.103 | BO58: =+IF($K58="Ongoing",AW58,IF(RIGHT($K58,2)=RIGHT(BO$39,2),SUM($AP58:AW58),0)+IF(RIGHT(BO$39,2)>RIGHT($K58,2),AW58,0)) -> 0.103 | BQ58: =+O58*KeyAssumptionsPriceControl_FO!AD$15 -> 0.106605 | BR58: =+P58*KeyAssumptionsPriceControl_FO!AE$15 -> 0.110336175 | BS58: =+Q58*KeyAssumptionsPriceControl_FO!AF$15 -> 0.1141979411 | BT58: =+R58*KeyAssumptionsPriceControl_FO!AG$15 -> 0.1181948691 | BU58: =+S58*KeyAssumptionsPriceControl_FO!AH$15 -> 0.1223316895 | BV58: =+T58*KeyAssumptionsPriceControl_FO!AI$15 -> 0.1266132986 | BW58: =+U58*KeyAssumptionsPriceControl_FO!AJ$15 -> 0.1310447641 | BX58: =+V58*KeyAssumptionsPriceControl_FO!AK$15 -> 0.1356313308 | BZ58: 0.00177675 | CA58: 0.01569243625 | CB58: 0.01943467152 | CC58: 0.02330788502 | CD58: 0.027316661 | CE58: 0.03146574413 | CF58: 0.03576004518 | CG58: 0.04020464676
A59: 7 | C59: Meter Replace (convert to i500 transmitter) | E59: Irrigation | F59: Renewals | G59: Channels | H59: Capital Programs / Allocation | J59: Straight line | K59: 2024-25 | L59: 30 | M59: 30 | O59: 0.0515 | P59: 0.0515 | Q59: 0.0515 | R59: 0.0515 | S59: 0.0515 | T59: 0.0515 | U59: 0.0515 | V59: 0.0515 | AP59: 0.0515 | AQ59: 0.0515 | AR59: 0.0515 | AS59: 0.0515 | AT59: 0.0515 | AU59: 0.0515 | AV59: 0.0515 | AW59: 0.0515 | AY59: 0.0008583333333 | AZ59: 0.002575 | BA59: 0.004291666667 | BB59: 0.006008333333 | BC59: 0.007725 | BD59: 0.009441666667 | BE59: 0.01115833333 | BF59: 0.012875 | BH59: =+IF($K59="Ongoing",AP59,IF(RIGHT($K59,2)=RIGHT(BH$39,2),SUM($AP59:AP59),0)+IF(RIGHT(BH$39,2)>RIGHT($K59,2),AP59,0)) -> 0.0515 | BI59: =+IF($K59="Ongoing",AQ59,IF(RIGHT($K59,2)=RIGHT(BI$39,2),SUM($AP59:AQ59),0)+IF(RIGHT(BI$39,2)>RIGHT($K59,2),AQ59,0)) -> 0.0515 | BJ59: =+IF($K59="Ongoing",AR59,IF(RIGHT($K59,2)=RIGHT(BJ$39,2),SUM($AP59:AR59),0)+IF(RIGHT(BJ$39,2)>RIGHT($K59,2),AR59,0)) -> 0.0515 | BK59: =+IF($K59="Ongoing",AS59,IF(RIGHT($K59,2)=RIGHT(BK$39,2),SUM($AP59:AS59),0)+IF(RIGHT(BK$39,2)>RIGHT($K59,2),AS59,0)) -> 0.0515 | BL59: =+IF($K59="Ongoing",AT59,IF(RIGHT($K59,2)=RIGHT(BL$39,2),SUM($AP59:AT59),0)+IF(RIGHT(BL$39,2)>RIGHT($K59,2),AT59,0)) -> 0.0515 | BM59: =+IF($K59="Ongoing",AU59,IF(RIGHT($K59,2)=RIGHT(BM$39,2),SUM($AP59:AU59),0)+IF(RIGHT(BM$39,2)>RIGHT($K59,2),AU59,0)) -> 0.0515 | BN59: =+IF($K59="Ongoing",AV59,IF(RIGHT($K59,2)=RIGHT(BN$39,2),SUM($AP59:AV59),0)+IF(RIGHT(BN$39,2)>RIGHT($K59,2),AV59,0)) -> 0.0515 | BO59: =+IF($K59="Ongoing",AW59,IF(RIGHT($K59,2)=RIGHT(BO$39,2),SUM($AP59:AW59),0)+IF(RIGHT(BO$39,2)>RIGHT($K59,2),AW59,0)) -> 0.0515 | BQ59: =+O59*KeyAssumptionsPriceControl_FO!AD$15 -> 0.0533025 | BR59: =+P59*KeyAssumptionsPriceControl_FO!AE$15 -> 0.0551680875 | BS59: =+Q59*KeyAssumptionsPriceControl_FO!AF$15 -> 0.05709897056 | BT59: =+R59*KeyAssumptionsPriceControl_FO!AG$15 -> 0.05909743453 | BU59: =+S59*KeyAssumptionsPriceControl_FO!AH$15 -> 0.06116584474 | BV59: =+T59*KeyAssumptionsPriceControl_FO!AI$15 -> 0.06330664931 | BW59: =+U59*KeyAssumptionsPriceControl_FO!AJ$15 -> 0.06552238203 | BX59: =+V59*KeyAssumptionsPriceControl_FO!AK$15 -> 0.0678156654 | BZ59: 0.000888375 | CA59: 0.007846218125 | CB59: 0.009717335759 | CC59: 0.01165394251 | CD59: 0.0136583305 | CE59: 0.01573287207 | CF59: 0.01788002259 | CG59: 0.02010232338
A60: 8 | C60: Storage tank bladder replace | E60: Irrigation | F60: Renewals | G60: Channels | H60: Other Capital expenditure | J60: Straight line | K60: 2025-26 | L60: 60 | M60: 60 | O60: 0 | P60: 0.1236 | Q60: 0 | R60: 0 | S60: 0 | T60: 0 | U60: 0 | V60: 0.1236 | AP60: 0 | AQ60: 0.1236 | AR60: 0 | AS60: 0 | AT60: 0 | AU60: 0 | AV60: 0 | AW60: 0.1236 | AY60: 0 | AZ60: 0.00103 | BA60: 0.00206 | BB60: 0.00206 | BC60: 0.00206 | BD60: 0.00206 | BE60: 0.00206 | BF60: 0.00309 | BH60: =+IF($K60="Ongoing",AP60,IF(RIGHT($K60,2)=RIGHT(BH$39,2),SUM($AP60:AP60),0)+IF(RIGHT(BH$39,2)>RIGHT($K60,2),AP60,0)) -> 0 | BI60: =+IF($K60="Ongoing",AQ60,IF(RIGHT($K60,2)=RIGHT(BI$39,2),SUM($AP60:AQ60),0)+IF(RIGHT(BI$39,2)>RIGHT($K60,2),AQ60,0)) -> 0.1236 | BJ60: =+IF($K60="Ongoing",AR60,IF(RIGHT($K60,2)=RIGHT(BJ$39,2),SUM($AP60:AR60),0)+IF(RIGHT(BJ$39,2)>RIGHT($K60,2),AR60,0)) -> 0 | BK60: =+IF($K60="Ongoing",AS60,IF(RIGHT($K60,2)=RIGHT(BK$39,2),SUM($AP60:AS60),0)+IF(RIGHT(BK$39,2)>RIGHT($K60,2),AS60,0)) -> 0 | BL60: =+IF($K60="Ongoing",AT60,IF(RIGHT($K60,2)=RIGHT(BL$39,2),SUM($AP60:AT60),0)+IF(RIGHT(BL$39,2)>RIGHT($K60,2),AT60,0)) -> 0 | BM60: =+IF($K60="Ongoing",AU60,IF(RIGHT($K60,2)=RIGHT(BM$39,2),SUM($AP60:AU60),0)+IF(RIGHT(BM$39,2)>RIGHT($K60,2),AU60,0)) -> 0 | BN60: =+IF($K60="Ongoing",AV60,IF(RIGHT($K60,2)=RIGHT(BN$39,2),SUM($AP60:AV60),0)+IF(RIGHT(BN$39,2)>RIGHT($K60,2),AV60,0)) -> 0 | BO60: =+IF($K60="Ongoing",AW60,IF(RIGHT($K60,2)=RIGHT(BO$39,2),SUM($AP60:AW60),0)+IF(RIGHT(BO$39,2)>RIGHT($K60,2),AW60,0)) -> 0.1236 | BQ60: =+O60*KeyAssumptionsPriceControl_FO!AD$15 -> 0 | BR60: =+P60*KeyAssumptionsPriceControl_FO!AE$15 -> 0.13240341 | BS60: =+Q60*KeyAssumptionsPriceControl_FO!AF$15 -> 0 | BT60: =+R60*KeyAssumptionsPriceControl_FO!AG$15 -> 0 | BU60: =+S60*KeyAssumptionsPriceControl_FO!AH$15 -> 0 | BV60: =+T60*KeyAssumptionsPriceControl_FO!AI$15 -> 0 | BW60: =+U60*KeyAssumptionsPriceControl_FO!AJ$15 -> 0 | BX60: =+V60*KeyAssumptionsPriceControl_FO!AK$15 -> 0.162757597 | BZ60: 0 | CA60: 0.00316336175 | CB60: 0.0042667235 | CC60: 0.0042667235 | CD60: 0.0042667235 | CE60: 0.0042667235 | CF60: 0.0042667235 | CG60: 0.005623036808
A61: 9 | C61: Bulk meter replace | E61: Irrigation | F61: Renewals | G61: Channels | H61: Capital Programs / Allocation | J61: Straight line | K61: 2025-26 | L61: 30 | M61: 30 | O61: 0 | P61: 0.0824 | Q61: 0 | R61: 0 | S61: 0 | T61: 0 | U61: 0 | V61: 0 | AP61: 0 | AQ61: 0.0824 | AR61: 0 | AS61: 0 | AT61: 0 | AU61: 0 | AV61: 0 | AW61: 0 | AY61: 0 | AZ61: 0.001373333333 | BA61: 0.002746666667 | BB61: 0.002746666667 | BC61: 0.002746666667 | BD61: 0.002746666667 | BE61: 0.002746666667 | BF61: 0.002746666667 | BH61: =+IF($K61="Ongoing",AP61,IF(RIGHT($K61,2)=RIGHT(BH$39,2),SUM($AP61:AP61),0)+IF(RIGHT(BH$39,2)>RIGHT($K61,2),AP61,0)) -> 0 | BI61: =+IF($K61="Ongoing",AQ61,IF(RIGHT($K61,2)=RIGHT(BI$39,2),SUM($AP61:AQ61),0)+IF(RIGHT(BI$39,2)>RIGHT($K61,2),AQ61,0)) -> 0.0824 | BJ61: =+IF($K61="Ongoing",AR61,IF(RIGHT($K61,2)=RIGHT(BJ$39,2),SUM($AP61:AR61),0)+IF(RIGHT(BJ$39,2)>RIGHT($K61,2),AR61,0)) -> 0 | BK61: =+IF($K61="Ongoing",AS61,IF(RIGHT($K61,2)=RIGHT(BK$39,2),SUM($AP61:AS61),0)+IF(RIGHT(BK$39,2)>RIGHT($K61,2),AS61,0)) -> 0 | BL61: =+IF($K61="Ongoing",AT61,IF(RIGHT($K61,2)=RIGHT(BL$39,2),SUM($AP61:AT61),0)+IF(RIGHT(BL$39,2)>RIGHT($K61,2),AT61,0)) -> 0 | BM61: =+IF($K61="Ongoing",AU61,IF(RIGHT($K61,2)=RIGHT(BM$39,2),SUM($AP61:AU61),0)+IF(RIGHT(BM$39,2)>RIGHT($K61,2),AU61,0)) -> 0 | BN61: =+IF($K61="Ongoing",AV61,IF(RIGHT($K61,2)=RIGHT(BN$39,2),SUM($AP61:AV61),0)+IF(RIGHT(BN$39,2)>RIGHT($K61,2),AV61,0)) -> 0 | BO61: =+IF($K61="Ongoing",AW61,IF(RIGHT($K61,2)=RIGHT(BO$39,2),SUM($AP61:AW61),0)+IF(RIGHT(BO$39,2)>RIGHT($K61,2),AW61,0)) -> 0 | BQ61: =+O61*KeyAssumptionsPriceControl_FO!AD$15 -> 0 | BR61: =+P61*KeyAssumptionsPriceControl_FO!AE$15 -> 0.08826894 | BS61: =+Q61*KeyAssumptionsPriceControl_FO!AF$15 -> 0 | BT61: =+R61*KeyAssumptionsPriceControl_FO!AG$15 -> 0 | BU61: =+S61*KeyAssumptionsPriceControl_FO!AH$15 -> 0 | BV61: =+T61*KeyAssumptionsPriceControl_FO!AI$15 -> 0 | BW61: =+U61*KeyAssumptionsPriceControl_FO!AJ$15 -> 0 | BX61: =+V61*KeyAssumptionsPriceControl_FO!AK$15 -> 0 | BZ61: 0 | CA61: 0.001471149 | CB61: 0.002942298 | CC61: 0.002942298 | CD61: 0.002942298 | CE61: 0.002942298 | CF61: 0.002942298 | CG61: 0.002942298
A62: 10 | C62: Main Pump Station Replacement | E62: Irrigation | F62: Renewals | G62: Channels | H62: Other Capital expenditure | J62: Straight line | K62: 2024-25 | L62: 30 | M62: 30 | O62: 0.02575 | P62: 0 | Q62: 0.02575 | R62: 0 | S62: 0.02575 | T62: 0.618 | U62: 0.02575 | V62: 0 | AP62: 0.02575 | AQ62: 0 | AR62: 0.02575 | AS62: 0 | AT62: 0.02575 | AU62: 0.618 | AV62: 0.02575 | AW62: 0 | AY62: 0.0004291666667 | AZ62: 0.0008583333333 | BA62: 0.0012875 | BB62: 0.001716666667 | BC62: 0.002145833333 | BD62: 0.012875 | BE62: 0.02360416667 | BF62: 0.02403333333 | BH62: =+IF($K62="Ongoing",AP62,IF(RIGHT($K62,2)=RIGHT(BH$39,2),SUM($AP62:AP62),0)+IF(RIGHT(BH$39,2)>RIGHT($K62,2),AP62,0)) -> 0.02575 | BI62: =+IF($K62="Ongoing",AQ62,IF(RIGHT($K62,2)=RIGHT(BI$39,2),SUM($AP62:AQ62),0)+IF(RIGHT(BI$39,2)>RIGHT($K62,2),AQ62,0)) -> 0 | BJ62: =+IF($K62="Ongoing",AR62,IF(RIGHT($K62,2)=RIGHT(BJ$39,2),SUM($AP62:AR62),0)+IF(RIGHT(BJ$39,2)>RIGHT($K62,2),AR62,0)) -> 0.02575 | BK62: =+IF($K62="Ongoing",AS62,IF(RIGHT($K62,2)=RIGHT(BK$39,2),SUM($AP62:AS62),0)+IF(RIGHT(BK$39,2)>RIGHT($K62,2),AS62,0)) -> 0 | BL62: =+IF($K62="Ongoing",AT62,IF(RIGHT($K62,2)=RIGHT(BL$39,2),SUM($AP62:AT62),0)+IF(RIGHT(BL$39,2)>RIGHT($K62,2),AT62,0)) -> 0.02575 | BM62: =+IF($K62="Ongoing",AU62,IF(RIGHT($K62,2)=RIGHT(BM$39,2),SUM($AP62:AU62),0)+IF(RIGHT(BM$39,2)>RIGHT($K62,2),AU62,0)) -> 0.618 | BN62: =+IF($K62="Ongoing",AV62,IF(RIGHT($K62,2)=RIGHT(BN$39,2),SUM($AP62:AV62),0)+IF(RIGHT(BN$39,2)>RIGHT($K62,2),AV62,0)) -> 0.02575 | BO62: =+IF($K62="Ongoing",AW62,IF(RIGHT($K62,2)=RIGHT(BO$39,2),SUM($AP62:AW62),0)+IF(RIGHT(BO$39,2)>RIGHT($K62,2),AW62,0)) -> 0 | BQ62: =+O62*KeyAssumptionsPriceControl_FO!AD$15 -> 0.02665125 | BR62: =+P62*KeyAssumptionsPriceControl_FO!AE$15 -> 0 | BS62: =+Q62*KeyAssumptionsPriceControl_FO!AF$15 -> 0.02854948528 | BT62: =+R62*KeyAssumptionsPriceControl_FO!AG$15 -> 0 | BU62: =+S62*KeyAssumptionsPriceControl_FO!AH$15 -> 0.03058292237 | BV62: =+T62*KeyAssumptionsPriceControl_FO!AI$15 -> 0.7596797917 | BW62: =+U62*KeyAssumptionsPriceControl_FO!AJ$15 -> 0.03276119102 | BX62: =+V62*KeyAssumptionsPriceControl_FO!AK$15 -> 0 | BZ62: 0.0004441875 | CA62: 0.02234670833 | CB62: 0.02282253309 | CC62: 0.02329835784 | CD62: 0.02380807322 | CE62: 0.03697911845 | CF62: 0.05018646816 | CG62: 0.05073248801
A63: 11 | C63: Replace VSDs and vacuum pump | E63: Irrigation | F63: Renewals | G63: Channels | H63: Other Capital expenditure | J63: Straight line | K63: 2026-27 | L63: 30 | M63: 30 | O63: 0 | P63: 0 | Q63: 0.0528 | R63: 0 | S63: 0 | T63: 0 | U63: 0.07595 | V63: 0 | AP63: 0 | AQ63: 0 | AR63: 0.0528 | AS63: 0 | AT63: 0 | AU63: 0 | AV63: 0.07595 | AW63: 0 | AY63: 0 | AZ63: 0 | BA63: 0.00088 | BB63: 0.00176 | BC63: 0.00176 | BD63: 0.00176 | BE63: 0.003025833333 | BF63: 0.004291666667 | BH63: =+IF($K63="Ongoing",AP63,IF(RIGHT($K63,2)=RIGHT(BH$39,2),SUM($AP63:AP63),0)+IF(RIGHT(BH$39,2)>RIGHT($K63,2),AP63,0)) -> 0 | BI63: =+IF($K63="Ongoing",AQ63,IF(RIGHT($K63,2)=RIGHT(BI$39,2),SUM($AP63:AQ63),0)+IF(RIGHT(BI$39,2)>RIGHT($K63,2),AQ63,0)) -> 0 | BJ63: =+IF($K63="Ongoing",AR63,IF(RIGHT($K63,2)=RIGHT(BJ$39,2),SUM($AP63:AR63),0)+IF(RIGHT(BJ$39,2)>RIGHT($K63,2),AR63,0)) -> 0.0528 | BK63: =+IF($K63="Ongoing",AS63,IF(RIGHT($K63,2)=RIGHT(BK$39,2),SUM($AP63:AS63),0)+IF(RIGHT(BK$39,2)>RIGHT($K63,2),AS63,0)) -> 0 | BL63: =+IF($K63="Ongoing",AT63,IF(RIGHT($K63,2)=RIGHT(BL$39,2),SUM($AP63:AT63),0)+IF(RIGHT(BL$39,2)>RIGHT($K63,2),AT63,0)) -> 0 | BM63: =+IF($K63="Ongoing",AU63,IF(RIGHT($K63,2)=RIGHT(BM$39,2),SUM($AP63:AU63),0)+IF(RIGHT(BM$39,2)>RIGHT($K63,2),AU63,0)) -> 0 | BN63: =+IF($K63="Ongoing",AV63,IF(RIGHT($K63,2)=RIGHT(BN$39,2),SUM($AP63:AV63),0)+IF(RIGHT(BN$39,2)>RIGHT($K63,2),AV63,0)) -> 0.07595 | BO63: =+IF($K63="Ongoing",AW63,IF(RIGHT($K63,2)=RIGHT(BO$39,2),SUM($AP63:AW63),0)+IF(RIGHT(BO$39,2)>RIGHT($K63,2),AW63,0)) -> 0 | BQ63: =+O63*KeyAssumptionsPriceControl_FO!AD$15 -> 0 | BR63: =+P63*KeyAssumptionsPriceControl_FO!AE$15 -> 0 | BS63: =+Q63*KeyAssumptionsPriceControl_FO!AF$15 -> 0.0585403038 | BT63: =+R63*KeyAssumptionsPriceControl_FO!AG$15 -> 0 | BU63: =+S63*KeyAssumptionsPriceControl_FO!AH$15 -> 0 | BV63: =+T63*KeyAssumptionsPriceControl_FO!AI$15 -> 0 | BW63: =+U63*KeyAssumptionsPriceControl_FO!AJ$15 -> 0.09662961001 | BX63: =+V63*KeyAssumptionsPriceControl_FO!AK$15 -> 0 | BZ63: 0 | CA63: 0.002531666667 | CB63: 0.003507338397 | CC63: 0.004483010127 | CD63: 0.004483010127 | CE63: 0.004483010127 | CF63: 0.006093503627 | CG63: 0.007703997127
A64: 12 | C64: Retic pipe replace (staged approach) | E64: Irrigation | F64: Renewals | G64: Channels | H64: Other Capital expenditure | J64: Straight line | K64: 2024-25 | L64: 75 | M64: 75 | O64: 0.0675 | P64: 0.0675 | Q64: 0.0675 | R64: 0.0675 | S64: 0.7565 | T64: 0.7565 | U64: 0.7565 | V64: 0.7565 | AP64: 0.0675 | AQ64: 0.0675 | AR64: 0.0675 | AS64: 0.0675 | AT64: 0.7565 | AU64: 0.7565 | AV64: 0.7565 | AW64: 0.7565 | AY64: 0.00045 | AZ64: 0.00135 | BA64: 0.00225 | BB64: 0.00315 | BC64: 0.008643333333 | BD64: 0.01873 | BE64: 0.02881666667 | BF64: 0.03890333333 | BH64: =+IF($K64="Ongoing",AP64,IF(RIGHT($K64,2)=RIGHT(BH$39,2),SUM($AP64:AP64),0)+IF(RIGHT(BH$39,2)>RIGHT($K64,2),AP64,0)) -> 0.0675 | BI64: =+IF($K64="Ongoing",AQ64,IF(RIGHT($K64,2)=RIGHT(BI$39,2),SUM($AP64:AQ64),0)+IF(RIGHT(BI$39,2)>RIGHT($K64,2),AQ64,0)) -> 0.0675 | BJ64: =+IF($K64="Ongoing",AR64,IF(RIGHT($K64,2)=RIGHT(BJ$39,2),SUM($AP64:AR64),0)+IF(RIGHT(BJ$39,2)>RIGHT($K64,2),AR64,0)) -> 0.0675 | BK64: =+IF($K64="Ongoing",AS64,IF(RIGHT($K64,2)=RIGHT(BK$39,2),SUM($AP64:AS64),0)+IF(RIGHT(BK$39,2)>RIGHT($K64,2),AS64,0)) -> 0.0675 | BL64: =+IF($K64="Ongoing",AT64,IF(RIGHT($K64,2)=RIGHT(BL$39,2),SUM($AP64:AT64),0)+IF(RIGHT(BL$39,2)>RIGHT($K64,2),AT64,0)) -> 0.7565 | BM64: =+IF($K64="Ongoing",AU64,IF(RIGHT($K64,2)=RIGHT(BM$39,2),SUM($AP64:AU64),0)+IF(RIGHT(BM$39,2)>RIGHT($K64,2),AU64,0)) -> 0.7565 | BN64: =+IF($K64="Ongoing",AV64,IF(RIGHT($K64,2)=RIGHT(BN$39,2),SUM($AP64:AV64),0)+IF(RIGHT(BN$39,2)>RIGHT($K64,2),AV64,0)) -> 0.7565 | BO64: =+IF($K64="Ongoing",AW64,IF(RIGHT($K64,2)=RIGHT(BO$39,2),SUM($AP64:AW64),0)+IF(RIGHT(BO$39,2)>RIGHT($K64,2),AW64,0)) -> 0.7565 | BQ64: =+O64*KeyAssumptionsPriceControl_FO!AD$15 -> 0.0698625 | BR64: =+P64*KeyAssumptionsPriceControl_FO!AE$15 -> 0.0723076875 | BS64: =+Q64*KeyAssumptionsPriceControl_FO!AF$15 -> 0.07483845656 | BT64: =+R64*KeyAssumptionsPriceControl_FO!AG$15 -> 0.07745780254 | BU64: =+S64*KeyAssumptionsPriceControl_FO!AH$15 -> 0.8984846902 | BV64: =+T64*KeyAssumptionsPriceControl_FO!AI$15 -> 0.9299316544 | BW64: =+U64*KeyAssumptionsPriceControl_FO!AJ$15 -> 0.9624792623 | BX64: =+V64*KeyAssumptionsPriceControl_FO!AK$15 -> 0.9961660365 | BZ64: 0.00046575 | CA64: 0.03167355125 | CB64: 0.03265452554 | CC64: 0.03366983394 | CD64: 0.04017611722 | CE64: 0.05236555952 | CF64: 0.0649816323 | CG64: 0.07803926762
A65: 13 | C65: Meter Replace | E65: Irrigation | F65: Renewals | G65: Channels | H65: Capital Programs / Allocation | J65: Straight line | K65: 2024-25 | L65: 30 | M65: 30 | O65: 0.0412 | P65: 0.0412 | Q65: 0.0412 | R65: 0.0309 | S65: 0.103 | T65: 0.103 | U65: 0.103 | V65: 0.0927 | AP65: 0.0412 | AQ65: 0.0412 | AR65: 0.0412 | AS65: 0.0309 | AT65: 0.103 | AU65: 0.103 | AV65: 0.103 | AW65: 0.0927 | AY65: 0.0006866666667 | AZ65: 0.00206 | BA65: 0.003433333333 | BB65: 0.004635 | BC65: 0.006866666667 | BD65: 0.0103 | BE65: 0.01373333333 | BF65: 0.016995 | BH65: =+IF($K65="Ongoing",AP65,IF(RIGHT($K65,2)=RIGHT(BH$39,2),SUM($AP65:AP65),0)+IF(RIGHT(BH$39,2)>RIGHT($K65,2),AP65,0)) -> 0.0412 | BI65: =+IF($K65="Ongoing",AQ65,IF(RIGHT($K65,2)=RIGHT(BI$39,2),SUM($AP65:AQ65),0)+IF(RIGHT(BI$39,2)>RIGHT($K65,2),AQ65,0)) -> 0.0412 | BJ65: =+IF($K65="Ongoing",AR65,IF(RIGHT($K65,2)=RIGHT(BJ$39,2),SUM($AP65:AR65),0)+IF(RIGHT(BJ$39,2)>RIGHT($K65,2),AR65,0)) -> 0.0412 | BK65: =+IF($K65="Ongoing",AS65,IF(RIGHT($K65,2)=RIGHT(BK$39,2),SUM($AP65:AS65),0)+IF(RIGHT(BK$39,2)>RIGHT($K65,2),AS65,0)) -> 0.0309 | BL65: =+IF($K65="Ongoing",AT65,IF(RIGHT($K65,2)=RIGHT(BL$39,2),SUM($AP65:AT65),0)+IF(RIGHT(BL$39,2)>RIGHT($K65,2),AT65,0)) -> 0.103 | BM65: =+IF($K65="Ongoing",AU65,IF(RIGHT($K65,2)=RIGHT(BM$39,2),SUM($AP65:AU65),0)+IF(RIGHT(BM$39,2)>RIGHT($K65,2),AU65,0)) -> 0.103 | BN65: =+IF($K65="Ongoing",AV65,IF(RIGHT($K65,2)=RIGHT(BN$39,2),SUM($AP65:AV65),0)+IF(RIGHT(BN$39,2)>RIGHT($K65,2),AV65,0)) -> 0.103 | BO65: =+IF($K65="Ongoing",AW65,IF(RIGHT($K65,2)=RIGHT(BO$39,2),SUM($AP65:AW65),0)+IF(RIGHT(BO$39,2)>RIGHT($K65,2),AW65,0)) -> 0.0927 | BQ65: =+O65*KeyAssumptionsPriceControl_FO!AD$15 -> 0.042642 | BR65: =+P65*KeyAssumptionsPriceControl_FO!AE$15 -> 0.04413447 | BS65: =+Q65*KeyAssumptionsPriceControl_FO!AF$15 -> 0.04567917645 | BT65: =+R65*KeyAssumptionsPriceControl_FO!AG$15 -> 0.03545846072 | BU65: =+S65*KeyAssumptionsPriceControl_FO!AH$15 -> 0.1223316895 | BV65: =+T65*KeyAssumptionsPriceControl_FO!AI$15 -> 0.1266132986 | BW65: =+U65*KeyAssumptionsPriceControl_FO!AJ$15 -> 0.1310447641 | BX65: =+V65*KeyAssumptionsPriceControl_FO!AK$15 -> 0.1220681977 | BZ65: 0.0007107 | CA65: 0.01211364117 | CB65: 0.01361053527 | CC65: 0.01496282923 | CD65: 0.01759266506 | CE65: 0.0217417482 | CF65: 0.02603604924 | CG65: 0.03025459861
A66: 14 | C66: Bulk meter replace | E66: Irrigation | F66: Renewals | G66: Channels | H66: Capital Programs / Allocation | J66: Straight line | K66: 2026-27 | L66: 30 | M66: 30 | O66: 0 | P66: 0 | Q66: 0.0412 | R66: 0 | S66: 0 | T66: 0 | U66: 0.0412 | V66: 0 | AP66: 0 | AQ66: 0 | AR66: 0.0412 | AS66: 0 | AT66: 0 | AU66: 0 | AV66: 0.0412 | AW66: 0 | AY66: 0 | AZ66: 0 | BA66: 0.0006866666667 | BB66: 0.001373333333 | BC66: 0.001373333333 | BD66: 0.001373333333 | BE66: 0.00206 | BF66: 0.002746666667 | BH66: =+IF($K66="Ongoing",AP66,IF(RIGHT($K66,2)=RIGHT(BH$39,2),SUM($AP66:AP66),0)+IF(RIGHT(BH$39,2)>RIGHT($K66,2),AP66,0)) -> 0 | BI66: =+IF($K66="Ongoing",AQ66,IF(RIGHT($K66,2)=RIGHT(BI$39,2),SUM($AP66:AQ66),0)+IF(RIGHT(BI$39,2)>RIGHT($K66,2),AQ66,0)) -> 0 | BJ66: =+IF($K66="Ongoing",AR66,IF(RIGHT($K66,2)=RIGHT(BJ$39,2),SUM($AP66:AR66),0)+IF(RIGHT(BJ$39,2)>RIGHT($K66,2),AR66,0)) -> 0.0412 | BK66: =+IF($K66="Ongoing",AS66,IF(RIGHT($K66,2)=RIGHT(BK$39,2),SUM($AP66:AS66),0)+IF(RIGHT(BK$39,2)>RIGHT($K66,2),AS66,0)) -> 0 | BL66: =+IF($K66="Ongoing",AT66,IF(RIGHT($K66,2)=RIGHT(BL$39,2),SUM($AP66:AT66),0)+IF(RIGHT(BL$39,2)>RIGHT($K66,2),AT66,0)) -> 0 | BM66: =+IF($K66="Ongoing",AU66,IF(RIGHT($K66,2)=RIGHT(BM$39,2),SUM($AP66:AU66),0)+IF(RIGHT(BM$39,2)>RIGHT($K66,2),AU66,0)) -> 0 | BN66: =+IF($K66="Ongoing",AV66,IF(RIGHT($K66,2)=RIGHT(BN$39,2),SUM($AP66:AV66),0)+IF(RIGHT(BN$39,2)>RIGHT($K66,2),AV66,0)) -> 0.0412 | BO66: =+IF($K66="Ongoing",AW66,IF(RIGHT($K66,2)=RIGHT(BO$39,2),SUM($AP66:AW66),0)+IF(RIGHT(BO$39,2)>RIGHT($K66,2),AW66,0)) -> 0 | BQ66: =+O66*KeyAssumptionsPriceControl_FO!AD$15 -> 0 | BR66: =+P66*KeyAssumptionsPriceControl_FO!AE$15 -> 0 | BS66: =+Q66*KeyAssumptionsPriceControl_FO!AF$15 -> 0.04567917645 | BT66: =+R66*KeyAssumptionsPriceControl_FO!AG$15 -> 0 | BU66: =+S66*KeyAssumptionsPriceControl_FO!AH$15 -> 0 | BV66: =+T66*KeyAssumptionsPriceControl_FO!AI$15 -> 0 | BW66: =+U66*KeyAssumptionsPriceControl_FO!AJ$15 -> 0.05241790563 | BX66: =+V66*KeyAssumptionsPriceControl_FO!AK$15 -> 0 | BZ66: 0 | CA66: 0.001373333333 | CB66: 0.002134652941 | CC66: 0.002895972548 | CD66: 0.002895972548 | CE66: 0.002895972548 | CF66: 0.003769604309 | CG66: 0.004643236069
A67: 15 | C67: Relift No 3 replace (1 is main, 2 relift, 3 relift, 4 main) | E67: Irrigation | F67: Renewals | G67: Channels | H67: Other Capital expenditure | J67: Straight line | K67: 2024-25 | L67: 30 | M67: 30 | O67: 0.1236 | P67: 0 | Q67: 0 | R67: 0 | S67: 0.1236 | T67: 0 | U67: 0 | V67: 0 | AP67: 0.1236 | AQ67: 0 | AR67: 0 | AS67: 0 | AT67: 0.1236 | AU67: 0 | AV67: 0 | AW67: 0 | AY67: 0.00206 | AZ67: 0.00412 | BA67: 0.00412 | BB67: 0.00412 | BC67: 0.00618 | BD67: 0.00824 | BE67: 0.00824 | BF67: 0.00824 | BH67: =+IF($K67="Ongoing",AP67,IF(RIGHT($K67,2)=RIGHT(BH$39,2),SUM($AP67:AP67),0)+IF(RIGHT(BH$39,2)>RIGHT($K67,2),AP67,0)) -> 0.1236 | BI67: =+IF($K67="Ongoing",AQ67,IF(RIGHT($K67,2)=RIGHT(BI$39,2),SUM($AP67:AQ67),0)+IF(RIGHT(BI$39,2)>RIGHT($K67,2),AQ67,0)) -> 0 | BJ67: =+IF($K67="Ongoing",AR67,IF(RIGHT($K67,2)=RIGHT(BJ$39,2),SUM($AP67:AR67),0)+IF(RIGHT(BJ$39,2)>RIGHT($K67,2),AR67,0)) -> 0 | BK67: =+IF($K67="Ongoing",AS67,IF(RIGHT($K67,2)=RIGHT(BK$39,2),SUM($AP67:AS67),0)+IF(RIGHT(BK$39,2)>RIGHT($K67,2),AS67,0)) -> 0 | BL67: =+IF($K67="Ongoing",AT67,IF(RIGHT($K67,2)=RIGHT(BL$39,2),SUM($AP67:AT67),0)+IF(RIGHT(BL$39,2)>RIGHT($K67,2),AT67,0)) -> 0.1236 | BM67: =+IF($K67="Ongoing",AU67,IF(RIGHT($K67,2)=RIGHT(BM$39,2),SUM($AP67:AU67),0)+IF(RIGHT(BM$39,2)>RIGHT($K67,2),AU67,0)) -> 0 | BN67: =+IF($K67="Ongoing",AV67,IF(RIGHT($K67,2)=RIGHT(BN$39,2),SUM($AP67:AV67),0)+IF(RIGHT(BN$39,2)>RIGHT($K67,2),AV67,0)) -> 0 | BO67: =+IF($K67="Ongoing",AW67,IF(RIGHT($K67,2)=RIGHT(BO$39,2),SUM($AP67:AW67),0)+IF(RIGHT(BO$39,2)>RIGHT($K67,2),AW67,0)) -> 0 | BQ67: =+O67*KeyAssumptionsPriceControl_FO!AD$15 -> 0.127926 | BR67: =+P67*KeyAssumptionsPriceControl_FO!AE$15 -> 0 | BS67: =+Q67*KeyAssumptionsPriceControl_FO!AF$15 -> 0 | BT67: =+R67*KeyAssumptionsPriceControl_FO!AG$15 -> 0 | BU67: =+S67*KeyAssumptionsPriceControl_FO!AH$15 -> 0.1467980274 | BV67: =+T67*KeyAssumptionsPriceControl_FO!AI$15 -> 0 | BW67: =+U67*KeyAssumptionsPriceControl_FO!AJ$15 -> 0 | BX67: =+V67*KeyAssumptionsPriceControl_FO!AK$15 -> 0 | BZ67: 0.0021321 | CA67: 0.0042642 | CB67: 0.0042642 | CC67: 0.0042642 | CD67: 0.00671083379 | CE67: 0.009157467579 | CF67: 0.009157467579 | CG67: 0.009157467579
A68: 16 | C68: Relift pumps gate valve replace | E68: Irrigation | F68: Renewals | G68: Channels | H68: Other Capital expenditure | J68: Straight line | K68: 2025-26 | L68: 30 | M68: 30 | O68: 0 | P68: 0.0309 | Q68: 0 | R68: 0 | S68: 0 | T68: 0.0309 | U68: 0 | V68: 0 | AP68: 0 | AQ68: 0.0309 | AR68: 0 | AS68: 0 | AT68: 0 | AU68: 0.0309 | AV68: 0 | AW68: 0 | AY68: 0 | AZ68: 0.000515 | BA68: 0.00103 | BB68: 0.00103 | BC68: 0.00103 | BD68: 0.001545 | BE68: 0.00206 | BF68: 0.00206 | BH68: =+IF($K68="Ongoing",AP68,IF(RIGHT($K68,2)=RIGHT(BH$39,2),SUM($AP68:AP68),0)+IF(RIGHT(BH$39,2)>RIGHT($K68,2),AP68,0)) -> 0 | BI68: =+IF($K68="Ongoing",AQ68,IF(RIGHT($K68,2)=RIGHT(BI$39,2),SUM($AP68:AQ68),0)+IF(RIGHT(BI$39,2)>RIGHT($K68,2),AQ68,0)) -> 0.0309 | BJ68: =+IF($K68="Ongoing",AR68,IF(RIGHT($K68,2)=RIGHT(BJ$39,2),SUM($AP68:AR68),0)+IF(RIGHT(BJ$39,2)>RIGHT($K68,2),AR68,0)) -> 0 | BK68: =+IF($K68="Ongoing",AS68,IF(RIGHT($K68,2)=RIGHT(BK$39,2),SUM($AP68:AS68),0)+IF(RIGHT(BK$39,2)>RIGHT($K68,2),AS68,0)) -> 0 | BL68: =+IF($K68="Ongoing",AT68,IF(RIGHT($K68,2)=RIGHT(BL$39,2),SUM($AP68:AT68),0)+IF(RIGHT(BL$39,2)>RIGHT($K68,2),AT68,0)) -> 0 | BM68: =+IF($K68="Ongoing",AU68,IF(RIGHT($K68,2)=RIGHT(BM$39,2),SUM($AP68:AU68),0)+IF(RIGHT(BM$39,2)>RIGHT($K68,2),AU68,0)) -> 0.0309 | BN68: =+IF($K68="Ongoing",AV68,IF(RIGHT($K68,2)=RIGHT(BN$39,2),SUM($AP68:AV68),0)+IF(RIGHT(BN$39,2)>RIGHT($K68,2),AV68,0)) -> 0 | BO68: =+IF($K68="Ongoing",AW68,IF(RIGHT($K68,2)=RIGHT(BO$39,2),SUM($AP68:AW68),0)+IF(RIGHT(BO$39,2)>RIGHT($K68,2),AW68,0)) -> 0 | BQ68: =+O68*KeyAssumptionsPriceControl_FO!AD$15 -> 0 | BR68: =+P68*KeyAssumptionsPriceControl_FO!AE$15 -> 0.0331008525 | BS68: =+Q68*KeyAssumptionsPriceControl_FO!AF$15 -> 0 | BT68: =+R68*KeyAssumptionsPriceControl_FO!AG$15 -> 0 | BU68: =+S68*KeyAssumptionsPriceControl_FO!AH$15 -> 0 | BV68: =+T68*KeyAssumptionsPriceControl_FO!AI$15 -> 0.03798398958 | BW68: =+U68*KeyAssumptionsPriceControl_FO!AJ$15 -> 0 | BX68: =+V68*KeyAssumptionsPriceControl_FO!AK$15 -> 0 | BZ68: 0 | CA68: 0.001581680875 | CB68: 0.00213336175 | CC68: 0.00213336175 | CD68: 0.00213336175 | CE68: 0.002766428243 | CF68: 0.003399494736 | CG68: 0.003399494736
A69: 17 | C69: Main 1 replace | E69: Irrigation | F69: Renewals | G69: Channels | H69: Other Capital expenditure | J69: Straight line | K69: 2030-31 | L69: 30 | M69: 30 | O69: 0 | P69: 0 | Q69: 0 | R69: 0 | S69: 0 | T69: 0 | U69: 0.2678 | V69: 0 | AP69: 0 | AQ69: 0 | AR69: 0 | AS69: 0 | AT69: 0 | AU69: 0 | AV69: 0.2678 | AW69: 0 | AY69: 0 | AZ69: 0 | BA69: 0 | BB69: 0 | BC69: 0 | BD69: 0 | BE69: 0.004463333333 | BF69: 0.008926666667 | BH69: =+IF($K69="Ongoing",AP69,IF(RIGHT($K69,2)=RIGHT(BH$39,2),SUM($AP69:AP69),0)+IF(RIGHT(BH$39,2)>RIGHT($K69,2),AP69,0)) -> 0 | BI69: =+IF($K69="Ongoing",AQ69,IF(RIGHT($K69,2)=RIGHT(BI$39,2),SUM($AP69:AQ69),0)+IF(RIGHT(BI$39,2)>RIGHT($K69,2),AQ69,0)) -> 0 | BJ69: =+IF($K69="Ongoing",AR69,IF(RIGHT($K69,2)=RIGHT(BJ$39,2),SUM($AP69:AR69),0)+IF(RIGHT(BJ$39,2)>RIGHT($K69,2),AR69,0)) -> 0 | BK69: =+IF($K69="Ongoing",AS69,IF(RIGHT($K69,2)=RIGHT(BK$39,2),SUM($AP69:AS69),0)+IF(RIGHT(BK$39,2)>RIGHT($K69,2),AS69,0)) -> 0 | BL69: =+IF($K69="Ongoing",AT69,IF(RIGHT($K69,2)=RIGHT(BL$39,2),SUM($AP69:AT69),0)+IF(RIGHT(BL$39,2)>RIGHT($K69,2),AT69,0)) -> 0 | BM69: =+IF($K69="Ongoing",AU69,IF(RIGHT($K69,2)=RIGHT(BM$39,2),SUM($AP69:AU69),0)+IF(RIGHT(BM$39,2)>RIGHT($K69,2),AU69,0)) -> 0 | BN69: =+IF($K69="Ongoing",AV69,IF(RIGHT($K69,2)=RIGHT(BN$39,2),SUM($AP69:AV69),0)+IF(RIGHT(BN$39,2)>RIGHT($K69,2),AV69,0)) -> 0.2678 | BO69: =+IF($K69="Ongoing",AW69,IF(RIGHT($K69,2)=RIGHT(BO$39,2),SUM($AP69:AW69),0)+IF(RIGHT(BO$39,2)>RIGHT($K69,2),AW69,0)) -> 0 | BQ69: =+O69*KeyAssumptionsPriceControl_FO!AD$15 -> 0 | BR69: =+P69*KeyAssumptionsPriceControl_FO!AE$15 -> 0 | BS69: =+Q69*KeyAssumptionsPriceControl_FO!AF$15 -> 0 | BT69: =+R69*KeyAssumptionsPriceControl_FO!AG$15 -> 0 | BU69: =+S69*KeyAssumptionsPriceControl_FO!AH$15 -> 0 | BV69: =+T69*KeyAssumptionsPriceControl_FO!AI$15 -> 0 | BW69: =+U69*KeyAssumptionsPriceControl_FO!AJ$15 -> 0.3407163866 | BX69: =+V69*KeyAssumptionsPriceControl_FO!AK$15 -> 0 | BZ69: 0 | CA69: 0.008926666667 | CB69: 0.008926666667 | CC69: 0.008926666667 | CD69: 0.008926666667 | CE69: 0.008926666667 | CF69: 0.01460527311 | CG69: 0.02028387955
A70: 18 | C70: Retic pipe replace (staged approach) | E70: Irrigation | F70: Renewals | G70: Channels | H70: Other Capital expenditure | J70: Straight line | K70: 2024-25 | L70: 75 | M70: 75 | O70: 0.0625 | P70: 0.0625 | Q70: 0.0625 | R70: 0.0625 | S70: 0.5555 | T70: 0.5555 | U70: 0.5555 | V70: 0.5555 | AP70: 0.0625 | AQ70: 0.0625 | AR70: 0.0625 | AS70: 0.0625 | AT70: 0.5555 | AU70: 0.5555 | AV70: 0.5555 | AW70: 0.5555 | AY70: 0.0004166666667 | AZ70: 0.00125 | BA70: 0.002083333333 | BB70: 0.002916666667 | BC70: 0.007036666667 | BD70: 0.01444333333 | BE70: 0.02185 | BF70: 0.02925666667 | BH70: =+IF($K70="Ongoing",AP70,IF(RIGHT($K70,2)=RIGHT(BH$39,2),SUM($AP70:AP70),0)+IF(RIGHT(BH$39,2)>RIGHT($K70,2),AP70,0)) -> 0.0625 | BI70: =+IF($K70="Ongoing",AQ70,IF(RIGHT($K70,2)=RIGHT(BI$39,2),SUM($AP70:AQ70),0)+IF(RIGHT(BI$39,2)>RIGHT($K70,2),AQ70,0)) -> 0.0625 | BJ70: =+IF($K70="Ongoing",AR70,IF(RIGHT($K70,2)=RIGHT(BJ$39,2),SUM($AP70:AR70),0)+IF(RIGHT(BJ$39,2)>RIGHT($K70,2),AR70,0)) -> 0.0625 | BK70: =+IF($K70="Ongoing",AS70,IF(RIGHT($K70,2)=RIGHT(BK$39,2),SUM($AP70:AS70),0)+IF(RIGHT(BK$39,2)>RIGHT($K70,2),AS70,0)) -> 0.0625 | BL70: =+IF($K70="Ongoing",AT70,IF(RIGHT($K70,2)=RIGHT(BL$39,2),SUM($AP70:AT70),0)+IF(RIGHT(BL$39,2)>RIGHT($K70,2),AT70,0)) -> 0.5555 | BM70: =+IF($K70="Ongoing",AU70,IF(RIGHT($K70,2)=RIGHT(BM$39,2),SUM($AP70:AU70),0)+IF(RIGHT(BM$39,2)>RIGHT($K70,2),AU70,0)) -> 0.5555 | BN70: =+IF($K70="Ongoing",AV70,IF(RIGHT($K70,2)=RIGHT(BN$39,2),SUM($AP70:AV70),0)+IF(RIGHT(BN$39,2)>RIGHT($K70,2),AV70,0)) -> 0.5555 | BO70: =+IF($K70="Ongoing",AW70,IF(RIGHT($K70,2)=RIGHT(BO$39,2),SUM($AP70:AW70),0)+IF(RIGHT(BO$39,2)>RIGHT($K70,2),AW70,0)) -> 0.5555 | BQ70: =+O70*KeyAssumptionsPriceControl_FO!AD$15 -> 0.0646875 | BR70: =+P70*KeyAssumptionsPriceControl_FO!AE$15 -> 0.0669515625 | BS70: =+Q70*KeyAssumptionsPriceControl_FO!AF$15 -> 0.06929486719 | BT70: =+R70*KeyAssumptionsPriceControl_FO!AG$15 -> 0.07172018754 | BU70: =+S70*KeyAssumptionsPriceControl_FO!AH$15 -> 0.6597597428 | BV70: =+T70*KeyAssumptionsPriceControl_FO!AI$15 -> 0.6828513338 | BW70: =+U70*KeyAssumptionsPriceControl_FO!AJ$15 -> 0.7067511305 | BX70: =+V70*KeyAssumptionsPriceControl_FO!AK$15 -> 0.73148742 | BZ70: 0.00043125 | CA70: 0.02352884375 | CB70: 0.02443715328 | CC70: 0.02537725365 | CD70: 0.03025378651 | CE70: 0.03920452703 | CF70: 0.04846854345 | CG70: 0.05805680046
A71: 19 | C71: Meter Replace | E71: Irrigation | F71: Renewals | G71: Channels | H71: Capital Programs / Allocation | J71: Straight line | K71: 2024-25 | L71: 30 | M71: 30 | O71: 0.033475 | P71: 0.033475 | Q71: 0.033475 | R71: 0.023175 | S71: 0.079825 | T71: 0.079825 | U71: 0.079825 | V71: 0.069525 | AP71: 0.033475 | AQ71: 0.033475 | AR71: 0.033475 | AS71: 0.023175 | AT71: 0.079825 | AU71: 0.079825 | AV71: 0.079825 | AW71: 0.069525 | AY71: 0.0005579166667 | AZ71: 0.00167375 | BA71: 0.002789583333 | BB71: 0.00373375 | BC71: 0.005450416667 | BD71: 0.00811125 | BE71: 0.01077208333 | BF71: 0.01326125 | BH71: =+IF($K71="Ongoing",AP71,IF(RIGHT($K71,2)=RIGHT(BH$39,2),SUM($AP71:AP71),0)+IF(RIGHT(BH$39,2)>RIGHT($K71,2),AP71,0)) -> 0.033475 | BI71: =+IF($K71="Ongoing",AQ71,IF(RIGHT($K71,2)=RIGHT(BI$39,2),SUM($AP71:AQ71),0)+IF(RIGHT(BI$39,2)>RIGHT($K71,2),AQ71,0)) -> 0.033475 | BJ71: =+IF($K71="Ongoing",AR71,IF(RIGHT($K71,2)=RIGHT(BJ$39,2),SUM($AP71:AR71),0)+IF(RIGHT(BJ$39,2)>RIGHT($K71,2),AR71,0)) -> 0.033475 | BK71: =+IF($K71="Ongoing",AS71,IF(RIGHT($K71,2)=RIGHT(BK$39,2),SUM($AP71:AS71),0)+IF(RIGHT(BK$39,2)>RIGHT($K71,2),AS71,0)) -> 0.023175 | BL71: =+IF($K71="Ongoing",AT71,IF(RIGHT($K71,2)=RIGHT(BL$39,2),SUM($AP71:AT71),0)+IF(RIGHT(BL$39,2)>RIGHT($K71,2),AT71,0)) -> 0.079825 | BM71: =+IF($K71="Ongoing",AU71,IF(RIGHT($K71,2)=RIGHT(BM$39,2),SUM($AP71:AU71),0)+IF(RIGHT(BM$39,2)>RIGHT($K71,2),AU71,0)) -> 0.079825 | BN71: =+IF($K71="Ongoing",AV71,IF(RIGHT($K71,2)=RIGHT(BN$39,2),SUM($AP71:AV71),0)+IF(RIGHT(BN$39,2)>RIGHT($K71,2),AV71,0)) -> 0.079825 | BO71: =+IF($K71="Ongoing",AW71,IF(RIGHT($K71,2)=RIGHT(BO$39,2),SUM($AP71:AW71),0)+IF(RIGHT(BO$39,2)>RIGHT($K71,2),AW71,0)) -> 0.069525 | BQ71: =+O71*KeyAssumptionsPriceControl_FO!AD$15 -> 0.034646625 | BR71: =+P71*KeyAssumptionsPriceControl_FO!AE$15 -> 0.03585925687 | BS71: =+Q71*KeyAssumptionsPriceControl_FO!AF$15 -> 0.03711433087 | BT71: =+R71*KeyAssumptionsPriceControl_FO!AG$15 -> 0.02659384554 | BU71: =+S71*KeyAssumptionsPriceControl_FO!AH$15 -> 0.09480705935 | BV71: =+T71*KeyAssumptionsPriceControl_FO!AI$15 -> 0.09812530643 | BW71: =+U71*KeyAssumptionsPriceControl_FO!AJ$15 -> 0.1015596922 | BX71: =+V71*KeyAssumptionsPriceControl_FO!AK$15 -> 0.09155114829 | BZ71: 0.00057744375 | CA71: 0.009391708448 | CB71: 0.01060793491 | CC71: 0.01166973785 | CD71: 0.01369308627 | CE71: 0.01690862569 | CF71: 0.020236709 | CG71: 0.02345522301
A72: 20 | C72: Bulk meter replace | E72: Irrigation | F72: Renewals | G72: Channels | H72: Capital Programs / Allocation | J72: Straight line | K72: 2027-28 | L72: 30 | M72: 30 | O72: 0 | P72: 0 | Q72: 0 | R72: 0.0412 | S72: 0 | T72: 0 | U72: 0 | V72: 0.0412 | AP72: 0 | AQ72: 0 | AR72: 0 | AS72: 0.0412 | AT72: 0 | AU72: 0 | AV72: 0 | AW72: 0.0412 | AY72: 0 | AZ72: 0 | BA72: 0 | BB72: 0.0006866666667 | BC72: 0.001373333333 | BD72: 0.001373333333 | BE72: 0.001373333333 | BF72: 0.00206 | BH72: =+IF($K72="Ongoing",AP72,IF(RIGHT($K72,2)=RIGHT(BH$39,2),SUM($AP72:AP72),0)+IF(RIGHT(BH$39,2)>RIGHT($K72,2),AP72,0)) -> 0 | BI72: =+IF($K72="Ongoing",AQ72,IF(RIGHT($K72,2)=RIGHT(BI$39,2),SUM($AP72:AQ72),0)+IF(RIGHT(BI$39,2)>RIGHT($K72,2),AQ72,0)) -> 0 | BJ72: =+IF($K72="Ongoing",AR72,IF(RIGHT($K72,2)=RIGHT(BJ$39,2),SUM($AP72:AR72),0)+IF(RIGHT(BJ$39,2)>RIGHT($K72,2),AR72,0)) -> 0 | BK72: =+IF($K72="Ongoing",AS72,IF(RIGHT($K72,2)=RIGHT(BK$39,2),SUM($AP72:AS72),0)+IF(RIGHT(BK$39,2)>RIGHT($K72,2),AS72,0)) -> 0.0412 | BL72: =+IF($K72="Ongoing",AT72,IF(RIGHT($K72,2)=RIGHT(BL$39,2),SUM($AP72:AT72),0)+IF(RIGHT(BL$39,2)>RIGHT($K72,2),AT72,0)) -> 0 | BM72: =+IF($K72="Ongoing",AU72,IF(RIGHT($K72,2)=RIGHT(BM$39,2),SUM($AP72:AU72),0)+IF(RIGHT(BM$39,2)>RIGHT($K72,2),AU72,0)) -> 0 | BN72: =+IF($K72="Ongoing",AV72,IF(RIGHT($K72,2)=RIGHT(BN$39,2),SUM($AP72:AV72),0)+IF(RIGHT(BN$39,2)>RIGHT($K72,2),AV72,0)) -> 0 | BO72: =+IF($K72="Ongoing",AW72,IF(RIGHT($K72,2)=RIGHT(BO$39,2),SUM($AP72:AW72),0)+IF(RIGHT(BO$39,2)>RIGHT($K72,2),AW72,0)) -> 0.0412 | BQ72: =+O72*KeyAssumptionsPriceControl_FO!AD$15 -> 0 | BR72: =+P72*KeyAssumptionsPriceControl_FO!AE$15 -> 0 | BS72: =+Q72*KeyAssumptionsPriceControl_FO!AF$15 -> 0 | BT72: =+R72*KeyAssumptionsPriceControl_FO!AG$15 -> 0.04727794763 | BU72: =+S72*KeyAssumptionsPriceControl_FO!AH$15 -> 0 | BV72: =+T72*KeyAssumptionsPriceControl_FO!AI$15 -> 0 | BW72: =+U72*KeyAssumptionsPriceControl_FO!AJ$15 -> 0 | BX72: =+V72*KeyAssumptionsPriceControl_FO!AK$15 -> 0.05425253232 | BZ72: 0 | CA72: 0.001373333333 | CB72: 0.001373333333 | CC72: 0.002161299127 | CD72: 0.002949264921 | CE72: 0.002949264921 | CF72: 0.002949264921 | CG72: 0.003853473793
A73: 21 | C73: Replace pumps/clear pipe blockages/dredge | E73: Drainage | F73: Renewals | G73: Channels | H73: Other Capital expenditure | J73: Straight line | K73: 2028-29 | L73: 75 | M73: 75 | O73: 0 | P73: 0 | Q73: 0 | R73: 0 | S73: 0.0515 | T73: 0.0515 | U73: 0 | V73: 0 | AP73: 0 | AQ73: 0 | AR73: 0 | AS73: 0 | AT73: 0.0515 | AU73: 0.0515 | AV73: 0 | AW73: 0 | AY73: 0 | AZ73: 0 | BA73: 0 | BB73: 0 | BC73: 0.0003433333333 | BD73: 0.00103 | BE73: 0.001373333333 | BF73: 0.001373333333 | BH73: =+IF($K73="Ongoing",AP73,IF(RIGHT($K73,2)=RIGHT(BH$39,2),SUM($AP73:AP73),0)+IF(RIGHT(BH$39,2)>RIGHT($K73,2),AP73,0)) -> 0 | BI73: =+IF($K73="Ongoing",AQ73,IF(RIGHT($K73,2)=RIGHT(BI$39,2),SUM($AP73:AQ73),0)+IF(RIGHT(BI$39,2)>RIGHT($K73,2),AQ73,0)) -> 0 | BJ73: =+IF($K73="Ongoing",AR73,IF(RIGHT($K73,2)=RIGHT(BJ$39,2),SUM($AP73:AR73),0)+IF(RIGHT(BJ$39,2)>RIGHT($K73,2),AR73,0)) -> 0 | BK73: =+IF($K73="Ongoing",AS73,IF(RIGHT($K73,2)=RIGHT(BK$39,2),SUM($AP73:AS73),0)+IF(RIGHT(BK$39,2)>RIGHT($K73,2),AS73,0)) -> 0 | BL73: =+IF($K73="Ongoing",AT73,IF(RIGHT($K73,2)=RIGHT(BL$39,2),SUM($AP73:AT73),0)+IF(RIGHT(BL$39,2)>RIGHT($K73,2),AT73,0)) -> 0.0515 | BM73: =+IF($K73="Ongoing",AU73,IF(RIGHT($K73,2)=RIGHT(BM$39,2),SUM($AP73:AU73),0)+IF(RIGHT(BM$39,2)>RIGHT($K73,2),AU73,0)) -> 0.0515 | BN73: =+IF($K73="Ongoing",AV73,IF(RIGHT($K73,2)=RIGHT(BN$39,2),SUM($AP73:AV73),0)+IF(RIGHT(BN$39,2)>RIGHT($K73,2),AV73,0)) -> 0 | BO73: =+IF($K73="Ongoing",AW73,IF(RIGHT($K73,2)=RIGHT(BO$39,2),SUM($AP73:AW73),0)+IF(RIGHT(BO$39,2)>RIGHT($K73,2),AW73,0)) -> 0 | BQ73: =+O73*KeyAssumptionsPriceControl_FO!AD$15 -> 0 | BR73: =+P73*KeyAssumptionsPriceControl_FO!AE$15 -> 0 | BS73: =+Q73*KeyAssumptionsPriceControl_FO!AF$15 -> 0 | BT73: =+R73*KeyAssumptionsPriceControl_FO!AG$15 -> 0 | BU73: =+S73*KeyAssumptionsPriceControl_FO!AH$15 -> 0.06116584474 | BV73: =+T73*KeyAssumptionsPriceControl_FO!AI$15 -> 0.06330664931 | BW73: =+U73*KeyAssumptionsPriceControl_FO!AJ$15 -> 0 | BX73: =+V73*KeyAssumptionsPriceControl_FO!AK$15 -> 0 | BZ73: 0 | CA73: 0.0006866666667 | CB73: 0.0006866666667 | CC73: 0.0006866666667 | CD73: 0.001094438965 | CE73: 0.001924255592 | CF73: 0.002346299921 | CG73: 0.002346299921
A74: 22 | C74: Distribution pumps replace (50%) | E74: Water supply districts | F74: Renewals | G74: Pipelines/network | H74: Other Capital expenditure | J74: Straight line | K74: 2028-29 | L74: 30 | M74: 30 | O74: 0 | P74: 0 | Q74: 0 | R74: 0 | S74: 0.0824 | T74: 0 | U74: 0.0824 | V74: 0 | AP74: 0 | AQ74: 0 | AR74: 0 | AS74: 0 | AT74: 0.0824 | AU74: 0 | AV74: 0.0824 | AW74: 0 | AY74: 0 | AZ74: 0 | BA74: 0 | BB74: 0 | BC74: 0.001373333333 | BD74: 0.002746666667 | BE74: 0.00412 | BF74: 0.005493333333 | BH74: =+IF($K74="Ongoing",AP74,IF(RIGHT($K74,2)=RIGHT(BH$39,2),SUM($AP74:AP74),0)+IF(RIGHT(BH$39,2)>RIGHT($K74,2),AP74,0)) -> 0 | BI74: =+IF($K74="Ongoing",AQ74,IF(RIGHT($K74,2)=RIGHT(BI$39,2),SUM($AP74:AQ74),0)+IF(RIGHT(BI$39,2)>RIGHT($K74,2),AQ74,0)) -> 0 | BJ74: =+IF($K74="Ongoing",AR74,IF(RIGHT($K74,2)=RIGHT(BJ$39,2),SUM($AP74:AR74),0)+IF(RIGHT(BJ$39,2)>RIGHT($K74,2),AR74,0)) -> 0 | BK74: =+IF($K74="Ongoing",AS74,IF(RIGHT($K74,2)=RIGHT(BK$39,2),SUM($AP74:AS74),0)+IF(RIGHT(BK$39,2)>RIGHT($K74,2),AS74,0)) -> 0 | BL74: =+IF($K74="Ongoing",AT74,IF(RIGHT($K74,2)=RIGHT(BL$39,2),SUM($AP74:AT74),0)+IF(RIGHT(BL$39,2)>RIGHT($K74,2),AT74,0)) -> 0.0824 | BM74: =+IF($K74="Ongoing",AU74,IF(RIGHT($K74,2)=RIGHT(BM$39,2),SUM($AP74:AU74),0)+IF(RIGHT(BM$39,2)>RIGHT($K74,2),AU74,0)) -> 0 | BN74: =+IF($K74="Ongoing",AV74,IF(RIGHT($K74,2)=RIGHT(BN$39,2),SUM($AP74:AV74),0)+IF(RIGHT(BN$39,2)>RIGHT($K74,2),AV74,0)) -> 0.0824 | BO74: =+IF($K74="Ongoing",AW74,IF(RIGHT($K74,2)=RIGHT(BO$39,2),SUM($AP74:AW74),0)+IF(RIGHT(BO$39,2)>RIGHT($K74,2),AW74,0)) -> 0 | BQ74: =+O74*KeyAssumptionsPriceControl_FO!AD$15 -> 0 | BR74: =+P74*KeyAssumptionsPriceControl_FO!AE$15 -> 0 | BS74: =+Q74*KeyAssumptionsPriceControl_FO!AF$15 -> 0 | BT74: =+R74*KeyAssumptionsPriceControl_FO!AG$15 -> 0 | BU74: =+S74*KeyAssumptionsPriceControl_FO!AH$15 -> 0.09786535159 | BV74: =+T74*KeyAssumptionsPriceControl_FO!AI$15 -> 0 | BW74: =+U74*KeyAssumptionsPriceControl_FO!AJ$15 -> 0.1048358113 | BX74: =+V74*KeyAssumptionsPriceControl_FO!AK$15 -> 0 | BZ74: 0 | CA74: 0.002746666667 | CB74: 0.002746666667 | CC74: 0.002746666667 | CD74: 0.00437775586 | CE74: 0.006008845053 | CF74: 0.007756108574 | CG74: 0.009503372095
A75: 23 | C75: Distribution pumps replace (25%) | E75: Water supply districts | F75: Renewals | G75: Pipelines/network | H75: Other Capital expenditure | J75: Straight line | K75: 2029-30 | L75: 30 | M75: 30 | O75: 0 | P75: 0 | Q75: 0 | R75: 0 | S75: 0 | T75: 0.0824 | U75: 0 | V75: 0 | AP75: 0 | AQ75: 0 | AR75: 0 | AS75: 0 | AT75: 0 | AU75: 0.0824 | AV75: 0 | AW75: 0 | AY75: 0 | AZ75: 0 | BA75: 0 | BB75: 0 | BC75: 0 | BD75: 0.001373333333 | BE75: 0.002746666667 | BF75: 0.002746666667 | BH75: =+IF($K75="Ongoing",AP75,IF(RIGHT($K75,2)=RIGHT(BH$39,2),SUM($AP75:AP75),0)+IF(RIGHT(BH$39,2)>RIGHT($K75,2),AP75,0)) -> 0 | BI75: =+IF($K75="Ongoing",AQ75,IF(RIGHT($K75,2)=RIGHT(BI$39,2),SUM($AP75:AQ75),0)+IF(RIGHT(BI$39,2)>RIGHT($K75,2),AQ75,0)) -> 0 | BJ75: =+IF($K75="Ongoing",AR75,IF(RIGHT($K75,2)=RIGHT(BJ$39,2),SUM($AP75:AR75),0)+IF(RIGHT(BJ$39,2)>RIGHT($K75,2),AR75,0)) -> 0 | BK75: =+IF($K75="Ongoing",AS75,IF(RIGHT($K75,2)=RIGHT(BK$39,2),SUM($AP75:AS75),0)+IF(RIGHT(BK$39,2)>RIGHT($K75,2),AS75,0)) -> 0 | BL75: =+IF($K75="Ongoing",AT75,IF(RIGHT($K75,2)=RIGHT(BL$39,2),SUM($AP75:AT75),0)+IF(RIGHT(BL$39,2)>RIGHT($K75,2),AT75,0)) -> 0 | BM75: =+IF($K75="Ongoing",AU75,IF(RIGHT($K75,2)=RIGHT(BM$39,2),SUM($AP75:AU75),0)+IF(RIGHT(BM$39,2)>RIGHT($K75,2),AU75,0)) -> 0.0824 | BN75: =+IF($K75="Ongoing",AV75,IF(RIGHT($K75,2)=RIGHT(BN$39,2),SUM($AP75:AV75),0)+IF(RIGHT(BN$39,2)>RIGHT($K75,2),AV75,0)) -> 0 | BO75: =+IF($K75="Ongoing",AW75,IF(RIGHT($K75,2)=RIGHT(BO$39,2),SUM($AP75:AW75),0)+IF(RIGHT(BO$39,2)>RIGHT($K75,2),AW75,0)) -> 0 | BQ75: =+O75*KeyAssumptionsPriceControl_FO!AD$15 -> 0 | BR75: =+P75*KeyAssumptionsPriceControl_FO!AE$15 -> 0 | BS75: =+Q75*KeyAssumptionsPriceControl_FO!AF$15 -> 0 | BT75: =+R75*KeyAssumptionsPriceControl_FO!AG$15 -> 0 | BU75: =+S75*KeyAssumptionsPriceControl_FO!AH$15 -> 0 | BV75: =+T75*KeyAssumptionsPriceControl_FO!AI$15 -> 0.1012906389 | BW75: =+U75*KeyAssumptionsPriceControl_FO!AJ$15 -> 0 | BX75: =+V75*KeyAssumptionsPriceControl_FO!AK$15 -> 0 | BZ75: 0 | CA75: 0.002746666667 | CB75: 0.002746666667 | CC75: 0.002746666667 | CD75: 0.002746666667 | CE75: 0.004434843982 | CF75: 0.006123021296 | CG75: 0.006123021296
A76: 24 | C76: Distribution pumps replace (full set) | E76: Water supply districts | F76: Renewals | G76: Pipelines/network | H76: Other Capital expenditure | J76: Straight line | K76: 2025-26 | L76: 30 | M76: 30 | O76: 0 | P76: 0.0824 | Q76: 0.0824 | R76: 0 | S76: 0.0824 | T76: 0.0824 | U76: 0 | V76: 0 | AP76: 0 | AQ76: 0.0824 | AR76: 0.0824 | AS76: 0 | AT76: 0.0824 | AU76: 0.0824 | AV76: 0 | AW76: 0 | AY76: 0 | AZ76: 0.001373333333 | BA76: 0.00412 | BB76: 0.005493333333 | BC76: 0.006866666667 | BD76: 0.009613333333 | BE76: 0.01098666667 | BF76: 0.01098666667 | BH76: =+IF($K76="Ongoing",AP76,IF(RIGHT($K76,2)=RIGHT(BH$39,2),SUM($AP76:AP76),0)+IF(RIGHT(BH$39,2)>RIGHT($K76,2),AP76,0)) -> 0 | BI76: =+IF($K76="Ongoing",AQ76,IF(RIGHT($K76,2)=RIGHT(BI$39,2),SUM($AP76:AQ76),0)+IF(RIGHT(BI$39,2)>RIGHT($K76,2),AQ76,0)) -> 0.0824 | BJ76: =+IF($K76="Ongoing",AR76,IF(RIGHT($K76,2)=RIGHT(BJ$39,2),SUM($AP76:AR76),0)+IF(RIGHT(BJ$39,2)>RIGHT($K76,2),AR76,0)) -> 0.0824 | BK76: =+IF($K76="Ongoing",AS76,IF(RIGHT($K76,2)=RIGHT(BK$39,2),SUM($AP76:AS76),0)+IF(RIGHT(BK$39,2)>RIGHT($K76,2),AS76,0)) -> 0 | BL76: =+IF($K76="Ongoing",AT76,IF(RIGHT($K76,2)=RIGHT(BL$39,2),SUM($AP76:AT76),0)+IF(RIGHT(BL$39,2)>RIGHT($K76,2),AT76,0)) -> 0.0824 | BM76: =+IF($K76="Ongoing",AU76,IF(RIGHT($K76,2)=RIGHT(BM$39,2),SUM($AP76:AU76),0)+IF(RIGHT(BM$39,2)>RIGHT($K76,2),AU76,0)) -> 0.0824 | BN76: =+IF($K76="Ongoing",AV76,IF(RIGHT($K76,2)=RIGHT(BN$39,2),SUM($AP76:AV76),0)+IF(RIGHT(BN$39,2)>RIGHT($K76,2),AV76,0)) -> 0 | BO76: =+IF($K76="Ongoing",AW76,IF(RIGHT($K76,2)=RIGHT(BO$39,2),SUM($AP76:AW76),0)+IF(RIGHT(BO$39,2)>RIGHT($K76,2),AW76,0)) -> 0 | BQ76: =+O76*KeyAssumptionsPriceControl_FO!AD$15 -> 0 | BR76: =+P76*KeyAssumptionsPriceControl_FO!AE$15 -> 0.08826894 | BS76: =+Q76*KeyAssumptionsPriceControl_FO!AF$15 -> 0.0913583529 | BT76: =+R76*KeyAssumptionsPriceControl_FO!AG$15 -> 0 | BU76: =+S76*KeyAssumptionsPriceControl_FO!AH$15 -> 0.09786535159 | BV76: =+T76*KeyAssumptionsPriceControl_FO!AI$15 -> 0.1012906389 | BW76: =+U76*KeyAssumptionsPriceControl_FO!AJ$15 -> 0 | BX76: =+V76*KeyAssumptionsPriceControl_FO!AK$15 -> 0 | BZ76: 0 | CA76: 0.004217815667 | CB76: 0.007211603882 | CC76: 0.008734243097 | CD76: 0.01036533229 | CE76: 0.0136845988 | CF76: 0.01537277611 | CG76: 0.01537277611
A77: 25 | C77: Distribution pumps replace (full set) | E77: Water supply districts | F77: Renewals | G77: Pipelines/network | H77: Other Capital expenditure | J77: Straight line | K77: 2028-29 | L77: 30 | M77: 30 | O77: 0 | P77: 0 | Q77: 0 | R77: 0 | S77: 0.0824 | T77: 0 | U77: 0 | V77: 0 | AP77: 0 | AQ77: 0 | AR77: 0 | AS77: 0 | AT77: 0.0824 | AU77: 0 | AV77: 0 | AW77: 0 | AY77: 0 | AZ77: 0 | BA77: 0 | BB77: 0 | BC77: 0.001373333333 | BD77: 0.002746666667 | BE77: 0.002746666667 | BF77: 0.002746666667 | BH77: =+IF($K77="Ongoing",AP77,IF(RIGHT($K77,2)=RIGHT(BH$39,2),SUM($AP77:AP77),0)+IF(RIGHT(BH$39,2)>RIGHT($K77,2),AP77,0)) -> 0 | BI77: =+IF($K77="Ongoing",AQ77,IF(RIGHT($K77,2)=RIGHT(BI$39,2),SUM($AP77:AQ77),0)+IF(RIGHT(BI$39,2)>RIGHT($K77,2),AQ77,0)) -> 0 | BJ77: =+IF($K77="Ongoing",AR77,IF(RIGHT($K77,2)=RIGHT(BJ$39,2),SUM($AP77:AR77),0)+IF(RIGHT(BJ$39,2)>RIGHT($K77,2),AR77,0)) -> 0 | BK77: =+IF($K77="Ongoing",AS77,IF(RIGHT($K77,2)=RIGHT(BK$39,2),SUM($AP77:AS77),0)+IF(RIGHT(BK$39,2)>RIGHT($K77,2),AS77,0)) -> 0 | BL77: =+IF($K77="Ongoing",AT77,IF(RIGHT($K77,2)=RIGHT(BL$39,2),SUM($AP77:AT77),0)+IF(RIGHT(BL$39,2)>RIGHT($K77,2),AT77,0)) -> 0.0824 | BM77: =+IF($K77="Ongoing",AU77,IF(RIGHT($K77,2)=RIGHT(BM$39,2),SUM($AP77:AU77),0)+IF(RIGHT(BM$39,2)>RIGHT($K77,2),AU77,0)) -> 0 | BN77: =+IF($K77="Ongoing",AV77,IF(RIGHT($K77,2)=RIGHT(BN$39,2),SUM($AP77:AV77),0)+IF(RIGHT(BN$39,2)>RIGHT($K77,2),AV77,0)) -> 0 | BO77: =+IF($K77="Ongoing",AW77,IF(RIGHT($K77,2)=RIGHT(BO$39,2),SUM($AP77:AW77),0)+IF(RIGHT(BO$39,2)>RIGHT($K77,2),AW77,0)) -> 0 | BQ77: =+O77*KeyAssumptionsPriceControl_FO!AD$15 -> 0 | BR77: =+P77*KeyAssumptionsPriceControl_FO!AE$15 -> 0 | BS77: =+Q77*KeyAssumptionsPriceControl_FO!AF$15 -> 0 | BT77: =+R77*KeyAssumptionsPriceControl_FO!AG$15 -> 0 | BU77: =+S77*KeyAssumptionsPriceControl_FO!AH$15 -> 0.09786535159 | BV77: =+T77*KeyAssumptionsPriceControl_FO!AI$15 -> 0 | BW77: =+U77*KeyAssumptionsPriceControl_FO!AJ$15 -> 0 | BX77: =+V77*KeyAssumptionsPriceControl_FO!AK$15 -> 0 | BZ77: 0 | CA77: 0 | CB77: 0 | CC77: 0 | CD77: 0.001631089193 | CE77: 0.003262178386 | CF77: 0.003262178386 | CG77: 0.003262178386
A78: 26 | C78: Linear | E78: Irrigation | F78: Renewals | G78: Channels | H78: Capital Programs / Allocation | J78: Straight line | K78: 2024-25 | L78: 100 | M78: 100 | O78: 2.763414634 | P78: 3.115121951 | Q78: 3.165365854 | R78: 2.914146341 | S78: 2.88902439 | T78: 2.88902439 | U78: 2.88902439 | V78: 2.88902439 | AP78: 2.763414634 | AQ78: 3.115121951 | AR78: 3.165365854 | AS78: 2.914146341 | AT78: 2.88902439 | AU78: 2.88902439 | AV78: 2.88902439 | AW78: 2.88902439 | AY78: 0.01381707317 | AZ78: 0.0432097561 | BA78: 0.07461219512 | BB78: 0.1050097561 | BC78: 0.1340256098 | BD78: 0.1629158537 | BE78: 0.1918060976 | BF78: 0.2206963415 | BH78: =+IF($K78="Ongoing",AP78,IF(RIGHT($K78,2)=RIGHT(BH$39,2),SUM($AP78:AP78),0)+IF(RIGHT(BH$39,2)>RIGHT($K78,2),AP78,0)) -> 2.763414634 | BI78: =+IF($K78="Ongoing",AQ78,IF(RIGHT($K78,2)=RIGHT(BI$39,2),SUM($AP78:AQ78),0)+IF(RIGHT(BI$39,2)>RIGHT($K78,2),AQ78,0)) -> 3.115121951 | BJ78: =+IF($K78="Ongoing",AR78,IF(RIGHT($K78,2)=RIGHT(BJ$39,2),SUM($AP78:AR78),0)+IF(RIGHT(BJ$39,2)>RIGHT($K78,2),AR78,0)) -> 3.165365854 | BK78: =+IF($K78="Ongoing",AS78,IF(RIGHT($K78,2)=RIGHT(BK$39,2),SUM($AP78:AS78),0)+IF(RIGHT(BK$39,2)>RIGHT($K78,2),AS78,0)) -> 2.914146341 | BL78: =+IF($K78="Ongoing",AT78,IF(RIGHT($K78,2)=RIGHT(BL$39,2),SUM($AP78:AT78),0)+IF(RIGHT(BL$39,2)>RIGHT($K78,2),AT78,0)) -> 2.88902439 | BM78: =+IF($K78="Ongoing",AU78,IF(RIGHT($K78,2)=RIGHT(BM$39,2),SUM($AP78:AU78),0)+IF(RIGHT(BM$39,2)>RIGHT($K78,2),AU78,0)) -> 2.88902439 | BN78: =+IF($K78="Ongoing",AV78,IF(RIGHT($K78,2)=RIGHT(BN$39,2),SUM($AP78:AV78),0)+IF(RIGHT(BN$39,2)>RIGHT($K78,2),AV78,0)) -> 2.88902439 | BO78: =+IF($K78="Ongoing",AW78,IF(RIGHT($K78,2)=RIGHT(BO$39,2),SUM($AP78:AW78),0)+IF(RIGHT(BO$39,2)>RIGHT($K78,2),AW78,0)) -> 2.88902439 | BQ78: =+O78*KeyAssumptionsPriceControl_FO!AD$15 -> 2.860134146 | BR78: =+P78*KeyAssumptionsPriceControl_FO!AE$15 -> 3.336996512 | BS78: =+Q78*KeyAssumptionsPriceControl_FO!AF$15 -> 3.509497703 | BT78: =+R78*KeyAssumptionsPriceControl_FO!AG$15 -> 3.344049954 | BU78: =+S78*KeyAssumptionsPriceControl_FO!AH$15 -> 3.431254705 | BV78: =+T78*KeyAssumptionsPriceControl_FO!AI$15 -> 3.55134862 | BW78: =+U78*KeyAssumptionsPriceControl_FO!AJ$15 -> 3.675645821 | BX78: =+V78*KeyAssumptionsPriceControl_FO!AK$15 -> 3.804293425 | BZ78: 0.01430067073 | CA78: 0.1319570557 | CB78: 0.1661895268 | CC78: 0.2004572651 | CD78: 0.2343337884 | CE78: 0.269246805 | CF78: 0.3053817772 | CG78: 0.3427814734
A79: 27 | C79: Linear | E79: Irrigation | F79: Renewals | G79: Channels | H79: Capital Programs / Allocation | J79: Straight line | K79: 2024-25 | L79: 40 | M79: 40 | O79: 1.381707317 | P79: 1.557560976 | Q79: 1.582682927 | R79: 1.457073171 | S79: 1.444512195 | T79: 1.444512195 | U79: 1.444512195 | V79: 1.444512195 | AP79: 1.381707317 | AQ79: 1.557560976 | AR79: 1.582682927 | AS79: 1.457073171 | AT79: 1.444512195 | AU79: 1.444512195 | AV79: 1.444512195 | AW79: 1.444512195 | AY79: 0.01727134146 | AZ79: 0.05401219512 | BA79: 0.0932652439 | BB79: 0.1312621951 | BC79: 0.1675320122 | BD79: 0.2036448171 | BE79: 0.2397576219 | BF79: 0.2758704268 | BH79: =+IF($K79="Ongoing",AP79,IF(RIGHT($K79,2)=RIGHT(BH$39,2),SUM($AP79:AP79),0)+IF(RIGHT(BH$39,2)>RIGHT($K79,2),AP79,0)) -> 1.381707317 | BI79: =+IF($K79="Ongoing",AQ79,IF(RIGHT($K79,2)=RIGHT(BI$39,2),SUM($AP79:AQ79),0)+IF(RIGHT(BI$39,2)>RIGHT($K79,2),AQ79,0)) -> 1.557560976 | BJ79: =+IF($K79="Ongoing",AR79,IF(RIGHT($K79,2)=RIGHT(BJ$39,2),SUM($AP79:AR79),0)+IF(RIGHT(BJ$39,2)>RIGHT($K79,2),AR79,0)) -> 1.582682927 | BK79: =+IF($K79="Ongoing",AS79,IF(RIGHT($K79,2)=RIGHT(BK$39,2),SUM($AP79:AS79),0)+IF(RIGHT(BK$39,2)>RIGHT($K79,2),AS79,0)) -> 1.457073171 | BL79: =+IF($K79="Ongoing",AT79,IF(RIGHT($K79,2)=RIGHT(BL$39,2),SUM($AP79:AT79),0)+IF(RIGHT(BL$39,2)>RIGHT($K79,2),AT79,0)) -> 1.444512195 | BM79: =+IF($K79="Ongoing",AU79,IF(RIGHT($K79,2)=RIGHT(BM$39,2),SUM($AP79:AU79),0)+IF(RIGHT(BM$39,2)>RIGHT($K79,2),AU79,0)) -> 1.444512195 | BN79: =+IF($K79="Ongoing",AV79,IF(RIGHT($K79,2)=RIGHT(BN$39,2),SUM($AP79:AV79),0)+IF(RIGHT(BN$39,2)>RIGHT($K79,2),AV79,0)) -> 1.444512195 | BO79: =+IF($K79="Ongoing",AW79,IF(RIGHT($K79,2)=RIGHT(BO$39,2),SUM($AP79:AW79),0)+IF(RIGHT(BO$39,2)>RIGHT($K79,2),AW79,0)) -> 1.444512195 | BQ79: =+O79*KeyAssumptionsPriceControl_FO!AD$15 -> 1.430067073 | BR79: =+P79*KeyAssumptionsPriceControl_FO!AE$15 -> 1.668498256 | BS79: =+Q79*KeyAssumptionsPriceControl_FO!AF$15 -> 1.754748851 | BT79: =+R79*KeyAssumptionsPriceControl_FO!AG$15 -> 1.672024977 | BU79: =+S79*KeyAssumptionsPriceControl_FO!AH$15 -> 1.715627352 | BV79: =+T79*KeyAssumptionsPriceControl_FO!AI$15 -> 1.77567431 | BW79: =+U79*KeyAssumptionsPriceControl_FO!AJ$15 -> 1.837822911 | BX79: =+V79*KeyAssumptionsPriceControl_FO!AK$15 -> 1.902146713 | BZ79: 0.01787583841 | CA79: 0.1649463197 | CB79: 0.2077369085 | CC79: 0.2505715814 | CD79: 0.2929172355 | CE79: 0.3365585063 | CF79: 0.3817272215 | CG79: 0.4284768418
A80: 28 | C80: Linear | E80: Irrigation | F80: Renewals | G80: Channels | H80: Capital Programs / Allocation | J80: Straight line | K80: 2024-25 | L80: 20 | M80: 20 | O80: 0.6632195122 | P80: 0.7476292683 | Q80: 0.7596878049 | R80: 0.699395122 | S80: 0.6933658537 | T80: 0.6933658537 | U80: 0.6933658537 | V80: 0.6933658537 | AP80: 0.6632195122 | AQ80: 0.7476292683 | AR80: 0.7596878049 | AS80: 0.699395122 | AT80: 0.6933658537 | AU80: 0.6933658537 | AV80: 0.6933658537 | AW80: 0.6933658537 | AY80: 0.0165804878 | AZ80: 0.05185170732 | BA80: 0.08953463415 | BB80: 0.1260117073 | BC80: 0.1608307317 | BD80: 0.1954990244 | BE80: 0.2301673171 | BF80: 0.2648356098 | BH80: =+IF($K80="Ongoing",AP80,IF(RIGHT($K80,2)=RIGHT(BH$39,2),SUM($AP80:AP80),0)+IF(RIGHT(BH$39,2)>RIGHT($K80,2),AP80,0)) -> 0.6632195122 | BI80: =+IF($K80="Ongoing",AQ80,IF(RIGHT($K80,2)=RIGHT(BI$39,2),SUM($AP80:AQ80),0)+IF(RIGHT(BI$39,2)>RIGHT($K80,2),AQ80,0)) -> 0.7476292683 | BJ80: =+IF($K80="Ongoing",AR80,IF(RIGHT($K80,2)=RIGHT(BJ$39,2),SUM($AP80:AR80),0)+IF(RIGHT(BJ$39,2)>RIGHT($K80,2),AR80,0)) -> 0.7596878049 | BK80: =+IF($K80="Ongoing",AS80,IF(RIGHT($K80,2)=RIGHT(BK$39,2),SUM($AP80:AS80),0)+IF(RIGHT(BK$39,2)>RIGHT($K80,2),AS80,0)) -> 0.699395122 | BL80: =+IF($K80="Ongoing",AT80,IF(RIGHT($K80,2)=RIGHT(BL$39,2),SUM($AP80:AT80),0)+IF(RIGHT(BL$39,2)>RIGHT($K80,2),AT80,0)) -> 0.6933658537 | BM80: =+IF($K80="Ongoing",AU80,IF(RIGHT($K80,2)=RIGHT(BM$39,2),SUM($AP80:AU80),0)+IF(RIGHT(BM$39,2)>RIGHT($K80,2),AU80,0)) -> 0.6933658537 | BN80: =+IF($K80="Ongoing",AV80,IF(RIGHT($K80,2)=RIGHT(BN$39,2),SUM($AP80:AV80),0)+IF(RIGHT(BN$39,2)>RIGHT($K80,2),AV80,0)) -> 0.6933658537 | BO80: =+IF($K80="Ongoing",AW80,IF(RIGHT($K80,2)=RIGHT(BO$39,2),SUM($AP80:AW80),0)+IF(RIGHT(BO$39,2)>RIGHT($K80,2),AW80,0)) -> 0.6933658537 | BQ80: =+O80*KeyAssumptionsPriceControl_FO!AD$15 -> 0.6864321951 | BR80: =+P80*KeyAssumptionsPriceControl_FO!AE$15 -> 0.8008791629 | BS80: =+Q80*KeyAssumptionsPriceControl_FO!AF$15 -> 0.8422794487 | BT80: =+R80*KeyAssumptionsPriceControl_FO!AG$15 -> 0.802571989 | BU80: =+S80*KeyAssumptionsPriceControl_FO!AH$15 -> 0.8235011292 | BV80: =+T80*KeyAssumptionsPriceControl_FO!AI$15 -> 0.8523236688 | BW80: =+U80*KeyAssumptionsPriceControl_FO!AJ$15 -> 0.8821549972 | BX80: =+V80*KeyAssumptionsPriceControl_FO!AK$15 -> 0.9130304221 | BZ80: 0.01716080488 | CA80: 0.1583484669 | CB80: 0.1994274322 | CC80: 0.2405487181 | CD80: 0.2812005461 | CE80: 0.323096166 | CF80: 0.3664581327 | CG80: 0.4113377682
A81: 29 | C81: Linear | E81: Irrigation | F81: Renewals | G81: Channels | H81: Capital Programs / Allocation | J81: Straight line | K81: 2024-25 | L81: 15 | M81: 15 | O81: 0.6908536585 | P81: 0.7787804878 | Q81: 0.7913414634 | R81: 0.7285365854 | S81: 0.7222560976 | T81: 0.7222560976 | U81: 0.7222560976 | V81: 0.7222560976 | AP81: 0.6908536585 | AQ81: 0.7787804878 | AR81: 0.7913414634 | AS81: 0.7285365854 | AT81: 0.7222560976 | AU81: 0.7222560976 | AV81: 0.7222560976 | AW81: 0.7222560976 | AY81: 0.02302845528 | AZ81: 0.07201626016 | BA81: 0.1243536585 | BB81: 0.1750162602 | BC81: 0.2233760163 | BD81: 0.2715264228 | BE81: 0.3196768293 | BF81: 0.3678272358 | BH81: =+IF($K81="Ongoing",AP81,IF(RIGHT($K81,2)=RIGHT(BH$39,2),SUM($AP81:AP81),0)+IF(RIGHT(BH$39,2)>RIGHT($K81,2),AP81,0)) -> 0.6908536585 | BI81: =+IF($K81="Ongoing",AQ81,IF(RIGHT($K81,2)=RIGHT(BI$39,2),SUM($AP81:AQ81),0)+IF(RIGHT(BI$39,2)>RIGHT($K81,2),AQ81,0)) -> 0.7787804878 | BJ81: =+IF($K81="Ongoing",AR81,IF(RIGHT($K81,2)=RIGHT(BJ$39,2),SUM($AP81:AR81),0)+IF(RIGHT(BJ$39,2)>RIGHT($K81,2),AR81,0)) -> 0.7913414634 | BK81: =+IF($K81="Ongoing",AS81,IF(RIGHT($K81,2)=RIGHT(BK$39,2),SUM($AP81:AS81),0)+IF(RIGHT(BK$39,2)>RIGHT($K81,2),AS81,0)) -> 0.7285365854 | BL81: =+IF($K81="Ongoing",AT81,IF(RIGHT($K81,2)=RIGHT(BL$39,2),SUM($AP81:AT81),0)+IF(RIGHT(BL$39,2)>RIGHT($K81,2),AT81,0)) -> 0.7222560976 | BM81: =+IF($K81="Ongoing",AU81,IF(RIGHT($K81,2)=RIGHT(BM$39,2),SUM($AP81:AU81),0)+IF(RIGHT(BM$39,2)>RIGHT($K81,2),AU81,0)) -> 0.7222560976 | BN81: =+IF($K81="Ongoing",AV81,IF(RIGHT($K81,2)=RIGHT(BN$39,2),SUM($AP81:AV81),0)+IF(RIGHT(BN$39,2)>RIGHT($K81,2),AV81,0)) -> 0.7222560976 | BO81: =+IF($K81="Ongoing",AW81,IF(RIGHT($K81,2)=RIGHT(BO$39,2),SUM($AP81:AW81),0)+IF(RIGHT(BO$39,2)>RIGHT($K81,2),AW81,0)) -> 0.7222560976 | BQ81: =+O81*KeyAssumptionsPriceControl_FO!AD$15 -> 0.7150335365 | BR81: =+P81*KeyAssumptionsPriceControl_FO!AE$15 -> 0.834249128 | BS81: =+Q81*KeyAssumptionsPriceControl_FO!AF$15 -> 0.8773744257 | BT81: =+R81*KeyAssumptionsPriceControl_FO!AG$15 -> 0.8360124885 | BU81: =+S81*KeyAssumptionsPriceControl_FO!AH$15 -> 0.8578136763 | BV81: =+T81*KeyAssumptionsPriceControl_FO!AI$15 -> 0.887837155 | BW81: =+U81*KeyAssumptionsPriceControl_FO!AJ$15 -> 0.9189114554 | BX81: =+V81*KeyAssumptionsPriceControl_FO!AK$15 -> 0.9510733563 | BZ81: 0.02383445122 | CA81: 0.2199284262 | CB81: 0.2769825447 | CC81: 0.3340954418 | CD81: 0.390556314 | CE81: 0.448744675 | CF81: 0.5089696287 | CG81: 0.5713024558
A82: 30 | C82: Linear | E82: Irrigation | F82: Renewals | G82: Channels | H82: Capital Programs / Allocation | J82: Straight line | K82: 2024-25 | L82: 10 | M82: 10 | O82: 0.165804878 | P82: 0.1869073171 | Q82: 0.1899219512 | R82: 0.1748487805 | S82: 0.1733414634 | T82: 0.1733414634 | U82: 0.1733414634 | V82: 0.1733414634 | AP82: 0.165804878 | AQ82: 0.1869073171 | AR82: 0.1899219512 | AS82: 0.1748487805 | AT82: 0.1733414634 | AU82: 0.1733414634 | AV82: 0.1733414634 | AW82: 0.1733414634 | AY82: 0.0082902439 | AZ82: 0.02592585365 | BA82: 0.04476731707 | BB82: 0.06300585365 | BC82: 0.08041536585 | BD82: 0.09774951219 | BE82: 0.1150836585 | BF82: 0.1324178049 | BH82: =+IF($K82="Ongoing",AP82,IF(RIGHT($K82,2)=RIGHT(BH$39,2),SUM($AP82:AP82),0)+IF(RIGHT(BH$39,2)>RIGHT($K82,2),AP82,0)) -> 0.165804878 | BI82: =+IF($K82="Ongoing",AQ82,IF(RIGHT($K82,2)=RIGHT(BI$39,2),SUM($AP82:AQ82),0)+IF(RIGHT(BI$39,2)>RIGHT($K82,2),AQ82,0)) -> 0.1869073171 | BJ82: =+IF($K82="Ongoing",AR82,IF(RIGHT($K82,2)=RIGHT(BJ$39,2),SUM($AP82:AR82),0)+IF(RIGHT(BJ$39,2)>RIGHT($K82,2),AR82,0)) -> 0.1899219512 | BK82: =+IF($K82="Ongoing",AS82,IF(RIGHT($K82,2)=RIGHT(BK$39,2),SUM($AP82:AS82),0)+IF(RIGHT(BK$39,2)>RIGHT($K82,2),AS82,0)) -> 0.1748487805 | BL82: =+IF($K82="Ongoing",AT82,IF(RIGHT($K82,2)=RIGHT(BL$39,2),SUM($AP82:AT82),0)+IF(RIGHT(BL$39,2)>RIGHT($K82,2),AT82,0)) -> 0.1733414634 | BM82: =+IF($K82="Ongoing",AU82,IF(RIGHT($K82,2)=RIGHT(BM$39,2),SUM($AP82:AU82),0)+IF(RIGHT(BM$39,2)>RIGHT($K82,2),AU82,0)) -> 0.1733414634 | BN82: =+IF($K82="Ongoing",AV82,IF(RIGHT($K82,2)=RIGHT(BN$39,2),SUM($AP82:AV82),0)+IF(RIGHT(BN$39,2)>RIGHT($K82,2),AV82,0)) -> 0.1733414634 | BO82: =+IF($K82="Ongoing",AW82,IF(RIGHT($K82,2)=RIGHT(BO$39,2),SUM($AP82:AW82),0)+IF(RIGHT(BO$39,2)>RIGHT($K82,2),AW82,0)) -> 0.1733414634 | BQ82: =+O82*KeyAssumptionsPriceControl_FO!AD$15 -> 0.1716080487 | BR82: =+P82*KeyAssumptionsPriceControl_FO!AE$15 -> 0.2002197908 | BS82: =+Q82*KeyAssumptionsPriceControl_FO!AF$15 -> 0.2105698622 | BT82: =+R82*KeyAssumptionsPriceControl_FO!AG$15 -> 0.2006429973 | BU82: =+S82*KeyAssumptionsPriceControl_FO!AH$15 -> 0.2058752823 | BV82: =+T82*KeyAssumptionsPriceControl_FO!AI$15 -> 0.2130809172 | BW82: =+U82*KeyAssumptionsPriceControl_FO!AJ$15 -> 0.2205387493 | BX82: =+V82*KeyAssumptionsPriceControl_FO!AK$15 -> 0.2282576055 | BZ82: 0.008580402436 | CA82: 0.07917423343 | CB82: 0.09971371608 | CC82: 0.120274359 | CD82: 0.140600273 | CE82: 0.161548083 | CF82: 0.16589492 | CG82: 0.1710005914
A83: 31 | C83: Structures | E83: Irrigation | F83: Renewals | G83: Channels | H83: Capital Programs / Allocation | J83: Straight line | K83: 2024-25 | L83: 80 | M83: 80 | O83: 2.266 | P83: 2.575 | Q83: 4.017 | R83: 2.575 | S83: 2.4205 | T83: 3.811 | U83: 2.4205 | V83: 2.4205 | AP83: 2.266 | AQ83: 2.575 | AR83: 4.017 | AS83: 2.575 | AT83: 2.4205 | AU83: 3.811 | AV83: 2.4205 | AW83: 2.4205 | AY83: 0.0141625 | AZ83: 0.04441875 | BA83: 0.08561875 | BB83: 0.12681875 | BC83: 0.158040625 | BD83: 0.1969875 | BE83: 0.235934375 | BF83: 0.266190625 | BH83: =+IF($K83="Ongoing",AP83,IF(RIGHT($K83,2)=RIGHT(BH$39,2),SUM($AP83:AP83),0)+IF(RIGHT(BH$39,2)>RIGHT($K83,2),AP83,0)) -> 2.266 | BI83: =+IF($K83="Ongoing",AQ83,IF(RIGHT($K83,2)=RIGHT(BI$39,2),SUM($AP83:AQ83),0)+IF(RIGHT(BI$39,2)>RIGHT($K83,2),AQ83,0)) -> 2.575 | BJ83: =+IF($K83="Ongoing",AR83,IF(RIGHT($K83,2)=RIGHT(BJ$39,2),SUM($AP83:AR83),0)+IF(RIGHT(BJ$39,2)>RIGHT($K83,2),AR83,0)) -> 4.017 | BK83: =+IF($K83="Ongoing",AS83,IF(RIGHT($K83,2)=RIGHT(BK$39,2),SUM($AP83:AS83),0)+IF(RIGHT(BK$39,2)>RIGHT($K83,2),AS83,0)) -> 2.575 | BL83: =+IF($K83="Ongoing",AT83,IF(RIGHT($K83,2)=RIGHT(BL$39,2),SUM($AP83:AT83),0)+IF(RIGHT(BL$39,2)>RIGHT($K83,2),AT83,0)) -> 2.4205 | BM83: =+IF($K83="Ongoing",AU83,IF(RIGHT($K83,2)=RIGHT(BM$39,2),SUM($AP83:AU83),0)+IF(RIGHT(BM$39,2)>RIGHT($K83,2),AU83,0)) -> 3.811 | BN83: =+IF($K83="Ongoing",AV83,IF(RIGHT($K83,2)=RIGHT(BN$39,2),SUM($AP83:AV83),0)+IF(RIGHT(BN$39,2)>RIGHT($K83,2),AV83,0)) -> 2.4205 | BO83: =+IF($K83="Ongoing",AW83,IF(RIGHT($K83,2)=RIGHT(BO$39,2),SUM($AP83:AW83),0)+IF(RIGHT(BO$39,2)>RIGHT($K83,2),AW83,0)) -> 2.4205 | BQ83: =+O83*KeyAssumptionsPriceControl_FO!AD$15 -> 2.34531 | BR83: =+P83*KeyAssumptionsPriceControl_FO!AE$15 -> 2.758404375 | BS83: =+Q83*KeyAssumptionsPriceControl_FO!AF$15 -> 4.453719704 | BT83: =+R83*KeyAssumptionsPriceControl_FO!AG$15 -> 2.954871727 | BU83: =+S83*KeyAssumptionsPriceControl_FO!AH$15 -> 2.874794703 | BV83: =+T83*KeyAssumptionsPriceControl_FO!AI$15 -> 4.684692049 | BW83: =+U83*KeyAssumptionsPriceControl_FO!AJ$15 -> 3.079551956 | BX83: =+V83*KeyAssumptionsPriceControl_FO!AK$15 -> 3.187336274 | BZ83: 0.0146581875 | CA83: 0.1547064023 | CB83: 0.1997821778 | CC83: 0.2460858743 | CD83: 0.2825212895 | CE83: 0.3297680817 | CF83: 0.3782946067 | CG83: 0.4174626581
A84: 32 | C84: Meter Replace | E84: Irrigation | F84: Renewals | G84: Channels | H84: Capital Programs / Allocation | J84: Straight line | K84: 2024-25 | L84: 30 | M84: 30 | O84: 0.8755 | P84: 0.8755 | Q84: 0.8755 | R84: 0.8755 | S84: 0.8755 | T84: 0.8755 | U84: 0.8755 | V84: 0.8755 | AP84: 0.8755 | AQ84: 0.8755 | AR84: 0.8755 | AS84: 0.8755 | AT84: 0.8755 | AU84: 0.8755 | AV84: 0.8755 | AW84: 0.8755 | AY84: 0.01459166667 | AZ84: 0.043775 | BA84: 0.07295833333 | BB84: 0.1021416667 | BC84: 0.131325 | BD84: 0.1605083333 | BE84: 0.1896916667 | BF84: 0.218875 | BH84: =+IF($K84="Ongoing",AP84,IF(RIGHT($K84,2)=RIGHT(BH$39,2),SUM($AP84:AP84),0)+IF(RIGHT(BH$39,2)>RIGHT($K84,2),AP84,0)) -> 0.8755 | BI84: =+IF($K84="Ongoing",AQ84,IF(RIGHT($K84,2)=RIGHT(BI$39,2),SUM($AP84:AQ84),0)+IF(RIGHT(BI$39,2)>RIGHT($K84,2),AQ84,0)) -> 0.8755 | BJ84: =+IF($K84="Ongoing",AR84,IF(RIGHT($K84,2)=RIGHT(BJ$39,2),SUM($AP84:AR84),0)+IF(RIGHT(BJ$39,2)>RIGHT($K84,2),AR84,0)) -> 0.8755 | BK84: =+IF($K84="Ongoing",AS84,IF(RIGHT($K84,2)=RIGHT(BK$39,2),SUM($AP84:AS84),0)+IF(RIGHT(BK$39,2)>RIGHT($K84,2),AS84,0)) -> 0.8755 | BL84: =+IF($K84="Ongoing",AT84,IF(RIGHT($K84,2)=RIGHT(BL$39,2),SUM($AP84:AT84),0)+IF(RIGHT(BL$39,2)>RIGHT($K84,2),AT84,0)) -> 0.8755 | BM84: =+IF($K84="Ongoing",AU84,IF(RIGHT($K84,2)=RIGHT(BM$39,2),SUM($AP84:AU84),0)+IF(RIGHT(BM$39,2)>RIGHT($K84,2),AU84,0)) -> 0.8755 | BN84: =+IF($K84="Ongoing",AV84,IF(RIGHT($K84,2)=RIGHT(BN$39,2),SUM($AP84:AV84),0)+IF(RIGHT(BN$39,2)>RIGHT($K84,2),AV84,0)) -> 0.8755 | BO84: =+IF($K84="Ongoing",AW84,IF(RIGHT($K84,2)=RIGHT(BO$39,2),SUM($AP84:AW84),0)+IF(RIGHT(BO$39,2)>RIGHT($K84,2),AW84,0)) -> 0.8755 | BQ84: =+O84*KeyAssumptionsPriceControl_FO!AD$15 -> 0.9061425 | BR84: =+P84*KeyAssumptionsPriceControl_FO!AE$15 -> 0.9378574875 | BS84: =+Q84*KeyAssumptionsPriceControl_FO!AF$15 -> 0.9706824996 | BT84: =+R84*KeyAssumptionsPriceControl_FO!AG$15 -> 1.004656387 | BU84: =+S84*KeyAssumptionsPriceControl_FO!AH$15 -> 1.039819361 | BV84: =+T84*KeyAssumptionsPriceControl_FO!AI$15 -> 1.076213038 | BW84: =+U84*KeyAssumptionsPriceControl_FO!AJ$15 -> 1.113880495 | BX84: =+V84*KeyAssumptionsPriceControl_FO!AK$15 -> 1.152866312 | BZ84: 0.015102375 | CA84: 0.1333857081 | CB84: 0.1651947079 | CC84: 0.1981170227 | CD84: 0.2321916185 | CE84: 0.2674588251 | CF84: 0.303960384 | CG84: 0.3417394974
A85: 33 | C85: Access Tracks | E85: Irrigation | F85: Renewals | G85: Channels | H85: Other Capital expenditure | J85: Straight line | K85: 2024-25 | L85: 20 | M85: 20 | O85: 0.7725 | P85: 0.7725 | Q85: 0.7725 | R85: 0.7725 | S85: 0.515 | T85: 0.515 | U85: 0.515 | V85: 0.515 | AP85: 0.7725 | AQ85: 0.7725 | AR85: 0.7725 | AS85: 0.7725 | AT85: 0.515 | AU85: 0.515 | AV85: 0.515 | AW85: 0.515 | AY85: 0.0193125 | AZ85: 0.0579375 | BA85: 0.0965625 | BB85: 0.1351875 | BC85: 0.167375 | BD85: 0.193125 | BE85: 0.218875 | BF85: 0.244625 | BH85: =+IF($K85="Ongoing",AP85,IF(RIGHT($K85,2)=RIGHT(BH$39,2),SUM($AP85:AP85),0)+IF(RIGHT(BH$39,2)>RIGHT($K85,2),AP85,0)) -> 0.7725 | BI85: =+IF($K85="Ongoing",AQ85,IF(RIGHT($K85,2)=RIGHT(BI$39,2),SUM($AP85:AQ85),0)+IF(RIGHT(BI$39,2)>RIGHT($K85,2),AQ85,0)) -> 0.7725 | BJ85: =+IF($K85="Ongoing",AR85,IF(RIGHT($K85,2)=RIGHT(BJ$39,2),SUM($AP85:AR85),0)+IF(RIGHT(BJ$39,2)>RIGHT($K85,2),AR85,0)) -> 0.7725 | BK85: =+IF($K85="Ongoing",AS85,IF(RIGHT($K85,2)=RIGHT(BK$39,2),SUM($AP85:AS85),0)+IF(RIGHT(BK$39,2)>RIGHT($K85,2),AS85,0)) -> 0.7725 | BL85: =+IF($K85="Ongoing",AT85,IF(RIGHT($K85,2)=RIGHT(BL$39,2),SUM($AP85:AT85),0)+IF(RIGHT(BL$39,2)>RIGHT($K85,2),AT85,0)) -> 0.515 | BM85: =+IF($K85="Ongoing",AU85,IF(RIGHT($K85,2)=RIGHT(BM$39,2),SUM($AP85:AU85),0)+IF(RIGHT(BM$39,2)>RIGHT($K85,2),AU85,0)) -> 0.515 | BN85: =+IF($K85="Ongoing",AV85,IF(RIGHT($K85,2)=RIGHT(BN$39,2),SUM($AP85:AV85),0)+IF(RIGHT(BN$39,2)>RIGHT($K85,2),AV85,0)) -> 0.515 | BO85: =+IF($K85="Ongoing",AW85,IF(RIGHT($K85,2)=RIGHT(BO$39,2),SUM($AP85:AW85),0)+IF(RIGHT(BO$39,2)>RIGHT($K85,2),AW85,0)) -> 0.515 | BQ85: =+O85*KeyAssumptionsPriceControl_FO!AD$15 -> 0.7995375 | BR85: =+P85*KeyAssumptionsPriceControl_FO!AE$15 -> 0.8275213125 | BS85: =+Q85*KeyAssumptionsPriceControl_FO!AF$15 -> 0.8564845584 | BT85: =+R85*KeyAssumptionsPriceControl_FO!AG$15 -> 0.886461518 | BU85: =+S85*KeyAssumptionsPriceControl_FO!AH$15 -> 0.6116584474 | BV85: =+T85*KeyAssumptionsPriceControl_FO!AI$15 -> 0.6330664931 | BW85: =+U85*KeyAssumptionsPriceControl_FO!AJ$15 -> 0.6552238203 | BX85: =+V85*KeyAssumptionsPriceControl_FO!AK$15 -> 0.678156654 | BZ85: 0.0199884375 | CA85: 0.1379149078 | CB85: 0.1800150546 | CC85: 0.2235887065 | CD85: 0.2610417056 | CE85: 0.2921598291 | CF85: 0.324367087 | CG85: 0.3577015988
A86: 34 | C86: Fencing | E86: Irrigation | F86: Renewals | G86: Channels | H86: Other Capital expenditure | J86: Straight line | K86: 2024-25 | L86: 20 | M86: 20 | O86: 0.1236 | P86: 0.1236 | Q86: 0.1236 | R86: 0.1236 | S86: 0.1236 | T86: 0.1236 | U86: 0.1236 | V86: 0.1236 | AP86: 0.1236 | AQ86: 0.1236 | AR86: 0.1236 | AS86: 0.1236 | AT86: 0.1236 | AU86: 0.1236 | AV86: 0.1236 | AW86: 0.1236 | AY86: 0.00309 | AZ86: 0.00927 | BA86: 0.01545 | BB86: 0.02163 | BC86: 0.02781 | BD86: 0.03399 | BE86: 0.04017 | BF86: 0.04635 | BH86: =+IF($K86="Ongoing",AP86,IF(RIGHT($K86,2)=RIGHT(BH$39,2),SUM($AP86:AP86),0)+IF(RIGHT(BH$39,2)>RIGHT($K86,2),AP86,0)) -> 0.1236 | BI86: =+IF($K86="Ongoing",AQ86,IF(RIGHT($K86,2)=RIGHT(BI$39,2),SUM($AP86:AQ86),0)+IF(RIGHT(BI$39,2)>RIGHT($K86,2),AQ86,0)) -> 0.1236 | BJ86: =+IF($K86="Ongoing",AR86,IF(RIGHT($K86,2)=RIGHT(BJ$39,2),SUM($AP86:AR86),0)+IF(RIGHT(BJ$39,2)>RIGHT($K86,2),AR86,0)) -> 0.1236 | BK86: =+IF($K86="Ongoing",AS86,IF(RIGHT($K86,2)=RIGHT(BK$39,2),SUM($AP86:AS86),0)+IF(RIGHT(BK$39,2)>RIGHT($K86,2),AS86,0)) -> 0.1236 | BL86: =+IF($K86="Ongoing",AT86,IF(RIGHT($K86,2)=RIGHT(BL$39,2),SUM($AP86:AT86),0)+IF(RIGHT(BL$39,2)>RIGHT($K86,2),AT86,0)) -> 0.1236 | BM86: =+IF($K86="Ongoing",AU86,IF(RIGHT($K86,2)=RIGHT(BM$39,2),SUM($AP86:AU86),0)+IF(RIGHT(BM$39,2)>RIGHT($K86,2),AU86,0)) -> 0.1236 | BN86: =+IF($K86="Ongoing",AV86,IF(RIGHT($K86,2)=RIGHT(BN$39,2),SUM($AP86:AV86),0)+IF(RIGHT(BN$39,2)>RIGHT($K86,2),AV86,0)) -> 0.1236 | BO86: =+IF($K86="Ongoing",AW86,IF(RIGHT($K86,2)=RIGHT(BO$39,2),SUM($AP86:AW86),0)+IF(RIGHT(BO$39,2)>RIGHT($K86,2),AW86,0)) -> 0.1236 | BQ86: =+O86*KeyAssumptionsPriceControl_FO!AD$15 -> 0.127926 | BR86: =+P86*KeyAssumptionsPriceControl_FO!AE$15 -> 0.13240341 | BS86: =+Q86*KeyAssumptionsPriceControl_FO!AF$15 -> 0.1370375293 | BT86: =+R86*KeyAssumptionsPriceControl_FO!AG$15 -> 0.1418338429 | BU86: =+S86*KeyAssumptionsPriceControl_FO!AH$15 -> 0.1467980274 | BV86: =+T86*KeyAssumptionsPriceControl_FO!AI$15 -> 0.1519359583 | BW86: =+U86*KeyAssumptionsPriceControl_FO!AJ$15 -> 0.1572537169 | BX86: =+V86*KeyAssumptionsPriceControl_FO!AK$15 -> 0.162757597 | BZ86: 0.00319815 | CA86: 0.02824638525 | CB86: 0.03498240873 | CC86: 0.04195419304 | CD86: 0.0491699898 | CE86: 0.05663833944 | CF86: 0.06436808132 | CG86: 0.07236836417
A87: 35 | C87: Bridge Abutments | E87: Irrigation | F87: Renewals | G87: Channels | H87: Other Capital expenditure | J87: Straight line | K87: 2024-25 | L87: 80 | M87: 80 | O87: 0.2266 | P87: 0.2266 | Q87: 0.2266 | R87: 0.2266 | S87: 0.2266 | T87: 0.2266 | U87: 0.2266 | V87: 0.2266 | AP87: 0.2266 | AQ87: 0.2266 | AR87: 0.2266 | AS87: 0.2266 | AT87: 0.2266 | AU87: 0.2266 | AV87: 0.2266 | AW87: 0.2266 | AY87: 0.00141625 | AZ87: 0.00424875 | BA87: 0.00708125 | BB87: 0.00991375 | BC87: 0.01274625 | BD87: 0.01557875 | BE87: 0.01841125 | BF87: 0.02124375 | BH87: =+IF($K87="Ongoing",AP87,IF(RIGHT($K87,2)=RIGHT(BH$39,2),SUM($AP87:AP87),0)+IF(RIGHT(BH$39,2)>RIGHT($K87,2),AP87,0)) -> 0.2266 | BI87: =+IF($K87="Ongoing",AQ87,IF(RIGHT($K87,2)=RIGHT(BI$39,2),SUM($AP87:AQ87),0)+IF(RIGHT(BI$39,2)>RIGHT($K87,2),AQ87,0)) -> 0.2266 | BJ87: =+IF($K87="Ongoing",AR87,IF(RIGHT($K87,2)=RIGHT(BJ$39,2),SUM($AP87:AR87),0)+IF(RIGHT(BJ$39,2)>RIGHT($K87,2),AR87,0)) -> 0.2266 | BK87: =+IF($K87="Ongoing",AS87,IF(RIGHT($K87,2)=RIGHT(BK$39,2),SUM($AP87:AS87),0)+IF(RIGHT(BK$39,2)>RIGHT($K87,2),AS87,0)) -> 0.2266 | BL87: =+IF($K87="Ongoing",AT87,IF(RIGHT($K87,2)=RIGHT(BL$39,2),SUM($AP87:AT87),0)+IF(RIGHT(BL$39,2)>RIGHT($K87,2),AT87,0)) -> 0.2266 | BM87: =+IF($K87="Ongoing",AU87,IF(RIGHT($K87,2)=RIGHT(BM$39,2),SUM($AP87:AU87),0)+IF(RIGHT(BM$39,2)>RIGHT($K87,2),AU87,0)) -> 0.2266 | BN87: =+IF($K87="Ongoing",AV87,IF(RIGHT($K87,2)=RIGHT(BN$39,2),SUM($AP87:AV87),0)+IF(RIGHT(BN$39,2)>RIGHT($K87,2),AV87,0)) -> 0.2266 | BO87: =+IF($K87="Ongoing",AW87,IF(RIGHT($K87,2)=RIGHT(BO$39,2),SUM($AP87:AW87),0)+IF(RIGHT(BO$39,2)>RIGHT($K87,2),AW87,0)) -> 0.2266 | BQ87: =+O87*KeyAssumptionsPriceControl_FO!AD$15 -> 0.234531 | BR87: =+P87*KeyAssumptionsPriceControl_FO!AE$15 -> 0.242739585 | BS87: =+Q87*KeyAssumptionsPriceControl_FO!AF$15 -> 0.2512354705 | BT87: =+R87*KeyAssumptionsPriceControl_FO!AG$15 -> 0.2600287119 | BU87: =+S87*KeyAssumptionsPriceControl_FO!AH$15 -> 0.2691297169 | BV87: =+T87*KeyAssumptionsPriceControl_FO!AI$15 -> 0.2785492569 | BW87: =+U87*KeyAssumptionsPriceControl_FO!AJ$15 -> 0.2882984809 | BX87: =+V87*KeyAssumptionsPriceControl_FO!AK$15 -> 0.2983889278 | BZ87: 0.00146581875 | CA87: 0.01294625991 | CB87: 0.016033604 | CC87: 0.01922900514 | CD87: 0.02253624532 | CE87: 0.02595923891 | CF87: 0.02950203727 | CG87: 0.03316883358
A88: 36 | C88: Guardrail | E88: Irrigation | F88: Renewals | G88: Channels | H88: Other Capital expenditure | J88: Straight line | K88: 2024-25 | L88: 80 | M88: 80 | O88: 0.1545 | P88: 0.1545 | Q88: 0.1545 | R88: 0.1545 | S88: 0.1545 | T88: 0.1545 | U88: 0.1545 | V88: 0.1545 | AP88: 0.1545 | AQ88: 0.1545 | AR88: 0.1545 | AS88: 0.1545 | AT88: 0.1545 | AU88: 0.1545 | AV88: 0.1545 | AW88: 0.1545 | AY88: 0.000965625 | AZ88: 0.002896875 | BA88: 0.004828125 | BB88: 0.006759375 | BC88: 0.008690625 | BD88: 0.010621875 | BE88: 0.012553125 | BF88: 0.014484375 | BH88: =+IF($K88="Ongoing",AP88,IF(RIGHT($K88,2)=RIGHT(BH$39,2),SUM($AP88:AP88),0)+IF(RIGHT(BH$39,2)>RIGHT($K88,2),AP88,0)) -> 0.1545 | BI88: =+IF($K88="Ongoing",AQ88,IF(RIGHT($K88,2)=RIGHT(BI$39,2),SUM($AP88:AQ88),0)+IF(RIGHT(BI$39,2)>RIGHT($K88,2),AQ88,0)) -> 0.1545 | BJ88: =+IF($K88="Ongoing",AR88,IF(RIGHT($K88,2)=RIGHT(BJ$39,2),SUM($AP88:AR88),0)+IF(RIGHT(BJ$39,2)>RIGHT($K88,2),AR88,0)) -> 0.1545 | BK88: =+IF($K88="Ongoing",AS88,IF(RIGHT($K88,2)=RIGHT(BK$39,2),SUM($AP88:AS88),0)+IF(RIGHT(BK$39,2)>RIGHT($K88,2),AS88,0)) -> 0.1545 | BL88: =+IF($K88="Ongoing",AT88,IF(RIGHT($K88,2)=RIGHT(BL$39,2),SUM($AP88:AT88),0)+IF(RIGHT(BL$39,2)>RIGHT($K88,2),AT88,0)) -> 0.1545 | BM88: =+IF($K88="Ongoing",AU88,IF(RIGHT($K88,2)=RIGHT(BM$39,2),SUM($AP88:AU88),0)+IF(RIGHT(BM$39,2)>RIGHT($K88,2),AU88,0)) -> 0.1545 | BN88: =+IF($K88="Ongoing",AV88,IF(RIGHT($K88,2)=RIGHT(BN$39,2),SUM($AP88:AV88),0)+IF(RIGHT(BN$39,2)>RIGHT($K88,2),AV88,0)) -> 0.1545 | BO88: =+IF($K88="Ongoing",AW88,IF(RIGHT($K88,2)=RIGHT(BO$39,2),SUM($AP88:AW88),0)+IF(RIGHT(BO$39,2)>RIGHT($K88,2),AW88,0)) -> 0.1545 | BQ88: =+O88*KeyAssumptionsPriceControl_FO!AD$15 -> 0.1599075 | BR88: =+P88*KeyAssumptionsPriceControl_FO!AE$15 -> 0.1655042625 | BS88: =+Q88*KeyAssumptionsPriceControl_FO!AF$15 -> 0.1712969117 | BT88: =+R88*KeyAssumptionsPriceControl_FO!AG$15 -> 0.1772923036 | BU88: =+S88*KeyAssumptionsPriceControl_FO!AH$15 -> 0.1834975342 | BV88: =+T88*KeyAssumptionsPriceControl_FO!AI$15 -> 0.1899199479 | BW88: =+U88*KeyAssumptionsPriceControl_FO!AJ$15 -> 0.1965671461 | BX88: =+V88*KeyAssumptionsPriceControl_FO!AK$15 -> 0.2034469962 | BZ88: 0.000999421875 | CA88: 0.008826995391 | CB88: 0.01093200273 | CC88: 0.01311068532 | CD88: 0.01536562181 | CE88: 0.01769948107 | CF88: 0.02011502541 | CG88: 0.0226151138
A89: 37 | C89: Flumegate Gearbox | E89: Irrigation | F89: Renewals | G89: Channels | H89: Other Capital expenditure | J89: Straight line | K89: 2024-25 | L89: 80 | M89: 80 | O89: 0.412 | P89: 0.412 | Q89: 0.618 | R89: 0.618 | S89: 0.824 | T89: 0.824 | U89: 1.03 | V89: 1.03 | AP89: 0.412 | AQ89: 0.412 | AR89: 0.618 | AS89: 0.618 | AT89: 0.824 | AU89: 0.824 | AV89: 1.03 | AW89: 1.03 | AY89: 0.002575 | AZ89: 0.007725 | BA89: 0.0141625 | BB89: 0.0218875 | BC89: 0.0309 | BD89: 0.0412 | BE89: 0.0527875 | BF89: 0.0656625 | BH89: =+IF($K89="Ongoing",AP89,IF(RIGHT($K89,2)=RIGHT(BH$39,2),SUM($AP89:AP89),0)+IF(RIGHT(BH$39,2)>RIGHT($K89,2),AP89,0)) -> 0.412 | BI89: =+IF($K89="Ongoing",AQ89,IF(RIGHT($K89,2)=RIGHT(BI$39,2),SUM($AP89:AQ89),0)+IF(RIGHT(BI$39,2)>RIGHT($K89,2),AQ89,0)) -> 0.412 | BJ89: =+IF($K89="Ongoing",AR89,IF(RIGHT($K89,2)=RIGHT(BJ$39,2),SUM($AP89:AR89),0)+IF(RIGHT(BJ$39,2)>RIGHT($K89,2),AR89,0)) -> 0.618 | BK89: =+IF($K89="Ongoing",AS89,IF(RIGHT($K89,2)=RIGHT(BK$39,2),SUM($AP89:AS89),0)+IF(RIGHT(BK$39,2)>RIGHT($K89,2),AS89,0)) -> 0.618 | BL89: =+IF($K89="Ongoing",AT89,IF(RIGHT($K89,2)=RIGHT(BL$39,2),SUM($AP89:AT89),0)+IF(RIGHT(BL$39,2)>RIGHT($K89,2),AT89,0)) -> 0.824 | BM89: =+IF($K89="Ongoing",AU89,IF(RIGHT($K89,2)=RIGHT(BM$39,2),SUM($AP89:AU89),0)+IF(RIGHT(BM$39,2)>RIGHT($K89,2),AU89,0)) -> 0.824 | BN89: =+IF($K89="Ongoing",AV89,IF(RIGHT($K89,2)=RIGHT(BN$39,2),SUM($AP89:AV89),0)+IF(RIGHT(BN$39,2)>RIGHT($K89,2),AV89,0)) -> 1.03 | BO89: =+IF($K89="Ongoing",AW89,IF(RIGHT($K89,2)=RIGHT(BO$39,2),SUM($AP89:AW89),0)+IF(RIGHT(BO$39,2)>RIGHT($K89,2),AW89,0)) -> 1.03 | BQ89: =+O89*KeyAssumptionsPriceControl_FO!AD$15 -> 0.42642 | BR89: =+P89*KeyAssumptionsPriceControl_FO!AE$15 -> 0.4413447 | BS89: =+Q89*KeyAssumptionsPriceControl_FO!AF$15 -> 0.6851876467 | BT89: =+R89*KeyAssumptionsPriceControl_FO!AG$15 -> 0.7091692144 | BU89: =+S89*KeyAssumptionsPriceControl_FO!AH$15 -> 0.9786535159 | BV89: =+T89*KeyAssumptionsPriceControl_FO!AI$15 -> 1.012906389 | BW89: =+U89*KeyAssumptionsPriceControl_FO!AJ$15 -> 1.310447641 | BX89: =+V89*KeyAssumptionsPriceControl_FO!AK$15 -> 1.356313308 | BZ89: 0.002665125 | CA89: 0.04413865438 | CB89: 0.05117948154 | CC89: 0.05989421192 | CD89: 0.07044310399 | CE89: 0.08289035339 | CF89: 0.09741131608 | CG89: 0.114078572
A90: 38 | C90: Emergent Works | E90: Irrigation | F90: Renewals | G90: Channels | H90: Other Capital expenditure | J90: Straight line | K90: 2024-25 | L90: 80 | M90: 80 | O90: 0.515 | P90: 0.515 | Q90: 0.515 | R90: 0.515 | S90: 0.515 | T90: 0.515 | U90: 0.515 | V90: 0.515 | AP90: 0.515 | AQ90: 0.515 | AR90: 0.515 | AS90: 0.515 | AT90: 0.515 | AU90: 0.515 | AV90: 0.515 | AW90: 0.515 | AY90: 0.00321875 | AZ90: 0.00965625 | BA90: 0.01609375 | BB90: 0.02253125 | BC90: 0.02896875 | BD90: 0.03540625 | BE90: 0.04184375 | BF90: 0.04828125 | BH90: =+IF($K90="Ongoing",AP90,IF(RIGHT($K90,2)=RIGHT(BH$39,2),SUM($AP90:AP90),0)+IF(RIGHT(BH$39,2)>RIGHT($K90,2),AP90,0)) -> 0.515 | BI90: =+IF($K90="Ongoing",AQ90,IF(RIGHT($K90,2)=RIGHT(BI$39,2),SUM($AP90:AQ90),0)+IF(RIGHT(BI$39,2)>RIGHT($K90,2),AQ90,0)) -> 0.515 | BJ90: =+IF($K90="Ongoing",AR90,IF(RIGHT($K90,2)=RIGHT(BJ$39,2),SUM($AP90:AR90),0)+IF(RIGHT(BJ$39,2)>RIGHT($K90,2),AR90,0)) -> 0.515 | BK90: =+IF($K90="Ongoing",AS90,IF(RIGHT($K90,2)=RIGHT(BK$39,2),SUM($AP90:AS90),0)+IF(RIGHT(BK$39,2)>RIGHT($K90,2),AS90,0)) -> 0.515 | BL90: =+IF($K90="Ongoing",AT90,IF(RIGHT($K90,2)=RIGHT(BL$39,2),SUM($AP90:AT90),0)+IF(RIGHT(BL$39,2)>RIGHT($K90,2),AT90,0)) -> 0.515 | BM90: =+IF($K90="Ongoing",AU90,IF(RIGHT($K90,2)=RIGHT(BM$39,2),SUM($AP90:AU90),0)+IF(RIGHT(BM$39,2)>RIGHT($K90,2),AU90,0)) -> 0.515 | BN90: =+IF($K90="Ongoing",AV90,IF(RIGHT($K90,2)=RIGHT(BN$39,2),SUM($AP90:AV90),0)+IF(RIGHT(BN$39,2)>RIGHT($K90,2),AV90,0)) -> 0.515 | BO90: =+IF($K90="Ongoing",AW90,IF(RIGHT($K90,2)=RIGHT(BO$39,2),SUM($AP90:AW90),0)+IF(RIGHT(BO$39,2)>RIGHT($K90,2),AW90,0)) -> 0.515 | BQ90: =+O90*KeyAssumptionsPriceControl_FO!AD$15 -> 0.533025 | BR90: =+P90*KeyAssumptionsPriceControl_FO!AE$15 -> 0.551680875 | BS90: =+Q90*KeyAssumptionsPriceControl_FO!AF$15 -> 0.5709897056 | BT90: =+R90*KeyAssumptionsPriceControl_FO!AG$15 -> 0.5909743453 | BU90: =+S90*KeyAssumptionsPriceControl_FO!AH$15 -> 0.6116584474 | BV90: =+T90*KeyAssumptionsPriceControl_FO!AI$15 -> 0.6330664931 | BW90: =+U90*KeyAssumptionsPriceControl_FO!AJ$15 -> 0.6552238203 | BX90: =+V90*KeyAssumptionsPriceControl_FO!AK$15 -> 0.678156654 | BZ90: 0.00333140625 | CA90: 0.02942331797 | CB90: 0.0364400091 | CC90: 0.04370228442 | CD90: 0.05121873937 | CE90: 0.05899827025 | CF90: 0.06705008471 | CG90: 0.07538371267
A91: 39 | C91: Phase Out Non-Std Meters | E91: Irrigation | F91: Improvements / Compliance | G91: Channels | H91: Capital Programs / Allocation | J91: Straight line | K91: 2024-25 | L91: 30 | M91: 30 | O91: 0.103 | P91: 0.103 | Q91: 0.103 | R91: 0.103 | S91: 0.103 | T91: 0.103 | U91: 0.103 | V91: 0.103 | AP91: 0.103 | AQ91: 0.103 | AR91: 0.103 | AS91: 0.103 | AT91: 0.103 | AU91: 0.103 | AV91: 0.103 | AW91: 0.103 | AY91: 0.001716666667 | AZ91: 0.00515 | BA91: 0.008583333333 | BB91: 0.01201666667 | BC91: 0.01545 | BD91: 0.01888333333 | BE91: 0.02231666667 | BF91: 0.02575 | BH91: =+IF($K91="Ongoing",AP91,IF(RIGHT($K91,2)=RIGHT(BH$39,2),SUM($AP91:AP91),0)+IF(RIGHT(BH$39,2)>RIGHT($K91,2),AP91,0)) -> 0.103 | BI91: =+IF($K91="Ongoing",AQ91,IF(RIGHT($K91,2)=RIGHT(BI$39,2),SUM($AP91:AQ91),0)+IF(RIGHT(BI$39,2)>RIGHT($K91,2),AQ91,0)) -> 0.103 | BJ91: =+IF($K91="Ongoing",AR91,IF(RIGHT($K91,2)=RIGHT(BJ$39,2),SUM($AP91:AR91),0)+IF(RIGHT(BJ$39,2)>RIGHT($K91,2),AR91,0)) -> 0.103 | BK91: =+IF($K91="Ongoing",AS91,IF(RIGHT($K91,2)=RIGHT(BK$39,2),SUM($AP91:AS91),0)+IF(RIGHT(BK$39,2)>RIGHT($K91,2),AS91,0)) -> 0.103 | BL91: =+IF($K91="Ongoing",AT91,IF(RIGHT($K91,2)=RIGHT(BL$39,2),SUM($AP91:AT91),0)+IF(RIGHT(BL$39,2)>RIGHT($K91,2),AT91,0)) -> 0.103 | BM91: =+IF($K91="Ongoing",AU91,IF(RIGHT($K91,2)=RIGHT(BM$39,2),SUM($AP91:AU91),0)+IF(RIGHT(BM$39,2)>RIGHT($K91,2),AU91,0)) -> 0.103 | BN91: =+IF($K91="Ongoing",AV91,IF(RIGHT($K91,2)=RIGHT(BN$39,2),SUM($AP91:AV91),0)+IF(RIGHT(BN$39,2)>RIGHT($K91,2),AV91,0)) -> 0.103 | BO91: =+IF($K91="Ongoing",AW91,IF(RIGHT($K91,2)=RIGHT(BO$39,2),SUM($AP91:AW91),0)+IF(RIGHT(BO$39,2)>RIGHT($K91,2),AW91,0)) -> 0.103 | BQ91: =+O91*KeyAssumptionsPriceControl_FO!AD$15 -> 0.106605 | BR91: =+P91*KeyAssumptionsPriceControl_FO!AE$15 -> 0.110336175 | BS91: =+Q91*KeyAssumptionsPriceControl_FO!AF$15 -> 0.1141979411 | BT91: =+R91*KeyAssumptionsPriceControl_FO!AG$15 -> 0.1181948691 | BU91: =+S91*KeyAssumptionsPriceControl_FO!AH$15 -> 0.1223316895 | BV91: =+T91*KeyAssumptionsPriceControl_FO!AI$15 -> 0.1266132986 | BW91: =+U91*KeyAssumptionsPriceControl_FO!AJ$15 -> 0.1310447641 | BX91: =+V91*KeyAssumptionsPriceControl_FO!AK$15 -> 0.1356313308 | BZ91: 0.00177675 | CA91: 0.01569243625 | CB91: 0.01943467152 | CC91: 0.02330788502 | CD91: 0.027316661 | CE91: 0.03146574413 | CF91: 0.03576004518 | CG91: 0.04020464676
A92: 40 | C92: Node Towers/Comms Supprt | E92: Irrigation | F92: Improvements / Compliance | G92: Channels | H92: Other Capital expenditure | J92: Straight line | K92: 2024-25 | L92: 15 | M92: 15 | O92: 0.0824 | P92: 0.0824 | Q92: 0.0824 | R92: 0.0824 | S92: 0.0824 | T92: 0.0824 | U92: 0.0824 | V92: 0.0824 | AP92: 0.0824 | AQ92: 0.0824 | AR92: 0.0824 | AS92: 0.0824 | AT92: 0.0824 | AU92: 0.0824 | AV92: 0.0824 | AW92: 0.0824 | AY92: 0.002746666667 | AZ92: 0.00824 | BA92: 0.01373333333 | BB92: 0.01922666667 | BC92: 0.02472 | BD92: 0.03021333333 | BE92: 0.03570666667 | BF92: 0.0412 | BH92: =+IF($K92="Ongoing",AP92,IF(RIGHT($K92,2)=RIGHT(BH$39,2),SUM($AP92:AP92),0)+IF(RIGHT(BH$39,2)>RIGHT($K92,2),AP92,0)) -> 0.0824 | BI92: =+IF($K92="Ongoing",AQ92,IF(RIGHT($K92,2)=RIGHT(BI$39,2),SUM($AP92:AQ92),0)+IF(RIGHT(BI$39,2)>RIGHT($K92,2),AQ92,0)) -> 0.0824 | BJ92: =+IF($K92="Ongoing",AR92,IF(RIGHT($K92,2)=RIGHT(BJ$39,2),SUM($AP92:AR92),0)+IF(RIGHT(BJ$39,2)>RIGHT($K92,2),AR92,0)) -> 0.0824 | BK92: =+IF($K92="Ongoing",AS92,IF(RIGHT($K92,2)=RIGHT(BK$39,2),SUM($AP92:AS92),0)+IF(RIGHT(BK$39,2)>RIGHT($K92,2),AS92,0)) -> 0.0824 | BL92: =+IF($K92="Ongoing",AT92,IF(RIGHT($K92,2)=RIGHT(BL$39,2),SUM($AP92:AT92),0)+IF(RIGHT(BL$39,2)>RIGHT($K92,2),AT92,0)) -> 0.0824 | BM92: =+IF($K92="Ongoing",AU92,IF(RIGHT($K92,2)=RIGHT(BM$39,2),SUM($AP92:AU92),0)+IF(RIGHT(BM$39,2)>RIGHT($K92,2),AU92,0)) -> 0.0824 | BN92: =+IF($K92="Ongoing",AV92,IF(RIGHT($K92,2)=RIGHT(BN$39,2),SUM($AP92:AV92),0)+IF(RIGHT(BN$39,2)>RIGHT($K92,2),AV92,0)) -> 0.0824 | BO92: =+IF($K92="Ongoing",AW92,IF(RIGHT($K92,2)=RIGHT(BO$39,2),SUM($AP92:AW92),0)+IF(RIGHT(BO$39,2)>RIGHT($K92,2),AW92,0)) -> 0.0824 | BQ92: =+O92*KeyAssumptionsPriceControl_FO!AD$15 -> 0.085284 | BR92: =+P92*KeyAssumptionsPriceControl_FO!AE$15 -> 0.08826894 | BS92: =+Q92*KeyAssumptionsPriceControl_FO!AF$15 -> 0.0913583529 | BT92: =+R92*KeyAssumptionsPriceControl_FO!AG$15 -> 0.09455589525 | BU92: =+S92*KeyAssumptionsPriceControl_FO!AH$15 -> 0.09786535159 | BV92: =+T92*KeyAssumptionsPriceControl_FO!AI$15 -> 0.1012906389 | BW92: =+U92*KeyAssumptionsPriceControl_FO!AJ$15 -> 0.1048358113 | BX92: =+V92*KeyAssumptionsPriceControl_FO!AK$15 -> 0.1085050646 | BZ92: 0.0028428 | CA92: 0.025107898 | CB92: 0.03109547443 | CC92: 0.03729261604 | CD92: 0.0437066576 | CE92: 0.05034519061 | CF92: 0.05721607228 | CG92: 0.06432743481
A93: 41 | C93: Drainage Bungs from opex | E93: Irrigation | F93: Renewals | G93: Channels | H93: Other Capital expenditure | J93: Straight line | K93: 2024-25 | L93: 5 | M93: 5 | O93: 0.0927 | P93: 0.0927 | Q93: 0.0927 | R93: 0.0927 | S93: 0.0927 | T93: 0.0927 | U93: 0.0927 | V93: 0.0927 | AP93: 0.0927 | AQ93: 0.0927 | AR93: 0.0927 | AS93: 0.0927 | AT93: 0.0927 | AU93: 0.0927 | AV93: 0.0927 | AW93: 0.0927 | AY93: 0.00927 | AZ93: 0.02781 | BA93: 0.04635 | BB93: 0.06489 | BC93: 0.08343 | BD93: 0.0927 | BE93: 0.0927 | BF93: 0.0927 | BH93: =+IF($K93="Ongoing",AP93,IF(RIGHT($K93,2)=RIGHT(BH$39,2),SUM($AP93:AP93),0)+IF(RIGHT(BH$39,2)>RIGHT($K93,2),AP93,0)) -> 0.0927 | BI93: =+IF($K93="Ongoing",AQ93,IF(RIGHT($K93,2)=RIGHT(BI$39,2),SUM($AP93:AQ93),0)+IF(RIGHT(BI$39,2)>RIGHT($K93,2),AQ93,0)) -> 0.0927 | BJ93: =+IF($K93="Ongoing",AR93,IF(RIGHT($K93,2)=RIGHT(BJ$39,2),SUM($AP93:AR93),0)+IF(RIGHT(BJ$39,2)>RIGHT($K93,2),AR93,0)) -> 0.0927 | BK93: =+IF($K93="Ongoing",AS93,IF(RIGHT($K93,2)=RIGHT(BK$39,2),SUM($AP93:AS93),0)+IF(RIGHT(BK$39,2)>RIGHT($K93,2),AS93,0)) -> 0.0927 | BL93: =+IF($K93="Ongoing",AT93,IF(RIGHT($K93,2)=RIGHT(BL$39,2),SUM($AP93:AT93),0)+IF(RIGHT(BL$39,2)>RIGHT($K93,2),AT93,0)) -> 0.0927 | BM93: =+IF($K93="Ongoing",AU93,IF(RIGHT($K93,2)=RIGHT(BM$39,2),SUM($AP93:AU93),0)+IF(RIGHT(BM$39,2)>RIGHT($K93,2),AU93,0)) -> 0.0927 | BN93: =+IF($K93="Ongoing",AV93,IF(RIGHT($K93,2)=RIGHT(BN$39,2),SUM($AP93:AV93),0)+IF(RIGHT(BN$39,2)>RIGHT($K93,2),AV93,0)) -> 0.0927 | BO93: =+IF($K93="Ongoing",AW93,IF(RIGHT($K93,2)=RIGHT(BO$39,2),SUM($AP93:AW93),0)+IF(RIGHT(BO$39,2)>RIGHT($K93,2),AW93,0)) -> 0.0927 | BQ93: =+O93*KeyAssumptionsPriceControl_FO!AD$15 -> 0.0959445 | BR93: =+P93*KeyAssumptionsPriceControl_FO!AE$15 -> 0.0993025575 | BS93: =+Q93*KeyAssumptionsPriceControl_FO!AF$15 -> 0.102778147 | BT93: =+R93*KeyAssumptionsPriceControl_FO!AG$15 -> 0.1063753822 | BU93: =+S93*KeyAssumptionsPriceControl_FO!AH$15 -> 0.1100985205 | BV93: =+T93*KeyAssumptionsPriceControl_FO!AI$15 -> 0.1139519688 | BW93: =+U93*KeyAssumptionsPriceControl_FO!AJ$15 -> 0.1179402877 | BX93: =+V93*KeyAssumptionsPriceControl_FO!AK$15 -> 0.1220681977 | BZ93: 0.00959445 | CA93: 0.06619915575 | CB93: 0.0678672262 | CC93: 0.07024257912 | CD93: 0.09188996939 | CE93: 0.1047005683 | CF93: 0.1083650882 | CG93: 0.1121578663
A94: 42 | C94: Pump Station/Pipeline Upgrades | E94: Bulk water services | F94: Renewals | G94: Headworks | H94: Other Capital expenditure | J94: Straight line | K94: 2026-27 | L94: 75 | M94: 75 | O94: 0 | P94: 0 | Q94: 0.103 | R94: 0 | S94: 0 | T94: 0 | U94: 0.103 | V94: 0 | AP94: 0 | AQ94: 0 | AR94: 0.103 | AS94: 0 | AT94: 0 | AU94: 0 | AV94: 0.103 | AW94: 0 | AY94: 0 | AZ94: 0 | BA94: 0.0006866666667 | BB94: 0.001373333333 | BC94: 0.001373333333 | BD94: 0.001373333333 | BE94: 0.00206 | BF94: 0.002746666667 | BH94: =+IF($K94="Ongoing",AP94,IF(RIGHT($K94,2)=RIGHT(BH$39,2),SUM($AP94:AP94),0)+IF(RIGHT(BH$39,2)>RIGHT($K94,2),AP94,0)) -> 0 | BI94: =+IF($K94="Ongoing",AQ94,IF(RIGHT($K94,2)=RIGHT(BI$39,2),SUM($AP94:AQ94),0)+IF(RIGHT(BI$39,2)>RIGHT($K94,2),AQ94,0)) -> 0 | BJ94: =+IF($K94="Ongoing",AR94,IF(RIGHT($K94,2)=RIGHT(BJ$39,2),SUM($AP94:AR94),0)+IF(RIGHT(BJ$39,2)>RIGHT($K94,2),AR94,0)) -> 0.103 | BK94: =+IF($K94="Ongoing",AS94,IF(RIGHT($K94,2)=RIGHT(BK$39,2),SUM($AP94:AS94),0)+IF(RIGHT(BK$39,2)>RIGHT($K94,2),AS94,0)) -> 0 | BL94: =+IF($K94="Ongoing",AT94,IF(RIGHT($K94,2)=RIGHT(BL$39,2),SUM($AP94:AT94),0)+IF(RIGHT(BL$39,2)>RIGHT($K94,2),AT94,0)) -> 0 | BM94: =+IF($K94="Ongoing",AU94,IF(RIGHT($K94,2)=RIGHT(BM$39,2),SUM($AP94:AU94),0)+IF(RIGHT(BM$39,2)>RIGHT($K94,2),AU94,0)) -> 0 | BN94: =+IF($K94="Ongoing",AV94,IF(RIGHT($K94,2)=RIGHT(BN$39,2),SUM($AP94:AV94),0)+IF(RIGHT(BN$39,2)>RIGHT($K94,2),AV94,0)) -> 0.103 | BO94: =+IF($K94="Ongoing",AW94,IF(RIGHT($K94,2)=RIGHT(BO$39,2),SUM($AP94:AW94),0)+IF(RIGHT(BO$39,2)>RIGHT($K94,2),AW94,0)) -> 0 | BQ94: =+O94*KeyAssumptionsPriceControl_FO!AD$15 -> 0 | BR94: =+P94*KeyAssumptionsPriceControl_FO!AE$15 -> 0 | BS94: =+Q94*KeyAssumptionsPriceControl_FO!AF$15 -> 0.1141979411 | BT94: =+R94*KeyAssumptionsPriceControl_FO!AG$15 -> 0 | BU94: =+S94*KeyAssumptionsPriceControl_FO!AH$15 -> 0 | BV94: =+T94*KeyAssumptionsPriceControl_FO!AI$15 -> 0 | BW94: =+U94*KeyAssumptionsPriceControl_FO!AJ$15 -> 0.1310447641 | BX94: =+V94*KeyAssumptionsPriceControl_FO!AK$15 -> 0 | BZ94: 0 | CA94: 0.001373333333 | CB94: 0.002134652941 | CC94: 0.002895972548 | CD94: 0.002895972548 | CE94: 0.002895972548 | CF94: 0.003769604309 | CG94: 0.004643236069
A95: 43 | C95: Structures | E95: Drainage | F95: Renewals | G95: Channels | H95: Capital Programs / Allocation | J95: Straight line | K95: 2024-25 | L95: 80 | M95: 80 | O95: 0.1545 | P95: 0.1442 | Q95: 0.1648 | R95: 0.1339 | S95: 0.1545 | T95: 0.1442 | U95: 0.1648 | V95: 0.1339 | AP95: 0.1545 | AQ95: 0.1442 | AR95: 0.1648 | AS95: 0.1339 | AT95: 0.1545 | AU95: 0.1442 | AV95: 0.1648 | AW95: 0.1339 | AY95: 0.000965625 | AZ95: 0.0028325 | BA95: 0.00476375 | BB95: 0.006630625 | BC95: 0.008433125 | BD95: 0.0103 | BE95: 0.01223125 | BF95: 0.014098125 | BH95: =+IF($K95="Ongoing",AP95,IF(RIGHT($K95,2)=RIGHT(BH$39,2),SUM($AP95:AP95),0)+IF(RIGHT(BH$39,2)>RIGHT($K95,2),AP95,0)) -> 0.1545 | BI95: =+IF($K95="Ongoing",AQ95,IF(RIGHT($K95,2)=RIGHT(BI$39,2),SUM($AP95:AQ95),0)+IF(RIGHT(BI$39,2)>RIGHT($K95,2),AQ95,0)) -> 0.1442 | BJ95: =+IF($K95="Ongoing",AR95,IF(RIGHT($K95,2)=RIGHT(BJ$39,2),SUM($AP95:AR95),0)+IF(RIGHT(BJ$39,2)>RIGHT($K95,2),AR95,0)) -> 0.1648 | BK95: =+IF($K95="Ongoing",AS95,IF(RIGHT($K95,2)=RIGHT(BK$39,2),SUM($AP95:AS95),0)+IF(RIGHT(BK$39,2)>RIGHT($K95,2),AS95,0)) -> 0.1339 | BL95: =+IF($K95="Ongoing",AT95,IF(RIGHT($K95,2)=RIGHT(BL$39,2),SUM($AP95:AT95),0)+IF(RIGHT(BL$39,2)>RIGHT($K95,2),AT95,0)) -> 0.1545 | BM95: =+IF($K95="Ongoing",AU95,IF(RIGHT($K95,2)=RIGHT(BM$39,2),SUM($AP95:AU95),0)+IF(RIGHT(BM$39,2)>RIGHT($K95,2),AU95,0)) -> 0.1442 | BN95: =+IF($K95="Ongoing",AV95,IF(RIGHT($K95,2)=RIGHT(BN$39,2),SUM($AP95:AV95),0)+IF(RIGHT(BN$39,2)>RIGHT($K95,2),AV95,0)) -> 0.1648 | BO95: =+IF($K95="Ongoing",AW95,IF(RIGHT($K95,2)=RIGHT(BO$39,2),SUM($AP95:AW95),0)+IF(RIGHT(BO$39,2)>RIGHT($K95,2),AW95,0)) -> 0.1339 | BQ95: =+O95*KeyAssumptionsPriceControl_FO!AD$15 -> 0.1599075 | BR95: =+P95*KeyAssumptionsPriceControl_FO!AE$15 -> 0.154470645 | BS95: =+Q95*KeyAssumptionsPriceControl_FO!AF$15 -> 0.1827167058 | BT95: =+R95*KeyAssumptionsPriceControl_FO!AG$15 -> 0.1536533298 | BU95: =+S95*KeyAssumptionsPriceControl_FO!AH$15 -> 0.1834975342 | BV95: =+T95*KeyAssumptionsPriceControl_FO!AI$15 -> 0.1772586181 | BW95: =+U95*KeyAssumptionsPriceControl_FO!AJ$15 -> 0.2096716225 | BX95: =+V95*KeyAssumptionsPriceControl_FO!AK$15 -> 0.17632073 | BZ95: 0.000999421875 | CA95: 0.008500535281 | CB95: 0.01060795622 | CC95: 0.01271026895 | CD95: 0.01481746185 | CE95: 0.0170721878 | CF95: 0.0194905018 | CG95: 0.021902954
A96: 44 | C96: Structures | E96: Drainage | F96: Renewals | G96: Channels | H96: Capital Programs / Allocation | J96: Straight line | K96: 2024-25 | L96: 80 | M96: 80 | O96: 0.103 | P96: 0.1236 | Q96: 0.0824 | R96: 0.1236 | S96: 0.103 | T96: 0.1236 | U96: 0.0824 | V96: 0.1236 | AP96: 0.103 | AQ96: 0.1236 | AR96: 0.0824 | AS96: 0.1236 | AT96: 0.103 | AU96: 0.1236 | AV96: 0.0824 | AW96: 0.1236 | AY96: 0.00064375 | AZ96: 0.00206 | BA96: 0.0033475 | BB96: 0.004635 | BC96: 0.00605125 | BD96: 0.0074675 | BE96: 0.008755 | BF96: 0.0100425 | BH96: =+IF($K96="Ongoing",AP96,IF(RIGHT($K96,2)=RIGHT(BH$39,2),SUM($AP96:AP96),0)+IF(RIGHT(BH$39,2)>RIGHT($K96,2),AP96,0)) -> 0.103 | BI96: =+IF($K96="Ongoing",AQ96,IF(RIGHT($K96,2)=RIGHT(BI$39,2),SUM($AP96:AQ96),0)+IF(RIGHT(BI$39,2)>RIGHT($K96,2),AQ96,0)) -> 0.1236 | BJ96: =+IF($K96="Ongoing",AR96,IF(RIGHT($K96,2)=RIGHT(BJ$39,2),SUM($AP96:AR96),0)+IF(RIGHT(BJ$39,2)>RIGHT($K96,2),AR96,0)) -> 0.0824 | BK96: =+IF($K96="Ongoing",AS96,IF(RIGHT($K96,2)=RIGHT(BK$39,2),SUM($AP96:AS96),0)+IF(RIGHT(BK$39,2)>RIGHT($K96,2),AS96,0)) -> 0.1236 | BL96: =+IF($K96="Ongoing",AT96,IF(RIGHT($K96,2)=RIGHT(BL$39,2),SUM($AP96:AT96),0)+IF(RIGHT(BL$39,2)>RIGHT($K96,2),AT96,0)) -> 0.103 | BM96: =+IF($K96="Ongoing",AU96,IF(RIGHT($K96,2)=RIGHT(BM$39,2),SUM($AP96:AU96),0)+IF(RIGHT(BM$39,2)>RIGHT($K96,2),AU96,0)) -> 0.1236 | BN96: =+IF($K96="Ongoing",AV96,IF(RIGHT($K96,2)=RIGHT(BN$39,2),SUM($AP96:AV96),0)+IF(RIGHT(BN$39,2)>RIGHT($K96,2),AV96,0)) -> 0.0824 | BO96: =+IF($K96="Ongoing",AW96,IF(RIGHT($K96,2)=RIGHT(BO$39,2),SUM($AP96:AW96),0)+IF(RIGHT(BO$39,2)>RIGHT($K96,2),AW96,0)) -> 0.1236 | BQ96: =+O96*KeyAssumptionsPriceControl_FO!AD$15 -> 0.106605 | BR96: =+P96*KeyAssumptionsPriceControl_FO!AE$15 -> 0.13240341 | BS96: =+Q96*KeyAssumptionsPriceControl_FO!AF$15 -> 0.0913583529 | BT96: =+R96*KeyAssumptionsPriceControl_FO!AG$15 -> 0.1418338429 | BU96: =+S96*KeyAssumptionsPriceControl_FO!AH$15 -> 0.1223316895 | BV96: =+T96*KeyAssumptionsPriceControl_FO!AI$15 -> 0.1519359583 | BW96: =+U96*KeyAssumptionsPriceControl_FO!AJ$15 -> 0.1048358113 | BX96: =+V96*KeyAssumptionsPriceControl_FO!AK$15 -> 0.162757597 | BZ96: 0.00066628125 | CA96: 0.006280083813 | CB96: 0.007678594831 | CC96: 0.009136046054 | CD96: 0.01078708063 | CE96: 0.01250125343 | CF96: 0.01410607699 | CG96: 0.01577853579
A97: 45 | C97: Structures | E97: Drainage | F97: Renewals | G97: Channels | H97: Capital Programs / Allocation | J97: Straight line | K97: 2025-26 | L97: 80 | M97: 80 | O97: 0 | P97: 0.00515 | Q97: 0 | R97: 0.00515 | S97: 0 | T97: 0.00515 | U97: 0 | V97: 0.00515 | AP97: 0 | AQ97: 0.00515 | AR97: 0 | AS97: 0.00515 | AT97: 0 | AU97: 0.00515 | AV97: 0 | AW97: 0.00515 | AY97: 0 | AZ97: 3.21875e-05 | BA97: 6.4375e-05 | BB97: 9.65625e-05 | BC97: 0.00012875 | BD97: 0.0001609375 | BE97: 0.000193125 | BF97: 0.0002253125 | BH97: =+IF($K97="Ongoing",AP97,IF(RIGHT($K97,2)=RIGHT(BH$39,2),SUM($AP97:AP97),0)+IF(RIGHT(BH$39,2)>RIGHT($K97,2),AP97,0)) -> 0 | BI97: =+IF($K97="Ongoing",AQ97,IF(RIGHT($K97,2)=RIGHT(BI$39,2),SUM($AP97:AQ97),0)+IF(RIGHT(BI$39,2)>RIGHT($K97,2),AQ97,0)) -> 0.00515 | BJ97: =+IF($K97="Ongoing",AR97,IF(RIGHT($K97,2)=RIGHT(BJ$39,2),SUM($AP97:AR97),0)+IF(RIGHT(BJ$39,2)>RIGHT($K97,2),AR97,0)) -> 0 | BK97: =+IF($K97="Ongoing",AS97,IF(RIGHT($K97,2)=RIGHT(BK$39,2),SUM($AP97:AS97),0)+IF(RIGHT(BK$39,2)>RIGHT($K97,2),AS97,0)) -> 0.00515 | BL97: =+IF($K97="Ongoing",AT97,IF(RIGHT($K97,2)=RIGHT(BL$39,2),SUM($AP97:AT97),0)+IF(RIGHT(BL$39,2)>RIGHT($K97,2),AT97,0)) -> 0 | BM97: =+IF($K97="Ongoing",AU97,IF(RIGHT($K97,2)=RIGHT(BM$39,2),SUM($AP97:AU97),0)+IF(RIGHT(BM$39,2)>RIGHT($K97,2),AU97,0)) -> 0.00515 | BN97: =+IF($K97="Ongoing",AV97,IF(RIGHT($K97,2)=RIGHT(BN$39,2),SUM($AP97:AV97),0)+IF(RIGHT(BN$39,2)>RIGHT($K97,2),AV97,0)) -> 0 | BO97: =+IF($K97="Ongoing",AW97,IF(RIGHT($K97,2)=RIGHT(BO$39,2),SUM($AP97:AW97),0)+IF(RIGHT(BO$39,2)>RIGHT($K97,2),AW97,0)) -> 0.00515 | BQ97: =+O97*KeyAssumptionsPriceControl_FO!AD$15 -> 0 | BR97: =+P97*KeyAssumptionsPriceControl_FO!AE$15 -> 0.00551680875 | BS97: =+Q97*KeyAssumptionsPriceControl_FO!AF$15 -> 0 | BT97: =+R97*KeyAssumptionsPriceControl_FO!AG$15 -> 0.005909743453 | BU97: =+S97*KeyAssumptionsPriceControl_FO!AH$15 -> 0 | BV97: =+T97*KeyAssumptionsPriceControl_FO!AI$15 -> 0.006330664931 | BW97: =+U97*KeyAssumptionsPriceControl_FO!AJ$15 -> 0 | BX97: =+V97*KeyAssumptionsPriceControl_FO!AK$15 -> 0.00678156654 | BZ97: 0 | CA97: 0.0001632300547 | CB97: 0.0001977101094 | CC97: 0.000234646006 | CD97: 0.0002715819025 | CE97: 0.0003111485584 | CF97: 0.0003507152142 | CG97: 0.0003931000051
A98: 46 | C98: Structures | E98: Drainage | F98: Renewals | G98: Channels | H98: Capital Programs / Allocation | J98: Straight line | K98: 2024-25 | L98: 80 | M98: 80 | O98: 0.1545 | P98: 0.2472 | Q98: 0.2163 | R98: 0.1854 | S98: 0.1545 | T98: 0.2472 | U98: 0.2163 | V98: 0.1854 | AP98: 0.1545 | AQ98: 0.2472 | AR98: 0.2163 | AS98: 0.1854 | AT98: 0.1545 | AU98: 0.2472 | AV98: 0.2163 | AW98: 0.1854 | AY98: 0.000965625 | AZ98: 0.00347625 | BA98: 0.006373125 | BB98: 0.00888375 | BC98: 0.011008125 | BD98: 0.01351875 | BE98: 0.016415625 | BF98: 0.01892625 | BH98: =+IF($K98="Ongoing",AP98,IF(RIGHT($K98,2)=RIGHT(BH$39,2),SUM($AP98:AP98),0)+IF(RIGHT(BH$39,2)>RIGHT($K98,2),AP98,0)) -> 0.1545 | BI98: =+IF($K98="Ongoing",AQ98,IF(RIGHT($K98,2)=RIGHT(BI$39,2),SUM($AP98:AQ98),0)+IF(RIGHT(BI$39,2)>RIGHT($K98,2),AQ98,0)) -> 0.2472 | BJ98: =+IF($K98="Ongoing",AR98,IF(RIGHT($K98,2)=RIGHT(BJ$39,2),SUM($AP98:AR98),0)+IF(RIGHT(BJ$39,2)>RIGHT($K98,2),AR98,0)) -> 0.2163 | BK98: =+IF($K98="Ongoing",AS98,IF(RIGHT($K98,2)=RIGHT(BK$39,2),SUM($AP98:AS98),0)+IF(RIGHT(BK$39,2)>RIGHT($K98,2),AS98,0)) -> 0.1854 | BL98: =+IF($K98="Ongoing",AT98,IF(RIGHT($K98,2)=RIGHT(BL$39,2),SUM($AP98:AT98),0)+IF(RIGHT(BL$39,2)>RIGHT($K98,2),AT98,0)) -> 0.1545 | BM98: =+IF($K98="Ongoing",AU98,IF(RIGHT($K98,2)=RIGHT(BM$39,2),SUM($AP98:AU98),0)+IF(RIGHT(BM$39,2)>RIGHT($K98,2),AU98,0)) -> 0.2472 | BN98: =+IF($K98="Ongoing",AV98,IF(RIGHT($K98,2)=RIGHT(BN$39,2),SUM($AP98:AV98),0)+IF(RIGHT(BN$39,2)>RIGHT($K98,2),AV98,0)) -> 0.2163 | BO98: =+IF($K98="Ongoing",AW98,IF(RIGHT($K98,2)=RIGHT(BO$39,2),SUM($AP98:AW98),0)+IF(RIGHT(BO$39,2)>RIGHT($K98,2),AW98,0)) -> 0.1854 | BQ98: =+O98*KeyAssumptionsPriceControl_FO!AD$15 -> 0.1599075 | BR98: =+P98*KeyAssumptionsPriceControl_FO!AE$15 -> 0.26480682 | BS98: =+Q98*KeyAssumptionsPriceControl_FO!AF$15 -> 0.2398156764 | BT98: =+R98*KeyAssumptionsPriceControl_FO!AG$15 -> 0.2127507643 | BU98: =+S98*KeyAssumptionsPriceControl_FO!AH$15 -> 0.1834975342 | BV98: =+T98*KeyAssumptionsPriceControl_FO!AI$15 -> 0.3038719167 | BW98: =+U98*KeyAssumptionsPriceControl_FO!AJ$15 -> 0.2751940045 | BX98: =+V98*KeyAssumptionsPriceControl_FO!AK$15 -> 0.2441363955 | BZ98: 0.000999421875 | CA98: 0.01176513638 | CB98: 0.01491902698 | CC98: 0.01774756723 | CD98: 0.0202241191 | CE98: 0.02327017817 | CF98: 0.02688934017 | CG98: 0.03013515517
A99: 47 | C99: Structures | E99: Drainage | F99: Renewals | G99: Channels | H99: Capital Programs / Allocation | J99: Straight line | K99: 2025-26 | L99: 80 | M99: 80 | O99: 0 | P99: 0.00515 | Q99: 0 | R99: 0.00515 | S99: 0 | T99: 0.00515 | U99: 0 | V99: 0.00515 | AP99: 0 | AQ99: 0.00515 | AR99: 0 | AS99: 0.00515 | AT99: 0 | AU99: 0.00515 | AV99: 0 | AW99: 0.00515 | AY99: 0 | AZ99: 3.21875e-05 | BA99: 6.4375e-05 | BB99: 9.65625e-05 | BC99: 0.00012875 | BD99: 0.0001609375 | BE99: 0.000193125 | BF99: 0.0002253125 | BH99: =+IF($K99="Ongoing",AP99,IF(RIGHT($K99,2)=RIGHT(BH$39,2),SUM($AP99:AP99),0)+IF(RIGHT(BH$39,2)>RIGHT($K99,2),AP99,0)) -> 0 | BI99: =+IF($K99="Ongoing",AQ99,IF(RIGHT($K99,2)=RIGHT(BI$39,2),SUM($AP99:AQ99),0)+IF(RIGHT(BI$39,2)>RIGHT($K99,2),AQ99,0)) -> 0.00515 | BJ99: =+IF($K99="Ongoing",AR99,IF(RIGHT($K99,2)=RIGHT(BJ$39,2),SUM($AP99:AR99),0)+IF(RIGHT(BJ$39,2)>RIGHT($K99,2),AR99,0)) -> 0 | BK99: =+IF($K99="Ongoing",AS99,IF(RIGHT($K99,2)=RIGHT(BK$39,2),SUM($AP99:AS99),0)+IF(RIGHT(BK$39,2)>RIGHT($K99,2),AS99,0)) -> 0.00515 | BL99: =+IF($K99="Ongoing",AT99,IF(RIGHT($K99,2)=RIGHT(BL$39,2),SUM($AP99:AT99),0)+IF(RIGHT(BL$39,2)>RIGHT($K99,2),AT99,0)) -> 0 | BM99: =+IF($K99="Ongoing",AU99,IF(RIGHT($K99,2)=RIGHT(BM$39,2),SUM($AP99:AU99),0)+IF(RIGHT(BM$39,2)>RIGHT($K99,2),AU99,0)) -> 0.00515 | BN99: =+IF($K99="Ongoing",AV99,IF(RIGHT($K99,2)=RIGHT(BN$39,2),SUM($AP99:AV99),0)+IF(RIGHT(BN$39,2)>RIGHT($K99,2),AV99,0)) -> 0 | BO99: =+IF($K99="Ongoing",AW99,IF(RIGHT($K99,2)=RIGHT(BO$39,2),SUM($AP99:AW99),0)+IF(RIGHT(BO$39,2)>RIGHT($K99,2),AW99,0)) -> 0.00515 | BQ99: =+O99*KeyAssumptionsPriceControl_FO!AD$15 -> 0 | BR99: =+P99*KeyAssumptionsPriceControl_FO!AE$15 -> 0.00551680875 | BS99: =+Q99*KeyAssumptionsPriceControl_FO!AF$15 -> 0 | BT99: =+R99*KeyAssumptionsPriceControl_FO!AG$15 -> 0.005909743453 | BU99: =+S99*KeyAssumptionsPriceControl_FO!AH$15 -> 0 | BV99: =+T99*KeyAssumptionsPriceControl_FO!AI$15 -> 0.006330664931 | BW99: =+U99*KeyAssumptionsPriceControl_FO!AJ$15 -> 0 | BX99: =+V99*KeyAssumptionsPriceControl_FO!AK$15 -> 0.00678156654 | BZ99: 0 | CA99: 0.0001632300547 | CB99: 0.0001977101094 | CC99: 0.000234646006 | CD99: 0.0002715819025 | CE99: 0.0003111485584 | CF99: 0.0003507152142 | CG99: 0.0003931000051
A100: 48 | C100: Structures | E100: Drainage | F100: Renewals | G100: Channels | H100: Capital Programs / Allocation | J100: Straight line | K100: 2024-25 | L100: 80 | M100: 80 | O100: 0.1236 | P100: 0.1545 | Q100: 0.1442 | R100: 0.1648 | S100: 0.1236 | T100: 0.1545 | U100: 0.1442 | V100: 0.1648 | AP100: 0.1236 | AQ100: 0.1545 | AR100: 0.1442 | AS100: 0.1648 | AT100: 0.1236 | AU100: 0.1545 | AV100: 0.1442 | AW100: 0.1648 | AY100: 0.0007725 | AZ100: 0.002510625 | BA100: 0.0043775 | BB100: 0.00630875 | BC100: 0.00811125 | BD100: 0.009849375 | BE100: 0.01171625 | BF100: 0.0136475 | BH100: =+IF($K100="Ongoing",AP100,IF(RIGHT($K100,2)=RIGHT(BH$39,2),SUM($AP100:AP100),0)+IF(RIGHT(BH$39,2)>RIGHT($K100,2),AP100,0)) -> 0.1236 | BI100: =+IF($K100="Ongoing",AQ100,IF(RIGHT($K100,2)=RIGHT(BI$39,2),SUM($AP100:AQ100),0)+IF(RIGHT(BI$39,2)>RIGHT($K100,2),AQ100,0)) -> 0.1545 | BJ100: =+IF($K100="Ongoing",AR100,IF(RIGHT($K100,2)=RIGHT(BJ$39,2),SUM($AP100:AR100),0)+IF(RIGHT(BJ$39,2)>RIGHT($K100,2),AR100,0)) -> 0.1442 | BK100: =+IF($K100="Ongoing",AS100,IF(RIGHT($K100,2)=RIGHT(BK$39,2),SUM($AP100:AS100),0)+IF(RIGHT(BK$39,2)>RIGHT($K100,2),AS100,0)) -> 0.1648 | BL100: =+IF($K100="Ongoing",AT100,IF(RIGHT($K100,2)=RIGHT(BL$39,2),SUM($AP100:AT100),0)+IF(RIGHT(BL$39,2)>RIGHT($K100,2),AT100,0)) -> 0.1236 | BM100: =+IF($K100="Ongoing",AU100,IF(RIGHT($K100,2)=RIGHT(BM$39,2),SUM($AP100:AU100),0)+IF(RIGHT(BM$39,2)>RIGHT($K100,2),AU100,0)) -> 0.1545 | BN100: =+IF($K100="Ongoing",AV100,IF(RIGHT($K100,2)=RIGHT(BN$39,2),SUM($AP100:AV100),0)+IF(RIGHT(BN$39,2)>RIGHT($K100,2),AV100,0)) -> 0.1442 | BO100: =+IF($K100="Ongoing",AW100,IF(RIGHT($K100,2)=RIGHT(BO$39,2),SUM($AP100:AW100),0)+IF(RIGHT(BO$39,2)>RIGHT($K100,2),AW100,0)) -> 0.1648 | BQ100: =+O100*KeyAssumptionsPriceControl_FO!AD$15 -> 0.127926 | BR100: =+P100*KeyAssumptionsPriceControl_FO!AE$15 -> 0.1655042625 | BS100: =+Q100*KeyAssumptionsPriceControl_FO!AF$15 -> 0.1598771176 | BT100: =+R100*KeyAssumptionsPriceControl_FO!AG$15 -> 0.1891117905 | BU100: =+S100*KeyAssumptionsPriceControl_FO!AH$15 -> 0.1467980274 | BV100: =+T100*KeyAssumptionsPriceControl_FO!AI$15 -> 0.1899199479 | BW100: =+U100*KeyAssumptionsPriceControl_FO!AJ$15 -> 0.1834626697 | BX100: =+V100*KeyAssumptionsPriceControl_FO!AK$15 -> 0.2170101293 | BZ100: 0.0007995375 | CA100: 0.008427226641 | CB100: 0.01046086027 | CC100: 0.01264204094 | CD100: 0.0147414773 | CE100: 0.01684596465 | CF100: 0.01917960601 | CG100: 0.021682561
A101: 49 | C101: Structures | E101: Drainage | F101: Renewals | G101: Channels | H101: Capital Programs / Allocation | J101: Straight line | K101: 2024-25 | L101: 80 | M101: 80 | O101: 0.1133 | P101: 0.1442 | Q101: 0.0927 | R101: 0.1133 | S101: 0.1133 | T101: 0.1442 | U101: 0.0927 | V101: 0.1133 | AP101: 0.1133 | AQ101: 0.1442 | AR101: 0.0927 | AS101: 0.1133 | AT101: 0.1133 | AU101: 0.1442 | AV101: 0.0927 | AW101: 0.1133 | AY101: 0.000708125 | AZ101: 0.0023175 | BA101: 0.003798125 | BB101: 0.005085625 | BC101: 0.006501875 | BD101: 0.00811125 | BE101: 0.009591875 | BF101: 0.010879375 | BH101: =+IF($K101="Ongoing",AP101,IF(RIGHT($K101,2)=RIGHT(BH$39,2),SUM($AP101:AP101),0)+IF(RIGHT(BH$39,2)>RIGHT($K101,2),AP101,0)) -> 0.1133 | BI101: =+IF($K101="Ongoing",AQ101,IF(RIGHT($K101,2)=RIGHT(BI$39,2),SUM($AP101:AQ101),0)+IF(RIGHT(BI$39,2)>RIGHT($K101,2),AQ101,0)) -> 0.1442 | BJ101: =+IF($K101="Ongoing",AR101,IF(RIGHT($K101,2)=RIGHT(BJ$39,2),SUM($AP101:AR101),0)+IF(RIGHT(BJ$39,2)>RIGHT($K101,2),AR101,0)) -> 0.0927 | BK101: =+IF($K101="Ongoing",AS101,IF(RIGHT($K101,2)=RIGHT(BK$39,2),SUM($AP101:AS101),0)+IF(RIGHT(BK$39,2)>RIGHT($K101,2),AS101,0)) -> 0.1133 | BL101: =+IF($K101="Ongoing",AT101,IF(RIGHT($K101,2)=RIGHT(BL$39,2),SUM($AP101:AT101),0)+IF(RIGHT(BL$39,2)>RIGHT($K101,2),AT101,0)) -> 0.1133 | BM101: =+IF($K101="Ongoing",AU101,IF(RIGHT($K101,2)=RIGHT(BM$39,2),SUM($AP101:AU101),0)+IF(RIGHT(BM$39,2)>RIGHT($K101,2),AU101,0)) -> 0.1442 | BN101: =+IF($K101="Ongoing",AV101,IF(RIGHT($K101,2)=RIGHT(BN$39,2),SUM($AP101:AV101),0)+IF(RIGHT(BN$39,2)>RIGHT($K101,2),AV101,0)) -> 0.0927 | BO101: =+IF($K101="Ongoing",AW101,IF(RIGHT($K101,2)=RIGHT(BO$39,2),SUM($AP101:AW101),0)+IF(RIGHT(BO$39,2)>RIGHT($K101,2),AW101,0)) -> 0.1133 | BQ101: =+O101*KeyAssumptionsPriceControl_FO!AD$15 -> 0.1172655 | BR101: =+P101*KeyAssumptionsPriceControl_FO!AE$15 -> 0.154470645 | BS101: =+Q101*KeyAssumptionsPriceControl_FO!AF$15 -> 0.102778147 | BT101: =+R101*KeyAssumptionsPriceControl_FO!AG$15 -> 0.130014356 | BU101: =+S101*KeyAssumptionsPriceControl_FO!AH$15 -> 0.1345648584 | BV101: =+T101*KeyAssumptionsPriceControl_FO!AI$15 -> 0.1772586181 | BW101: =+U101*KeyAssumptionsPriceControl_FO!AJ$15 -> 0.1179402877 | BX101: =+V101*KeyAssumptionsPriceControl_FO!AK$15 -> 0.1491944639 | BZ101: 0.000732909375 | CA101: 0.006808760281 | CB101: 0.008416565231 | CC101: 0.009871518375 | CD101: 0.01152513846 | CE101: 0.01347403519 | CF101: 0.01531902835 | CG101: 0.01698862055
A102: 50 | C102: Structures | E102: Drainage | F102: Renewals | G102: Channels | H102: Capital Programs / Allocation | J102: Straight line | K102: 2024-25 | L102: 80 | M102: 80 | O102: 0.1854 | P102: 0.2575 | Q102: 0.2369 | R102: 0.1648 | S102: 0.1854 | T102: 0.2575 | U102: 0.2369 | V102: 0.1648 | AP102: 0.1854 | AQ102: 0.2575 | AR102: 0.2369 | AS102: 0.1648 | AT102: 0.1854 | AU102: 0.2575 | AV102: 0.2369 | AW102: 0.1648 | AY102: 0.00115875 | AZ102: 0.003926875 | BA102: 0.007016875 | BB102: 0.0095275 | BC102: 0.01171625 | BD102: 0.014484375 | BE102: 0.017574375 | BF102: 0.020085 | BH102: =+IF($K102="Ongoing",AP102,IF(RIGHT($K102,2)=RIGHT(BH$39,2),SUM($AP102:AP102),0)+IF(RIGHT(BH$39,2)>RIGHT($K102,2),AP102,0)) -> 0.1854 | BI102: =+IF($K102="Ongoing",AQ102,IF(RIGHT($K102,2)=RIGHT(BI$39,2),SUM($AP102:AQ102),0)+IF(RIGHT(BI$39,2)>RIGHT($K102,2),AQ102,0)) -> 0.2575 | BJ102: =+IF($K102="Ongoing",AR102,IF(RIGHT($K102,2)=RIGHT(BJ$39,2),SUM($AP102:AR102),0)+IF(RIGHT(BJ$39,2)>RIGHT($K102,2),AR102,0)) -> 0.2369 | BK102: =+IF($K102="Ongoing",AS102,IF(RIGHT($K102,2)=RIGHT(BK$39,2),SUM($AP102:AS102),0)+IF(RIGHT(BK$39,2)>RIGHT($K102,2),AS102,0)) -> 0.1648 | BL102: =+IF($K102="Ongoing",AT102,IF(RIGHT($K102,2)=RIGHT(BL$39,2),SUM($AP102:AT102),0)+IF(RIGHT(BL$39,2)>RIGHT($K102,2),AT102,0)) -> 0.1854 | BM102: =+IF($K102="Ongoing",AU102,IF(RIGHT($K102,2)=RIGHT(BM$39,2),SUM($AP102:AU102),0)+IF(RIGHT(BM$39,2)>RIGHT($K102,2),AU102,0)) -> 0.2575 | BN102: =+IF($K102="Ongoing",AV102,IF(RIGHT($K102,2)=RIGHT(BN$39,2),SUM($AP102:AV102),0)+IF(RIGHT(BN$39,2)>RIGHT($K102,2),AV102,0)) -> 0.2369 | BO102: =+IF($K102="Ongoing",AW102,IF(RIGHT($K102,2)=RIGHT(BO$39,2),SUM($AP102:AW102),0)+IF(RIGHT(BO$39,2)>RIGHT($K102,2),AW102,0)) -> 0.1648 | BQ102: =+O102*KeyAssumptionsPriceControl_FO!AD$15 -> 0.191889 | BR102: =+P102*KeyAssumptionsPriceControl_FO!AE$15 -> 0.2758404375 | BS102: =+Q102*KeyAssumptionsPriceControl_FO!AF$15 -> 0.2626552646 | BT102: =+R102*KeyAssumptionsPriceControl_FO!AG$15 -> 0.1891117905 | BU102: =+S102*KeyAssumptionsPriceControl_FO!AH$15 -> 0.2201970411 | BV102: =+T102*KeyAssumptionsPriceControl_FO!AI$15 -> 0.3165332465 | BW102: =+U102*KeyAssumptionsPriceControl_FO!AJ$15 -> 0.3014029573 | BX102: =+V102*KeyAssumptionsPriceControl_FO!AK$15 -> 0.2170101293 | BZ102: 0.00119930625 | CA102: 0.01236261523 | CB102: 0.01572821337 | CC102: 0.01855175747 | CD102: 0.02110993766 | CE102: 0.02446450196 | CF102: 0.02832660324 | CG102: 0.03156668503
A103: 51 | C103: Structures/Pump Station | E103: Drainage | F103: Renewals | G103: Channels | H103: Capital Programs / Allocation | J103: Straight line | K103: 2024-25 | L103: 80 | M103: 80 | O103: 0.0618 | P103: 0.0515 | Q103: 0.0515 | R103: 0.0721 | S103: 0.0618 | T103: 0.0515 | U103: 0.0515 | V103: 0.0721 | AP103: 0.0618 | AQ103: 0.0515 | AR103: 0.0515 | AS103: 0.0721 | AT103: 0.0618 | AU103: 0.0515 | AV103: 0.0515 | AW103: 0.0721 | AY103: 0.00038625 | AZ103: 0.001094375 | BA103: 0.001738125 | BB103: 0.002510625 | BC103: 0.0033475 | BD103: 0.004055625 | BE103: 0.004699375 | BF103: 0.005471875 | BH103: =+IF($K103="Ongoing",AP103,IF(RIGHT($K103,2)=RIGHT(BH$39,2),SUM($AP103:AP103),0)+IF(RIGHT(BH$39,2)>RIGHT($K103,2),AP103,0)) -> 0.0618 | BI103: =+IF($K103="Ongoing",AQ103,IF(RIGHT($K103,2)=RIGHT(BI$39,2),SUM($AP103:AQ103),0)+IF(RIGHT(BI$39,2)>RIGHT($K103,2),AQ103,0)) -> 0.0515 | BJ103: =+IF($K103="Ongoing",AR103,IF(RIGHT($K103,2)=RIGHT(BJ$39,2),SUM($AP103:AR103),0)+IF(RIGHT(BJ$39,2)>RIGHT($K103,2),AR103,0)) -> 0.0515 | BK103: =+IF($K103="Ongoing",AS103,IF(RIGHT($K103,2)=RIGHT(BK$39,2),SUM($AP103:AS103),0)+IF(RIGHT(BK$39,2)>RIGHT($K103,2),AS103,0)) -> 0.0721 | BL103: =+IF($K103="Ongoing",AT103,IF(RIGHT($K103,2)=RIGHT(BL$39,2),SUM($AP103:AT103),0)+IF(RIGHT(BL$39,2)>RIGHT($K103,2),AT103,0)) -> 0.0618 | BM103: =+IF($K103="Ongoing",AU103,IF(RIGHT($K103,2)=RIGHT(BM$39,2),SUM($AP103:AU103),0)+IF(RIGHT(BM$39,2)>RIGHT($K103,2),AU103,0)) -> 0.0515 | BN103: =+IF($K103="Ongoing",AV103,IF(RIGHT($K103,2)=RIGHT(BN$39,2),SUM($AP103:AV103),0)+IF(RIGHT(BN$39,2)>RIGHT($K103,2),AV103,0)) -> 0.0515 | BO103: =+IF($K103="Ongoing",AW103,IF(RIGHT($K103,2)=RIGHT(BO$39,2),SUM($AP103:AW103),0)+IF(RIGHT(BO$39,2)>RIGHT($K103,2),AW103,0)) -> 0.0721 | BQ103: =+O103*KeyAssumptionsPriceControl_FO!AD$15 -> 0.063963 | BR103: =+P103*KeyAssumptionsPriceControl_FO!AE$15 -> 0.0551680875 | BS103: =+Q103*KeyAssumptionsPriceControl_FO!AF$15 -> 0.05709897056 | BT103: =+R103*KeyAssumptionsPriceControl_FO!AG$15 -> 0.08273640835 | BU103: =+S103*KeyAssumptionsPriceControl_FO!AH$15 -> 0.07339901369 | BV103: =+T103*KeyAssumptionsPriceControl_FO!AI$15 -> 0.06330664931 | BW103: =+U103*KeyAssumptionsPriceControl_FO!AJ$15 -> 0.06552238203 | BX103: =+V103*KeyAssumptionsPriceControl_FO!AK$15 -> 0.09494193157 | BZ103: 0.00039976875 | CA103: 0.003333088047 | CB103: 0.00403475716 | CC103: 0.004908728278 | CD103: 0.005884574666 | CE103: 0.006738985059 | CF103: 0.007544166505 | CG103: 0.008547068465
A104: 52 | C104: Pipelines | E104: Drainage | F104: Renewals | G104: Channels | H104: Other Capital expenditure | J104: Straight line | K104: 2029-30 | L104: 75 | M104: 75 | O104: 0 | P104: 0 | Q104: 0 | R104: 0 | S104: 0 | T104: 0.0412 | U104: 0 | V104: 0.0309 | AP104: 0 | AQ104: 0 | AR104: 0 | AS104: 0 | AT104: 0 | AU104: 0.0412 | AV104: 0 | AW104: 0.0309 | AY104: 0 | AZ104: 0 | BA104: 0 | BB104: 0 | BC104: 0 | BD104: 0.0002746666667 | BE104: 0.0005493333333 | BF104: 0.0007553333333 | BH104: =+IF($K104="Ongoing",AP104,IF(RIGHT($K104,2)=RIGHT(BH$39,2),SUM($AP104:AP104),0)+IF(RIGHT(BH$39,2)>RIGHT($K104,2),AP104,0)) -> 0 | BI104: =+IF($K104="Ongoing",AQ104,IF(RIGHT($K104,2)=RIGHT(BI$39,2),SUM($AP104:AQ104),0)+IF(RIGHT(BI$39,2)>RIGHT($K104,2),AQ104,0)) -> 0 | BJ104: =+IF($K104="Ongoing",AR104,IF(RIGHT($K104,2)=RIGHT(BJ$39,2),SUM($AP104:AR104),0)+IF(RIGHT(BJ$39,2)>RIGHT($K104,2),AR104,0)) -> 0 | BK104: =+IF($K104="Ongoing",AS104,IF(RIGHT($K104,2)=RIGHT(BK$39,2),SUM($AP104:AS104),0)+IF(RIGHT(BK$39,2)>RIGHT($K104,2),AS104,0)) -> 0 | BL104: =+IF($K104="Ongoing",AT104,IF(RIGHT($K104,2)=RIGHT(BL$39,2),SUM($AP104:AT104),0)+IF(RIGHT(BL$39,2)>RIGHT($K104,2),AT104,0)) -> 0 | BM104: =+IF($K104="Ongoing",AU104,IF(RIGHT($K104,2)=RIGHT(BM$39,2),SUM($AP104:AU104),0)+IF(RIGHT(BM$39,2)>RIGHT($K104,2),AU104,0)) -> 0.0412 | BN104: =+IF($K104="Ongoing",AV104,IF(RIGHT($K104,2)=RIGHT(BN$39,2),SUM($AP104:AV104),0)+IF(RIGHT(BN$39,2)>RIGHT($K104,2),AV104,0)) -> 0 | BO104: =+IF($K104="Ongoing",AW104,IF(RIGHT($K104,2)=RIGHT(BO$39,2),SUM($AP104:AW104),0)+IF(RIGHT(BO$39,2)>RIGHT($K104,2),AW104,0)) -> 0.0309 | BQ104: =+O104*KeyAssumptionsPriceControl_FO!AD$15 -> 0 | BR104: =+P104*KeyAssumptionsPriceControl_FO!AE$15 -> 0 | BS104: =+Q104*KeyAssumptionsPriceControl_FO!AF$15 -> 0 | BT104: =+R104*KeyAssumptionsPriceControl_FO!AG$15 -> 0 | BU104: =+S104*KeyAssumptionsPriceControl_FO!AH$15 -> 0 | BV104: =+T104*KeyAssumptionsPriceControl_FO!AI$15 -> 0.05064531945 | BW104: =+U104*KeyAssumptionsPriceControl_FO!AJ$15 -> 0 | BX104: =+V104*KeyAssumptionsPriceControl_FO!AK$15 -> 0.04068939924 | BZ104: 0 | CA104: 0.0009613333333 | CB104: 0.0009613333333 | CC104: 0.0009613333333 | CD104: 0.0009613333333 | CE104: 0.001298968796 | CF104: 0.001636604259 | CG104: 0.001907866921
A105: 53 | C105: Pipelines | E105: Drainage | F105: Renewals | G105: Channels | H105: Other Capital expenditure | J105: Straight line | K105: 2028-29 | L105: 75 | M105: 75 | O105: 0 | P105: 0 | Q105: 0 | R105: 0 | S105: 0 | T105: 0.0206 | U105: 0 | V105: 0.0206 | AP105: 0 | AQ105: 0 | AR105: 0 | AS105: 0 | AT105: 0 | AU105: 0.0206 | AV105: 0 | AW105: 0.0206 | AY105: 0 | AZ105: 0 | BA105: 0 | BB105: 0 | BC105: 0 | BD105: 0.0001373333333 | BE105: 0.0002746666667 | BF105: 0.000412 | BH105: =+IF($K105="Ongoing",AP105,IF(RIGHT($K105,2)=RIGHT(BH$39,2),SUM($AP105:AP105),0)+IF(RIGHT(BH$39,2)>RIGHT($K105,2),AP105,0)) -> 0 | BI105: =+IF($K105="Ongoing",AQ105,IF(RIGHT($K105,2)=RIGHT(BI$39,2),SUM($AP105:AQ105),0)+IF(RIGHT(BI$39,2)>RIGHT($K105,2),AQ105,0)) -> 0 | BJ105: =+IF($K105="Ongoing",AR105,IF(RIGHT($K105,2)=RIGHT(BJ$39,2),SUM($AP105:AR105),0)+IF(RIGHT(BJ$39,2)>RIGHT($K105,2),AR105,0)) -> 0 | BK105: =+IF($K105="Ongoing",AS105,IF(RIGHT($K105,2)=RIGHT(BK$39,2),SUM($AP105:AS105),0)+IF(RIGHT(BK$39,2)>RIGHT($K105,2),AS105,0)) -> 0 | BL105: =+IF($K105="Ongoing",AT105,IF(RIGHT($K105,2)=RIGHT(BL$39,2),SUM($AP105:AT105),0)+IF(RIGHT(BL$39,2)>RIGHT($K105,2),AT105,0)) -> 0 | BM105: =+IF($K105="Ongoing",AU105,IF(RIGHT($K105,2)=RIGHT(BM$39,2),SUM($AP105:AU105),0)+IF(RIGHT(BM$39,2)>RIGHT($K105,2),AU105,0)) -> 0.0206 | BN105: =+IF($K105="Ongoing",AV105,IF(RIGHT($K105,2)=RIGHT(BN$39,2),SUM($AP105:AV105),0)+IF(RIGHT(BN$39,2)>RIGHT($K105,2),AV105,0)) -> 0 | BO105: =+IF($K105="Ongoing",AW105,IF(RIGHT($K105,2)=RIGHT(BO$39,2),SUM($AP105:AW105),0)+IF(RIGHT(BO$39,2)>RIGHT($K105,2),AW105,0)) -> 0.0206 | BQ105: =+O105*KeyAssumptionsPriceControl_FO!AD$15 -> 0 | BR105: =+P105*KeyAssumptionsPriceControl_FO!AE$15 -> 0 | BS105: =+Q105*KeyAssumptionsPriceControl_FO!AF$15 -> 0 | BT105: =+R105*KeyAssumptionsPriceControl_FO!AG$15 -> 0 | BU105: =+S105*KeyAssumptionsPriceControl_FO!AH$15 -> 0 | BV105: =+T105*KeyAssumptionsPriceControl_FO!AI$15 -> 0.02532265972 | BW105: =+U105*KeyAssumptionsPriceControl_FO!AJ$15 -> 0 | BX105: =+V105*KeyAssumptionsPriceControl_FO!AK$15 -> 0.02712626616 | BZ105: 0 | CA105: 0.0005493333333 | CB105: 0.0005493333333 | CC105: 0.0005493333333 | CD105: 0.0005493333333 | CE105: 0.0007181510648 | CF105: 0.0008869687963 | CG105: 0.001067810571
A106: 54 | C106: Pipelines | E106: Drainage | F106: Renewals | G106: Channels | H106: Other Capital expenditure | J106: Straight line | K106: 2029-30 | L106: 75 | M106: 75 | O106: 0 | P106: 0 | Q106: 0 | R106: 0 | S106: 0.02575 | T106: 0 | U106: 0.02575 | V106: 0 | AP106: 0 | AQ106: 0 | AR106: 0 | AS106: 0 | AT106: 0.02575 | AU106: 0 | AV106: 0.02575 | AW106: 0 | AY106: 0 | AZ106: 0 | BA106: 0 | BB106: 0 | BC106: 0 | BD106: 0.0001716666667 | BE106: 0.000515 | BF106: 0.0006866666667 | BH106: =+IF($K106="Ongoing",AP106,IF(RIGHT($K106,2)=RIGHT(BH$39,2),SUM($AP106:AP106),0)+IF(RIGHT(BH$39,2)>RIGHT($K106,2),AP106,0)) -> 0 | BI106: =+IF($K106="Ongoing",AQ106,IF(RIGHT($K106,2)=RIGHT(BI$39,2),SUM($AP106:AQ106),0)+IF(RIGHT(BI$39,2)>RIGHT($K106,2),AQ106,0)) -> 0 | BJ106: =+IF($K106="Ongoing",AR106,IF(RIGHT($K106,2)=RIGHT(BJ$39,2),SUM($AP106:AR106),0)+IF(RIGHT(BJ$39,2)>RIGHT($K106,2),AR106,0)) -> 0 | BK106: =+IF($K106="Ongoing",AS106,IF(RIGHT($K106,2)=RIGHT(BK$39,2),SUM($AP106:AS106),0)+IF(RIGHT(BK$39,2)>RIGHT($K106,2),AS106,0)) -> 0 | BL106: =+IF($K106="Ongoing",AT106,IF(RIGHT($K106,2)=RIGHT(BL$39,2),SUM($AP106:AT106),0)+IF(RIGHT(BL$39,2)>RIGHT($K106,2),AT106,0)) -> 0 | BM106: =+IF($K106="Ongoing",AU106,IF(RIGHT($K106,2)=RIGHT(BM$39,2),SUM($AP106:AU106),0)+IF(RIGHT(BM$39,2)>RIGHT($K106,2),AU106,0)) -> 0.02575 | BN106: =+IF($K106="Ongoing",AV106,IF(RIGHT($K106,2)=RIGHT(BN$39,2),SUM($AP106:AV106),0)+IF(RIGHT(BN$39,2)>RIGHT($K106,2),AV106,0)) -> 0.02575 | BO106: =+IF($K106="Ongoing",AW106,IF(RIGHT($K106,2)=RIGHT(BO$39,2),SUM($AP106:AW106),0)+IF(RIGHT(BO$39,2)>RIGHT($K106,2),AW106,0)) -> 0 | BQ106: =+O106*KeyAssumptionsPriceControl_FO!AD$15 -> 0 | BR106: =+P106*KeyAssumptionsPriceControl_FO!AE$15 -> 0 | BS106: =+Q106*KeyAssumptionsPriceControl_FO!AF$15 -> 0 | BT106: =+R106*KeyAssumptionsPriceControl_FO!AG$15 -> 0 | BU106: =+S106*KeyAssumptionsPriceControl_FO!AH$15 -> 0.03058292237 | BV106: =+T106*KeyAssumptionsPriceControl_FO!AI$15 -> 0 | BW106: =+U106*KeyAssumptionsPriceControl_FO!AJ$15 -> 0.03276119102 | BX106: =+V106*KeyAssumptionsPriceControl_FO!AK$15 -> 0 | BZ106: 0 | CA106: 0.0006866666667 | CB106: 0.0006866666667 | CC106: 0.0006866666667 | CD106: 0.0008905528158 | CE106: 0.001094438965 | CF106: 0.001312846905 | CG106: 0.001531254845
A107: 55 | C107: Channels | E107: Water supply districts | F107: Renewals | G107: Pipelines/network | H107: Other Capital expenditure | J107: Straight line | K107: 2029-30 | L107: 100 | M107: 100 | O107: 0 | P107: 0 | Q107: 0 | R107: 0 | S107: 0 | T107: 0.0103 | U107: 0 | V107: 0.0103 | AP107: 0 | AQ107: 0 | AR107: 0 | AS107: 0 | AT107: 0 | AU107: 0.0103 | AV107: 0 | AW107: 0.0103 | AY107: 0 | AZ107: 0 | BA107: 0 | BB107: 0 | BC107: 0 | BD107: 5.15e-05 | BE107: 0.000103 | BF107: 0.0001545 | BH107: =+IF($K107="Ongoing",AP107,IF(RIGHT($K107,2)=RIGHT(BH$39,2),SUM($AP107:AP107),0)+IF(RIGHT(BH$39,2)>RIGHT($K107,2),AP107,0)) -> 0 | BI107: =+IF($K107="Ongoing",AQ107,IF(RIGHT($K107,2)=RIGHT(BI$39,2),SUM($AP107:AQ107),0)+IF(RIGHT(BI$39,2)>RIGHT($K107,2),AQ107,0)) -> 0 | BJ107: =+IF($K107="Ongoing",AR107,IF(RIGHT($K107,2)=RIGHT(BJ$39,2),SUM($AP107:AR107),0)+IF(RIGHT(BJ$39,2)>RIGHT($K107,2),AR107,0)) -> 0 | BK107: =+IF($K107="Ongoing",AS107,IF(RIGHT($K107,2)=RIGHT(BK$39,2),SUM($AP107:AS107),0)+IF(RIGHT(BK$39,2)>RIGHT($K107,2),AS107,0)) -> 0 | BL107: =+IF($K107="Ongoing",AT107,IF(RIGHT($K107,2)=RIGHT(BL$39,2),SUM($AP107:AT107),0)+IF(RIGHT(BL$39,2)>RIGHT($K107,2),AT107,0)) -> 0 | BM107: =+IF($K107="Ongoing",AU107,IF(RIGHT($K107,2)=RIGHT(BM$39,2),SUM($AP107:AU107),0)+IF(RIGHT(BM$39,2)>RIGHT($K107,2),AU107,0)) -> 0.0103 | BN107: =+IF($K107="Ongoing",AV107,IF(RIGHT($K107,2)=RIGHT(BN$39,2),SUM($AP107:AV107),0)+IF(RIGHT(BN$39,2)>RIGHT($K107,2),AV107,0)) -> 0 | BO107: =+IF($K107="Ongoing",AW107,IF(RIGHT($K107,2)=RIGHT(BO$39,2),SUM($AP107:AW107),0)+IF(RIGHT(BO$39,2)>RIGHT($K107,2),AW107,0)) -> 0.0103 | BQ107: =+O107*KeyAssumptionsPriceControl_FO!AD$15 -> 0 | BR107: =+P107*KeyAssumptionsPriceControl_FO!AE$15 -> 0 | BS107: =+Q107*KeyAssumptionsPriceControl_FO!AF$15 -> 0 | BT107: =+R107*KeyAssumptionsPriceControl_FO!AG$15 -> 0 | BU107: =+S107*KeyAssumptionsPriceControl_FO!AH$15 -> 0 | BV107: =+T107*KeyAssumptionsPriceControl_FO!AI$15 -> 0.01266132986 | BW107: =+U107*KeyAssumptionsPriceControl_FO!AJ$15 -> 0 | BX107: =+V107*KeyAssumptionsPriceControl_FO!AK$15 -> 0.01356313308 | BZ107: 0 | CA107: 0.000206 | CB107: 0.000206 | CC107: 0.000206 | CD107: 0.000206 | CE107: 0.0002693066493 | CF107: 0.0003326132986 | CG107: 0.000400428964
A108: 56 | C108: Channels | E108: Water supply districts | F108: Renewals | G108: Pipelines/network | H108: Other Capital expenditure | J108: Straight line | K108: 2028-29 | L108: 100 | M108: 100 | O108: 0 | P108: 0 | Q108: 0 | R108: 0 | S108: 0.0103 | T108: 0.0103 | U108: 0.0103 | V108: 0.0103 | AP108: 0 | AQ108: 0 | AR108: 0 | AS108: 0 | AT108: 0.0103 | AU108: 0.0103 | AV108: 0.0103 | AW108: 0.0103 | AY108: 0 | AZ108: 0 | BA108: 0 | BB108: 0 | BC108: 5.15e-05 | BD108: 0.0001545 | BE108: 0.0002575 | BF108: 0.0003605 | BH108: =+IF($K108="Ongoing",AP108,IF(RIGHT($K108,2)=RIGHT(BH$39,2),SUM($AP108:AP108),0)+IF(RIGHT(BH$39,2)>RIGHT($K108,2),AP108,0)) -> 0 | BI108: =+IF($K108="Ongoing",AQ108,IF(RIGHT($K108,2)=RIGHT(BI$39,2),SUM($AP108:AQ108),0)+IF(RIGHT(BI$39,2)>RIGHT($K108,2),AQ108,0)) -> 0 | BJ108: =+IF($K108="Ongoing",AR108,IF(RIGHT($K108,2)=RIGHT(BJ$39,2),SUM($AP108:AR108),0)+IF(RIGHT(BJ$39,2)>RIGHT($K108,2),AR108,0)) -> 0 | BK108: =+IF($K108="Ongoing",AS108,IF(RIGHT($K108,2)=RIGHT(BK$39,2),SUM($AP108:AS108),0)+IF(RIGHT(BK$39,2)>RIGHT($K108,2),AS108,0)) -> 0 | BL108: =+IF($K108="Ongoing",AT108,IF(RIGHT($K108,2)=RIGHT(BL$39,2),SUM($AP108:AT108),0)+IF(RIGHT(BL$39,2)>RIGHT($K108,2),AT108,0)) -> 0.0103 | BM108: =+IF($K108="Ongoing",AU108,IF(RIGHT($K108,2)=RIGHT(BM$39,2),SUM($AP108:AU108),0)+IF(RIGHT(BM$39,2)>RIGHT($K108,2),AU108,0)) -> 0.0103 | BN108: =+IF($K108="Ongoing",AV108,IF(RIGHT($K108,2)=RIGHT(BN$39,2),SUM($AP108:AV108),0)+IF(RIGHT(BN$39,2)>RIGHT($K108,2),AV108,0)) -> 0.0103 | BO108: =+IF($K108="Ongoing",AW108,IF(RIGHT($K108,2)=RIGHT(BO$39,2),SUM($AP108:AW108),0)+IF(RIGHT(BO$39,2)>RIGHT($K108,2),AW108,0)) -> 0.0103 | BQ108: =+O108*KeyAssumptionsPriceControl_FO!AD$15 -> 0 | BR108: =+P108*KeyAssumptionsPriceControl_FO!AE$15 -> 0 | BS108: =+Q108*KeyAssumptionsPriceControl_FO!AF$15 -> 0 | BT108: =+R108*KeyAssumptionsPriceControl_FO!AG$15 -> 0 | BU108: =+S108*KeyAssumptionsPriceControl_FO!AH$15 -> 0.01223316895 | BV108: =+T108*KeyAssumptionsPriceControl_FO!AI$15 -> 0.01266132986 | BW108: =+U108*KeyAssumptionsPriceControl_FO!AJ$15 -> 0.01310447641 | BX108: =+V108*KeyAssumptionsPriceControl_FO!AK$15 -> 0.01356313308 | BZ108: 0 | CA108: 0.000309 | CB108: 0.000309 | CC108: 0.000309 | CD108: 0.0003701658447 | CE108: 0.0004946383388 | CF108: 0.0006234673701 | CG108: 0.0007568054176
A109: 57 | C109: Pipelines/Pump Station | E109: Bulk water services | F109: Renewals | G109: Headworks | H109: Other Capital expenditure | J109: Straight line | K109: 2024-25 | L109: 75 | M109: 75 | O109: 0.00515 | P109: 0.00515 | Q109: 0.00515 | R109: 0.00515 | S109: 0.00515 | T109: 0.00515 | U109: 0.00515 | V109: 0.00515 | AP109: 0.00515 | AQ109: 0.00515 | AR109: 0.00515 | AS109: 0.00515 | AT109: 0.00515 | AU109: 0.00515 | AV109: 0.00515 | AW109: 0.00515 | AY109: 3.433333333e-05 | AZ109: 0.000103 | BA109: 0.0001716666667 | BB109: 0.0002403333333 | BC109: 0.000309 | BD109: 0.0003776666667 | BE109: 0.0004463333333 | BF109: 0.000515 | BH109: =+IF($K109="Ongoing",AP109,IF(RIGHT($K109,2)=RIGHT(BH$39,2),SUM($AP109:AP109),0)+IF(RIGHT(BH$39,2)>RIGHT($K109,2),AP109,0)) -> 0.00515 | BI109: =+IF($K109="Ongoing",AQ109,IF(RIGHT($K109,2)=RIGHT(BI$39,2),SUM($AP109:AQ109),0)+IF(RIGHT(BI$39,2)>RIGHT($K109,2),AQ109,0)) -> 0.00515 | BJ109: =+IF($K109="Ongoing",AR109,IF(RIGHT($K109,2)=RIGHT(BJ$39,2),SUM($AP109:AR109),0)+IF(RIGHT(BJ$39,2)>RIGHT($K109,2),AR109,0)) -> 0.00515 | BK109: =+IF($K109="Ongoing",AS109,IF(RIGHT($K109,2)=RIGHT(BK$39,2),SUM($AP109:AS109),0)+IF(RIGHT(BK$39,2)>RIGHT($K109,2),AS109,0)) -> 0.00515 | BL109: =+IF($K109="Ongoing",AT109,IF(RIGHT($K109,2)=RIGHT(BL$39,2),SUM($AP109:AT109),0)+IF(RIGHT(BL$39,2)>RIGHT($K109,2),AT109,0)) -> 0.00515 | BM109: =+IF($K109="Ongoing",AU109,IF(RIGHT($K109,2)=RIGHT(BM$39,2),SUM($AP109:AU109),0)+IF(RIGHT(BM$39,2)>RIGHT($K109,2),AU109,0)) -> 0.00515 | BN109: =+IF($K109="Ongoing",AV109,IF(RIGHT($K109,2)=RIGHT(BN$39,2),SUM($AP109:AV109),0)+IF(RIGHT(BN$39,2)>RIGHT($K109,2),AV109,0)) -> 0.00515 | BO109: =+IF($K109="Ongoing",AW109,IF(RIGHT($K109,2)=RIGHT(BO$39,2),SUM($AP109:AW109),0)+IF(RIGHT(BO$39,2)>RIGHT($K109,2),AW109,0)) -> 0.00515 | BQ109: =+O109*KeyAssumptionsPriceControl_FO!AD$15 -> 0.00533025 | BR109: =+P109*KeyAssumptionsPriceControl_FO!AE$15 -> 0.00551680875 | BS109: =+Q109*KeyAssumptionsPriceControl_FO!AF$15 -> 0.005709897056 | BT109: =+R109*KeyAssumptionsPriceControl_FO!AG$15 -> 0.005909743453 | BU109: =+S109*KeyAssumptionsPriceControl_FO!AH$15 -> 0.006116584474 | BV109: =+T109*KeyAssumptionsPriceControl_FO!AI$15 -> 0.006330664931 | BW109: =+U109*KeyAssumptionsPriceControl_FO!AJ$15 -> 0.006552238203 | BX109: =+V109*KeyAssumptionsPriceControl_FO!AK$15 -> 0.00678156654 | BZ109: 3.5535e-05 | CA109: 0.000313848725 | CB109: 0.0003886934304 | CC109: 0.0004661577004 | CD109: 0.00054633322 | CE109: 0.0006293148827 | CF109: 0.0007152009035 | CG109: 0.0008040929352
A110: 58 | C110: Data Mgt | E110: Bulk water services | F110: Renewals | G110: Headworks | H110: Other Capital expenditure | J110: Straight line | K110: 2024-25 | L110: 5 | M110: 5 | O110: 0.00824 | P110: 0.00824 | Q110: 0.00824 | R110: 0.00824 | S110: 0.00824 | T110: 0.00824 | U110: 0.00824 | V110: 0.00824 | AP110: 0.00824 | AQ110: 0.00824 | AR110: 0.00824 | AS110: 0.00824 | AT110: 0.00824 | AU110: 0.00824 | AV110: 0.00824 | AW110: 0.00824 | AY110: 0.000824 | AZ110: 0.002472 | BA110: 0.00412 | BB110: 0.005768 | BC110: 0.007416 | BD110: 0.00824 | BE110: 0.00824 | BF110: 0.00824 | BH110: =+IF($K110="Ongoing",AP110,IF(RIGHT($K110,2)=RIGHT(BH$39,2),SUM($AP110:AP110),0)+IF(RIGHT(BH$39,2)>RIGHT($K110,2),AP110,0)) -> 0.00824 | BI110: =+IF($K110="Ongoing",AQ110,IF(RIGHT($K110,2)=RIGHT(BI$39,2),SUM($AP110:AQ110),0)+IF(RIGHT(BI$39,2)>RIGHT($K110,2),AQ110,0)) -> 0.00824 | BJ110: =+IF($K110="Ongoing",AR110,IF(RIGHT($K110,2)=RIGHT(BJ$39,2),SUM($AP110:AR110),0)+IF(RIGHT(BJ$39,2)>RIGHT($K110,2),AR110,0)) -> 0.00824 | BK110: =+IF($K110="Ongoing",AS110,IF(RIGHT($K110,2)=RIGHT(BK$39,2),SUM($AP110:AS110),0)+IF(RIGHT(BK$39,2)>RIGHT($K110,2),AS110,0)) -> 0.00824 | BL110: =+IF($K110="Ongoing",AT110,IF(RIGHT($K110,2)=RIGHT(BL$39,2),SUM($AP110:AT110),0)+IF(RIGHT(BL$39,2)>RIGHT($K110,2),AT110,0)) -> 0.00824 | BM110: =+IF($K110="Ongoing",AU110,IF(RIGHT($K110,2)=RIGHT(BM$39,2),SUM($AP110:AU110),0)+IF(RIGHT(BM$39,2)>RIGHT($K110,2),AU110,0)) -> 0.00824 | BN110: =+IF($K110="Ongoing",AV110,IF(RIGHT($K110,2)=RIGHT(BN$39,2),SUM($AP110:AV110),0)+IF(RIGHT(BN$39,2)>RIGHT($K110,2),AV110,0)) -> 0.00824 | BO110: =+IF($K110="Ongoing",AW110,IF(RIGHT($K110,2)=RIGHT(BO$39,2),SUM($AP110:AW110),0)+IF(RIGHT(BO$39,2)>RIGHT($K110,2),AW110,0)) -> 0.00824 | BQ110: =+O110*KeyAssumptionsPriceControl_FO!AD$15 -> 0.0085284 | BR110: =+P110*KeyAssumptionsPriceControl_FO!AE$15 -> 0.008826894 | BS110: =+Q110*KeyAssumptionsPriceControl_FO!AF$15 -> 0.00913583529 | BT110: =+R110*KeyAssumptionsPriceControl_FO!AG$15 -> 0.009455589525 | BU110: =+S110*KeyAssumptionsPriceControl_FO!AH$15 -> 0.009786535159 | BV110: =+T110*KeyAssumptionsPriceControl_FO!AI$15 -> 0.01012906389 | BW110: =+U110*KeyAssumptionsPriceControl_FO!AJ$15 -> 0.01048358113 | BX110: =+V110*KeyAssumptionsPriceControl_FO!AK$15 -> 0.01085050646 | BZ110: 0.00085284 | CA110: 0.0058843694 | CB110: 0.006032642329 | CC110: 0.006243784811 | CD110: 0.008167997279 | CE110: 0.009306717184 | CF110: 0.009632452285 | CG110: 0.009969588115
A111: 59 | C111: Data Mgt | E111: Bulk water services | F111: Renewals | G111: Headworks | H111: Other Capital expenditure | J111: Straight line | K111: 2024-25 | L111: 5 | M111: 5 | O111: 0.00412 | P111: 0.00412 | Q111: 0.00412 | R111: 0.00412 | S111: 0.00412 | T111: 0.00412 | U111: 0.00412 | V111: 0.00412 | AP111: 0.00412 | AQ111: 0.00412 | AR111: 0.00412 | AS111: 0.00412 | AT111: 0.00412 | AU111: 0.00412 | AV111: 0.00412 | AW111: 0.00412 | AY111: 0.000412 | AZ111: 0.001236 | BA111: 0.00206 | BB111: 0.002884 | BC111: 0.003708 | BD111: 0.00412 | BE111: 0.00412 | BF111: 0.00412 | BH111: =+IF($K111="Ongoing",AP111,IF(RIGHT($K111,2)=RIGHT(BH$39,2),SUM($AP111:AP111),0)+IF(RIGHT(BH$39,2)>RIGHT($K111,2),AP111,0)) -> 0.00412 | BI111: =+IF($K111="Ongoing",AQ111,IF(RIGHT($K111,2)=RIGHT(BI$39,2),SUM($AP111:AQ111),0)+IF(RIGHT(BI$39,2)>RIGHT($K111,2),AQ111,0)) -> 0.00412 | BJ111: =+IF($K111="Ongoing",AR111,IF(RIGHT($K111,2)=RIGHT(BJ$39,2),SUM($AP111:AR111),0)+IF(RIGHT(BJ$39,2)>RIGHT($K111,2),AR111,0)) -> 0.00412 | BK111: =+IF($K111="Ongoing",AS111,IF(RIGHT($K111,2)=RIGHT(BK$39,2),SUM($AP111:AS111),0)+IF(RIGHT(BK$39,2)>RIGHT($K111,2),AS111,0)) -> 0.00412 | BL111: =+IF($K111="Ongoing",AT111,IF(RIGHT($K111,2)=RIGHT(BL$39,2),SUM($AP111:AT111),0)+IF(RIGHT(BL$39,2)>RIGHT($K111,2),AT111,0)) -> 0.00412 | BM111: =+IF($K111="Ongoing",AU111,IF(RIGHT($K111,2)=RIGHT(BM$39,2),SUM($AP111:AU111),0)+IF(RIGHT(BM$39,2)>RIGHT($K111,2),AU111,0)) -> 0.00412 | BN111: =+IF($K111="Ongoing",AV111,IF(RIGHT($K111,2)=RIGHT(BN$39,2),SUM($AP111:AV111),0)+IF(RIGHT(BN$39,2)>RIGHT($K111,2),AV111,0)) -> 0.00412 | BO111: =+IF($K111="Ongoing",AW111,IF(RIGHT($K111,2)=RIGHT(BO$39,2),SUM($AP111:AW111),0)+IF(RIGHT(BO$39,2)>RIGHT($K111,2),AW111,0)) -> 0.00412 | BQ111: =+O111*KeyAssumptionsPriceControl_FO!AD$15 -> 0.0042642 | BR111: =+P111*KeyAssumptionsPriceControl_FO!AE$15 -> 0.004413447 | BS111: =+Q111*KeyAssumptionsPriceControl_FO!AF$15 -> 0.004567917645 | BT111: =+R111*KeyAssumptionsPriceControl_FO!AG$15 -> 0.004727794763 | BU111: =+S111*KeyAssumptionsPriceControl_FO!AH$15 -> 0.004893267579 | BV111: =+T111*KeyAssumptionsPriceControl_FO!AI$15 -> 0.005064531945 | BW111: =+U111*KeyAssumptionsPriceControl_FO!AJ$15 -> 0.005241790563 | BX111: =+V111*KeyAssumptionsPriceControl_FO!AK$15 -> 0.005425253232 | BZ111: 0.00042642 | CA111: 0.0029421847 | CB111: 0.003016321165 | CC111: 0.003121892405 | CD111: 0.004083998639 | CE111: 0.004653358592 | CF111: 0.004816226143 | CG111: 0.004984794058
A112: 60 | C112: Data Mgt | E112: Bulk water services | F112: Renewals | G112: Headworks | H112: Other Capital expenditure | J112: Straight line | K112: 2024-25 | L112: 5 | M112: 5 | O112: 0.00515 | P112: 0.00515 | Q112: 0.00515 | R112: 0.00515 | S112: 0.00515 | T112: 0.00515 | U112: 0.00515 | V112: 0.00515 | AP112: 0.00515 | AQ112: 0.00515 | AR112: 0.00515 | AS112: 0.00515 | AT112: 0.00515 | AU112: 0.00515 | AV112: 0.00515 | AW112: 0.00515 | AY112: 0.000515 | AZ112: 0.001545 | BA112: 0.002575 | BB112: 0.003605 | BC112: 0.004635 | BD112: 0.00515 | BE112: 0.00515 | BF112: 0.00515 | BH112: =+IF($K112="Ongoing",AP112,IF(RIGHT($K112,2)=RIGHT(BH$39,2),SUM($AP112:AP112),0)+IF(RIGHT(BH$39,2)>RIGHT($K112,2),AP112,0)) -> 0.00515 | BI112: =+IF($K112="Ongoing",AQ112,IF(RIGHT($K112,2)=RIGHT(BI$39,2),SUM($AP112:AQ112),0)+IF(RIGHT(BI$39,2)>RIGHT($K112,2),AQ112,0)) -> 0.00515 | BJ112: =+IF($K112="Ongoing",AR112,IF(RIGHT($K112,2)=RIGHT(BJ$39,2),SUM($AP112:AR112),0)+IF(RIGHT(BJ$39,2)>RIGHT($K112,2),AR112,0)) -> 0.00515 | BK112: =+IF($K112="Ongoing",AS112,IF(RIGHT($K112,2)=RIGHT(BK$39,2),SUM($AP112:AS112),0)+IF(RIGHT(BK$39,2)>RIGHT($K112,2),AS112,0)) -> 0.00515 | BL112: =+IF($K112="Ongoing",AT112,IF(RIGHT($K112,2)=RIGHT(BL$39,2),SUM($AP112:AT112),0)+IF(RIGHT(BL$39,2)>RIGHT($K112,2),AT112,0)) -> 0.00515 | BM112: =+IF($K112="Ongoing",AU112,IF(RIGHT($K112,2)=RIGHT(BM$39,2),SUM($AP112:AU112),0)+IF(RIGHT(BM$39,2)>RIGHT($K112,2),AU112,0)) -> 0.00515 | BN112: =+IF($K112="Ongoing",AV112,IF(RIGHT($K112,2)=RIGHT(BN$39,2),SUM($AP112:AV112),0)+IF(RIGHT(BN$39,2)>RIGHT($K112,2),AV112,0)) -> 0.00515 | BO112: =+IF($K112="Ongoing",AW112,IF(RIGHT($K112,2)=RIGHT(BO$39,2),SUM($AP112:AW112),0)+IF(RIGHT(BO$39,2)>RIGHT($K112,2),AW112,0)) -> 0.00515 | BQ112: =+O112*KeyAssumptionsPriceControl_FO!AD$15 -> 0.00533025 | BR112: =+P112*KeyAssumptionsPriceControl_FO!AE$15 -> 0.00551680875 | BS112: =+Q112*KeyAssumptionsPriceControl_FO!AF$15 -> 0.005709897056 | BT112: =+R112*KeyAssumptionsPriceControl_FO!AG$15 -> 0.005909743453 | BU112: =+S112*KeyAssumptionsPriceControl_FO!AH$15 -> 0.006116584474 | BV112: =+T112*KeyAssumptionsPriceControl_FO!AI$15 -> 0.006330664931 | BW112: =+U112*KeyAssumptionsPriceControl_FO!AJ$15 -> 0.006552238203 | BX112: =+V112*KeyAssumptionsPriceControl_FO!AK$15 -> 0.00678156654 | BZ112: 0.000533025 | CA112: 0.003677730875 | CB112: 0.003770401456 | CC112: 0.003902365507 | CD112: 0.005104998299 | CE112: 0.00581669824 | CF112: 0.006020282678 | CG112: 0.006230992572
A113: 61 | C113: Data Mgt | E113: Bulk water services | F113: Renewals | G113: Headworks | H113: Other Capital expenditure | J113: Straight line | K113: 2024-25 | L113: 5 | M113: 5 | O113: 0.00412 | P113: 0.00412 | Q113: 0.00412 | R113: 0.00412 | S113: 0.00412 | T113: 0.00412 | U113: 0.00412 | V113: 0.00412 | AP113: 0.00412 | AQ113: 0.00412 | AR113: 0.00412 | AS113: 0.00412 | AT113: 0.00412 | AU113: 0.00412 | AV113: 0.00412 | AW113: 0.00412 | AY113: 0.000412 | AZ113: 0.001236 | BA113: 0.00206 | BB113: 0.002884 | BC113: 0.003708 | BD113: 0.00412 | BE113: 0.00412 | BF113: 0.00412 | BH113: =+IF($K113="Ongoing",AP113,IF(RIGHT($K113,2)=RIGHT(BH$39,2),SUM($AP113:AP113),0)+IF(RIGHT(BH$39,2)>RIGHT($K113,2),AP113,0)) -> 0.00412 | BI113: =+IF($K113="Ongoing",AQ113,IF(RIGHT($K113,2)=RIGHT(BI$39,2),SUM($AP113:AQ113),0)+IF(RIGHT(BI$39,2)>RIGHT($K113,2),AQ113,0)) -> 0.00412 | BJ113: =+IF($K113="Ongoing",AR113,IF(RIGHT($K113,2)=RIGHT(BJ$39,2),SUM($AP113:AR113),0)+IF(RIGHT(BJ$39,2)>RIGHT($K113,2),AR113,0)) -> 0.00412 | BK113: =+IF($K113="Ongoing",AS113,IF(RIGHT($K113,2)=RIGHT(BK$39,2),SUM($AP113:AS113),0)+IF(RIGHT(BK$39,2)>RIGHT($K113,2),AS113,0)) -> 0.00412 | BL113: =+IF($K113="Ongoing",AT113,IF(RIGHT($K113,2)=RIGHT(BL$39,2),SUM($AP113:AT113),0)+IF(RIGHT(BL$39,2)>RIGHT($K113,2),AT113,0)) -> 0.00412 | BM113: =+IF($K113="Ongoing",AU113,IF(RIGHT($K113,2)=RIGHT(BM$39,2),SUM($AP113:AU113),0)+IF(RIGHT(BM$39,2)>RIGHT($K113,2),AU113,0)) -> 0.00412 | BN113: =+IF($K113="Ongoing",AV113,IF(RIGHT($K113,2)=RIGHT(BN$39,2),SUM($AP113:AV113),0)+IF(RIGHT(BN$39,2)>RIGHT($K113,2),AV113,0)) -> 0.00412 | BO113: =+IF($K113="Ongoing",AW113,IF(RIGHT($K113,2)=RIGHT(BO$39,2),SUM($AP113:AW113),0)+IF(RIGHT(BO$39,2)>RIGHT($K113,2),AW113,0)) -> 0.00412 | BQ113: =+O113*KeyAssumptionsPriceControl_FO!AD$15 -> 0.0042642 | BR113: =+P113*KeyAssumptionsPriceControl_FO!AE$15 -> 0.004413447 | BS113: =+Q113*KeyAssumptionsPriceControl_FO!AF$15 -> 0.004567917645 | BT113: =+R113*KeyAssumptionsPriceControl_FO!AG$15 -> 0.004727794763 | BU113: =+S113*KeyAssumptionsPriceControl_FO!AH$15 -> 0.004893267579 | BV113: =+T113*KeyAssumptionsPriceControl_FO!AI$15 -> 0.005064531945 | BW113: =+U113*KeyAssumptionsPriceControl_FO!AJ$15 -> 0.005241790563 | BX113: =+V113*KeyAssumptionsPriceControl_FO!AK$15 -> 0.005425253232 | BZ113: 0.00042642 | CA113: 0.0029421847 | CB113: 0.003016321165 | CC113: 0.003121892405 | CD113: 0.004083998639 | CE113: 0.004653358592 | CF113: 0.004816226143 | CG113: 0.004984794058
A114: 62 | C114: Data Mgt | E114: Bulk water services | F114: Renewals | G114: Headworks | H114: Other Capital expenditure | J114: Straight line | K114: 2024-25 | L114: 5 | M114: 5 | O114: 0.0103 | P114: 0.0103 | Q114: 0.0103 | R114: 0.0103 | S114: 0.0103 | T114: 0.0103 | U114: 0.0103 | V114: 0.0103 | AP114: 0.0103 | AQ114: 0.0103 | AR114: 0.0103 | AS114: 0.0103 | AT114: 0.0103 | AU114: 0.0103 | AV114: 0.0103 | AW114: 0.0103 | AY114: 0.00103 | AZ114: 0.00309 | BA114: 0.00515 | BB114: 0.00721 | BC114: 0.00927 | BD114: 0.0103 | BE114: 0.0103 | BF114: 0.0103 | BH114: =+IF($K114="Ongoing",AP114,IF(RIGHT($K114,2)=RIGHT(BH$39,2),SUM($AP114:AP114),0)+IF(RIGHT(BH$39,2)>RIGHT($K114,2),AP114,0)) -> 0.0103 | BI114: =+IF($K114="Ongoing",AQ114,IF(RIGHT($K114,2)=RIGHT(BI$39,2),SUM($AP114:AQ114),0)+IF(RIGHT(BI$39,2)>RIGHT($K114,2),AQ114,0)) -> 0.0103 | BJ114: =+IF($K114="Ongoing",AR114,IF(RIGHT($K114,2)=RIGHT(BJ$39,2),SUM($AP114:AR114),0)+IF(RIGHT(BJ$39,2)>RIGHT($K114,2),AR114,0)) -> 0.0103 | BK114: =+IF($K114="Ongoing",AS114,IF(RIGHT($K114,2)=RIGHT(BK$39,2),SUM($AP114:AS114),0)+IF(RIGHT(BK$39,2)>RIGHT($K114,2),AS114,0)) -> 0.0103 | BL114: =+IF($K114="Ongoing",AT114,IF(RIGHT($K114,2)=RIGHT(BL$39,2),SUM($AP114:AT114),0)+IF(RIGHT(BL$39,2)>RIGHT($K114,2),AT114,0)) -> 0.0103 | BM114: =+IF($K114="Ongoing",AU114,IF(RIGHT($K114,2)=RIGHT(BM$39,2),SUM($AP114:AU114),0)+IF(RIGHT(BM$39,2)>RIGHT($K114,2),AU114,0)) -> 0.0103 | BN114: =+IF($K114="Ongoing",AV114,IF(RIGHT($K114,2)=RIGHT(BN$39,2),SUM($AP114:AV114),0)+IF(RIGHT(BN$39,2)>RIGHT($K114,2),AV114,0)) -> 0.0103 | BO114: =+IF($K114="Ongoing",AW114,IF(RIGHT($K114,2)=RIGHT(BO$39,2),SUM($AP114:AW114),0)+IF(RIGHT(BO$39,2)>RIGHT($K114,2),AW114,0)) -> 0.0103 | BQ114: =+O114*KeyAssumptionsPriceControl_FO!AD$15 -> 0.0106605 | BR114: =+P114*KeyAssumptionsPriceControl_FO!AE$15 -> 0.0110336175 | BS114: =+Q114*KeyAssumptionsPriceControl_FO!AF$15 -> 0.01141979411 | BT114: =+R114*KeyAssumptionsPriceControl_FO!AG$15 -> 0.01181948691 | BU114: =+S114*KeyAssumptionsPriceControl_FO!AH$15 -> 0.01223316895 | BV114: =+T114*KeyAssumptionsPriceControl_FO!AI$15 -> 0.01266132986 | BW114: =+U114*KeyAssumptionsPriceControl_FO!AJ$15 -> 0.01310447641 | BX114: =+V114*KeyAssumptionsPriceControl_FO!AK$15 -> 0.01356313308 | BZ114: 0.00106605 | CA114: 0.00735546175 | CB114: 0.007540802911 | CC114: 0.007804731013 | CD114: 0.0102099966 | CE114: 0.01163339648 | CF114: 0.01204056536 | CG114: 0.01246198514
A115: 63 | C115: Data Mgt | E115: Bulk water services | F115: Renewals | G115: Headworks | H115: Other Capital expenditure | J115: Straight line | K115: 2024-25 | L115: 5 | M115: 5 | O115: 0.0103 | P115: 0.0103 | Q115: 0.0103 | R115: 0.0103 | S115: 0.0103 | T115: 0.0103 | U115: 0.0103 | V115: 0.0103 | AP115: 0.0103 | AQ115: 0.0103 | AR115: 0.0103 | AS115: 0.0103 | AT115: 0.0103 | AU115: 0.0103 | AV115: 0.0103 | AW115: 0.0103 | AY115: 0.00103 | AZ115: 0.00309 | BA115: 0.00515 | BB115: 0.00721 | BC115: 0.00927 | BD115: 0.0103 | BE115: 0.0103 | BF115: 0.0103 | BH115: =+IF($K115="Ongoing",AP115,IF(RIGHT($K115,2)=RIGHT(BH$39,2),SUM($AP115:AP115),0)+IF(RIGHT(BH$39,2)>RIGHT($K115,2),AP115,0)) -> 0.0103 | BI115: =+IF($K115="Ongoing",AQ115,IF(RIGHT($K115,2)=RIGHT(BI$39,2),SUM($AP115:AQ115),0)+IF(RIGHT(BI$39,2)>RIGHT($K115,2),AQ115,0)) -> 0.0103 | BJ115: =+IF($K115="Ongoing",AR115,IF(RIGHT($K115,2)=RIGHT(BJ$39,2),SUM($AP115:AR115),0)+IF(RIGHT(BJ$39,2)>RIGHT($K115,2),AR115,0)) -> 0.0103 | BK115: =+IF($K115="Ongoing",AS115,IF(RIGHT($K115,2)=RIGHT(BK$39,2),SUM($AP115:AS115),0)+IF(RIGHT(BK$39,2)>RIGHT($K115,2),AS115,0)) -> 0.0103 | BL115: =+IF($K115="Ongoing",AT115,IF(RIGHT($K115,2)=RIGHT(BL$39,2),SUM($AP115:AT115),0)+IF(RIGHT(BL$39,2)>RIGHT($K115,2),AT115,0)) -> 0.0103 | BM115: =+IF($K115="Ongoing",AU115,IF(RIGHT($K115,2)=RIGHT(BM$39,2),SUM($AP115:AU115),0)+IF(RIGHT(BM$39,2)>RIGHT($K115,2),AU115,0)) -> 0.0103 | BN115: =+IF($K115="Ongoing",AV115,IF(RIGHT($K115,2)=RIGHT(BN$39,2),SUM($AP115:AV115),0)+IF(RIGHT(BN$39,2)>RIGHT($K115,2),AV115,0)) -> 0.0103 | BO115: =+IF($K115="Ongoing",AW115,IF(RIGHT($K115,2)=RIGHT(BO$39,2),SUM($AP115:AW115),0)+IF(RIGHT(BO$39,2)>RIGHT($K115,2),AW115,0)) -> 0.0103 | BQ115: =+O115*KeyAssumptionsPriceControl_FO!AD$15 -> 0.0106605 | BR115: =+P115*KeyAssumptionsPriceControl_FO!AE$15 -> 0.0110336175 | BS115: =+Q115*KeyAssumptionsPriceControl_FO!AF$15 -> 0.01141979411 | BT115: =+R115*KeyAssumptionsPriceControl_FO!AG$15 -> 0.01181948691 | BU115: =+S115*KeyAssumptionsPriceControl_FO!AH$15 -> 0.01223316895 | BV115: =+T115*KeyAssumptionsPriceControl_FO!AI$15 -> 0.01266132986 | BW115: =+U115*KeyAssumptionsPriceControl_FO!AJ$15 -> 0.01310447641 | BX115: =+V115*KeyAssumptionsPriceControl_FO!AK$15 -> 0.01356313308 | BZ115: 0.00106605 | CA115: 0.00735546175 | CB115: 0.007540802911 | CC115: 0.007804731013 | CD115: 0.0102099966 | CE115: 0.01163339648 | CF115: 0.01204056536 | CG115: 0.01246198514
A116: 64 | C116: Meter Replace/Upgrade | E116: Surface water diversions | F116: Renewals | G116: Channels | H116: Capital Programs / Allocation | J116: Straight line | K116: 2024-25 | L116: 30 | M116: 30 | O116: 0.12536 | P116: 0.12536 | Q116: 0.12536 | R116: 0.12536 | S116: 0.1648 | T116: 0.1648 | U116: 0.1648 | V116: 0.1648 | AP116: 0.12536 | AQ116: 0.12536 | AR116: 0.12536 | AS116: 0.12536 | AT116: 0.1648 | AU116: 0.1648 | AV116: 0.1648 | AW116: 0.1648 | AY116: 0.002089333333 | AZ116: 0.006268 | BA116: 0.01044666667 | BB116: 0.01462533333 | BC116: 0.01946133333 | BD116: 0.02495466667 | BE116: 0.030448 | BF116: 0.03594133333 | BH116: =+IF($K116="Ongoing",AP116,IF(RIGHT($K116,2)=RIGHT(BH$39,2),SUM($AP116:AP116),0)+IF(RIGHT(BH$39,2)>RIGHT($K116,2),AP116,0)) -> 0.12536 | BI116: =+IF($K116="Ongoing",AQ116,IF(RIGHT($K116,2)=RIGHT(BI$39,2),SUM($AP116:AQ116),0)+IF(RIGHT(BI$39,2)>RIGHT($K116,2),AQ116,0)) -> 0.12536 | BJ116: =+IF($K116="Ongoing",AR116,IF(RIGHT($K116,2)=RIGHT(BJ$39,2),SUM($AP116:AR116),0)+IF(RIGHT(BJ$39,2)>RIGHT($K116,2),AR116,0)) -> 0.12536 | BK116: =+IF($K116="Ongoing",AS116,IF(RIGHT($K116,2)=RIGHT(BK$39,2),SUM($AP116:AS116),0)+IF(RIGHT(BK$39,2)>RIGHT($K116,2),AS116,0)) -> 0.12536 | BL116: =+IF($K116="Ongoing",AT116,IF(RIGHT($K116,2)=RIGHT(BL$39,2),SUM($AP116:AT116),0)+IF(RIGHT(BL$39,2)>RIGHT($K116,2),AT116,0)) -> 0.1648 | BM116: =+IF($K116="Ongoing",AU116,IF(RIGHT($K116,2)=RIGHT(BM$39,2),SUM($AP116:AU116),0)+IF(RIGHT(BM$39,2)>RIGHT($K116,2),AU116,0)) -> 0.1648 | BN116: =+IF($K116="Ongoing",AV116,IF(RIGHT($K116,2)=RIGHT(BN$39,2),SUM($AP116:AV116),0)+IF(RIGHT(BN$39,2)>RIGHT($K116,2),AV116,0)) -> 0.1648 | BO116: =+IF($K116="Ongoing",AW116,IF(RIGHT($K116,2)=RIGHT(BO$39,2),SUM($AP116:AW116),0)+IF(RIGHT(BO$39,2)>RIGHT($K116,2),AW116,0)) -> 0.1648 | BQ116: =+O116*KeyAssumptionsPriceControl_FO!AD$15 -> 0.1297476 | BR116: =+P116*KeyAssumptionsPriceControl_FO!AE$15 -> 0.134288766 | BS116: =+Q116*KeyAssumptionsPriceControl_FO!AF$15 -> 0.1389888728 | BT116: =+R116*KeyAssumptionsPriceControl_FO!AG$15 -> 0.1438534834 | BU116: =+S116*KeyAssumptionsPriceControl_FO!AH$15 -> 0.1957307032 | BV116: =+T116*KeyAssumptionsPriceControl_FO!AI$15 -> 0.2025812778 | BW116: =+U116*KeyAssumptionsPriceControl_FO!AJ$15 -> 0.2096716225 | BX116: =+V116*KeyAssumptionsPriceControl_FO!AK$15 -> 0.2170101293 | BZ116: 0.00216246 | CA116: 0.0230430661 | CB116: 0.02759769341 | CC116: 0.03231173268 | CD116: 0.03797146913 | CE116: 0.04461000214 | CF116: 0.05148088381 | CG116: 0.05859224634
A117: 65 | C117: Meter Replace/Upgrade | E117: Surface water diversions | F117: Renewals | G117: Channels | H117: Capital Programs / Allocation | J117: Straight line | K117: 2024-25 | L117: 30 | M117: 30 | O117: 0.044957 | P117: 0.044957 | Q117: 0.044957 | R117: 0.044957 | S117: 0.1133 | T117: 0.1133 | U117: 0.1133 | V117: 0.1133 | AP117: =+O117-X117-AG117 -> 0.044957 | AQ117: =+P117-Y117-AH117 -> 0.044957 | AR117: =+Q117-Z117-AI117 -> 0.044957 | AS117: =+R117-AA117-AJ117 -> 0.044957 | AT117: =+S117-AB117-AK117 -> 0.1133 | AU117: =+T117-AC117-AL117 -> 0.1133 | AV117: =+U117-AD117-AM117 -> 0.1133 | AW117: =+V117-AE117-AN117 -> 0.1133 | AY117: 0.0007492833333 | AZ117: 0.00224785 | BA117: 0.003746416667 | BB117: 0.005244983333 | BC117: 0.0078826 | BD117: 0.01165926667 | BE117: 0.01543593333 | BF117: 0.0192126 | BH117: =+IF($K117="Ongoing",AP117,IF(RIGHT($K117,2)=RIGHT(BH$39,2),SUM($AP117:AP117),0)+IF(RIGHT(BH$39,2)>RIGHT($K117,2),AP117,0)) -> 0.044957 | BI117: =+IF($K117="Ongoing",AQ117,IF(RIGHT($K117,2)=RIGHT(BI$39,2),SUM($AP117:AQ117),0)+IF(RIGHT(BI$39,2)>RIGHT($K117,2),AQ117,0)) -> 0.044957 | BJ117: =+IF($K117="Ongoing",AR117,IF(RIGHT($K117,2)=RIGHT(BJ$39,2),SUM($AP117:AR117),0)+IF(RIGHT(BJ$39,2)>RIGHT($K117,2),AR117,0)) -> 0.044957 | BK117: =+IF($K117="Ongoing",AS117,IF(RIGHT($K117,2)=RIGHT(BK$39,2),SUM($AP117:AS117),0)+IF(RIGHT(BK$39,2)>RIGHT($K117,2),AS117,0)) -> 0.044957 | BL117: =+IF($K117="Ongoing",AT117,IF(RIGHT($K117,2)=RIGHT(BL$39,2),SUM($AP117:AT117),0)+IF(RIGHT(BL$39,2)>RIGHT($K117,2),AT117,0)) -> 0.1133 | BM117: =+IF($K117="Ongoing",AU117,IF(RIGHT($K117,2)=RIGHT(BM$39,2),SUM($AP117:AU117),0)+IF(RIGHT(BM$39,2)>RIGHT($K117,2),AU117,0)) -> 0.1133 | BN117: =+IF($K117="Ongoing",AV117,IF(RIGHT($K117,2)=RIGHT(BN$39,2),SUM($AP117:AV117),0)+IF(RIGHT(BN$39,2)>RIGHT($K117,2),AV117,0)) -> 0.1133 | BO117: =+IF($K117="Ongoing",AW117,IF(RIGHT($K117,2)=RIGHT(BO$39,2),SUM($AP117:AW117),0)+IF(RIGHT(BO$39,2)>RIGHT($K117,2),AW117,0)) -> 0.1133 | BQ117: =+O117*KeyAssumptionsPriceControl_FO!AD$15 -> 0.046530495 | BR117: =+P117*KeyAssumptionsPriceControl_FO!AE$15 -> 0.04815906232 | BS117: =+Q117*KeyAssumptionsPriceControl_FO!AF$15 -> 0.04984462951 | BT117: =+R117*KeyAssumptionsPriceControl_FO!AG$15 -> 0.05158919154 | BU117: =+S117*KeyAssumptionsPriceControl_FO!AH$15 -> 0.1345648584 | BV117: =+T117*KeyAssumptionsPriceControl_FO!AI$15 -> 0.1392746285 | BW117: =+U117*KeyAssumptionsPriceControl_FO!AJ$15 -> 0.1441492405 | BX117: =+V117*KeyAssumptionsPriceControl_FO!AK$15 -> 0.1491944639 | BZ117: 0.00077550825 | CA117: 0.01368366754 | CB117: 0.0153170624 | CC117: 0.01700762609 | CD117: 0.02011019359 | CE117: 0.02467418503 | CF117: 0.02939791618 | CG117: 0.03428697792
A118: 66 | C118: Meter Replace/Upgrade | E118: Groundwater diversions | F118: Renewals | G118: Channels | H118: Capital Programs / Allocation | J118: Straight line | K118: 2024-25 | L118: 30 | M118: 30 | O118: 0.129683 | P118: 0.129683 | Q118: 0.129683 | R118: 0.129683 | S118: 0.12875 | T118: 0.12875 | U118: 0.12875 | V118: 0.12875 | AP118: 0.129683 | AQ118: 0.129683 | AR118: 0.129683 | AS118: 0.129683 | AT118: 0.12875 | AU118: 0.12875 | AV118: 0.12875 | AW118: 0.12875 | AY118: 0.002161383333 | AZ118: 0.00648415 | BA118: 0.01080691667 | BB118: 0.01512968333 | BC118: 0.0194369 | BD118: 0.02372856667 | BE118: 0.02802023333 | BF118: 0.0323119 | BH118: =+IF($K118="Ongoing",AP118,IF(RIGHT($K118,2)=RIGHT(BH$39,2),SUM($AP118:AP118),0)+IF(RIGHT(BH$39,2)>RIGHT($K118,2),AP118,0)) -> 0.129683 | BI118: =+IF($K118="Ongoing",AQ118,IF(RIGHT($K118,2)=RIGHT(BI$39,2),SUM($AP118:AQ118),0)+IF(RIGHT(BI$39,2)>RIGHT($K118,2),AQ118,0)) -> 0.129683 | BJ118: =+IF($K118="Ongoing",AR118,IF(RIGHT($K118,2)=RIGHT(BJ$39,2),SUM($AP118:AR118),0)+IF(RIGHT(BJ$39,2)>RIGHT($K118,2),AR118,0)) -> 0.129683 | BK118: =+IF($K118="Ongoing",AS118,IF(RIGHT($K118,2)=RIGHT(BK$39,2),SUM($AP118:AS118),0)+IF(RIGHT(BK$39,2)>RIGHT($K118,2),AS118,0)) -> 0.129683 | BL118: =+IF($K118="Ongoing",AT118,IF(RIGHT($K118,2)=RIGHT(BL$39,2),SUM($AP118:AT118),0)+IF(RIGHT(BL$39,2)>RIGHT($K118,2),AT118,0)) -> 0.12875 | BM118: =+IF($K118="Ongoing",AU118,IF(RIGHT($K118,2)=RIGHT(BM$39,2),SUM($AP118:AU118),0)+IF(RIGHT(BM$39,2)>RIGHT($K118,2),AU118,0)) -> 0.12875 | BN118: =+IF($K118="Ongoing",AV118,IF(RIGHT($K118,2)=RIGHT(BN$39,2),SUM($AP118:AV118),0)+IF(RIGHT(BN$39,2)>RIGHT($K118,2),AV118,0)) -> 0.12875 | BO118: =+IF($K118="Ongoing",AW118,IF(RIGHT($K118,2)=RIGHT(BO$39,2),SUM($AP118:AW118),0)+IF(RIGHT(BO$39,2)>RIGHT($K118,2),AW118,0)) -> 0.12875 | BQ118: =+O118*KeyAssumptionsPriceControl_FO!AD$15 -> 0.134221905 | BR118: =+P118*KeyAssumptionsPriceControl_FO!AE$15 -> 0.1389196717 | BS118: =+Q118*KeyAssumptionsPriceControl_FO!AF$15 -> 0.1437818602 | BT118: =+R118*KeyAssumptionsPriceControl_FO!AG$15 -> 0.1488142253 | BU118: =+S118*KeyAssumptionsPriceControl_FO!AH$15 -> 0.1529146119 | BV118: =+T118*KeyAssumptionsPriceControl_FO!AI$15 -> 0.1582666233 | BW118: =+U118*KeyAssumptionsPriceControl_FO!AJ$15 -> 0.1638059551 | BX118: =+V118*KeyAssumptionsPriceControl_FO!AK$15 -> 0.1695391635 | BZ118: 0.00223703175 | CA118: 0.01966439136 | CB118: 0.02437608356 | CC118: 0.02925268498 | CD118: 0.03428149894 | CE118: 0.03946785285 | CF118: 0.04483572916 | CG118: 0.05039148114
A119: =A118+1 -> 67 | C119: Meter Replace/Upgrade | E119: Surface water diversions | F119: Renewals | G119: Channels | H119: Capital Programs / Allocation | J119: Straight line | K119: 2024-25 | L119: 30 | M119: 30 | O119: 0.62139 | P119: 0.62139 | Q119: 0.62139 | R119: 0.62139 | S119: 0 | T119: 0 | U119: 0 | V119: 0 | X119: 0.62139 | Y119: 0.62139 | Z119: 0.62139 | AA119: 0.62139 | AP119: 0 | AQ119: 0 | AR119: 0 | AS119: 0 | AT119: 0 | AU119: 0 | AV119: 0 | AW119: 0 | AY119: =IF($L119=0,0, IF($L119<=0.5,BH119, IF($J119="straight line", IF((LEFT(AY$39,4)*1)-INT($L119)<LEFT($AY$39,4)*1,0,((OFFSET(BH119,0,-INT($L119+0.5),1,1))/$L119)*(IF($L119-INT($L119)>0.5,$L119-0.5-INT($L119),IF($L119-INT($L119)<=0.5,$L119-0.5-INT($L119)+1,0)))) +BH119/$L119*0.5, IF($J119="Declining Balance",-$AY$38,0)))) -> 0 | AZ119: =IF($L119=0,0, IF($L119<=0.5,BI119, IF(AND($J119="straight line",$L119<1.51),(BH119-((BH119/$L119)*0.5))+BI119/$L119*0.5, IF($J119="straight line", IF((LEFT(AZ$39,4)*1)-INT($L119)<LEFT($AY$39,4)*1,0,((OFFSET(BI119,0,-INT($L119+0.5),1,1))/$L119)*(IF($L119-INT($L119)>0.5,$L119-0.5-INT($L119),IF($L119-INT($L119)<=0.5,$L119-0.5-INT($L119)+1,0)))) +BI119/$L119*0.5 +SUM(OFFSET(BI119,0,MAX(-INT($L119+(0.5-(10^-12))),-AZ$40)+1,1,MIN(INT($L119+(0.5-(10^-12))),AZ$40)-1))*1/$L119, IF($J119="Declining Balance",-$AY$38,0))))) -> 0 | BA119: =IF($L119=0,0, IF($L119<=0.5,BJ119, IF(AND($J119="straight line",$L119<1.51),(BI119-((BI119/$L119)*0.5))+BJ119/$L119*0.5, IF($J119="straight line", IF((LEFT(BA$39,4)*1)-INT($L119)<LEFT($AY$39,4)*1,0,((OFFSET(BJ119,0,-INT($L119+0.5),1,1))/$L119)*(IF($L119-INT($L119)>0.5,$L119-0.5-INT($L119),IF($L119-INT($L119)<=0.5,$L119-0.5-INT($L119)+1,0)))) +BJ119/$L119*0.5 +SUM(OFFSET(BJ119,0,MAX(-INT($L119+(0.5-(10^-12))),-BA$40)+1,1,MIN(INT($L119+(0.5-(10^-12))),BA$40)-1))*1/$L119, IF($J119="Declining Balance",-$AY$38,0))))) -> 0 | BB119: =IF($L119=0,0, IF($L119<=0.5,BK119, IF(AND($J119="straight line",$L119<1.51),(BJ119-((BJ119/$L119)*0.5))+BK119/$L119*0.5, IF($J119="straight line", IF((LEFT(BB$39,4)*1)-INT($L119)<LEFT($AY$39,4)*1,0,((OFFSET(BK119,0,-INT($L119+0.5),1,1))/$L119)*(IF($L119-INT($L119)>0.5,$L119-0.5-INT($L119),IF($L119-INT($L119)<=0.5,$L119-0.5-INT($L119)+1,0)))) +BK119/$L119*0.5 +SUM(OFFSET(BK119,0,MAX(-INT($L119+(0.5-(10^-12))),-BB$40)+1,1,MIN(INT($L119+(0.5-(10^-12))),BB$40)-1))*1/$L119, IF($J119="Declining Balance",-$AY$38,0))))) -> 0 | BC119: =IF($L119=0,0, IF($L119<=0.5,BL119, IF(AND($J119="straight line",$L119<1.51),(BK119-((BK119/$L119)*0.5))+BL119/$L119*0.5, IF($J119="straight line", IF((LEFT(BC$39,4)*1)-INT($L119)<LEFT($AY$39,4)*1,0,((OFFSET(BL119,0,-INT($L119+0.5),1,1))/$L119)*(IF($L119-INT($L119)>0.5,$L119-0.5-INT($L119),IF($L119-INT($L119)<=0.5,$L119-0.5-INT($L119)+1,0)))) +BL119/$L119*0.5 +SUM(OFFSET(BL119,0,MAX(-INT($L119+(0.5-(10^-12))),-BC$40)+1,1,MIN(INT($L119+(0.5-(10^-12))),BC$40)-1))*1/$L119, IF($J119="Declining Balance",-$AY$38,0))))) -> 0 | BD119: =IF($L119=0,0, IF($L119<=0.5,BM119, IF(AND($J119="straight line",$L119<1.51),(BL119-((BL119/$L119)*0.5))+BM119/$L119*0.5, IF($J119="straight line", IF((LEFT(BD$39,4)*1)-INT($L119)<LEFT($AY$39,4)*1,0,((OFFSET(BM119,0,-INT($L119+0.5),1,1))/$L119)*(IF($L119-INT($L119)>0.5,$L119-0.5-INT($L119),IF($L119-INT($L119)<=0.5,$L119-0.5-INT($L119)+1,0)))) +BM119/$L119*0.5 +SUM(OFFSET(BM119,0,MAX(-INT($L119+(0.5-(10^-12))),-BD$40)+1,1,MIN(INT($L119+(0.5-(10^-12))),BD$40)-1))*1/$L119, IF($J119="Declining Balance",-$AY$38,0))))) -> 0 | BE119: =IF($L119=0,0, IF($L119<=0.5,BN119, IF(AND($J119="straight line",$L119<1.51),(BM119-((BM119/$L119)*0.5))+BN119/$L119*0.5, IF($J119="straight line", IF((LEFT(BE$39,4)*1)-INT($L119)<LEFT($AY$39,4)*1,0,((OFFSET(BN119,0,-INT($L119+0.5),1,1))/$L119)*(IF($L119-INT($L119)>0.5,$L119-0.5-INT($L119),IF($L119-INT($L119)<=0.5,$L119-0.5-INT($L119)+1,0)))) +BN119/$L119*0.5 +SUM(OFFSET(BN119,0,MAX(-INT($L119+(0.5-(10^-12))),-BE$40)+1,1,MIN(INT($L119+(0.5-(10^-12))),BE$40)-1))*1/$L119, IF($J119="Declining Balance",-$AY$38,0))))) -> 0 | BF119: =IF($L119=0,0, IF($L119<=0.5,BO119, IF(AND($J119="straight line",$L119<1.51),(BN119-((BN119/$L119)*0.5))+BO119/$L119*0.5, IF($J119="straight line", IF((LEFT(BF$39,4)*1)-INT($L119)<LEFT($AY$39,4)*1,0,((OFFSET(BO119,0,-INT($L119+0.5),1,1))/$L119)*(IF($L119-INT($L119)>0.5,$L119-0.5-INT($L119),IF($L119-INT($L119)<=0.5,$L119-0.5-INT($L119)+1,0)))) +BO119/$L119*0.5 +SUM(OFFSET(BO119,0,MAX(-INT($L119+(0.5-(10^-12))),-BF$40)+1,1,MIN(INT($L119+(0.5-(10^-12))),BF$40)-1))*1/$L119, IF($J119="Declining Balance",-$AY$38,0))))) -> 0 | BH119: =+IF($K119="Ongoing",AP119,IF(RIGHT($K119,2)=RIGHT(BH$39,2),SUM($AP119:AP119),0)+IF(RIGHT(BH$39,2)>RIGHT($K119,2),AP119,0)) -> 0 | BI119: =+IF($K119="Ongoing",AQ119,IF(RIGHT($K119,2)=RIGHT(BI$39,2),SUM($AP119:AQ119),0)+IF(RIGHT(BI$39,2)>RIGHT($K119,2),AQ119,0)) -> 0 | BJ119: =+IF($K119="Ongoing",AR119,IF(RIGHT($K119,2)=RIGHT(BJ$39,2),SUM($AP119:AR119),0)+IF(RIGHT(BJ$39,2)>RIGHT($K119,2),AR119,0)) -> 0 | BK119: =+IF($K119="Ongoing",AS119,IF(RIGHT($K119,2)=RIGHT(BK$39,2),SUM($AP119:AS119),0)+IF(RIGHT(BK$39,2)>RIGHT($K119,2),AS119,0)) -> 0 | BL119: =+IF($K119="Ongoing",AT119,IF(RIGHT($K119,2)=RIGHT(BL$39,2),SUM($AP119:AT119),0)+IF(RIGHT(BL$39,2)>RIGHT($K119,2),AT119,0)) -> 0 | BM119: =+IF($K119="Ongoing",AU119,IF(RIGHT($K119,2)=RIGHT(BM$39,2),SUM($AP119:AU119),0)+IF(RIGHT(BM$39,2)>RIGHT($K119,2),AU119,0)) -> 0 | BN119: =+IF($K119="Ongoing",AV119,IF(RIGHT($K119,2)=RIGHT(BN$39,2),SUM($AP119:AV119),0)+IF(RIGHT(BN$39,2)>RIGHT($K119,2),AV119,0)) -> 0 | BO119: =+IF($K119="Ongoing",AW119,IF(RIGHT($K119,2)=RIGHT(BO$39,2),SUM($AP119:AW119),0)+IF(RIGHT(BO$39,2)>RIGHT($K119,2),AW119,0)) -> 0 | BQ119: =+O119*KeyAssumptionsPriceControl_FO!AD$15 -> 0.64313865 | BR119: =+P119*KeyAssumptionsPriceControl_FO!AE$15 -> 0.6656485027 | BS119: =+Q119*KeyAssumptionsPriceControl_FO!AF$15 -> 0.6889462003 | BT119: =+R119*KeyAssumptionsPriceControl_FO!AG$15 -> 0.7130593174 | BU119: =+S119*KeyAssumptionsPriceControl_FO!AH$15 -> 0 | BV119: =+T119*KeyAssumptionsPriceControl_FO!AI$15 -> 0 | BW119: =+U119*KeyAssumptionsPriceControl_FO!AJ$15 -> 0 | BX119: =+V119*KeyAssumptionsPriceControl_FO!AK$15 -> 0 | BZ119: =IF($M119=0,0, IF($M119<=0.5,BQ119, IF($J119="straight line", IF((LEFT(BZ$39,4)*1)-INT($M119)<LEFT($BZ$39,4)*1,0,((OFFSET(BQ119,0,-INT($M119+0.5),1,1))/$M119)*(IF($M119-INT($M119)>0.5,$M119-0.5-INT($M119),IF($M119-INT($M119)<=0.5,$M119-0.5-INT($M119)+1,0)))) +BQ119/$M119*0.5, IF($J119="Declining Balance",-$BZ$38,0)))) -> 0.0107189775 | CA119: =IF($M119=0,0, IF($M119<=0.5,BR119, IF(AND($J119="straight line",$M119<1.51),(BQ119-((BQ119/$M119)*0.5))+BR119/$M119*0.5, IF($J119="straight line", IF((LEFT(CA$39,4)*1)-INT($M119)<LEFT($BZ$39,4)*1,0,((OFFSET(BR119,0,-INT($M119+0.5),1,1))/$M119)*(IF($M119-INT($M119)>0.5,$M119-0.5-INT($M119),IF($M119-INT($M119)<=0.5,$M119-0.5-INT($M119)+1,0)))) +BR119/$M119*0.5 +SUM(OFFSET(BR119,0,MAX(-INT($M119+(0.5-(10^-12))),-CA$40)+1,1,MIN(INT($M119+(0.5-(10^-12))),CA$40)-1))*1/$M119, IF($J119="Declining Balance",-$BZ$38,0))))) -> 0.03253209671 | CB119: =IF($M119=0,0, IF($M119<=0.5,BS119, IF(AND($J119="straight line",$M119<1.51),(BR119-((BR119/$M119)*0.5))+BS119/$M119*0.5, IF($J119="straight line", IF((LEFT(CB$39,4)*1)-INT($M119)<LEFT($BZ$39,4)*1,0,((OFFSET(BS119,0,-INT($M119+0.5),1,1))/$M119)*(IF($M119-INT($M119)>0.5,$M119-0.5-INT($M119),IF($M119-INT($M119)<=0.5,$M119-0.5-INT($M119)+1,0)))) +BS119/$M119*0.5 +SUM(OFFSET(BS119,0,MAX(-INT($M119+(0.5-(10^-12))),-CB$40)+1,1,MIN(INT($M119+(0.5-(10^-12))),CB$40)-1))*1/$M119, IF($J119="Declining Balance",-$BZ$38,0))))) -> 0.0551086751 | CC119: =IF($M119=0,0, IF($M119<=0.5,BT119, IF(AND($J119="straight line",$M119<1.51),(BS119-((BS119/$M119)*0.5))+BT119/$M119*0.5, IF($J119="straight line", IF((LEFT(CC$39,4)*1)-INT($M119)<LEFT($BZ$39,4)*1,0,((OFFSET(BT119,0,-INT($M119+0.5),1,1))/$M119)*(IF($M119-INT($M119)>0.5,$M119-0.5-INT($M119),IF($M119-INT($M119)<=0.5,$M119-0.5-INT($M119)+1,0)))) +BT119/$M119*0.5 +SUM(OFFSET(BT119,0,MAX(-INT($M119+(0.5-(10^-12))),-CC$40)+1,1,MIN(INT($M119+(0.5-(10^-12))),CC$40)-1))*1/$M119, IF($J119="Declining Balance",-$BZ$38,0))))) -> 0.07847543373 | CD119: =IF($M119=0,0, IF($M119<=0.5,BU119, IF(AND($J119="straight line",$M119<1.51),(BT119-((BT119/$M119)*0.5))+BU119/$M119*0.5, IF($J119="straight line", IF((LEFT(CD$39,4)*1)-INT($M119)<LEFT($BZ$39,4)*1,0,((OFFSET(BU119,0,-INT($M119+0.5),1,1))/$M119)*(IF($M119-INT($M119)>0.5,$M119-0.5-INT($M119),IF($M119-INT($M119)<=0.5,$M119-0.5-INT($M119)+1,0)))) +BU119/$M119*0.5 +SUM(OFFSET(BU119,0,MAX(-INT($M119+(0.5-(10^-12))),-CD$40)+1,1,MIN(INT($M119+(0.5-(10^-12))),CD$40)-1))*1/$M119, IF($J119="Declining Balance",-$BZ$38,0))))) -> 0.09035975568 | CE119: =IF($M119=0,0, IF($M119<=0.5,BV119, IF(AND($J119="straight line",$M119<1.51),(BU119-((BU119/$M119)*0.5))+BV119/$M119*0.5, IF($J119="straight line", IF((LEFT(CE$39,4)*1)-INT($M119)<LEFT($BZ$39,4)*1,0,((OFFSET(BV119,0,-INT($M119+0.5),1,1))/$M119)*(IF($M119-INT($M119)>0.5,$M119-0.5-INT($M119),IF($M119-INT($M119)<=0.5,$M119-0.5-INT($M119)+1,0)))) +BV119/$M119*0.5 +SUM(OFFSET(BV119,0,MAX(-INT($M119+(0.5-(10^-12))),-CE$40)+1,1,MIN(INT($M119+(0.5-(10^-12))),CE$40)-1))*1/$M119, IF($J119="Declining Balance",-$BZ$38,0))))) -> 0.09035975568 | CF119: =IF($M119=0,0, IF($M119<=0.5,BW119, IF(AND($J119="straight line",$M119<1.51),(BV119-((BV119/$M119)*0.5))+BW119/$M119*0.5, IF($J119="straight line", IF((LEFT(CF$39,4)*1)-INT($M119)<LEFT($BZ$39,4)*1,0,((OFFSET(BW119,0,-INT($M119+0.5),1,1))/$M119)*(IF($M119-INT($M119)>0.5,$M119-0.5-INT($M119),IF($M119-INT($M119)<=0.5,$M119-0.5-INT($M119)+1,0)))) +BW119/$M119*0.5 +SUM(OFFSET(BW119,0,MAX(-INT($M119+(0.5-(10^-12))),-CF$40)+1,1,MIN(INT($M119+(0.5-(10^-12))),CF$40)-1))*1/$M119, IF($J119="Declining Balance",-$BZ$38,0))))) -> 0.09035975568 | CG119: =IF($M119=0,0, IF($M119<=0.5,BX119, IF(AND($J119="straight line",$M119<1.51),(BW119-((BW119/$M119)*0.5))+BX119/$M119*0.5, IF($J119="straight line", IF((LEFT(CG$39,4)*1)-INT($M119)<LEFT($BZ$39,4)*1,0,((OFFSET(BX119,0,-INT($M119+0.5),1,1))/$M119)*(IF($M119-INT($M119)>0.5,$M119-0.5-INT($M119),IF($M119-INT($M119)<=0.5,$M119-0.5-INT($M119)+1,0)))) +BX119/$M119*0.5 +SUM(OFFSET(BX119,0,MAX(-INT($M119+(0.5-(10^-12))),-CG$40)+1,1,MIN(INT($M119+(0.5-(10^-12))),CG$40)-1))*1/$M119, IF($J119="Declining Balance",-$BZ$38,0))))) -> 0.09035975568
A120: 68 | C120: Meter Replace/Upgrade | E120: Surface water diversions | F120: Renewals | G120: Channels | H120: Capital Programs / Allocation | J120: Straight line | K120: 2024-25 | L120: 30 | M120: 30 | O120: 0.222843 | P120: 0.222843 | Q120: 0.222843 | R120: 0.222843 | S120: 0 | T120: 0 | U120: 0 | V120: 0 | X120: 0.222843 | Y120: 0.222843 | Z120: 0.222843 | AA120: 0.222843 | AP120: 0 | AQ120: 0 | AR120: 0 | AS120: 0 | AT120: 0 | AU120: 0 | AV120: 0 | AW120: 0 | AY120: 0 | AZ120: 0 | BA120: 0 | BB120: 0 | BC120: 0 | BD120: 0 | BE120: 0 | BF120: 0 | BH120: =+IF($K120="Ongoing",AP120,IF(RIGHT($K120,2)=RIGHT(BH$39,2),SUM($AP120:AP120),0)+IF(RIGHT(BH$39,2)>RIGHT($K120,2),AP120,0)) -> 0 | BI120: =+IF($K120="Ongoing",AQ120,IF(RIGHT($K120,2)=RIGHT(BI$39,2),SUM($AP120:AQ120),0)+IF(RIGHT(BI$39,2)>RIGHT($K120,2),AQ120,0)) -> 0 | BJ120: =+IF($K120="Ongoing",AR120,IF(RIGHT($K120,2)=RIGHT(BJ$39,2),SUM($AP120:AR120),0)+IF(RIGHT(BJ$39,2)>RIGHT($K120,2),AR120,0)) -> 0 | BK120: =+IF($K120="Ongoing",AS120,IF(RIGHT($K120,2)=RIGHT(BK$39,2),SUM($AP120:AS120),0)+IF(RIGHT(BK$39,2)>RIGHT($K120,2),AS120,0)) -> 0 | BL120: =+IF($K120="Ongoing",AT120,IF(RIGHT($K120,2)=RIGHT(BL$39,2),SUM($AP120:AT120),0)+IF(RIGHT(BL$39,2)>RIGHT($K120,2),AT120,0)) -> 0 | BM120: =+IF($K120="Ongoing",AU120,IF(RIGHT($K120,2)=RIGHT(BM$39,2),SUM($AP120:AU120),0)+IF(RIGHT(BM$39,2)>RIGHT($K120,2),AU120,0)) -> 0 | BN120: =+IF($K120="Ongoing",AV120,IF(RIGHT($K120,2)=RIGHT(BN$39,2),SUM($AP120:AV120),0)+IF(RIGHT(BN$39,2)>RIGHT($K120,2),AV120,0)) -> 0 | BO120: =+IF($K120="Ongoing",AW120,IF(RIGHT($K120,2)=RIGHT(BO$39,2),SUM($AP120:AW120),0)+IF(RIGHT(BO$39,2)>RIGHT($K120,2),AW120,0)) -> 0 | BQ120: =+O120*KeyAssumptionsPriceControl_FO!AD$15 -> 0.230642505 | BR120: =+P120*KeyAssumptionsPriceControl_FO!AE$15 -> 0.2387149927 | BS120: =+Q120*KeyAssumptionsPriceControl_FO!AF$15 -> 0.2470700174 | BT120: =+R120*KeyAssumptionsPriceControl_FO!AG$15 -> 0.255717468 | BU120: =+S120*KeyAssumptionsPriceControl_FO!AH$15 -> 0 | BV120: =+T120*KeyAssumptionsPriceControl_FO!AI$15 -> 0 | BW120: =+U120*KeyAssumptionsPriceControl_FO!AJ$15 -> 0 | BX120: =+V120*KeyAssumptionsPriceControl_FO!AK$15 -> 0 | BZ120: 0.00384404175 | CA120: 0.01166666671 | CB120: 0.01976308355 | CC120: 0.02814287497 | CD120: 0.03240483277 | CE120: 0.03240483277 | CF120: 0.03240483277 | CG120: 0.03240483277
A121: 69 | C121: Meter Replace/Upgrade | E121: Groundwater diversions | F121: Renewals | G121: Channels | H121: Capital Programs / Allocation | J121: Straight line | K121: 2024-25 | L121: 30 | M121: 30 | O121: 0.642817 | P121: 0.642817 | Q121: 0.642817 | R121: 0.642817 | S121: 0 | T121: 0 | U121: 0 | V121: 0 | X121: 0.642817 | Y121: 0.642817 | Z121: 0.642817 | AA121: 0.642817 | AP121: 0 | AQ121: 0 | AR121: 0 | AS121: 0 | AT121: 0 | AU121: 0 | AV121: 0 | AW121: 0 | AY121: 0 | AZ121: 0 | BA121: 0 | BB121: 0 | BC121: 0 | BD121: 0 | BE121: 0 | BF121: 0 | BH121: =+IF($K121="Ongoing",AP121,IF(RIGHT($K121,2)=RIGHT(BH$39,2),SUM($AP121:AP121),0)+IF(RIGHT(BH$39,2)>RIGHT($K121,2),AP121,0)) -> 0 | BI121: =+IF($K121="Ongoing",AQ121,IF(RIGHT($K121,2)=RIGHT(BI$39,2),SUM($AP121:AQ121),0)+IF(RIGHT(BI$39,2)>RIGHT($K121,2),AQ121,0)) -> 0 | BJ121: =+IF($K121="Ongoing",AR121,IF(RIGHT($K121,2)=RIGHT(BJ$39,2),SUM($AP121:AR121),0)+IF(RIGHT(BJ$39,2)>RIGHT($K121,2),AR121,0)) -> 0 | BK121: =+IF($K121="Ongoing",AS121,IF(RIGHT($K121,2)=RIGHT(BK$39,2),SUM($AP121:AS121),0)+IF(RIGHT(BK$39,2)>RIGHT($K121,2),AS121,0)) -> 0 | BL121: =+IF($K121="Ongoing",AT121,IF(RIGHT($K121,2)=RIGHT(BL$39,2),SUM($AP121:AT121),0)+IF(RIGHT(BL$39,2)>RIGHT($K121,2),AT121,0)) -> 0 | BM121: =+IF($K121="Ongoing",AU121,IF(RIGHT($K121,2)=RIGHT(BM$39,2),SUM($AP121:AU121),0)+IF(RIGHT(BM$39,2)>RIGHT($K121,2),AU121,0)) -> 0 | BN121: =+IF($K121="Ongoing",AV121,IF(RIGHT($K121,2)=RIGHT(BN$39,2),SUM($AP121:AV121),0)+IF(RIGHT(BN$39,2)>RIGHT($K121,2),AV121,0)) -> 0 | BO121: =+IF($K121="Ongoing",AW121,IF(RIGHT($K121,2)=RIGHT(BO$39,2),SUM($AP121:AW121),0)+IF(RIGHT(BO$39,2)>RIGHT($K121,2),AW121,0)) -> 0 | BQ121: =+O121*KeyAssumptionsPriceControl_FO!AD$15 -> 0.665315595 | BR121: =+P121*KeyAssumptionsPriceControl_FO!AE$15 -> 0.6886016408 | BS121: =+Q121*KeyAssumptionsPriceControl_FO!AF$15 -> 0.7127026983 | BT121: =+R121*KeyAssumptionsPriceControl_FO!AG$15 -> 0.7376472927 | BU121: =+S121*KeyAssumptionsPriceControl_FO!AH$15 -> 0 | BV121: =+T121*KeyAssumptionsPriceControl_FO!AI$15 -> 0 | BW121: =+U121*KeyAssumptionsPriceControl_FO!AJ$15 -> 0 | BX121: =+V121*KeyAssumptionsPriceControl_FO!AK$15 -> 0 | BZ121: 0.01108859325 | CA121: 0.03365388051 | CB121: 0.05700895283 | CC121: 0.08118145268 | CD121: 0.09347557423 | CE121: 0.09347557423 | CF121: 0.09347557423 | CG121: 0.09347557423
A122: 70 | C122: Structure | E122: Irrigation | F122: Renewals | G122: Channels | H122: Capital Programs / Allocation | J122: Straight line | K122: 2025-26 | L122: 80 | M122: 80 | O122: 0 | P122: 0.0515 | Q122: 0.0309 | R122: 0 | S122: 0 | T122: 0.0515 | U122: 0.0309 | V122: 0 | AP122: 0 | AQ122: 0.0515 | AR122: 0.0309 | AS122: 0 | AT122: 0 | AU122: 0.0515 | AV122: 0.0309 | AW122: 0 | AY122: 0 | AZ122: 0.000321875 | BA122: 0.000836875 | BB122: 0.00103 | BC122: 0.00103 | BD122: 0.001351875 | BE122: 0.001866875 | BF122: 0.00206 | BH122: =+IF($K122="Ongoing",AP122,IF(RIGHT($K122,2)=RIGHT(BH$39,2),SUM($AP122:AP122),0)+IF(RIGHT(BH$39,2)>RIGHT($K122,2),AP122,0)) -> 0 | BI122: =+IF($K122="Ongoing",AQ122,IF(RIGHT($K122,2)=RIGHT(BI$39,2),SUM($AP122:AQ122),0)+IF(RIGHT(BI$39,2)>RIGHT($K122,2),AQ122,0)) -> 0.0515 | BJ122: =+IF($K122="Ongoing",AR122,IF(RIGHT($K122,2)=RIGHT(BJ$39,2),SUM($AP122:AR122),0)+IF(RIGHT(BJ$39,2)>RIGHT($K122,2),AR122,0)) -> 0.0309 | BK122: =+IF($K122="Ongoing",AS122,IF(RIGHT($K122,2)=RIGHT(BK$39,2),SUM($AP122:AS122),0)+IF(RIGHT(BK$39,2)>RIGHT($K122,2),AS122,0)) -> 0 | BL122: =+IF($K122="Ongoing",AT122,IF(RIGHT($K122,2)=RIGHT(BL$39,2),SUM($AP122:AT122),0)+IF(RIGHT(BL$39,2)>RIGHT($K122,2),AT122,0)) -> 0 | BM122: =+IF($K122="Ongoing",AU122,IF(RIGHT($K122,2)=RIGHT(BM$39,2),SUM($AP122:AU122),0)+IF(RIGHT(BM$39,2)>RIGHT($K122,2),AU122,0)) -> 0.0515 | BN122: =+IF($K122="Ongoing",AV122,IF(RIGHT($K122,2)=RIGHT(BN$39,2),SUM($AP122:AV122),0)+IF(RIGHT(BN$39,2)>RIGHT($K122,2),AV122,0)) -> 0.0309 | BO122: =+IF($K122="Ongoing",AW122,IF(RIGHT($K122,2)=RIGHT(BO$39,2),SUM($AP122:AW122),0)+IF(RIGHT(BO$39,2)>RIGHT($K122,2),AW122,0)) -> 0 | BQ122: =+O122*KeyAssumptionsPriceControl_FO!AD$15 -> 0 | BR122: =+P122*KeyAssumptionsPriceControl_FO!AE$15 -> 0.0551680875 | BS122: =+Q122*KeyAssumptionsPriceControl_FO!AF$15 -> 0.03425938234 | BT122: =+R122*KeyAssumptionsPriceControl_FO!AG$15 -> 0 | BU122: =+S122*KeyAssumptionsPriceControl_FO!AH$15 -> 0 | BV122: =+T122*KeyAssumptionsPriceControl_FO!AI$15 -> 0.06330664931 | BW122: =+U122*KeyAssumptionsPriceControl_FO!AJ$15 -> 0.03931342922 | BX122: =+V122*KeyAssumptionsPriceControl_FO!AK$15 -> 0 | BZ122: 0 | CA122: 0.001374800547 | CB122: 0.001933722233 | CC122: 0.002147843373 | CD122: 0.002147843373 | CE122: 0.002543509931 | CF122: 0.003184885422 | CG122: 0.003430594355
A123: 71 | C123: WIL - Comms and operations upgrade (Remote Valve Operation, radios, RTUs, rotorks, HMI) | E123: Bulk water services | F123: Renewals | G123: Headworks | H123: Other Capital expenditure | J123: Straight line | K123: 2029-30 | L123: 15 | M123: 15 | O123: 0 | P123: 0 | Q123: 0 | R123: 0 | S123: 0 | T123: 0.0206 | U123: 0 | V123: 0 | AP123: 0 | AQ123: 0 | AR123: 0 | AS123: 0 | AT123: 0 | AU123: 0.0206 | AV123: 0 | AW123: 0 | AY123: 0 | AZ123: 0 | BA123: 0 | BB123: 0 | BC123: 0 | BD123: 0.0006866666667 | BE123: 0.001373333333 | BF123: 0.001373333333 | BH123: =+IF($K123="Ongoing",AP123,IF(RIGHT($K123,2)=RIGHT(BH$39,2),SUM($AP123:AP123),0)+IF(RIGHT(BH$39,2)>RIGHT($K123,2),AP123,0)) -> 0 | BI123: =+IF($K123="Ongoing",AQ123,IF(RIGHT($K123,2)=RIGHT(BI$39,2),SUM($AP123:AQ123),0)+IF(RIGHT(BI$39,2)>RIGHT($K123,2),AQ123,0)) -> 0 | BJ123: =+IF($K123="Ongoing",AR123,IF(RIGHT($K123,2)=RIGHT(BJ$39,2),SUM($AP123:AR123),0)+IF(RIGHT(BJ$39,2)>RIGHT($K123,2),AR123,0)) -> 0 | BK123: =+IF($K123="Ongoing",AS123,IF(RIGHT($K123,2)=RIGHT(BK$39,2),SUM($AP123:AS123),0)+IF(RIGHT(BK$39,2)>RIGHT($K123,2),AS123,0)) -> 0 | BL123: =+IF($K123="Ongoing",AT123,IF(RIGHT($K123,2)=RIGHT(BL$39,2),SUM($AP123:AT123),0)+IF(RIGHT(BL$39,2)>RIGHT($K123,2),AT123,0)) -> 0 | BM123: =+IF($K123="Ongoing",AU123,IF(RIGHT($K123,2)=RIGHT(BM$39,2),SUM($AP123:AU123),0)+IF(RIGHT(BM$39,2)>RIGHT($K123,2),AU123,0)) -> 0.0206 | BN123: =+IF($K123="Ongoing",AV123,IF(RIGHT($K123,2)=RIGHT(BN$39,2),SUM($AP123:AV123),0)+IF(RIGHT(BN$39,2)>RIGHT($K123,2),AV123,0)) -> 0 | BO123: =+IF($K123="Ongoing",AW123,IF(RIGHT($K123,2)=RIGHT(BO$39,2),SUM($AP123:AW123),0)+IF(RIGHT(BO$39,2)>RIGHT($K123,2),AW123,0)) -> 0 | BQ123: =+O123*KeyAssumptionsPriceControl_FO!AD$15 -> 0 | BR123: =+P123*KeyAssumptionsPriceControl_FO!AE$15 -> 0 | BS123: =+Q123*KeyAssumptionsPriceControl_FO!AF$15 -> 0 | BT123: =+R123*KeyAssumptionsPriceControl_FO!AG$15 -> 0 | BU123: =+S123*KeyAssumptionsPriceControl_FO!AH$15 -> 0 | BV123: =+T123*KeyAssumptionsPriceControl_FO!AI$15 -> 0.02532265972 | BW123: =+U123*KeyAssumptionsPriceControl_FO!AJ$15 -> 0 | BX123: =+V123*KeyAssumptionsPriceControl_FO!AK$15 -> 0 | BZ123: 0 | CA123: 0.001373333333 | CB123: 0.001373333333 | CC123: 0.001373333333 | CD123: 0.001373333333 | CE123: 0.002217421991 | CF123: 0.003061510648 | CG123: 0.003061510648
A124: 72 | C124: WIL - Replace tower level | E124: Bulk water services | F124: Renewals | G124: Headworks | H124: Other Capital expenditure | J124: Straight line | K124: 2029-30 | L124: 15 | M124: 15 | O124: 0 | P124: 0 | Q124: 0 | R124: 0 | S124: 0 | T124: 0.00515 | U124: 0 | V124: 0 | AP124: 0 | AQ124: 0 | AR124: 0 | AS124: 0 | AT124: 0 | AU124: 0.00515 | AV124: 0 | AW124: 0 | AY124: 0 | AZ124: 0 | BA124: 0 | BB124: 0 | BC124: 0 | BD124: 0.0001716666667 | BE124: 0.0003433333333 | BF124: 0.0003433333333 | BH124: =+IF($K124="Ongoing",AP124,IF(RIGHT($K124,2)=RIGHT(BH$39,2),SUM($AP124:AP124),0)+IF(RIGHT(BH$39,2)>RIGHT($K124,2),AP124,0)) -> 0 | BI124: =+IF($K124="Ongoing",AQ124,IF(RIGHT($K124,2)=RIGHT(BI$39,2),SUM($AP124:AQ124),0)+IF(RIGHT(BI$39,2)>RIGHT($K124,2),AQ124,0)) -> 0 | BJ124: =+IF($K124="Ongoing",AR124,IF(RIGHT($K124,2)=RIGHT(BJ$39,2),SUM($AP124:AR124),0)+IF(RIGHT(BJ$39,2)>RIGHT($K124,2),AR124,0)) -> 0 | BK124: =+IF($K124="Ongoing",AS124,IF(RIGHT($K124,2)=RIGHT(BK$39,2),SUM($AP124:AS124),0)+IF(RIGHT(BK$39,2)>RIGHT($K124,2),AS124,0)) -> 0 | BL124: =+IF($K124="Ongoing",AT124,IF(RIGHT($K124,2)=RIGHT(BL$39,2),SUM($AP124:AT124),0)+IF(RIGHT(BL$39,2)>RIGHT($K124,2),AT124,0)) -> 0 | BM124: =+IF($K124="Ongoing",AU124,IF(RIGHT($K124,2)=RIGHT(BM$39,2),SUM($AP124:AU124),0)+IF(RIGHT(BM$39,2)>RIGHT($K124,2),AU124,0)) -> 0.00515 | BN124: =+IF($K124="Ongoing",AV124,IF(RIGHT($K124,2)=RIGHT(BN$39,2),SUM($AP124:AV124),0)+IF(RIGHT(BN$39,2)>RIGHT($K124,2),AV124,0)) -> 0 | BO124: =+IF($K124="Ongoing",AW124,IF(RIGHT($K124,2)=RIGHT(BO$39,2),SUM($AP124:AW124),0)+IF(RIGHT(BO$39,2)>RIGHT($K124,2),AW124,0)) -> 0 | BQ124: =+O124*KeyAssumptionsPriceControl_FO!AD$15 -> 0 | BR124: =+P124*KeyAssumptionsPriceControl_FO!AE$15 -> 0 | BS124: =+Q124*KeyAssumptionsPriceControl_FO!AF$15 -> 0 | BT124: =+R124*KeyAssumptionsPriceControl_FO!AG$15 -> 0 | BU124: =+S124*KeyAssumptionsPriceControl_FO!AH$15 -> 0 | BV124: =+T124*KeyAssumptionsPriceControl_FO!AI$15 -> 0.006330664931 | BW124: =+U124*KeyAssumptionsPriceControl_FO!AJ$15 -> 0 | BX124: =+V124*KeyAssumptionsPriceControl_FO!AK$15 -> 0 | BZ124: 0 | CA124: 0.0003433333333 | CB124: 0.0003433333333 | CC124: 0.0003433333333 | CD124: 0.0003433333333 | CE124: 0.0005543554977 | CF124: 0.000765377662 | CG124: 0.000765377662
